Workbook

Sheet OnGrid Tool
B1: * | C1: ="OnGrid Tool v"&FIXED(ToolVersion,2)&IF(WebPortalVendorName<>"",". Licensed to " &WebPortalVendorName&".","") -> OnGrid Tool v6.00 | L1: =IF(AND(MacrosEnabled,NOT(CodeInProgress),FileSavedByUser),"Fix This OnGrid Tool Copy","") -> 
B8: =IF(AND(CodeInProgressText<>"",NOT(CodeInProgress_FormOpen)),CodeInProgressText,"") -> 
B11: =_xlfn.LET( _xlpm.v5_7_note, "removed from formula: ,AND(MacrosEnabled,NOT(UserLoggedIn)", IF(NOT(CodeInProgress),"Click Here to Log In","") ) -> Click Here to Log In
B16: =IF(OR(MacrosEnabled,UserLoggedIn),"","You'll need to enable macros before using the OnGrid Tool.") ->  | F16: =IF(OR(MacrosEnabled,UserLoggedIn),"","See:") ->  | G16: =IF(OR(MacrosEnabled,UserLoggedIn),"","How to Enable Macros") -> 
Z107: LastCell

Sheet Welcome (hidden)
B5: ="Welcome to OnGrid Tool version "&ToolVersion&"." -> Welcome to OnGrid Tool version 6.
B8: Click the Inputs sheet tab below to pick up where you left off.

Sheet Settings (hidden)
I1: StartPvtFileInfo | S1: StartExtraPublic | AQ1: EndExtraPublic | AS1: StartPrivate | AU1: Reset | AV1: InvalidPath | AX1: LastUpdateStructure | AY1: LastUpdateNames | AZ1: DevModeFile | BB1: RowHidden | BE1: EndPrivate
B2: run | C2: Top | D2: Sheet Settings | F2: Support | G2: =IF(AND(CodeInProgressText<>"",NOT(CodeInProgress_FormOpen)),CodeInProgressText,"") -> 
C4: =ToolTitle&" " -> OnGrid Tool | AT4: Toggle Row 1 / Column A
C6: =ActiveUserName -> Marge Simpson | D6: Logged-In User Log Out
C10: Settings | I10: Reset All Settings On This Sheet To Defaults
A13: OnGridSkyStart | C13: OnGrid Sky — Customer Data | D13: (SECTION DISABLED IN v6)
C15: Share customer data with co-workers. Lead a team. Keep your customer data backed up. | F15: Learn More About OnGrid Sky | H15: ="Go to "&PortalName -> Go to OnGrid Sky
C17: No | D17: Prompt to Sync at Log In? | AU17: No
C18: No | D18: Prompt to Sync at Log Out? | AU18: No
C20: No | D20: Confirm User-Initiated Syncs? (helpful if you're on slow internet) | AU20: No
C22: ="Sync Active Customer Database with OnGrid Sky"&IF(InSyncRequiredNotificationPeriod," Sync required by " & TEXT(SyncRequiredDate,"m/d/yy h:mmAM/PM"),"") -> Sync Active Customer Database with OnGrid Sky
C26: Share Files — User Data | F26: What's User Data?
C28: Share your OnGrid Tool preferences and customizations with co-workers.
C30: Create Share File
C31: Load From Share File
A33: ShareFileEnd
C35: Data Saving
C37: Yes | D37: Show Save Options While Logged In? (vs saving both user and customer data without prompt) | AU37: No
C38: No | D38: Show Save Options at Log Out? (vs saving both user and customer data without prompt) | AU38: No
C39: No | D39: Reset Customer Inputs at Log Out? | AU39: No
C43: Viewable Sales Reps
C44: Sales Rep Name | D44: Company Name | E44: City | F44: Work Phone | G44: Cell Phone | H44: Email
A45: SalespeopleStart | B45: 1 | C45: =IF(NOT(CustOwnerAvailable),"(no viewable sales reps available)",IF($BC45<>"",INDEX(VendUsersArray,MATCH($BC45,VendUsersKeyCodeArray,0)+2,MATCH("UserName",VendUsersHeading,0)),"")) -> Marge Simpson | D45: =IF($BC45<>"",INDEX(VendUsersArray,MATCH($BC45,VendUsersKeyCodeArray,0)+2,MATCH("VendorName",VendUsersHeading,0)),"") -> Springfield Electric | E45: =IF($BC45<>"",INDEX(VendUsersArray,MATCH($BC45,VendUsersKeyCodeArray,0)+2,MATCH("VendorCity",VendUsersHeading,0)),"") -> Springfield | F45: =IF($BC45<>"",IF(INDEX(VendUsersArray,MATCH($BC45,VendUsersKeyCodeArray,0)+2,MATCH("WorkPhone",VendUsersHeading,0))<>0,INDEX(VendUsersArray,MATCH($BC45,VendUsersKeyCodeArray,0)+2,MATCH("WorkPhone",VendUsersHeading,0)),""),"") ->  | G45: =IF($BC45<>"",IF(INDEX(VendUsersArray,MATCH($BC45,VendUsersKeyCodeArray,0)+2,MATCH("CellPhone",VendUsersHeading,0))<>0,INDEX(VendUsersArray,MATCH($BC45,VendUsersKeyCodeArray,0)+2,MATCH("CellPhone",VendUsersHeading,0)),""),"") ->  | H45: =IF($BC45<>"",IF(INDEX(VendUsersArray,MATCH($BC45,VendUsersKeyCodeArray,0)+2,MATCH("Email",VendUsersHeading,0))<>0,INDEX(VendUsersArray,MATCH($BC45,VendUsersKeyCodeArray,0)+2,MATCH("Email",VendUsersHeading,0)),""),"") -> marge@spring-electric.wtf | BC45: =IF(DefaultsPvt!S73<>"",DefaultsPvt!S73,"") -> 1
B46: 2 | C46: =IF(NOT(CustOwnerAvailable),"",IF($BC46<>"",INDEX(VendUsersArray,MATCH($BC46,VendUsersKeyCodeArray,0)+2,MATCH("UserName",VendUsersHeading,0)),"")) -> Homer Simpson | D46: Springfield Electric | E46: Springfield | H46: homer@spring-electric.wtf | BC46: =IF(DefaultsPvt!S74<>"",DefaultsPvt!S74,"") -> 2
B47: 3 | BC47: =IF(DefaultsPvt!S75<>"",DefaultsPvt!S75,"") -> 
B48: 4 | BC48: =IF(DefaultsPvt!S76<>"",DefaultsPvt!S76,"") -> 
B49: 5 | BC49: =IF(DefaultsPvt!S77<>"",DefaultsPvt!S77,"") -> 
B50: 6 | BC50: =IF(DefaultsPvt!S78<>"",DefaultsPvt!S78,"") -> 
B51: 7 | BC51: =IF(DefaultsPvt!S79<>"",DefaultsPvt!S79,"") -> 
B52: 8 | BC52: =IF(DefaultsPvt!S80<>"",DefaultsPvt!S80,"") -> 
B53: 9 | BC53: =IF(DefaultsPvt!S81<>"",DefaultsPvt!S81,"") -> 
B54: 10 | BC54: =IF(DefaultsPvt!S82<>"",DefaultsPvt!S82,"") -> 
B55: 11 | BC55: =IF(DefaultsPvt!S83<>"",DefaultsPvt!S83,"") -> 
B56: 12 | BC56: =IF(DefaultsPvt!S84<>"",DefaultsPvt!S84,"") -> 
B57: 13 | BC57: =IF(DefaultsPvt!S85<>"",DefaultsPvt!S85,"") -> 
B58: 14 | BC58: =IF(DefaultsPvt!S86<>"",DefaultsPvt!S86,"") -> 
B59: 15 | BC59: =IF(DefaultsPvt!S87<>"",DefaultsPvt!S87,"") -> 
B60: 16 | BC60: =IF(DefaultsPvt!S88<>"",DefaultsPvt!S88,"") -> 
B61: 17 | BC61: =IF(DefaultsPvt!S89<>"",DefaultsPvt!S89,"") -> 
B62: 18 | BC62: =IF(DefaultsPvt!S90<>"",DefaultsPvt!S90,"") -> 
B63: 19 | BC63: =IF(DefaultsPvt!S91<>"",DefaultsPvt!S91,"") -> 
B64: 20 | BC64: =IF(DefaultsPvt!S92<>"",DefaultsPvt!S92,"") -> 
B65: 21 | BC65: =IF(DefaultsPvt!S93<>"",DefaultsPvt!S93,"") -> 
B66: 22 | BC66: =IF(DefaultsPvt!S94<>"",DefaultsPvt!S94,"") -> 
B67: 23 | BC67: =IF(DefaultsPvt!S95<>"",DefaultsPvt!S95,"") -> 
B68: 24 | BC68: =IF(DefaultsPvt!S96<>"",DefaultsPvt!S96,"") -> 
B69: 25 | BC69: =IF(DefaultsPvt!S97<>"",DefaultsPvt!S97,"") -> 
B70: 26 | BC70: =IF(DefaultsPvt!S98<>"",DefaultsPvt!S98,"") -> 
B71: 27 | BC71: =IF(DefaultsPvt!S99<>"",DefaultsPvt!S99,"") -> 
B72: 28 | BC72: =IF(DefaultsPvt!S100<>"",DefaultsPvt!S100,"") -> 
B73: 29 | BC73: =IF(DefaultsPvt!S101<>"",DefaultsPvt!S101,"") -> 
B74: 30 | BC74: =IF(DefaultsPvt!S102<>"",DefaultsPvt!S102,"") -> 
B75: 31 | BC75: =IF(DefaultsPvt!S103<>"",DefaultsPvt!S103,"") -> 
B76: 32 | BC76: =IF(DefaultsPvt!S104<>"",DefaultsPvt!S104,"") -> 
B77: 33 | D77: =IF($BC77<>"",INDEX(VendUsersArray,MATCH($BC77,VendUsersKeyCodeArray,0)+2,MATCH("VendorName",VendUsersHeading,0)),"") ->  | E77: =IF($BC77<>"",INDEX(VendUsersArray,MATCH($BC77,VendUsersKeyCodeArray,0)+2,MATCH("VendorCity",VendUsersHeading,0)),"") ->  | F77: =IF($BC77<>"",IF(INDEX(VendUsersArray,MATCH($BC77,VendUsersKeyCodeArray,0)+2,MATCH("WorkPhone",VendUsersHeading,0))<>0,INDEX(VendUsersArray,MATCH($BC77,VendUsersKeyCodeArray,0)+2,MATCH("WorkPhone",VendUsersHeading,0)),""),"") ->  | G77: =IF($BC77<>"",IF(INDEX(VendUsersArray,MATCH($BC77,VendUsersKeyCodeArray,0)+2,MATCH("CellPhone",VendUsersHeading,0))<>0,INDEX(VendUsersArray,MATCH($BC77,VendUsersKeyCodeArray,0)+2,MATCH("CellPhone",VendUsersHeading,0)),""),"") ->  | H77: =IF($BC77<>"",IF(INDEX(VendUsersArray,MATCH($BC77,VendUsersKeyCodeArray,0)+2,MATCH("Email",VendUsersHeading,0))<>0,INDEX(VendUsersArray,MATCH($BC77,VendUsersKeyCodeArray,0)+2,MATCH("Email",VendUsersHeading,0)),""),"") ->  | BC77: =IF(DefaultsPvt!S105<>"",DefaultsPvt!S105,"") -> 
B78: 34 | C78: =IF(NOT(CustOwnerAvailable),"",IF($BC78<>"",INDEX(VendUsersArray,MATCH($BC78,VendUsersKeyCodeArray,0)+2,MATCH("UserName",VendUsersHeading,0)),"")) ->  | BC78: =IF(DefaultsPvt!S106<>"",DefaultsPvt!S106,"") -> 
B79: 35 | BC79: =IF(DefaultsPvt!S107<>"",DefaultsPvt!S107,"") -> 
B80: 36 | BC80: =IF(DefaultsPvt!S108<>"",DefaultsPvt!S108,"") -> 
B81: 37 | BC81: =IF(DefaultsPvt!S109<>"",DefaultsPvt!S109,"") -> 
B82: 38 | BC82: =IF(DefaultsPvt!S110<>"",DefaultsPvt!S110,"") -> 
B83: 39 | BC83: =IF(DefaultsPvt!S111<>"",DefaultsPvt!S111,"") -> 
B84: 40 | BC84: =IF(DefaultsPvt!S112<>"",DefaultsPvt!S112,"") -> 
B85: 41 | BC85: =IF(DefaultsPvt!S113<>"",DefaultsPvt!S113,"") -> 
B86: 42 | BC86: =IF(DefaultsPvt!S114<>"",DefaultsPvt!S114,"") -> 
B87: 43 | BC87: =IF(DefaultsPvt!S115<>"",DefaultsPvt!S115,"") -> 
B88: 44 | BC88: =IF(DefaultsPvt!S116<>"",DefaultsPvt!S116,"") -> 
B89: 45 | BC89: =IF(DefaultsPvt!S117<>"",DefaultsPvt!S117,"") -> 
B90: 46 | BC90: =IF(DefaultsPvt!S118<>"",DefaultsPvt!S118,"") -> 
B91: 47 | BC91: =IF(DefaultsPvt!S119<>"",DefaultsPvt!S119,"") -> 
B92: 48 | BC92: =IF(DefaultsPvt!S120<>"",DefaultsPvt!S120,"") -> 
B93: 49 | BC93: =IF(DefaultsPvt!S121<>"",DefaultsPvt!S121,"") -> 
B94: 50 | BC94: =IF(DefaultsPvt!S122<>"",DefaultsPvt!S122,"") -> 
B95: 51 | BC95: =IF(DefaultsPvt!S123<>"",DefaultsPvt!S123,"") -> 
B96: 52 | BC96: =IF(DefaultsPvt!S124<>"",DefaultsPvt!S124,"") -> 
B97: 53 | BC97: =IF(DefaultsPvt!S125<>"",DefaultsPvt!S125,"") -> 
B98: 54 | BC98: =IF(DefaultsPvt!S126<>"",DefaultsPvt!S126,"") -> 
B99: 55 | BC99: =IF(DefaultsPvt!S127<>"",DefaultsPvt!S127,"") -> 
B100: 56 | BC100: =IF(DefaultsPvt!S128<>"",DefaultsPvt!S128,"") -> 
B101: 57 | BC101: =IF(DefaultsPvt!S129<>"",DefaultsPvt!S129,"") -> 
B102: 58 | BC102: =IF(DefaultsPvt!S130<>"",DefaultsPvt!S130,"") -> 
B103: 59 | BC103: =IF(DefaultsPvt!S131<>"",DefaultsPvt!S131,"") -> 
B104: 60 | BC104: =IF(DefaultsPvt!S132<>"",DefaultsPvt!S132,"") -> 
B105: 61 | BC105: =IF(DefaultsPvt!S133<>"",DefaultsPvt!S133,"") -> 
B106: 62 | BC106: =IF(DefaultsPvt!S134<>"",DefaultsPvt!S134,"") -> 
B107: 63 | BC107: =IF(DefaultsPvt!S135<>"",DefaultsPvt!S135,"") -> 
B108: 64 | BC108: =IF(DefaultsPvt!S136<>"",DefaultsPvt!S136,"") -> 
B109: 65 | D109: =IF($BC109<>"",INDEX(VendUsersArray,MATCH($BC109,VendUsersKeyCodeArray,0)+2,MATCH("VendorName",VendUsersHeading,0)),"") ->  | E109: =IF($BC109<>"",INDEX(VendUsersArray,MATCH($BC109,VendUsersKeyCodeArray,0)+2,MATCH("VendorCity",VendUsersHeading,0)),"") ->  | F109: =IF($BC109<>"",IF(INDEX(VendUsersArray,MATCH($BC109,VendUsersKeyCodeArray,0)+2,MATCH("WorkPhone",VendUsersHeading,0))<>0,INDEX(VendUsersArray,MATCH($BC109,VendUsersKeyCodeArray,0)+2,MATCH("WorkPhone",VendUsersHeading,0)),""),"") ->  | G109: =IF($BC109<>"",IF(INDEX(VendUsersArray,MATCH($BC109,VendUsersKeyCodeArray,0)+2,MATCH("CellPhone",VendUsersHeading,0))<>0,INDEX(VendUsersArray,MATCH($BC109,VendUsersKeyCodeArray,0)+2,MATCH("CellPhone",VendUsersHeading,0)),""),"") ->  | H109: =IF($BC109<>"",IF(INDEX(VendUsersArray,MATCH($BC109,VendUsersKeyCodeArray,0)+2,MATCH("Email",VendUsersHeading,0))<>0,INDEX(VendUsersArray,MATCH($BC109,VendUsersKeyCodeArray,0)+2,MATCH("Email",VendUsersHeading,0)),""),"") ->  | BC109: =IF(DefaultsPvt!S137<>"",DefaultsPvt!S137,"") -> 
B110: 66 | C110: =IF(NOT(CustOwnerAvailable),"",IF($BC110<>"",INDEX(VendUsersArray,MATCH($BC110,VendUsersKeyCodeArray,0)+2,MATCH("UserName",VendUsersHeading,0)),"")) ->  | BC110: =IF(DefaultsPvt!S138<>"",DefaultsPvt!S138,"") -> 
B111: 67 | BC111: =IF(DefaultsPvt!S139<>"",DefaultsPvt!S139,"") -> 
B112: 68 | BC112: =IF(DefaultsPvt!S140<>"",DefaultsPvt!S140,"") -> 
B113: 69 | BC113: =IF(DefaultsPvt!S141<>"",DefaultsPvt!S141,"") -> 
B114: 70 | BC114: =IF(DefaultsPvt!S142<>"",DefaultsPvt!S142,"") -> 
B115: 71 | BC115: =IF(DefaultsPvt!S143<>"",DefaultsPvt!S143,"") -> 
B116: 72 | BC116: =IF(DefaultsPvt!S144<>"",DefaultsPvt!S144,"") -> 
B117: 73 | BC117: =IF(DefaultsPvt!S145<>"",DefaultsPvt!S145,"") -> 
B118: 74 | BC118: =IF(DefaultsPvt!S146<>"",DefaultsPvt!S146,"") -> 
B119: 75 | BC119: =IF(DefaultsPvt!S147<>"",DefaultsPvt!S147,"") -> 
B120: 76 | BC120: =IF(DefaultsPvt!S148<>"",DefaultsPvt!S148,"") -> 
B121: 77 | BC121: =IF(DefaultsPvt!S149<>"",DefaultsPvt!S149,"") -> 
B122: 78 | BC122: =IF(DefaultsPvt!S150<>"",DefaultsPvt!S150,"") -> 
B123: 79 | BC123: =IF(DefaultsPvt!S151<>"",DefaultsPvt!S151,"") -> 
B124: 80 | BC124: =IF(DefaultsPvt!S152<>"",DefaultsPvt!S152,"") -> 
B125: 81 | BC125: =IF(DefaultsPvt!S153<>"",DefaultsPvt!S153,"") -> 
B126: 82 | BC126: =IF(DefaultsPvt!S154<>"",DefaultsPvt!S154,"") -> 
B127: 83 | BC127: =IF(DefaultsPvt!S155<>"",DefaultsPvt!S155,"") -> 
B128: 84 | BC128: =IF(DefaultsPvt!S156<>"",DefaultsPvt!S156,"") -> 
B129: 85 | BC129: =IF(DefaultsPvt!S157<>"",DefaultsPvt!S157,"") -> 
B130: 86 | BC130: =IF(DefaultsPvt!S158<>"",DefaultsPvt!S158,"") -> 
B131: 87 | BC131: =IF(DefaultsPvt!S159<>"",DefaultsPvt!S159,"") -> 
B132: 88 | BC132: =IF(DefaultsPvt!S160<>"",DefaultsPvt!S160,"") -> 
B133: 89 | BC133: =IF(DefaultsPvt!S161<>"",DefaultsPvt!S161,"") -> 
B134: 90 | BC134: =IF(DefaultsPvt!S162<>"",DefaultsPvt!S162,"") -> 
B135: 91 | BC135: =IF(DefaultsPvt!S163<>"",DefaultsPvt!S163,"") -> 
B136: 92 | BC136: =IF(DefaultsPvt!S164<>"",DefaultsPvt!S164,"") -> 
B137: 93 | BC137: =IF(DefaultsPvt!S165<>"",DefaultsPvt!S165,"") -> 
B138: 94 | BC138: =IF(DefaultsPvt!S166<>"",DefaultsPvt!S166,"") -> 
B139: 95 | BC139: =IF(DefaultsPvt!S167<>"",DefaultsPvt!S167,"") -> 
B140: 96 | BC140: =IF(DefaultsPvt!S168<>"",DefaultsPvt!S168,"") -> 
B141: 97 | D141: =IF($BC141<>"",INDEX(VendUsersArray,MATCH($BC141,VendUsersKeyCodeArray,0)+2,MATCH("VendorName",VendUsersHeading,0)),"") ->  | E141: =IF($BC141<>"",INDEX(VendUsersArray,MATCH($BC141,VendUsersKeyCodeArray,0)+2,MATCH("VendorCity",VendUsersHeading,0)),"") ->  | F141: =IF($BC141<>"",IF(INDEX(VendUsersArray,MATCH($BC141,VendUsersKeyCodeArray,0)+2,MATCH("WorkPhone",VendUsersHeading,0))<>0,INDEX(VendUsersArray,MATCH($BC141,VendUsersKeyCodeArray,0)+2,MATCH("WorkPhone",VendUsersHeading,0)),""),"") ->  | G141: =IF($BC141<>"",IF(INDEX(VendUsersArray,MATCH($BC141,VendUsersKeyCodeArray,0)+2,MATCH("CellPhone",VendUsersHeading,0))<>0,INDEX(VendUsersArray,MATCH($BC141,VendUsersKeyCodeArray,0)+2,MATCH("CellPhone",VendUsersHeading,0)),""),"") ->  | H141: =IF($BC141<>"",IF(INDEX(VendUsersArray,MATCH($BC141,VendUsersKeyCodeArray,0)+2,MATCH("Email",VendUsersHeading,0))<>0,INDEX(VendUsersArray,MATCH($BC141,VendUsersKeyCodeArray,0)+2,MATCH("Email",VendUsersHeading,0)),""),"") ->  | BC141: =IF(DefaultsPvt!S169<>"",DefaultsPvt!S169,"") -> 
B142: 98 | C142: =IF(NOT(CustOwnerAvailable),"",IF($BC142<>"",INDEX(VendUsersArray,MATCH($BC142,VendUsersKeyCodeArray,0)+2,MATCH("UserName",VendUsersHeading,0)),"")) ->  | BC142: =IF(DefaultsPvt!S170<>"",DefaultsPvt!S170,"") -> 
B143: 99 | BC143: =IF(DefaultsPvt!S171<>"",DefaultsPvt!S171,"") -> 
B144: 100 | BC144: =IF(DefaultsPvt!S172<>"",DefaultsPvt!S172,"") -> 
B145: 101 | BC145: =IF(DefaultsPvt!S173<>"",DefaultsPvt!S173,"") -> 
B146: 102 | BC146: =IF(DefaultsPvt!S174<>"",DefaultsPvt!S174,"") -> 
B147: 103 | BC147: =IF(DefaultsPvt!S175<>"",DefaultsPvt!S175,"") -> 
B148: 104 | BC148: =IF(DefaultsPvt!S176<>"",DefaultsPvt!S176,"") -> 
B149: 105 | BC149: =IF(DefaultsPvt!S177<>"",DefaultsPvt!S177,"") -> 
B150: 106 | BC150: =IF(DefaultsPvt!S178<>"",DefaultsPvt!S178,"") -> 
B151: 107 | BC151: =IF(DefaultsPvt!S179<>"",DefaultsPvt!S179,"") -> 
B152: 108 | BC152: =IF(DefaultsPvt!S180<>"",DefaultsPvt!S180,"") -> 
B153: 109 | BC153: =IF(DefaultsPvt!S181<>"",DefaultsPvt!S181,"") -> 
B154: 110 | BC154: =IF(DefaultsPvt!S182<>"",DefaultsPvt!S182,"") -> 
B155: 111 | BC155: =IF(DefaultsPvt!S183<>"",DefaultsPvt!S183,"") -> 
B156: 112 | BC156: =IF(DefaultsPvt!S184<>"",DefaultsPvt!S184,"") -> 
B157: 113 | BC157: =IF(DefaultsPvt!S185<>"",DefaultsPvt!S185,"") -> 
B158: 114 | BC158: =IF(DefaultsPvt!S186<>"",DefaultsPvt!S186,"") -> 
B159: 115 | BC159: =IF(DefaultsPvt!S187<>"",DefaultsPvt!S187,"") -> 
B160: 116 | BC160: =IF(DefaultsPvt!S188<>"",DefaultsPvt!S188,"") -> 
B161: 117 | BC161: =IF(DefaultsPvt!S189<>"",DefaultsPvt!S189,"") -> 
B162: 118 | BC162: =IF(DefaultsPvt!S190<>"",DefaultsPvt!S190,"") -> 
B163: 119 | BC163: =IF(DefaultsPvt!S191<>"",DefaultsPvt!S191,"") -> 
B164: 120 | BC164: =IF(DefaultsPvt!S192<>"",DefaultsPvt!S192,"") -> 
B165: 121 | BC165: =IF(DefaultsPvt!S193<>"",DefaultsPvt!S193,"") -> 
B166: 122 | BC166: =IF(DefaultsPvt!S194<>"",DefaultsPvt!S194,"") -> 
B167: 123 | BC167: =IF(DefaultsPvt!S195<>"",DefaultsPvt!S195,"") -> 
B168: 124 | BC168: =IF(DefaultsPvt!S196<>"",DefaultsPvt!S196,"") -> 
B169: 125 | BC169: =IF(DefaultsPvt!S197<>"",DefaultsPvt!S197,"") -> 
B170: 126 | BC170: =IF(DefaultsPvt!S198<>"",DefaultsPvt!S198,"") -> 
B171: 127 | BC171: =IF(DefaultsPvt!S199<>"",DefaultsPvt!S199,"") -> 
B172: 128 | BC172: =IF(DefaultsPvt!S200<>"",DefaultsPvt!S200,"") -> 
B173: 129 | D173: =IF($BC173<>"",INDEX(VendUsersArray,MATCH($BC173,VendUsersKeyCodeArray,0)+2,MATCH("VendorName",VendUsersHeading,0)),"") ->  | E173: =IF($BC173<>"",INDEX(VendUsersArray,MATCH($BC173,VendUsersKeyCodeArray,0)+2,MATCH("VendorCity",VendUsersHeading,0)),"") ->  | F173: =IF($BC173<>"",IF(INDEX(VendUsersArray,MATCH($BC173,VendUsersKeyCodeArray,0)+2,MATCH("WorkPhone",VendUsersHeading,0))<>0,INDEX(VendUsersArray,MATCH($BC173,VendUsersKeyCodeArray,0)+2,MATCH("WorkPhone",VendUsersHeading,0)),""),"") ->  | G173: =IF($BC173<>"",IF(INDEX(VendUsersArray,MATCH($BC173,VendUsersKeyCodeArray,0)+2,MATCH("CellPhone",VendUsersHeading,0))<>0,INDEX(VendUsersArray,MATCH($BC173,VendUsersKeyCodeArray,0)+2,MATCH("CellPhone",VendUsersHeading,0)),""),"") ->  | H173: =IF($BC173<>"",IF(INDEX(VendUsersArray,MATCH($BC173,VendUsersKeyCodeArray,0)+2,MATCH("Email",VendUsersHeading,0))<>0,INDEX(VendUsersArray,MATCH($BC173,VendUsersKeyCodeArray,0)+2,MATCH("Email",VendUsersHeading,0)),""),"") ->  | BC173: =IF(DefaultsPvt!S201<>"",DefaultsPvt!S201,"") -> 
B174: 130 | C174: =IF(NOT(CustOwnerAvailable),"",IF($BC174<>"",INDEX(VendUsersArray,MATCH($BC174,VendUsersKeyCodeArray,0)+2,MATCH("UserName",VendUsersHeading,0)),"")) ->  | BC174: =IF(DefaultsPvt!S202<>"",DefaultsPvt!S202,"") -> 
B175: 131 | BC175: =IF(DefaultsPvt!S203<>"",DefaultsPvt!S203,"") -> 
B176: 132 | BC176: =IF(DefaultsPvt!S204<>"",DefaultsPvt!S204,"") -> 
B177: 133 | BC177: =IF(DefaultsPvt!S205<>"",DefaultsPvt!S205,"") -> 
B178: 134 | BC178: =IF(DefaultsPvt!S206<>"",DefaultsPvt!S206,"") -> 
B179: 135 | BC179: =IF(DefaultsPvt!S207<>"",DefaultsPvt!S207,"") -> 
B180: 136 | BC180: =IF(DefaultsPvt!S208<>"",DefaultsPvt!S208,"") -> 
B181: 137 | BC181: =IF(DefaultsPvt!S209<>"",DefaultsPvt!S209,"") -> 
B182: 138 | BC182: =IF(DefaultsPvt!S210<>"",DefaultsPvt!S210,"") -> 
B183: 139 | BC183: =IF(DefaultsPvt!S211<>"",DefaultsPvt!S211,"") -> 
B184: 140 | BC184: =IF(DefaultsPvt!S212<>"",DefaultsPvt!S212,"") -> 
B185: 141 | BC185: =IF(DefaultsPvt!S213<>"",DefaultsPvt!S213,"") -> 
B186: 142 | BC186: =IF(DefaultsPvt!S214<>"",DefaultsPvt!S214,"") -> 
B187: 143 | BC187: =IF(DefaultsPvt!S215<>"",DefaultsPvt!S215,"") -> 
B188: 144 | BC188: =IF(DefaultsPvt!S216<>"",DefaultsPvt!S216,"") -> 
B189: 145 | BC189: =IF(DefaultsPvt!S217<>"",DefaultsPvt!S217,"") -> 
B190: 146 | BC190: =IF(DefaultsPvt!S218<>"",DefaultsPvt!S218,"") -> 
B191: 147 | BC191: =IF(DefaultsPvt!S219<>"",DefaultsPvt!S219,"") -> 
B192: 148 | BC192: =IF(DefaultsPvt!S220<>"",DefaultsPvt!S220,"") -> 
B193: 149 | BC193: =IF(DefaultsPvt!S221<>"",DefaultsPvt!S221,"") -> 
B194: 150 | BC194: =IF(DefaultsPvt!S222<>"",DefaultsPvt!S222,"") -> 
B195: 151 | BC195: =IF(DefaultsPvt!S223<>"",DefaultsPvt!S223,"") -> 
B196: 152 | BC196: =IF(DefaultsPvt!S224<>"",DefaultsPvt!S224,"") -> 
B197: 153 | BC197: =IF(DefaultsPvt!S225<>"",DefaultsPvt!S225,"") -> 
B198: 154 | BC198: =IF(DefaultsPvt!S226<>"",DefaultsPvt!S226,"") -> 
B199: 155 | BC199: =IF(DefaultsPvt!S227<>"",DefaultsPvt!S227,"") -> 
B200: 156 | BC200: =IF(DefaultsPvt!S228<>"",DefaultsPvt!S228,"") -> 
B201: 157 | BC201: =IF(DefaultsPvt!S229<>"",DefaultsPvt!S229,"") -> 
B202: 158 | BC202: =IF(DefaultsPvt!S230<>"",DefaultsPvt!S230,"") -> 
B203: 159 | BC203: =IF(DefaultsPvt!S231<>"",DefaultsPvt!S231,"") -> 
B204: 160 | BC204: =IF(DefaultsPvt!S232<>"",DefaultsPvt!S232,"") -> 
B205: 161 | D205: =IF($BC205<>"",INDEX(VendUsersArray,MATCH($BC205,VendUsersKeyCodeArray,0)+2,MATCH("VendorName",VendUsersHeading,0)),"") ->  | E205: =IF($BC205<>"",INDEX(VendUsersArray,MATCH($BC205,VendUsersKeyCodeArray,0)+2,MATCH("VendorCity",VendUsersHeading,0)),"") ->  | F205: =IF($BC205<>"",IF(INDEX(VendUsersArray,MATCH($BC205,VendUsersKeyCodeArray,0)+2,MATCH("WorkPhone",VendUsersHeading,0))<>0,INDEX(VendUsersArray,MATCH($BC205,VendUsersKeyCodeArray,0)+2,MATCH("WorkPhone",VendUsersHeading,0)),""),"") ->  | G205: =IF($BC205<>"",IF(INDEX(VendUsersArray,MATCH($BC205,VendUsersKeyCodeArray,0)+2,MATCH("CellPhone",VendUsersHeading,0))<>0,INDEX(VendUsersArray,MATCH($BC205,VendUsersKeyCodeArray,0)+2,MATCH("CellPhone",VendUsersHeading,0)),""),"") ->  | H205: =IF($BC205<>"",IF(INDEX(VendUsersArray,MATCH($BC205,VendUsersKeyCodeArray,0)+2,MATCH("Email",VendUsersHeading,0))<>0,INDEX(VendUsersArray,MATCH($BC205,VendUsersKeyCodeArray,0)+2,MATCH("Email",VendUsersHeading,0)),""),"") ->  | BC205: =IF(DefaultsPvt!S233<>"",DefaultsPvt!S233,"") -> 
B206: 162 | C206: =IF(NOT(CustOwnerAvailable),"",IF($BC206<>"",INDEX(VendUsersArray,MATCH($BC206,VendUsersKeyCodeArray,0)+2,MATCH("UserName",VendUsersHeading,0)),"")) ->  | BC206: =IF(DefaultsPvt!S234<>"",DefaultsPvt!S234,"") -> 
B207: 163 | BC207: =IF(DefaultsPvt!S235<>"",DefaultsPvt!S235,"") -> 
B208: 164 | BC208: =IF(DefaultsPvt!S236<>"",DefaultsPvt!S236,"") -> 
B209: 165 | BC209: =IF(DefaultsPvt!S237<>"",DefaultsPvt!S237,"") -> 
B210: 166 | BC210: =IF(DefaultsPvt!S238<>"",DefaultsPvt!S238,"") -> 
B211: 167 | BC211: =IF(DefaultsPvt!S239<>"",DefaultsPvt!S239,"") -> 
B212: 168 | BC212: =IF(DefaultsPvt!S240<>"",DefaultsPvt!S240,"") -> 
B213: 169 | BC213: =IF(DefaultsPvt!S241<>"",DefaultsPvt!S241,"") -> 
B214: 170 | BC214: =IF(DefaultsPvt!S242<>"",DefaultsPvt!S242,"") -> 
B215: 171 | BC215: =IF(DefaultsPvt!S243<>"",DefaultsPvt!S243,"") -> 
B216: 172 | BC216: =IF(DefaultsPvt!S244<>"",DefaultsPvt!S244,"") -> 
B217: 173 | BC217: =IF(DefaultsPvt!S245<>"",DefaultsPvt!S245,"") -> 
B218: 174 | BC218: =IF(DefaultsPvt!S246<>"",DefaultsPvt!S246,"") -> 
B219: 175 | BC219: =IF(DefaultsPvt!S247<>"",DefaultsPvt!S247,"") -> 
B220: 176 | BC220: =IF(DefaultsPvt!S248<>"",DefaultsPvt!S248,"") -> 
B221: 177 | BC221: =IF(DefaultsPvt!S249<>"",DefaultsPvt!S249,"") -> 
B222: 178 | BC222: =IF(DefaultsPvt!S250<>"",DefaultsPvt!S250,"") -> 
... 592 more rows

Sheet Inputs (hidden)
N1: StartPrivate | O1: OnGridReset1 | P1: OnGridReset2 | Q1: StartPvtHide | T1: EndPvtHide | U1: UserReset1 | V1: UserReset2 | W1: RowSection | X1: RowLevel | Y1: RowLevelWithErrors | AB1: SensitiveInfo | AC1: SensitiveInfoStorage | AE1: InvalidPath | AF1: NotifyOnGridDefaultChange | AH1: EndPrivate
B2: ="A" -> A | D2: =IF(AND(CodeInProgressText<>"",NOT(CodeInProgress_FormOpen)),CodeInProgressText," " &ToolTitle) -> OnGrid Tool
B3: ="E" -> E | C3: =IF(NOT(Lite)," - COLOR LEGEND:"," COLOR LEGEND:") -> - COLOR LEGEND: | D3: =IF(NOT(Valid),InvalidMsg,IF(CustsFullName<>"",CustsFullName,IF(CustCompany<>"",CustCompany,""))) -> Apu Nahasapeemapetilon | I3: 0 | J3: Extra Form Height (for troubleshooting only) (NOT Saved To Master File)
B4: ="T" -> T | C4: =IF(NOT(Lite)," 1 Enter Customer Data"," Enter Customer Data") -> 1 Enter Customer Data | D4: =InputsHeader1Text -> 100.0 kW STC: 250 Silfab SIL-400BG, 2 SMA STP 50-US-41 {480V} | I4: 0 | J4: Extra Form Width (for troubleshooting only) (NOT saved to Master File) | O4: Toggle Row 1 / Column A
B5: ="M" -> M | C5: =IF(NOT(Lite)," 2 Enter Data or Use Default"," Enter Data or Use Default") -> 2 Enter Data or Use Default | D5: =InputsHeader2Text -> Old: $1,281/mo New: $562 56% Offset Use: 180,000 kWh/yr Prod: 116,863 kWh/yr | I5: No | J5: Apply Extra Form Width Defaults (Mac only) (Saved to Master File) | O5: Testing: Refresh Company User List
B6: ="I" -> I | C6: =IF(NOT(Lite)," 3 Calculated Result, Don't Edit"," Calculated Result, Don't Edit") -> 3 Calculated Result, Don't Edit | D6: =InputsHeader3Text -> $219,780 Gross, $103,207 Net w/ Fed Tax Credit, Depr. | I6: RESET INPUTS
A7: HeaderEnd | B7: ="D" -> D | C7: =IF(NOT(Lite)," K Please Confirm Entry"," Please Confirm Entry") -> K Please Confirm Entry | D7: =InputsHeader4Text -> 4.2% IRR, 14 yrs, $137,158 Resale, $182,600 Lifecycle | G7: =IF(AND(NOT(Fin1IsPPA),NOT(Fin1IsLease),ROUND(Loan2NetBalance,0)<>0)," Not Fully Paid For - See Financing Section","") ->  | O7: ONGRID RESET 1 | P7: ONGRID RESET 2 | U7: CUSTOM USER RESET | W7: AUTO FILTER (AF) | X7: AF | Y7: AF | Z7: AF | AA7: CUSTOM PROVOLTZ | AB7: SENSITIVE INFO | AC7: SENSITIVE INFO | AD7: MISC | AE7: INVALID PATH INDICATION | AF7: NOTIFY ONGRID DEFAULT CHANGE | AG7: HELP / INFO
C8: =IF(Lite,"Convert to Full View","Convert to Lite View") -> Convert to Lite View | D8: =CustFullPh -> 939-555-0117 | G8: more options ——> | I8: <—— return | O8: Warning: Only cell-reset formulas in columns O & P
C9: ="v"&FIXED(ToolVersion,2)&IF(WebPortalVendorName<>"",". Licensed to " &WebPortalVendorName&".","") -> v6.00 | F9: Active Customer Database:
C10: =ActiveUserName -> Marge Simpson | D10: Logged-In User Log Out | E10: Main Proposal | F10: OnGrid CustData.xlsm | I10: Load From Single-Customer File | U10: (Keep custom defaults in column U -- U for 'User')
E11: Other Proposal | F11: (type customer name to search) | I11: Create New Single-Customer File
E12: Document | F12: Load Customer Data
C13: 2026-01-23 | D13: Date of Analysis
E14: =IF(LogoPathAndName="","Apply Logo","Change Logo") -> Change Logo | F14: Save Customer Data | G14: =IF(isVer6,"", "Share Data with Co-Workers") ->  | I14: Make Current Inputs the Defaults
C15: Marge Simpson | D15: =IF(NOT(SensitiveCustInfoHidden)," Sales Rep","") -> Sales Rep | I15: Reset Custom Inputs to OnGrid Defaults | O15: =DefaultsPvt!B302 -> Marge Simpson | Q15: =DefaultsPvt!C302 -> Springfield Electric | R15: Default company for default sales rep (for active user) | U15: {=OG}
C16: Springfield Electric | D16: =IF(AND(NOT(SensitiveCustInfoHidden),CustOwnerName<>"(no sales reps available)")," Sales Rep Company","") -> Sales Rep Company | I16: Clear All Custom Data Sections | O16: =DefaultsPvt!C296 -> Springfield Electric | Q16: First listed company for selected sales rep | U16: {=OG}
F17: =IF(isVer6,"", "Sync Customer Database with OnGrid Sky"&IF(InSyncRequiredNotificationPeriod," Sync required by " & TEXT(SyncRequiredDate,"m/d/yy h:mmAM/PM"),"")) -> 
F18: =IF(NOT(CustWkbCustsNoOwners),"Transfer Customers Between Sales Reps","Assign Customers to Sales Reps Please assign all customers to sales reps") -> Transfer Customers Between Sales Reps | AA18: (Hide Row if ProVoltz)
A19: OverallStart | F19: =IF(NOT(ActiveUserKeyConfirmed),"Confirm My Sky Account","") ->  | W19: Section_ShowHide | X19: Level_ShowHide | AB19: Sensitive Info Start | AC19: Sensitive Info Storage Start | AE19: Invalid Path
A20: MainOverallStart | W20: Section_ShowHide | X20: Level_ShowHide | AB20: Sensitive Info Start | AC20: Sensitive Info Storage Start | AE20: Invalid Path
A21: CustInfoStart | C21: =U21 -> CUSTOMER INFORMATION: | O21: CUSTOMER INFORMATION: | U21: CUSTOMER INFORMATION: | W21: A | X21: =Y21 -> 4 | Y21: =IF(AND(WebPortalVendorCode="ProVolInc",AA21=1),3,Z21) -> 4 | Z21: 4
W22: A | X22: =IF(ErrorCustInfoSec,IF(CustInfoLevel<>0,1,0),Y22) -> 1 | Y22: 1 | Z22: 1
C23: Apu | D23: Customer First Name (person on the utility bill) | I23: Reset Customer Info | O23: Jack | U23: {=OG} | W23: A | X23: 1 | Y23: 1 | Z23: 1 | AB23: Sensitive
C24: Nahasapeemapetilon | D24: Customer Last Name (person on the utility bill) | O24: Sun | U24: {=OG} | W24: A | X24: 1 | Y24: 1 | Z24: 1 | AB24: Sensitive
D25: Customer Spouse First Name | O25: Jill | U25: {=OG} | W25: A | X25: 1 | Y25: 1 | Z25: 1 | AB25: Sensitive | AF25: 1
D26: Customer Spouse Last Name | O26: Sky | U26: {=OG} | W26: A | X26: 1 | Y26: 1 | Z26: 1 | AB26: Sensitive | AF26: 1
F27: =IF(SensitiveCustInfoHidden,"Show Customer Info","Hide Customer Info") -> Hide Customer Info | W27: A | X27: 1 | Y27: 1 | Z27: 1 | AA27: 1
C28: =O28 -> owner | D28: Customer Title | O28: owner | U28: {=OG} | W28: A | X28: 1 | Y28: 1 | Z28: 1 | AA28: 1 | AB28: Sensitive | AF28: 1
C29: Kwik-E-Mart | D29: Customer Company | F29: Customer/Job Notepad | O29: =IF(AND(NOT(Residential),NOT(AffHousing)),"Solar User Inc.","") -> Solar User Inc. | U29: {=OG} | W29: A | X29: 1 | Y29: 1 | Z29: 1 | AA29: 1 | AB29: Sensitive
W30: A | X30: 1 | Y30: 1 | Z30: 1 | AA30: 1
C31: Commercial | D31: Customer Type | O31: Residential | U31: {=OG} | W31: A | X31: 1 | Y31: 1 | Z31: 1 | AA31: 1
C32: =O32 -> Corporation | D32: =" Business Type "&IF(SysHostOwned,IF(CustSiteState="CA","(affects state depr. and the fed. tax bracket)",("(affects the federal tax bracket)")),"") -> Business Type (affects the federal tax bracket) | O32: =IF(Commercial,"Corporation","") -> Corporation | U32: {=OG} | W32: A | X32: 1 | Y32: 1 | Z32: =IF(AND(CustType<>"Commercial",VF),"",1) -> 1 | AA32: 1
W33: A | X33: =IF(ErrorCustInfoSec,IF(CustInfoLevel<>0,1,0),Y33) -> 1 | Y33: 1 | Z33: 1 | AA33: 1
D34: Scenario Name (optional - if multiple scenarios in database) | O34: ="" ->  | U34: {=OG} | W34: A | X34: =IF(ErrorCustInfoSec,IF(CustInfoLevel<>0,1,0),Y34) -> 1 | Y34: 1 | Z34: 1 | AA34: 1
W35: A | X35: =IF(ErrorCustInfoSec,IF(CustInfoLevel<>0,1,0),Y35) -> 1 | Y35: 1 | Z35: 1 | AA35: 1
C36: =O36 -> Retrofit | D36: Retrofit or New Construction? | O36: Retrofit | U36: {=OG} | W36: A | X36: 2 | Y36: 2 | Z36: 2 | AA36: 1
C37: =O37 -> 2026 | D37: Installation Year | O37: =YEAR(TODAY())+IF(MONTH(TODAY())>10,1,0) -> 2026 | U37: {=OG} | W37: A | X37: 1 | Y37: 1 | Z37: 1 | AA37: 1 | AF37: 1
W38: A | X38: 1 | Y38: 1 | Z38: 1 | AA38: 1
W39: A | X39: 3 | Y39: 3 | Z39: 3 | AA39: 1
C40: =U40 -> SITE INFO: | O40: SITE INFO: | U40: SITE INFO: | W40: A | X40: 2 | Y40: 2 | Z40: 2
C41: 1001 Evergreen Terrace | D41: Customer Site Street Address1 | F41: =HYPERLINK(MapYahoo,"Yahoo Map") -> Yahoo Map | O41: 117 So Mary Ave | U41: {=OG} | W41: A | X41: 2 | Y41: 2 | Z41: 2 | AB41: Sensitive
D42: Customer Site Street Address2 | F42: =HYPERLINK(MapGoogle,"Google Map") -> Google Map | O42: #30 | U42: {=OG} | W42: A | X42: 2 | Y42: 2 | Z42: 2 | AB42: Sensitive
C43: Springfield | D43: Customer Site City | F43: =IF(OR(1=1,Lite,CustInfoLevel=1),"",HYPERLINK(MapMSR,"MSR Map (Microsoft/Bing)")) ->  | O43: Sunnyvale | U43: {=OG} | W43: A | X43: 1 | Y43: 1 | Z43: 1 | AB43: Sensitive
C44: OH | D44: Customer Site State | F44: =IF(isVer6,"",IF(OR(Lite,CustInfoLevel=1),"",HYPERLINK(MapMapQuest,"MapQuest Map"))) ->  | O44: CA | U44: {=OG} | W44: A | X44: 1 | Y44: 1 | Z44: 1 | AF44: 1
C45: 45501 | D45: Customer Site Zip | O45: 94087 | U45: {=OG} | W45: A | X45: 1 | Y45: 1 | Z45: 1 | AB45: Sensitive | AF45: 1
B46: =IF(C46=(IF(U46<>"{=OG}",U46,O46)),""," • ") ->  | C46: =O46 -> City of Springfield | D46: Jurisdiction | O46: =IF(AND(TRIM(CustSiteCity)<>"",CustSiteCity<>0),"City of "&CustSiteCity,"") -> City of Springfield | U46: {=OG} | W46: A | X46: 2 | Y46: 2 | Z46: 2 | AA46: 1 | AB46: Sensitive
W47: A | X47: 2 | Y47: 2 | Z47: 2 | AA47: 1
B48: =IF(C48=(IF(U48<>"{=OG}",U48,O48)),""," • ") ->  | C48: =O48 ->  | D48: =" Site Image 1 (click here to "&IF(CustSiteImageRef1="","add","change")&")" -> Site Image 1 (click here to add) | O48: ="" ->  | U48: {=OG} | W48: A | X48: 2 | Y48: 2 | Z48: 2 | AA48: 1
B49: =IF(C49=(IF(U49<>"{=OG}",U49,O49)),""," • ") ->  | C49: =O49 ->  | D49: =" Site Image 2 (click here to "&IF(CustSiteImageRef2="","add","change")&")" -> Site Image 2 (click here to add) | O49: ="" ->  | U49: {=OG} | W49: A | X49: 2 | Y49: 2 | Z49: 2 | AA49: 1
B50: =IF(C50=(IF(U50<>"{=OG}",U50,O50)),""," • ") ->  | C50: =O50 ->  | D50: =" Site Image 3 (click here to "&IF(CustSiteImageRef3="","add","change")&")" -> Site Image 3 (click here to add) | O50: ="" ->  | U50: {=OG} | W50: A | X50: 3 | Y50: 3 | Z50: 3 | AA50: 1
B51: =IF(C51=(IF(U51<>"{=OG}",U51,O51)),""," • ") ->  | C51: =O51 ->  | D51: =" Site Image 4 (click here to "&IF(CustSiteImageRef4="","add","change")&")" -> Site Image 4 (click here to add) | O51: ="" ->  | U51: {=OG} | W51: A | X51: 3 | Y51: 3 | Z51: 3 | AA51: 1
W52: A | X52: 2 | Y52: 2 | Z52: 2 | AA52: 1
C53: CONTACT INFO: | W53: A | X53: 2 | Y53: 2 | Z53: 2 | AA53: 1
C54: =O54 -> 1001 Evergreen Terrace | D54: Customer Mailing Street Address1 | O54: =CustSiteAddr1 -> 1001 Evergreen Terrace | U54: {=OG} | W54: A | X54: 2 | Y54: 2 | Z54: 2 | AA54: 1 | AB54: Sensitive
C55: =O55 -> 0 | D55: Customer Mailing Street Address2 | O55: =CustSiteAddr2 -> 0 | U55: {=OG} | W55: A | X55: 2 | Y55: 2 | Z55: 2 | AA55: 1 | AB55: Sensitive
C56: =O56 -> Springfield | D56: Customer Mailing City | O56: =CustSiteCity -> Springfield | U56: {=OG} | W56: A | X56: 2 | Y56: 2 | Z56: 2 | AA56: 1 | AB56: Sensitive
C57: =O57 -> OH | D57: Customer Mailing State | O57: =CustSiteState -> OH | U57: {=OG} | W57: A | X57: 2 | Y57: 2 | Z57: 2 | AA57: 1
C58: =O58 -> 45501 | D58: Customer Mailing Zip | O58: =CustSiteZip -> 45501 | U58: {=OG} | W58: A | X58: =IF(ErrorCustInfoSec,IF(CustInfoLevel<>0,1,0),Y58) -> 2 | Y58: 2 | Z58: 2 | AA58: 1 | AB58: Sensitive
W59: A | X59: 2 | Y59: 2 | Z59: 2 | AA59: 1
D60: Customer Home Phone | O60: (408) 111 1111H | U60: {=OG} | W60: A | X60: 2 | Y60: 2 | Z60: 2 | AA60: 1 | AB60: Sensitive | AF60: 1
D61: Customer Cell Phone | O61: (408) 222 2222C | U61: {=OG} | W61: A | X61: 2 | Y61: 2 | Z61: 2 | AB61: Sensitive | AF61: 1
C62: 939-555-0117 | D62: Customer Work Phone | O62: (408) 333 3333x333W | U62: {=OG} | W62: A | X62: 2 | Y62: 2 | Z62: 2 | AA62: 1 | AB62: Sensitive | AF62: 1
D63: Customer Fax | O63: (408) 444 4444F | U63: {=OG} | W63: A | X63: 2 | Y63: 2 | Z63: 2 | AA63: 1 | AB63: Sensitive | AF63: 1
C64: apu@kwikemart.springfield | D64: Customer Email | O64: cust@buyer.com | U64: {=OG} | W64: A | X64: 2 | Y64: 2 | Z64: 2 | AB64: Sensitive | AF64: 1
C65: =O65 ->  | D65: Customer Alternate Email | O65: ="" ->  | U65: {=OG} | W65: A | X65: 2 | Y65: 2 | Z65: 2 | AA65: 1 | AB65: Sensitive
D66: Customer Website | O66: ="" ->  | U66: {=OG} | W66: A | X66: 2 | Y66: 2 | Z66: 2 | AA66: 1 | AB66: Sensitive
W67: A | X67: 2 | Y67: 2 | Z67: 2 | AA67: 1
W68: A | X68: 3 | Y68: 3 | Z68: 3 | AA68: 1
C69: =U69 -> CUSTOMER'S AGENT/ARCHITECT INFO: | O69: CUSTOMER'S AGENT/ARCHITECT INFO: | U69: CUSTOMER'S AGENT/ARCHITECT INFO: | W69: A | X69: 3 | Y69: 3 | Z69: 3 | AA69: 1
D70: Customer's Agent First Name | O70: Agent Bill | U70: {=OG} | W70: A | X70: 3 | Y70: 3 | Z70: 3 | AA70: 1 | AB70: Sensitive
D71: Customer's Agent Last Name | O71: Agent Builder | U71: {=OG} | W71: A | X71: 3 | Y71: 3 | Z71: 3 | AA71: 1 | AB71: Sensitive
D72: Customer's Agent Discipline (General, Arch, Electrician, etc) | O72: General Contractor | U72: {=OG} | W72: A | X72: 3 | Y72: 3 | Z72: 3 | AA72: 1 | AB72: Sensitive
D73: Customer's Agent Work Phone | O73: 408 428 2222W | U73: {=OG} | W73: A | X73: 3 | Y73: 3 | Z73: 3 | AA73: 1 | AB73: Sensitive
D74: Customer's Agent Cell Phone | O74: 408 428 2222C | U74: {=OG} | W74: A | X74: 3 | Y74: 3 | Z74: 3 | AA74: 1 | AB74: Sensitive
D75: Customer's Agent Email | O75: bill@ongrid.net | U75: {=OG} | W75: A | X75: 3 | Y75: 3 | Z75: 3 | AA75: 1 | AB75: Sensitive
D76: Customer's Agent Company | O76: Bill's Builders | U76: {=OG} | W76: A | X76: 3 | Y76: 3 | Z76: 3 | AA76: 1 | AB76: Sensitive
D77: Customer's Agent Street Address1 | O77: 1 Builder St | U77: {=OG} | W77: A | X77: 3 | Y77: 3 | Z77: 3 | AA77: 1 | AB77: Sensitive
D78: Customer's Agent Street Address2 | O78: Building B | U78: {=OG} | W78: A | X78: 3 | Y78: 3 | Z78: 3 | AA78: 1 | AB78: Sensitive
D79: Customer's Agent City | O79: Industry | U79: {=OG} | W79: A | X79: 3 | Y79: 3 | Z79: 3 | AA79: 1 | AB79: Sensitive
D80: Customer's Agent State | O80: CA | U80: {=OG} | W80: A | X80: 3 | Y80: 3 | Z80: 3 | AA80: 1 | AB80: Sensitive
D81: Customer's Agent Zip | O81: 9xxxb | U81: {=OG} | W81: A | X81: 3 | Y81: 3 | Z81: 3 | AA81: 1 | AB81: Sensitive
D82: Customer's Agent2 Name & Phone | O82: Agent 2, 408-333-4444 | U82: {=OG} | W82: A | X82: 3 | Y82: 3 | Z82: 3 | AA82: 1 | AB82: Sensitive
D83: Customer's Agent3 Name & Phone | O83: Agent 3, 408-222-1234 | U83: {=OG} | W83: A | X83: 3 | Y83: 3 | Z83: 3 | AA83: 1 | AB83: Sensitive
W84: A | X84: 3 | Y84: 3 | Z84: 3 | AA84: 1
W85: A | X85: 1 | Y85: =IF(AND(WebPortalVendorCode="ProVolInc",AA85=1),3,Z85) -> 1 | Z85: 1 | AA85: 1
C86: SYSTEM OWNER: | W86: A | X86: 1 | Y86: 1 | Z86: 1 | AA86: 1
C87: =O87 -> Yes | D87: Host Customer is System Owner | O87: Yes | U87: {=OG} | W87: A | X87: 1 | Y87: 1 | Z87: 1 | AA87: 1 | AF87: 1
W88: A | X88: 2 | Y88: 2 | Z88: 2 | AA88: 1
C89: =O89 -> Apu | D89: Owner First Name | O89: =IF(SysHostOwned,CustFirstName,"Jack") -> Apu | U89: {=OG} | W89: A | Z89: =IF(AND(SysHostOwned,VF),"",2) ->  | AA89: 1 | AB89: Sensitive
C90: =O90 -> Nahasapeemapetilon | D90: Owner Last Name | O90: =IF(SysHostOwned,CustLastName,"Sun") -> Nahasapeemapetilon | U90: {=OG} | W90: A | Z90: =Z$89 ->  | AA90: 1 | AB90: Sensitive
W91: A | AA91: 1
C92: =O92 -> owner | D92: Owner Title | O92: =IF(SysHostOwned,CustTitle,"owner") -> owner | U92: {=OG} | W92: A | AA92: 1 | AB92: Sensitive
C93: =O93 -> Kwik-E-Mart | D93: Owner Company | O93: =IF(SysHostOwned,CustCompany,"Solar User Inc.") -> Kwik-E-Mart | U93: {=OG} | W93: A | AA93: 1 | AB93: Sensitive
W94: A | AA94: 1
C95: =O95 -> Commercial | D95: Owner Type | O95: =IF(SysHostOwned,CustType,"Commercial") -> Commercial | U95: {=OG} | W95: A | AA95: 1
C96: =O96 -> Corporation | D96: =" Owner Business Type "&IF(CustSiteState="CA","(affects state depr. and the fed. tax bracket)",("(affects the federal tax bracket)")) -> Owner Business Type (affects the federal tax bracket) | O96: =IF(SysHostOwned,CustBusType,"Corporation") -> Corporation | U96: {=OG} | W96: A | Z96: =IF(AND(OR(SysHostOwned,NOT(Commercial)),VF),"",2) ->  | AA96: 1
W97: A | Z97: =Z$89 ->  | AA97: 1
C98: =O98 -> 1001 Evergreen Terrace | D98: Owner Mailing Street Address1 | O98: =IF(SysHostOwned,CustMailAddr1,"117 So Mary Ave") -> 1001 Evergreen Terrace | U98: {=OG} | W98: A | AA98: 1 | AB98: Sensitive
C99: =O99 -> 0 | D99: Owner Mailing Street Address2 | O99: =IF(SysHostOwned,CustMailAddr2,"#30") -> 0 | U99: {=OG} | W99: A | AA99: 1 | AB99: Sensitive
C100: =O100 -> Springfield | D100: Owner Mailing City | O100: =IF(SysHostOwned,CustMailCity,"Sunnyvale") -> Springfield | U100: {=OG} | W100: A | AA100: 1 | AB100: Sensitive
C101: =O101 -> OH | D101: Owner Mailing State | O101: =CustMailState -> OH | U101: {=OG} | W101: A | AA101: 1
C102: =O102 -> 45501 | D102: Owner Mailing Zip | O102: =CustMailZip -> 45501 | U102: {=OG} | W102: A | AA102: 1 | AB102: Sensitive
W103: A | AA103: 1
C104: =O104 -> 0 | D104: Owner Home Phone | O104: =IF(SysHostOwned,CustPhHome,"(408) 111 1111H") -> 0 | U104: {=OG} | W104: A | AA104: 1 | AB104: Sensitive
C105: 0 | D105: Owner Cell Phone | O105: =IF(SysHostOwned,CustPhCell,"(408) 222 2222C") -> 0 | U105: {=OG} | W105: A | AA105: 1 | AB105: Sensitive
C106: 939-555-0117 | D106: Owner Work Phone | O106: =IF(SysHostOwned,CustPhWork,"(408) 333 3333x333W") -> 939-555-0117 | U106: {=OG} | W106: A | AA106: 1 | AB106: Sensitive
C107: 0 | D107: Owner Fax | O107: =IF(SysHostOwned,CustPhFax,"(408) 444 4444F") -> 0 | U107: {=OG} | W107: A | AA107: 1 | AB107: Sensitive
C108: apu@kwikemart.springfield | D108: Owner Email | O108: =IF(SysHostOwned,CustEmail,"cust@buyer.com") -> apu@kwikemart.springfield | U108: {=OG} | W108: A | AA108: 1 | AB108: Sensitive
D109: Owner Alternate Email | O109: =IF(SysHostOwned,CustEmailAlt,"") ->  | U109: {=OG} | W109: A | AA109: 1 | AB109: Sensitive
D110: Owner Website | O110: =IF(SysHostOwned,CustWebsite,"") ->  | U110: {=OG} | W110: A | AA110: 1 | AB110: Sensitive
W111: A | AA111: 1
W112: A | X112: =IF(ErrorCustInfoSec,IF(CustInfoLevel<>0,1,0),Y112) ->  | AA112: 1
C113: TAX / FINANCIAL INFO: | W113: A | X113: 2 | Y113: 2 | Z113: 2 | AA113: 1
B114: =IF(C114=(IF(U114<>"{=OG}",U114,O114)),""," • ") ->  | C114: =O114 -> 0.21 | D114: Customer Fed Income Tax Rate | O114: =IF(SysHostOwned,TaxRateFed,DefaultsPvt!$B$15) -> 0.21 | U114: {=OG} | W114: A | X114: =IF(ErrorCustInfoSec,IF(CustInfoLevel<>0,1,0),Y114) ->  | Y114: =IF(AND(WebPortalVendorCode="ProVolInc",AA114=1),3,Z114) ->  | Z114: =IF(AND(SysHostOwned,VF),"",2) ->  | AA114: 1
B115: =IF(C115=(IF(U115<>"{=OG}",U115,O115)),""," • ") ->  | C115: =O115 -> 0.07 | D115: Customer State Income Tax Rate | O115: =IF(SysHostOwned,TaxRateState,DefaultsPvt!$B$24) -> 0.07 | U115: {=OG} | W115: A | Z115: =Z$114 ->  | AA115: 1
W116: A | Z116: =Z$114 ->  | AA116: 1
B117: =IF(C117=(IF(U117<>"{=OG}",U117,O117)),""," • ") ->  | C117: =O117 -> 0.21 | D117: =" "&IF(NOT(SysHostOwned),"Owner ","")&"Fed Income Tax Rate" -> Fed Income Tax Rate | O117: =DefaultsPvt!$B$16 -> 0.21 | U117: {=OG} | W117: A | X117: 2 | Y117: 2 | Z117: =IF(AND(NonProfitGov,VF),"",2) -> 2 | AA117: 1 | AF117: 1
B118: =IF(C118=(IF(U118<>"{=OG}",U118,O118)),""," • ") ->  | C118: =O118 -> 0.07 | D118: =" "&IF(NOT(SysHostOwned),"Owner ","")&"State Income Tax Rate" -> State Income Tax Rate | O118: =DefaultsPvt!$B$25 -> 0.07 | U118: {=OG} | W118: A | X118: =IF(ErrorCustInfoSec,IF(CustInfoLevel<>0,1,0),Y118) -> 2 | Y118: 2 | Z118: =Z$117 -> 2 | AA118: 1 | AF118: 1
W119: A | X119: 2 | Y119: 2 | Z119: =Z$117 -> 2 | AA119: 1
B120: =IF(C120=(IF(U120<>"{=OG}",U120,O120)),""," • ") ->  | C120: =O120 -> 0.07 | D120: Sales Tax Rate | O120: 0.07 | U120: {=OG} | W120: A | X120: =IF(ErrorCustInfoSec,IF(CustInfoLevel<>0,1,0),Y120) -> 2 | Y120: 2 | Z120: 2 | AA120: 1 | AF120: 1
W121: A | X121: =IF(ErrorCustInfoSec,IF(CustInfoLevel<>0,1,0),Y121) -> 2 | Y121: 2 | Z121: 2 | AA121: 1
C122: =O122 -> 0 | D122: Discount Rate (for NPV) | O122: 0 | U122: {=OG} | W122: A | X122: 2 | Y122: 2 | Z122: 2 | AA122: 1 | AF122: 1
C123: =O123 -> 0.06 | D123: Cap Rate (normally 5-8% range) | O123: 0.06 | U123: {=OG} | W123: A | X123: 2 | Y123: 2 | Z123: =IF(AND(Residential,VF),"",2) -> 2 | AA123: 1
W124: A | X124: 3 | Y124: 3 | Z124: 3 | AA124: 1
W125: A | X125: 1 | Y125: 1 | Z125: 1 | AA125: 1
C126: LEAD INFO: | W126: A | X126: 2 | Y126: 2 | Z126: 2 | AA126: 1
C127: =O127 -> New Lead | D127: Lead Status | O127: New Lead | U127: {=OG} | W127: A | X127: 1 | Y127: 1 | Z127: 1 | AA127: 1 | AB127: Sensitive
C128: =O128 -> 0 | D128: Lead Probability | O128: 0 | U128: {=OG} | W128: A | X128: 1 | Y128: 1 | Z128: 1 | AA128: 1 | AB128: Sensitive
C129: =O129 ->  | D129: Lead Source | O129: ="" ->  | U129: {=OG} | W129: A | X129: =IF(ErrorCustInfoSec,IF(CustInfoLevel<>0,1,0),Y129) -> 2 | Y129: 2 | Z129: 2 | AA129: 1 | AB129: Sensitive
W130: A | X130: 3 | Y130: 3 | Z130: =IF(UD_CustInfoLevel<>0,UD_CustInfoLevel,3) -> 3 | AA130: 1
G131: =IF(AND(UD_CustInfoLevel<>0,UD_CustInfoLevel<=CustInfoLevel),"Hide Custom Data",IF(AND(UD_CustInfoLevel=0,CustInfoLevel=3),"Show Custom Data","")) ->  | W131: A | X131: 2 | Y131: 2 | Z131: =IF(AND(UD_CustInfoLevel>=1,UD_CustInfoLevel<=CustInfoLevel),1,2) -> 2
A132: UD_CustomerInfoStart | C132: =O132 -> 0 | H132: Include in Level 3 Only | I132: Clear Custom Data | J132: (Customer Information) | O132: =0 -> 0 | U132: {=OG} | W132: A | X132: =Y132 ->  | Z132: =IF(UD_CustInfoLevel<>0,UD_CustInfoLevel,"") -> 
C133: 0 | H133: Include in Level 2 & 3 | O133: =0 -> 0 | U133: {=OG} | W133: A | X133: =Y133 -> 
C134: 0 | H134: Include in Level 1, 2 & 3 | O134: =0 -> 0 | U134: {=OG} | W134: A
C135: 0 | O135: =0 -> 0 | U135: {=OG} | W135: A
C136: 0 | O136: =0 -> 0 | U136: {=OG} | W136: A
C137: 0 | O137: =0 -> 0 | U137: {=OG} | W137: A
C138: 0 | O138: =0 -> 0 | U138: {=OG} | W138: A
C139: 0 | O139: =0 -> 0 | U139: {=OG} | W139: A
C140: 0 | O140: =0 -> 0 | U140: {=OG} | W140: A
C141: 0 | O141: =0 -> 0 | U141: {=OG} | W141: A
C142: 0 | O142: =0 -> 0 | U142: {=OG} | W142: A
C143: 0 | O143: =0 -> 0 | U143: {=OG} | W143: A
C144: 0 | O144: =0 -> 0 | U144: {=OG} | W144: A
C145: 0 | O145: =0 -> 0 | U145: {=OG} | W145: A
A146: UD_CustomerInfoEnd | C146: 0 | O146: =0 -> 0 | U146: {=OG} | W146: A
W147: A | X147: =Y147 ->  | Z147: ="" -> 
A148: CustInfoEnd | W148: A | X148: 4 | Y148: 4 | Z148: 4 | AB148: Sensitive Info End | AC148: Sensitive Info Storage End
A149: ElecRatesStart | C149: =U149 -> ELECTRIC RATES & USAGE: | O149: ELECTRIC RATES & USAGE: | U149: ELECTRIC RATES & USAGE: | W149: E | X149: =Y149 -> 4 | Y149: 4 | Z149: 4
W150: E | X150: =IF(ErrorElecRatesSec,IF(ElecRatesLevel<>0,1,0),Y150) -> 1 | Y150: 1 | Z150: =IF(NOT(FeedIn),1,1) -> 1
B151: =IF(OR(CustSiteState=UtilityState,UtilityLong=U151),""," • ") ->  | C151: =O151 -> Ohio Power Company (AEP) | D151: Utility Name | I151: Reset Electric Rates & Usage | O151: =DefaultsPvt!$B$32 -> Ohio Power Company (AEP) | U151: {=OG} | W151: E | X151: 1 | Y151: 1 | Z151: =IF(NOT(FeedIn),1,1) -> 1 | AF151: 1
B152: =IF(OR(C152=(IF(U152<>"{=OG}",U152,O152)),DirectUtility),""," • ") ->  | C152: =O152 -> GS-1 | D152: =IF(FeedIn, " Feed-In Tariff"," Starting/Current Rate Schedule/Tariff") -> Starting/Current Rate Schedule/Tariff | E152: =IF(IF(ISERROR(VLOOKUP(TariffStartingLookup,RateSheet1,MATCH(IF(LEFT($H$153,6)="OnGrid","OnGridDesc","UtilityDesc"),Rates1!$8:$8,0),0)),CalcsPvt!C797,VLOOKUP(TariffStartingLookup,RateSheet1,MATCH(IF(LEFT($H$153,6)="OnGrid","OnGridDesc","UtilityDesc"),Rates1!$8:$8,0),0))=0,IF(LEFT($H$153,6)="OnGrid",CalcsPvt!C797,"unavailable"),IF(ISERROR(VLOOKUP(TariffStartingLookup,RateSheet1,MATCH(IF(LEFT($H$153,6)="OnGrid","OnGridDesc","UtilityDesc"),Rates1!$8:$8,0),0)),IF(LEFT($H$153,6)="OnGrid",CalcsPvt!C797,"unavailable"),VLOOKUP(TariffStartingLookup,RateSheet1,MATCH(IF(LEFT($H$153,6)="OnGrid","OnGridDesc","UtilityDesc"),Rates1!$8:$8,0),0))) -> Commercial | O152: =DefaultsPvt!$B$36 -> GS-1 | U152: {=OG} | W152: E | X152: 1 | Y152: =IF(AND(WebPortalVendorCode="ProVolInc",AA152=1),3,Z152) -> 1 | Z152: =IF(NOT(FeedIn),1,1) -> 1 | AF152: 1
B153: =IF(OR(C153=(IF(U153<>"{=OG}",U153,O153)),DirectUtility),""," • ") ->  | C153: =O153 -> GS-1 | D153: =IF(FeedIn, " Feed-In Tariff"," Ending/Future Solar Rate Schedule/Tariff") -> Ending/Future Solar Rate Schedule/Tariff | E153: =IF(IF(ISERROR(VLOOKUP(TariffEndingLookup,RateSheet1,MATCH(IF(LEFT($H$153,6)="OnGrid","OnGridDesc","UtilityDesc"),Rates1!$8:$8,0),0)),CalcsPvt!C797,VLOOKUP(TariffEndingLookup,RateSheet1,MATCH(IF(LEFT($H$153,6)="OnGrid","OnGridDesc","UtilityDesc"),Rates1!$8:$8,0),0))=0,IF(LEFT($H$153,6)="OnGrid",CalcsPvt!E797,"unavailable"),IF(ISERROR(VLOOKUP(TariffEndingLookup,RateSheet1,MATCH(IF(LEFT($H$153,6)="OnGrid","OnGridDesc","UtilityDesc"),Rates1!$8:$8,0),0)),IF(LEFT($H$153,6)="OnGrid",CalcsPvt!E797,"unavailable"),VLOOKUP(TariffEndingLookup,RateSheet1,MATCH(IF(LEFT($H$153,6)="OnGrid","OnGridDesc","UtilityDesc"),Rates1!$8:$8,0),0))) -> Commercial | H153: OnGrid Rate Desc | O153: =DefaultsPvt!$B$37 -> GS-1 | U153: {=OG} | W153: E | X153: 1 | Y153: 1 | Z153: =IF(NOT(FeedIn),1,1) -> 1 | AF153: 1
W154: E | X154: 2 | Y154: 2 | Z154: =IF(NOT(FeedIn),2,1) -> 2
C155: =IF(AND(DirectStarting,DirectEnding),"","View Electric Rate Detail") -> View Electric Rate Detail | E155: =IF(CalcsPvt!$C$669=1,"View Utility Info","") -> View Utility Info | F155: Add or Review User Defined Rates | W155: E | X155: 2 | Y155: 2 | Z155: =IF(NOT(FeedIn),2,1) -> 2
B156: =IF(C156=(IF(U156<>"{=OG}",U156,O156)),""," • ") ->  | C156: =O156 ->  | D156: Tariff Baseline Territory | O156: =DefaultsPvt!$B$40 ->  | U156: {=OG} | W156: E | Z156: =IF(NOT(FeedIn),IF(AND($O$156="",VF),"",1),"") ->  | AH156: =IF(NOT(FeedIn),IF(AND($O$156="",VF),"",1),"") -> 
B157: =IF(C157=(IF(U157<>"{=OG}",U157,O157)),""," • ") ->  | C157: =O157 ->  | D157: Electric/Gas or All Electric | O157: =DefaultsPvt!$B$45 ->  | U157: {=OG} | W157: E | Z157: =IF(NOT(FeedIn),IF(AND($O$157="",VF),"",1),"") ->  | AH157: =IF(NOT(FeedIn),IF(AND($O$157="",VF),"",1),"") -> 
C158: =O158 -> 0 | D158: Local Tax on Electric Charges | O158: 0 | U158: {=OG} | W158: E | X158: 2 | Y158: 2 | Z158: =IF(NOT(FeedIn),2,"") -> 2 | AA158: 1
W159: E | X159: 2 | Y159: 2 | Z159: =IF(NOT(FeedIn),2,"") -> 2 | AA159: 1
W160: E | X160: 2 | Y160: 2 | Z160: =IF(NOT(FeedIn),2,1) -> 2 | AA160: 1
D161: Customer Utility Account Number | O161: Util Acct # | U161: {=OG} | W161: E | X161: 2 | Y161: 2 | Z161: =IF(NOT(FeedIn),2,1) -> 2 | AA161: 1
D162: Customer Utility Service ID Number | O162: Util Service ID # | U162: {=OG} | W162: E | X162: 2 | Y162: 2 | Z162: =IF(NOT(FeedIn),2,1) -> 2 | AA162: 1
D163: Electric Meter Number (if different than Service ID) | O163: Util Meter # | U163: {=OG} | W163: E | X163: 2 | Y163: 2 | Z163: =IF(NOT(FeedIn),2,1) -> 2 | AA163: 1
W164: E | X164: 2 | Y164: 2 | Z164: =IF(NOT(FeedIn),2,1) -> 2 | AA164: 1
W165: E | X165: 3 | Y165: 3 | Z165: =IF(NOT(FeedIn),3,"") -> 3 | AA165: 1
B166: =IF(C166=(IF(U166<>"{=OG}",U166,O166)),""," • ") -> • | C166: 0.03 | D166: Long Term Electric Rate Inflation | O166: =0.04 -> 0.04 | U166: {=OG} | W166: E | X166: 3 | Y166: =IF(AND(WebPortalVendorCode="ProVolInc",AA166=1),2,Z166) -> 3 | Z166: 3 | AA166: 1
B167: =IF(C167=(IF(U167<>"{=OG}",U167,O167)),""," • ") ->  | C167: =O167 -> 0.03 | D167: Short Term Expected Electric Rate Inflation in next 12 months, if not long term average | O167: =InflElect -> 0.03 | U167: {=OG} | W167: E | X167: 3 | Y167: 3 | Z167: 3 | AA167: 1
B168: =IF(C168=(IF(U168<>"{=OG}",U168,O168)),""," • ") ->  | C168: =O168 -> 0.03 | D168: Short Term Expected Electric Rate Inflation in 12-24 months, if not long term average | O168: =InflElect -> 0.03 | U168: {=OG} | W168: E | X168: 3 | Y168: 3 | Z168: 3 | AA168: 1
B169: =IF(C169=(IF(U169<>"{=OG}",U169,O169)),""," • ") ->  | C169: =O169 -> 0.03 | D169: Short Term Expected Electric Rate Inflation in 24-36 months, if not long term average | O169: =InflElect -> 0.03 | U169: {=OG} | W169: E | X169: 3 | Y169: 3 | Z169: 3 | AA169: 1
W170: E | X170: 3 | Y170: 3 | Z170: 3 | AA170: 1
W171: E | X171: =IF(ErrorElecRatesSec,IF(ElecRatesLevel<>0,1,0),Y171) -> 1 | Y171: 1 | Z171: =IF(NOT(FeedIn),1,"") -> 1 | AA171: 1
C172: =U172 -> USAGE: | D172: =IF(AND(ElecRatesLevel>1,OR(TouStarting,DemandStarting)),"Quick Rate Data Entry","") ->  | I172: =IF(AND(ElecRatesLevel>1,OR(TouStarting,DemandStarting)),"Clear Quick Rate Data","") ->  | O172: USAGE: | U172: USAGE: | W172: E | X172: 1 | Y172: 1 | Z172: =IF(NOT(FeedIn),1,"") -> 1
A173: UsageStart | B173: =IF(AND(C173<>O173,O173<>"",SUM(CalcsPvt!F384:F395)>0,U173="{=OG}")," • ","") ->  | C173: 12000 | D173: =CalcsPvt!E438 -> Jan | O173: =IF(AND(CalcsPvt!F384=0,SUM(C174:C184)=0),1500,IF(CalcsPvt!F384<>0,CalcsPvt!F384,"")) ->  | U173: {=OG} | W173: E | X173: 1 | Y173: 1 | Z173: =IF(NOT(FeedIn),1,"") -> 1 | AF173: 1
B174: =IF(AND(C174<>O174,O174<>"",U174="{=OG}")," • ","") ->  | C174: 11500 | D174: =CalcsPvt!E439 -> Feb | E174: =IF(AND(Lite,UseJan<>UseAvg),"Average Usage over 12 Months: " & UseAvg & " kWh","") ->  | O174: =IF(CalcsPvt!F385<>0,CalcsPvt!F385,"") ->  | U174: {=OG} | W174: E | X174: 2 | Y174: 2 | Z174: =IF(NOT(FeedIn),2,"") -> 2
C175: 13000 | D175: =CalcsPvt!E440 -> Mar | E175: =UseWinAvgStart -> 13250 | F175: Winter Average | O175: =IF(CalcsPvt!F386<>0,CalcsPvt!F386,"") ->  | U175: {=OG} | W175: E | X175: 2 | Y175: 2 | Z175: 2
C176: 14000 | D176: =CalcsPvt!E441 -> Apr | E176: =UseAdjWinAvgStart -> 13250 | F176: Winter Avg Adjusted for Future Lifestyle | O176: =IF(CalcsPvt!F387<>0,CalcsPvt!F387,"") ->  | U176: {=OG} | W176: E | X176: 2 | Y176: 2 | Z176: 2
C177: 15500 | D177: =CalcsPvt!E442 -> May | E177: =UseEEAdjWinAvgStart -> 13250 | F177: Winter Avg Adjusted for Energy Efficiency | O177: =IF(CalcsPvt!F388<>0,CalcsPvt!F388,"") ->  | U177: {=OG} | W177: E | X177: 2 | Y177: 2 | Z177: 2
C178: 18000 | D178: =CalcsPvt!E443 -> Jun | O178: =IF(CalcsPvt!F389<>0,CalcsPvt!F389,"") ->  | U178: {=OG} | W178: E | X178: 2 | Y178: 2 | Z178: 2
C179: 20000 | D179: =CalcsPvt!E444 -> Jul | E179: =UseSumAvgStart -> 18500 | F179: =IF(Seasonal,"Summer Average","Average") -> Summer Average | O179: =IF(CalcsPvt!F390<>0,CalcsPvt!F390,"") ->  | U179: {=OG} | W179: E | X179: 2 | Y179: 2 | Z179: 2
C180: 19500 | D180: =CalcsPvt!E445 -> Aug | E180: =UseAdjSumAvgStart -> 18500 | F180: =IF(OR(Seasonal,NOT(VF)),"Summer Average","Average Usage")&" Adjusted for Future Lifestyle" -> Summer Average Adjusted for Future Lifestyle | O180: =IF(CalcsPvt!F391<>0,CalcsPvt!F391,"") ->  | U180: {=OG} | W180: E | X180: 2 | Y180: 2 | Z180: 2
C181: 16500 | D181: =CalcsPvt!E446 -> Sep | E181: =UseEEAdjSumAvgStart -> 18500 | F181: =IF(OR(Seasonal,NOT(VF)),"Summer Average","Average Usage")&" Adjusted for Energy Efficiency" -> Summer Average Adjusted for Energy Efficiency | O181: =IF(CalcsPvt!F392<>0,CalcsPvt!F392,"") ->  | U181: {=OG} | W181: E | X181: =IF(ErrorElecRatesSec,IF(ElecRatesLevel<>0,1,0),Y181) -> 2 | Y181: 2 | Z181: 2
C182: 14500 | D182: =CalcsPvt!E447 -> Oct | O182: =IF(CalcsPvt!F393<>0,CalcsPvt!F393,"") ->  | U182: {=OG} | W182: E | X182: 2 | Y182: 2 | Z182: 2
C183: 13000 | D183: =CalcsPvt!E448 -> Nov | E183: =UseAvg -> 15000 | F183: Monthly Adjusted Average Usage | O183: =IF(CalcsPvt!F394<>0,CalcsPvt!F394,"") ->  | U183: {=OG} | W183: E | X183: 2 | Y183: 2 | Z183: 2
C184: 12500 | D184: =CalcsPvt!E449 -> Dec | E184: =UseAnnualTotal -> 180000 | F184: Year Total Adjusted Usage | O184: =IF(CalcsPvt!F395<>0,CalcsPvt!F395,"") ->  | U184: {=OG} | W184: E | X184: 2 | Y184: 2 | Z184: 2
W185: E | X185: 2 | Y185: 2 | Z185: =IF(NOT(FeedIn),2,IF(AND(NOT(SeasonalEnding),NOT(TouEnding)),"",2)) -> 2
W186: E | X186: 2 | Y186: 2 | Z186: =Z$185 -> 2
C187: =U187 -> WHEN ENERGY IS USED (TOU only): | D187: =IF(TouStarting,"Enter TOU % averages or","") ->  | E187: =IF(TouStarting,"month-by-month","") ->  | O187: WHEN ENERGY IS USED (TOU only): | U187: WHEN ENERGY IS USED (TOU only): | W187: E | Z187: =IF(NOT(FeedIn),IF(AND(NOT(Tou),VF),"",2),"") -> 
B188: =IF(AND(TOUBasis<>O188,U188="{=OG}")," • ","") ->  | C188: =O188 -> Typical Weekday | D188: TOU Percent Basis | O188: =IF(AND(TouStarting,UseWeekendPct=O198,UseEndWeekendPct=P198),"Overall Bill","Typical Weekday") -> Typical Weekday | U188: {=OG} | W188: E | Z188: =Z$187 ->  | AF188: 1
W189: E
C190: ="Starting Rate Schedule"&IF(NOT(TouStarting)," (non-TOU)","") -> Starting Rate Schedule (non-TOU) | D190: ="Ending Rate Schedule"&IF(NOT(TouEnding)," (non-TOU)","") -> Ending Rate Schedule (non-TOU) | W190: E
A191: TouStart | B191: =IF(AND(C191=(IF(U191<>"{=OG}",U191,O191)),D191=(IF(V191<>"{=OG}",V191,P191))),""," • ") ->  | C191: =O191 -> 0 | D191: =P191 -> 0 | E191: =IF(Seasonal," Summer","")&IF(TOUBasis="Typical Weekday"," Peak Percentage of a typical weekday's usage during the 'Peak' time window compared to the usage over 24 hours of that weekday.", " Peak Percentage during the 'Peak' time window compared to overall monthly usage.") -> Summer Peak Percentage of a typical weekday's usage during the 'Peak' time window compared to the usage over 24 hours of that weekday. | O191: =UseSumPkPctDefault -> 0 | P191: =UseEndSumPkPctDefault -> 0 | U191: {=OG} | V191: {=OG} | W191: E
B192: =IF(AND(C192=(IF(U192<>"{=OG}",U192,O192)),D192=(IF(V192<>"{=OG}",V192,P192))),""," • ") ->  | C192: =O192 -> 0 | D192: =P192 -> 0 | E192: =IF(Seasonal," Summer","")&IF(TOUBasis="Typical Weekday"," Part Peak Percentage of a typical weekday's usage during the 'Part-Peak' time window ...", " Partial Peak Percentage during the 'Partial-Peak' time window ...") -> Summer Part Peak Percentage of a typical weekday's usage during the 'Part-Peak' time window ... | O192: =UseSumPartPkPctDefault -> 0 | P192: =UseEndSumPartPkPctDefault -> 0 | U192: {=OG} | V192: {=OG} | W192: E
C193: =1-UseSumPkPct-UseSumPartPkPct -> 1 | D193: =1-UseEndSumPkPct-UseEndSumPartPkPct -> 1 | E193: =IF(Seasonal," Summer","")&IF(TOUBasis="Typical Weekday"," Off Peak Percentage (calculated) of a typical weekday's usage during the 'Off-Peak' time window ...", " Off Peak Percentage (calculated) during the 'Off-Peak' time window ...") -> Summer Off Peak Percentage (calculated) of a typical weekday's usage during the 'Off-Peak' time window ... | W193: E
B194: =IF(AND(C194=(IF(U194<>"{=OG}",U194,O194)),D194=(IF(V194<>"{=OG}",V194,P194))),""," • ") ->  | C194: =O194 -> 0 | D194: =P194 -> 0 | E194: =IF(TOUBasis="Typical Weekday"," Winter Peak Percentage of a typical weekday's usage during the 'Peak' time window compared to the usage over 24 hours of that weekday.", " Winter Peak Percentage during the 'Peak' time window compared to overall winter monthly usage.") -> Winter Peak Percentage of a typical weekday's usage during the 'Peak' time window compared to the usage over 24 hours of that weekday. | O194: =UseWinPkPctDefault -> 0 | P194: =UseEndWinPkPctDefault -> 0 | U194: {=OG} | V194: {=OG} | W194: E | Z194: =IF(NOT(FeedIn),IF(AND(OR(NOT(Tou),NOT(Seasonal)),VF),"",2),"") -> 
B195: =IF(AND(C195=(IF(U195<>"{=OG}",U195,O195)),D195=(IF(V195<>"{=OG}",V195,P195))),""," • ") ->  | C195: =O195 -> 0 | D195: =P195 -> 0 | E195: =IF(TOUBasis="Typical Weekday"," Winter Part Peak Percentage of a typical weekday's usage during the 'Part-Peak' time window ...", " Winter Partial Peak Percentage during the 'Partial-Peak' time window ...") -> Winter Part Peak Percentage of a typical weekday's usage during the 'Part-Peak' time window ... | O195: =UseWinPartPkPctDefault -> 0 | P195: =UseEndWinPartPkPctDefault -> 0 | U195: {=OG} | V195: {=OG} | W195: E | Z195: =Z$194 -> 
C196: =1-UseWinPkPct-UseWinPartPkPct -> 1 | D196: =1-UseEndWinPkPct-UseEndWinPartPkPct -> 1 | E196: =IF(TOUBasis="Typical Weekday"," Winter Off Peak Percentage (calculated) of a typical weekday's usage during the 'Off-Peak' time window ...", " Winter Off Peak Percentage (calculated) during the 'Off-Peak' time window ...") -> Winter Off Peak Percentage (calculated) of a typical weekday's usage during the 'Off-Peak' time window ... | W196: E | Z196: =Z$194 -> 
C197: =IF(OR(AND(UseSumPkPct>0,UseSumPkPctDefault=0),AND(UseSumPartPkPct>0,UseSumPartPkPctDefault=0),AND(UseWinPkPct>0,UseWinPkPctDefault=0),AND(UseWinPartPkPct>0,UseWinPartPkPctDefault=0),AND(UseEndSumPkPct>0,UseEndSumPkPctDefault=0),AND(UseEndSumPartPkPct>0,UseEndSumPartPkPctDefault=0),AND(UseEndWinPkPct>0,UseEndWinPkPctDefault=0),AND(UseEndWinPartPkPct>0,UseEndWinPartPkPctDefault=0)),"WARNING: 0 default overridden -- results will be inaccurate","") ->  | W197: E | Z197: =Z$187 ->  | AA197: 1
B198: =IF(AND(C198=(IF(U198<>"{=OG}",U198,O198)),D198=(IF(V198<>"{=OG}",V198,P198))),""," • ") ->  | C198: =O198 -> 0.1 | D198: =P198 -> 0.1 | E198: Weekend Percentage of overall energy usage | O198: =IF(OR(Residential,AffHousing),0.2857,0.1) -> 0.1 | P198: =IF(OR(Residential,AffHousing),0.2857,0.1) -> 0.1 | U198: {=OG} | V198: {=OG} | W198: E | Z198: =Z$187 -> 
D199: =IF(AND(TouStarting,TouEnding,SUM(CalcsPvt!F384:F395)>0,CalcsPvt!$G$408=0),"WARNING: Ending Rate TOU % Not Based on Quick Rate Data -- Adjust as Appropriate","") ->  | W199: E | Z199: =Z$187 ->  | AA199: 1
C200: =IF(SeasonalEnding, "Summer Season: " &TOUSumSeasonTxt,"") -> Summer Season: June 1 to September 29 | W200: E | Z200: =IF(FeedIn,IF(Seasonal,2,""),IF(AND(NOT(TouEnding),VF),"",2)) ->  | AA200: 1
... 1087 more rows

Sheet Pricing (hidden)
C1: SalesTax | D1: Desc | F1: MatlWatt | G1: MatlDollUnit | H1: MatlNumUnit | I1: MatlTotal | J1: LabWatt | K1: LabDollUnit | L1: LabNumUnit | M1: LabTotal | N1: TotDoll | O1: TotPer | Y1: StartExtraPublic | AQ1: EndExtraPublic | AS1: StartPrivate | AU1: BooleanSalesTax | BA1: EndPrivate
B2: ="T" -> T | D2: COLOR LEGEND: | F2: =IF(CodeInProgress,CodeInProgressText,"System Pricing") -> System Pricing | I2: Main Pricing Table Now Saves Differently | M2: Quick Pricing-Setup Guide and Video | S2: RESET MAIN PRICING TABLE
D3: Enter Pricing Data | F3: =IF(CustsFullName<>"",CustsFullName,IF(CustCompany<>"",CustCompany,"")) -> Apu Nahasapeemapetilon | N3: more options ——> | S3: Clear Main Pricing Table | V3: <—— return | AT3: Toggle Row 1 / Column A | AW3: Rating Type CheckBox Values
B4: ="A" -> A | D4: Double Click to Enter Data | F4: =IF(NOT(PricingNoErrors),"ERROR Review Inputs",FIXED(SysSizePricingkW,IF(SysSizePricingkW<10,2,IF(SysSizePricingkW>100,0,1)))&" kW "&SysRatingTypePricing&" "&DOLLAR(F99,2)& " per "&SysRatingTypePricing&" Watt"&" "&DOLLAR(CostBasePricing,0)&" Base Cost"&IF(N102=0,""," With Adders: "&DOLLAR(F104,2)& " per Watt"&" "&DOLLAR(N104,0)&" Base + Adders")) -> 100.0 kW STC $2.09 per STC Watt $209,035 Base Cost With Adders: $2.20 per Watt $219,785 Base + Adders | AW4: TRUE | AX4: FALSE | AY4: FALSE
D5: Calculated Result, Don't Edit | F5: =IF(NOT(PricingNoErrors),"",IF(PricingOverridden," Calculated Base Cost Overridden - See Inputs Sheet Row " &ROW(CostBasePerW),InputsHeader4Text)) -> 4.2% IRR, 14 yrs, $137,158 Resale, $182,600 Lifecycle | S5: To set the current main-pricing-table data as the new defaults, click 'Make Current Pricing the Defaults'
A6: Header1 | B6: ="ST" -> ST | D6: Line Item Description | F6: Materials | G6: Materials | I6: Materials | J6: Labor | K6: Labor | M6: Labor | N6: Total | O6: Total | S6: Make Current Pricing the Defaults
A7: Header2 | F7: =" $/ " &SysRatingTypePricing& " W" -> $/ STC W | G7: $/ Unit | H7: Units | I7: Total | J7: =" $/ " &SysRatingTypePricing & " W" -> $/ STC W | K7: $/ Hr | L7: Hours | M7: Total | N7: Total | O7: % | S7: Reset Custom Pricing to OnGrid Defaults
A8: StartComponents | D8: MAIN COMPONENTS | F8: Edit Module and Inverter Pricing Defaults | S8: 75 | T8: =" Visible Lines (max 75, starting in row "&ROW(D15)&")" -> Visible Lines (max 75, starting in row 15) | AU8: SALES TAX | AY8: MATL DEFAULT OVERRIDDEN | AZ8: LAB DEFAULT OVERRIDDEN
D9: Modules
A10: SysModule | B10: =IF(OR(I10=I427,AND(I10>(I427*0.98),I10<(I427*1.02))),""," • ") -> • | C10: S | D10: ="Array 1:" & " " & SysModuleShort -> Array 1: Silfab SIL-400BG | F10: 1 | G10: =IF(SysSizePricingArray1=0,0,F10*SysSizePricingArray1/H10) -> 400 | H10: =H427 -> 250 | I10: =F10*SysSizePricingArray1 -> 100000 | J10: =IF(SysModCnt<>0,IF(SysRatingTypePricing="STC",O438,IF(SysRatingTypePricing="PTC",P438,Q438)),0) -> 0 | K10: =M10 -> 0 | L10: 1 | M10: =J10*SysSizePricingArray1 -> 0 | N10: =I10+M10 -> 100000 | O10: =N10/$N$91 -> 0.5734767025 | S10: Pricing Rating Type | AU10: 1
A11: SysModule2 | B11: =IF(OR(I11=I428,AND(I11>(I428*0.98),I11<(I428*1.02))),""," • ") ->  | C11: S | D11: ="Array 2: " &SysModuleShort2 -> Array 2: Silfab SIL-400BG | F11: 0 | G11: =IF(SysSizePricingArray2=0,0,F11*SysSizePricingArray2/H11) -> 0 | H11: =H428 -> 0 | I11: =F11*SysSizePricingArray2 -> 0 | J11: =IF(SysModCnt2<>0,IF(SysRatingTypePricing="STC",O442,IF(SysRatingTypePricing="PTC",P442,Q442)),0) -> 0 | K11: =M11 -> 0 | L11: 1 | M11: =J11*SysSizePricingArray2 -> 0 | N11: =I11+M11 -> 0 | O11: =N11/$N$91 -> 0 | AU11: 1
D12: Inverters
A13: SysInverter | B13: =IF(OR(I13=I430,AND(I13>(I430*0.98),I13<(I430*1.02))),""," • ") -> • | C13: S | D13: ="Array 1: " & SysInverterShort -> Array 1: SMA STP 50-US-41 {480V} | F13: 0.21 | G13: =IF(SysSizePricingArray1=0,0,F13*SysSizePricingArray1/H13) -> 10500 | H13: =H430 -> 2 | I13: =F13*SysSizePricingArray1 -> 21000 | J13: =IF(SysInvCnt<>0,IF(SysRatingTypePricing="STC",O450,IF(SysRatingTypePricing="PTC",P450,Q450)),0) -> 0 | K13: =M13 -> 0 | L13: 1 | M13: =J13*SysSizePricingArray1 -> 0 | N13: =I13+M13 -> 21000 | O13: =N13/$N$91 -> 0.1204301075 | AU13: 1
A14: SysInverter2 | B14: =IF(OR(I14=I431,AND(I14>(I431*0.98),I14<(I431*1.02))),""," • ") ->  | C14: S | D14: ="Array 2: " &SysInverterShort2 -> Array 2: SMA STP 50-US-41 {480V} | F14: 0 | G14: =IF(OR(SysSizePricingArray2=0,SysInvCnt2=0),0,F14*SysSizePricingArray2/H14) -> 0 | H14: =H431 -> 0 | I14: =F14*SysSizePricingArray2 -> 0 | J14: =IF(SysInvCnt2<>0,IF(SysRatingTypePricing="STC",O454,IF(SysRatingTypePricing="PTC",P454,Q454)),0) -> 0 | K14: =M14 -> 0 | L14: 1 | M14: =J14*SysSizePricingArray2 -> 0 | N14: =I14+M14 -> 0 | O14: =N14/$N$91 -> 0 | AU14: 1
A15: StartMain | B15: =IF(OR(AY15=1,AZ15=1)," • ","") ->  | AY15: =IF(OR(AND(OR(ISNUMBER(F15),F15=0),OR(ISNUMBER(F551),F551=0),F15<>F551),AND(OR(ISNUMBER(G15),G15=0),OR(ISNUMBER(G551),G551=0),G15<>G551),AND(OR(ISNUMBER(H15),H15=0),OR(ISNUMBER(H551),H551=0),H15<>H551),AND(OR(ISNUMBER(I15),I15=0),OR(ISNUMBER(I551),I551=0),I15<>I551)),1,0) -> 0 | AZ15: =IF(OR(AND(OR(ISNUMBER(J15),J15=0),OR(ISNUMBER(J551),J551=0),J15<>J551),AND(OR(ISNUMBER(K15),K15=0),OR(ISNUMBER(K551),K551=0),K15<>K551),AND(OR(ISNUMBER(L15),L15=0),OR(ISNUMBER(L551),L551=0),L15<>L551),AND(OR(ISNUMBER(M15),M15=0),OR(ISNUMBER(M551),M551=0),M15<>M551)),1,0) -> 0
A16: 2 | B16: =IF(OR(AY16=1,AZ16=1)," • ","") ->  | Q16: + | R16: - | AY16: =IF(OR(AND(OR(ISNUMBER(F16),F16=0),OR(ISNUMBER(F552),F552=0),F16<>F552),AND(OR(ISNUMBER(G16),G16=0),OR(ISNUMBER(G552),G552=0),G16<>G552),AND(OR(ISNUMBER(H16),H16=0),OR(ISNUMBER(H552),H552=0),H16<>H552),AND(OR(ISNUMBER(I16),I16=0),OR(ISNUMBER(I552),I552=0),I16<>I552)),1,0) -> 0 | AZ16: =IF(OR(AND(OR(ISNUMBER(J16),J16=0),OR(ISNUMBER(J552),J552=0),J16<>J552),AND(OR(ISNUMBER(K16),K16=0),OR(ISNUMBER(K552),K552=0),K16<>K552),AND(OR(ISNUMBER(L16),L16=0),OR(ISNUMBER(L552),L552=0),L16<>L552),AND(OR(ISNUMBER(M16),M16=0),OR(ISNUMBER(M552),M552=0),M16<>M552)),1,0) -> 0
A17: 3 | Q17: + | R17: - | AY17: 0 | AZ17: 0
A18: 4 | D18: USE ALL CAPS FOR SECTION LABELS | Q18: + | R18: - | AY18: 0 | AZ18: 0
A19: 5 | Q19: + | R19: - | AY19: 0 | AZ19: 0
A20: 6 | C20: s | D20: (See help links in row 2 for more info) | F20: 0 | G20: =F20*SysSizePricing/H20 -> 0 | H20: 1 | I20: =F20*SysSizePricing -> 0 | J20: 0 | K20: =J20*SysSizePricing/L20 -> 0 | L20: 1 | M20: =J20*SysSizePricing -> 0 | N20: =I20+M20 -> 0 | O20: =N20/$N$91 -> 0 | Q20: + | R20: - | AY20: 0 | AZ20: 0
A21: 7 | Q21: + | R21: - | AY21: 0 | AZ21: 0
A22: 8 | Q22: + | R22: - | AY22: 0 | AZ22: 0
A23: 9 | D23: OTHER COMPONENTS | Q23: + | R23: - | AY23: 0 | AZ23: 0
A24: 10 | Q24: + | R24: - | AY24: 0 | AZ24: 0
A25: 11 | C25: S | D25: DC Disconnect | F25: =(G25*H25)/SysSizePricing -> 0.002 | G25: 200 | H25: 1 | I25: =G25*H25 -> 200 | J25: 0 | K25: =J25*SysSizePricing/L25 -> 0 | L25: 1 | M25: =J25*SysSizePricing -> 0 | N25: =I25+M25 -> 200 | O25: =N25/$N$91 -> 0.001146953405 | Q25: + | R25: - | AU25: 1 | AY25: 0 | AZ25: 0
A26: 12 | C26: S | D26: AC Disconnect | F26: =(G26*H26)/SysSizePricing -> 0.00125 | G26: 125 | H26: 1 | I26: =G26*H26 -> 125 | J26: 0 | K26: =J26*SysSizePricing/L26 -> 0 | L26: 1 | M26: =J26*SysSizePricing -> 0 | N26: =I26+M26 -> 125 | O26: =N26/$N$91 -> 0.0007168458781 | Q26: + | R26: - | AU26: 1 | AY26: 0 | AZ26: 0
A27: 13 | Q27: + | R27: - | AY27: 0 | AZ27: 0
A28: 14 | C28: S | D28: Distribution Panel & Circuit Breakers | F28: =(G28*H28)/SysSizePricing -> 0.0015 | G28: 150 | H28: 1 | I28: =G28*H28 -> 150 | J28: 0 | K28: =J28*SysSizePricing/L28 -> 0 | L28: 1 | M28: =J28*SysSizePricing -> 0 | N28: =I28+M28 -> 150 | O28: =N28/$N$91 -> 0.0008602150538 | Q28: + | R28: - | AU28: 1 | AY28: 0 | AZ28: 0
A29: 15 | Q29: + | R29: - | AY29: 0 | AZ29: 0
A30: 16 | C30: S | D30: Conduit, Fittings, Connectors | F30: 0 | G30: =F30*SysSizePricing/H30 -> 0 | H30: 1 | I30: =F30*SysSizePricing -> 0 | J30: 0 | K30: =J30*SysSizePricing/L30 -> 0 | L30: 1 | M30: =J30*SysSizePricing -> 0 | N30: =I30+M30 -> 0 | O30: =N30/$N$91 -> 0 | Q30: + | R30: - | AU30: 1 | AY30: 0 | AZ30: 0
A31: 17 | C31: S | D31: Wiring | F31: 0 | G31: =F31*SysSizePricing/H31 -> 0 | H31: 1 | I31: =F31*SysSizePricing -> 0 | J31: 0 | K31: =J31*SysSizePricing/L31 -> 0 | L31: 1 | M31: =J31*SysSizePricing -> 0 | N31: =I31+M31 -> 0 | O31: =N31/$N$91 -> 0 | Q31: + | R31: - | AU31: 1 | AY31: 0 | AZ31: 0
A32: 18 | Q32: + | R32: - | AY32: 0 | AZ32: 0
A33: 19 | Q33: + | R33: - | AY33: 0 | AZ33: 0
A34: 20 | D34: SHIPPING | Q34: + | R34: - | AY34: 0 | AZ34: 0
A35: 21 | Q35: + | R35: - | AY35: 0 | AZ35: 0
A36: 22 | C36: s | D36: Shipping on Modules | F36: 0.08 | G36: =F36*SysSizePricing/H36 -> 8000 | H36: 1 | I36: =F36*SysSizePricing -> 8000 | J36: 0 | K36: =J36*SysSizePricing/L36 -> 0 | L36: 1 | M36: =J36*SysSizePricing -> 0 | N36: =I36+M36 -> 8000 | O36: =N36/$N$91 -> 0.0458781362 | Q36: + | R36: - | AY36: 0 | AZ36: 0
A37: 23 | C37: s | D37: Shipping on Inverters | F37: 0.05 | G37: =F37*SysSizePricing/H37 -> 5000 | H37: 1 | I37: =F37*SysSizePricing -> 5000 | J37: 0 | K37: =J37*SysSizePricing/L37 -> 0 | L37: 1 | M37: =J37*SysSizePricing -> 0 | N37: =I37+M37 -> 5000 | O37: =N37/$N$91 -> 0.02867383513 | Q37: + | R37: - | AY37: 0 | AZ37: 0
A38: 24 | C38: s | D38: Other Shipping | F38: 0 | G38: =F38*SysSizePricing/H38 -> 0 | H38: 1 | I38: =F38*SysSizePricing -> 0 | J38: 0 | K38: =J38*SysSizePricing/L38 -> 0 | L38: 1 | M38: =J38*SysSizePricing -> 0 | N38: =I38+M38 -> 0 | O38: =N38/$N$91 -> 0 | Q38: + | R38: - | AY38: 0 | AZ38: 0
A39: 25 | Q39: + | R39: - | AY39: 0 | AZ39: 0
A40: 26 | Q40: + | R40: - | AY40: 0 | AZ40: 0
A41: 27 | D41: LABOR | Q41: + | R41: - | AY41: 0 | AZ41: 0
A42: 28 | Q42: + | R42: - | AY42: 0 | AZ42: 0
A43: 29 | C43: s | D43: Lead Installer | F43: 0 | G43: =F43*SysSizePricing/H43 -> 0 | H43: 1 | I43: =F43*SysSizePricing -> 0 | J43: =(K43*L43)/SysSizePricing -> 0.228 | K43: 38 | L43: =SysSizeSTC*6 -> 600 | M43: =K43*L43 -> 22800 | N43: =I43+M43 -> 22800 | O43: =N43/$N$91 -> 0.1307526882 | Q43: + | R43: - | AY43: 0 | AZ43: 0
A44: 30 | C44: s | D44: Assistant Installer | F44: 0 | G44: =F44*SysSizePricing/H44 -> 0 | H44: 1 | I44: =F44*SysSizePricing -> 0 | J44: =(K44*L44)/SysSizePricing -> 0.154 | K44: 22 | L44: =SysSizeSTC*7 -> 700 | M44: =K44*L44 -> 15400 | N44: =I44+M44 -> 15400 | O44: =N44/$N$91 -> 0.08831541219 | Q44: + | R44: - | AY44: 0 | AZ44: 0
A45: 31 | Q45: + | R45: - | AY45: 0 | AZ45: 0
A46: 32 | C46: s | D46: Engineering & Project Management | F46: 0 | G46: =F46*SysSizePricing/H46 -> 0 | H46: 1 | I46: =F46*SysSizePricing -> 0 | J46: =(K46*L46)/SysSizePricing -> 0.012 | K46: 60 | L46: 20 | M46: =K46*L46 -> 1200 | N46: =I46+M46 -> 1200 | O46: =N46/$N$91 -> 0.00688172043 | Q46: + | R46: - | AY46: 0 | AZ46: 0
A47: 33 | C47: s | D47: Permit & Inspection | F47: 0 | G47: =F47*SysSizePricing/H47 -> 0 | H47: 1 | I47: =F47*SysSizePricing -> 0 | J47: =(K47*L47)/SysSizePricing -> 0.005 | K47: 50 | L47: 10 | M47: =K47*L47 -> 500 | N47: =I47+M47 -> 500 | O47: =N47/$N$91 -> 0.002867383513 | Q47: + | R47: - | AY47: 0 | AZ47: 0
A48: 34 | Q48: + | R48: - | AY48: 0 | AZ48: 0
A49: 35 | Q49: + | R49: - | AY49: 0 | AZ49: 0
A50: 36 | Q50: + | R50: - | AY50: 0 | AZ50: 0
A51: 37 | C51: s | D51: (See row 93 for profit & overhead) | F51: 0 | G51: =F51*SysSizePricing/H51 -> 0 | H51: 1 | I51: =F51*SysSizePricing -> 0 | J51: 0 | K51: =J51*SysSizePricing/L51 -> 0 | L51: 1 | M51: =J51*SysSizePricing -> 0 | N51: =I51+M51 -> 0 | O51: =N51/$N$91 -> 0 | Q51: + | R51: - | AY51: 0 | AZ51: 0
A52: 38 | Q52: + | R52: - | AY52: 0 | AZ52: 0
A53: 39 | Q53: + | R53: - | AY53: 0 | AZ53: 0
A54: 40 | Q54: + | R54: - | AY54: 0 | AZ54: 0
A55: 41 | Q55: + | R55: - | AY55: 0 | AZ55: 0
A56: 42 | Q56: + | R56: - | AY56: 0 | AZ56: 0
A57: 43 | Q57: + | R57: - | AY57: 0 | AZ57: 0
A58: 44 | Q58: + | R58: - | AY58: 0 | AZ58: 0
A59: 45 | Q59: + | R59: - | AY59: 0 | AZ59: 0
A60: 46 | Q60: + | R60: - | AY60: 0 | AZ60: 0
A61: 47 | Q61: + | R61: - | AY61: 0 | AZ61: 0
A62: 48 | Q62: + | R62: - | AY62: 0 | AZ62: 0
A63: 49 | Q63: + | R63: - | AY63: 0 | AZ63: 0
A64: 50 | Q64: + | R64: - | AY64: 0 | AZ64: 0
A65: 51 | Q65: + | R65: - | AY65: 0 | AZ65: 0
A66: 52 | Q66: + | R66: - | AY66: 0 | AZ66: 0
A67: 53 | Q67: + | R67: - | AY67: 0 | AZ67: 0
A68: 54 | Q68: + | R68: - | AY68: 0 | AZ68: 0
A69: 55 | Q69: + | R69: - | AY69: 0 | AZ69: 0
A70: 56 | Q70: + | R70: - | AY70: 0 | AZ70: 0
A71: 57 | Q71: + | R71: - | AY71: 0 | AZ71: 0
A72: 58 | Q72: + | R72: - | AY72: 0 | AZ72: 0
A73: 59 | Q73: + | R73: - | AY73: 0 | AZ73: 0
A74: 60 | Q74: + | R74: - | AY74: 0 | AZ74: 0
A75: 61 | Q75: + | R75: - | AY75: 0 | AZ75: 0
A76: 62 | Q76: + | R76: - | AY76: 0 | AZ76: 0
A77: 63 | Q77: + | R77: - | AY77: 0 | AZ77: 0
A78: 64 | Q78: + | R78: - | AY78: 0 | AZ78: 0
A79: 65 | Q79: + | R79: - | AY79: 0 | AZ79: 0
A80: 66 | B80: =IF(OR(AY80=1,AZ80=1)," • ","") ->  | Q80: + | R80: - | AY80: =IF(OR(AND(OR(ISNUMBER(F80),F80=0),OR(ISNUMBER(F616),F616=0),F80<>F616),AND(OR(ISNUMBER(G80),G80=0),OR(ISNUMBER(G616),G616=0),G80<>G616),AND(OR(ISNUMBER(H80),H80=0),OR(ISNUMBER(H616),H616=0),H80<>H616),AND(OR(ISNUMBER(I80),I80=0),OR(ISNUMBER(I616),I616=0),I80<>I616)),1,0) -> 0 | AZ80: =IF(OR(AND(OR(ISNUMBER(J80),J80=0),OR(ISNUMBER(J616),J616=0),J80<>J616),AND(OR(ISNUMBER(K80),K80=0),OR(ISNUMBER(K616),K616=0),K80<>K616),AND(OR(ISNUMBER(L80),L80=0),OR(ISNUMBER(L616),L616=0),L80<>L616),AND(OR(ISNUMBER(M80),M80=0),OR(ISNUMBER(M616),M616=0),M80<>M616)),1,0) -> 0
A81: 67 | Q81: + | R81: - | AY81: 0 | AZ81: 0
A82: 68 | Q82: + | R82: - | AY82: 0 | AZ82: 0
A83: 69 | Q83: + | R83: - | AY83: 0 | AZ83: 0
A84: 70 | Q84: + | R84: - | AY84: 0 | AZ84: 0
A85: 71 | Q85: + | R85: - | AY85: 0 | AZ85: 0
A86: 72 | Q86: + | R86: - | AY86: 0 | AZ86: 0
A87: 73 | Q87: + | R87: - | AY87: 0 | AZ87: 0
A88: 74 | Q88: + | R88: - | AY88: 0 | AZ88: 0
A89: 75 | Q89: + | R89: - | AY89: 0 | AZ89: 0
A90: EndMain | AY90: 0 | AZ90: 0
A91: SubTotalRow | D91: System Base Cost - Sub-Totals | F91: =I91/SysSizePricing -> 1.34475 | I91: =SUM($I$10:$I$90) -> 134475 | J91: =M91/SysSizePricing -> 0.399 | M91: =SUM($M$10:$M$90) -> 39900 | N91: =SUM($N$10:$N$90) -> 174375 | O91: =SUM($O$10:$O$90) -> 1 | R91: =IF(AND(SysSizeArray2>0,N11>0),"This line's base cost per watt uses a weighted average for array 1 and array 2 component pricing.","") -> 
G92: Note on Rows 93 to 95
A93: StartProfitOverhead | B93: =IF(AY93=1," • ","") ->  | D93: Company Overhead | F93: =N93/SysSizePricing -> 0.0871875 | N93: =O93*$N$91 -> 8718.75 | O93: 0.05 | AY93: =IF(OR(AND(OR(ISNUMBER(F93),F93=0),OR(ISNUMBER(F629),F629=0),F93<>F629),AND(OR(ISNUMBER(N93),N93=0),OR(ISNUMBER(N629),N629=0),N93<>N629),AND(OR(ISNUMBER(O93),O93=0),OR(ISNUMBER(O629),O629=0),O93<>O629)),1,0) -> 0
D94: Company Profit | F94: =N94/SysSizePricing -> 0.0871875 | N94: 8718.75 | O94: 0.05 | AY94: =IF(OR(AND(OR(ISNUMBER(F94),F94=0),OR(ISNUMBER(F630),F630=0),F94<>F630),AND(OR(ISNUMBER(N94),N94=0),OR(ISNUMBER(N630),N630=0),N94<>N630),AND(OR(ISNUMBER(O94),O94=0),OR(ISNUMBER(O630),O630=0),O94<>O630)),1,0) -> 0
A95: EndProfitOverhead | D95: Sales Commission | F95: =N95/SysSizePricing -> 0.0871875 | N95: 8718.75 | O95: 0.05 | AY95: =IF(OR(AND(OR(ISNUMBER(F95),F95=0),OR(ISNUMBER(F631),F631=0),F95<>F631),AND(OR(ISNUMBER(N95),N95=0),OR(ISNUMBER(N631),N631=0),N95<>N631),AND(OR(ISNUMBER(O95),O95=0),OR(ISNUMBER(O631),O631=0),O95<>O631)),1,0) -> 0
A97: SalesTaxRow | D97: Sales Tax | F97: =N97/SysSizePricing -> 0.0850325 | N97: =$F$288 -> 8503.25 | O97: =N97/$N$91 -> 0.04876415771
A99: TotalRow | D99: System Base Cost - Total | F99: =($F$91+$J$91)+($F$93+$F$94+$F$95)+$F$97 -> 2.090345 | G99: =IF(PricingOverridden," Calculated Base Cost Overridden - See Inputs Sheet Row " &ROW(CostBasePerW),"") ->  | N99: =$N$91+($N$93+$N$94+$N$95)+$N$97 -> 209034.5
D102: Adders | F102: =$J$194/SysSizePricing -> 0.1075 | N102: =$J$194 -> 10750
D104: System Base Cost and Adders | F104: =F99+F102 -> 2.197845 | N104: =$N$99+$N$102 -> 219784.5
A110: HeaderAdders | D110: Adders | G110: Clear Adder Amounts | I110: Load OnGrid Adder Defaults
D112: Description | F112: =" $/ " &SysRatingTypePricing& " W" -> $/ STC W | G112: $/ Unit | H112: Units | I112: Total Array 1 | J112: Total Array 2 | K112: Note on How Adders Are Saved
D114: ROOF TYPE
A115: StartAdders
A116: 1 | D116: Composite | F116: 0 | H116: =IF(AND(AND($D116=SysRoofType,SysSizePricingArray1<>0),AND($D116=SysRoofType2,SysSizePricingArray2<>0)),2,IF(OR(AND($D116=SysRoofType,SysSizePricingArray1<>0),AND($D116=SysRoofType2,SysSizePricingArray2<>0)),1,"")) ->  | I116: =IF($D116=SysRoofType,$F116*SysSizePricingArray1,"") ->  | J116: =IF($D116=SysRoofType2,$F116*SysSizePricingArray2,"") -> 
A117: 1 | D117: Composite w/ Flashings | F117: 0
A118: 1 | D118: EPDM Membrane | F118: 0
A119: 1 | D119: Flat Roof no Penetrations | F119: 0
A120: 1 | D120: Flat Roof with Penetrations | F120: 0 | H120: 1 | I120: 0 | J120: 0
A121: 1 | D121: Foam | F121: 0
A122: 1 | D122: Ground Mount | F122: 0
A123: 1 | D123: HardiShake | F123: 0
A124: 1 | D124: HardiSlate | F124: 0
A125: 1 | D125: Metal - Corrugated | F125: 0 | J125: =IF($D125=SysRoofType2,$F125*SysSizePricingArray2,"") -> 
A126: 1 | D126: Metal - Standing Seam | F126: 0
A127: 1 | D127: Metal - Tile | F127: 0
A128: 1 | D128: Rolled Roofing / Torchdown | F128: 0
A129: 1 | D129: Tar & Gravel | F129: 0
A130: 1 | D130: Tile - Concrete | F130: 0
A131: 1 | D131: Tile - Spanish | F131: 0
A132: 1 | D132: Trellis | F132: 0 | I132: =IF($D132=SysRoofType,$F132*SysSizePricingArray1,"") -> 
A133: 1 | D133: Vinyl Membrane | F133: 0
A134: 1 | D134: Wood Shake | F134: 0
D136: RACKING TYPE
A138: 1 | D138: Dual-Rail | F138: 0 | H138: =IF(AND(AND($D138=SysRackType,SysSizePricingArray1<>0),AND($D138=SysRackType2,SysSizePricingArray2<>0)),2,IF(OR(AND($D138=SysRackType,SysSizePricingArray1<>0),AND($D138=SysRackType2,SysSizePricingArray2<>0)),1,"")) ->  | I138: =IF($D138=SysRackType,$F138*SysSizePricingArray1,"") ->  | J138: =IF($D138=SysRackType2,$F138*SysSizePricingArray2,"") -> 
A139: 1 | D139: Single-Rail Edge-Mounted (SunFrame) | F139: 0
A140: 1 | D140: Tilt-up | F140: 0 | H140: 1 | I140: 0 | J140: 0
A141: 1 | D141: Field Panelized (Andalay) | F141: 0
A142: 1 | D142: BIPV Tile | F142: 0 | I142: =IF($D142=SysRackType,$F142*SysSizePricingArray1,"") -> 
A143: 1 | D143: BIPV Module | F143: 0 | J143: =IF($D143=SysRackType2,$F143*SysSizePricingArray2,"") -> 
A144: 1 | D144: BIPV other | F144: 0
A145: 1 | D145: Single Axis - Passive (ZomeWorks) | F145: 0
A146: 1 | D146: Single Axis - Active | F146: 0
A147: 1 | D147: Dual Axis - Active | F147: 0
D149: OTHER RACKING ADDERS
D151: Adder per additional array subsection | F151: =G151*H151/SysSizePricing -> 0.0075 | G151: 250 | H151: =IF(AND(SysArraySections>1,SysSizePricingArray1<>0),SysArraySections-1) + IF(AND(SysArraySections2>1,SysSizePricingArray2<>0),SysArraySections2-1) -> 3 | I151: =IF(AND(SysArraySections>1,SysSizePricingArray1<>0),SysArraySections-1,0)*G151 -> 750 | J151: =IF(AND(SysArraySections2>1,SysSizePricingArray2<>0),SysArraySections2-1,0)*G151 -> 0
D153: SLOPE (degrees)
A154: -1
A155: 5 | D155: 0 - 5 | H155: =IF(AND(AND(AND(SysArraySlope >$A154,SysArraySlope <=$A155),SysSizePricingArray1<>0),AND(AND(SysArraySlope2 >$A154,SysArraySlope2 <=$A155),SysSizePricingArray2<>0)),2,IF(OR(AND(AND(SysArraySlope >$A154,SysArraySlope <=$A155),SysSizePricingArray1<>0),AND(AND(SysArraySlope2 >$A154,SysArraySlope2 <=$A155),SysSizePricingArray2<>0)),1,"")) ->  | I155: =IF(AND(SysArraySlope >$A154,SysArraySlope <=$A155),$F155*SysSizePricingArray1,"") ->  | J155: =IF(AND(SysArraySlope2 >$A154,SysArraySlope2 <=$A155),$F155*SysSizePricingArray2,"") -> 
A156: 9 | D156: 6 - 9
A157: 14 | D157: 10 - 14
A158: 18 | D158: 15 - 18
A159: 22 | D159: 19 - 22 | H159: 1 | I159: 0 | J159: =IF(AND(SysArraySlope2 >$A158,SysArraySlope2 <=$A159),$F159*SysSizePricingArray2,"") -> 0
A160: 26 | D160: 23 - 26
A161: 30 | D161: 27 - 30 | F161: 0
A162: 35 | D162: 31 - 35 | F162: 0
A163: 40 | D163: 36 - 40 | F163: 0
A164: 45 | D164: 41 - 45 | F164: 0
A165: 50 | D165: 46 - 50 | F165: 0.5
A166: 55 | D166: 51 - 55 | F166: 0.5
A167: 60 | D167: 56 - 60 | F167: 0.5
A168: 65 | D168: 61 - 65 | F168: 0.5
A169: 70 | D169: 66 - 70 | F169: 0.5
A170: 75 | D170: 71 - 75 | F170: 0.5
A171: 80 | D171: 76 - 80 | F171: 0.5
A172: 85 | D172: 81 - 85 | F172: 0.5
A173: 90 | D173: 86 - 90 | F173: 0.5
D175: WIRE RUN LENGTH
A177: 1 | D177: <50' | F177: 0 | H177: =IF(AND(AND($D177=SysArrayWireLength,SysSizePricingArray1<>0),AND($D177=SysArrayWireLength2,SysSizePricingArray2<>0)),2,IF(OR(AND($D177=SysArrayWireLength,SysSizePricingArray1<>0),AND($D177=SysArrayWireLength2,SysSizePricingArray2<>0)),1,"")) ->  | I177: =IF($D177=SysArrayWireLength,$F177*SysSizePricingArray1,"") ->  | J177: =IF($D177=SysArrayWireLength2,$F177*SysSizePricingArray2,"") -> 
A178: 1 | D178: 50-75' | F178: 0.05
A179: 1 | D179: 75-100' | F179: 0.1 | H179: 1 | I179: 10000 | J179: 0
A180: 1 | D180: 100-125' | F180: 0.15
A181: 1 | D181: 125-150' | F181: 0.2
A182: 1 | D182: 150-175' | F182: 0.25
A183: 1 | D183: 175-200' | F183: 0.15
D186: TRENCHING
D187: Trenching per foot | G187: 10 | H187: =(SysTrenchDist*(SysSizeArray1>0))+(SysTrenchDist2*(SysSizeArray2>0)) -> 0 | I187: =SysTrenchDist*Pricing!$G187 -> 0 | J187: =IF(SysArrayCnt=2,SysTrenchDist2*Pricing!$G$187,0) -> 0
A189: EndAdders
I191: =SUM(I113:I189) -> 10750 | J191: =SUM(J113:J189) -> 0
I194: Total Adder Costs for System: | J194: =I191+J191 -> 10750
A199: HeaderReview | D199: Sales Tax Review
D202: =SalesTaxRate -> 0.07 | E202: =" Sales Tax Rate (set on Inputs sheet row "&ROW(SalesTaxRate)&")" -> Sales Tax Rate (set on Inputs sheet row 120)
D204: Description | F204: Sales Tax | G204: Note on Applying Sales Tax
A205: StartSalesTax
A206: 1 | D206: =IF(NOT(ISERROR(INDEX($AT$206:$AU$285,MATCH(A206,$AT$206:$AT$285,0),2))),INDEX($AT$206:$AU$285,MATCH(A206,$AT$206:$AT$285,0),2),"") -> Array 1: Silfab SIL-400BG | F206: =IF(NOT(ISERROR(INDIRECT("I"&VLOOKUP(A206,$AT$206:$AV$287,3,0)))),INDIRECT("I"&VLOOKUP(A206,$AT$206:$AV$287,3,0))*SalesTaxRate,"") -> 7000 | AT206: =COUNTIF($AU$206:$AU206,"<>1") -> 1 | AU206: =IF($AU10=1,$D10,1) -> Array 1: Silfab SIL-400BG | AV206: =IF(AU206<>1,AW206,0) -> 10 | AW206: 10
A207: 2 | D207: =IF(NOT(ISERROR(INDEX($AT$206:$AU$285,MATCH(A207,$AT$206:$AT$285,0),2))),INDEX($AT$206:$AU$285,MATCH(A207,$AT$206:$AT$285,0),2),"") -> Array 2: Silfab SIL-400BG | F207: =IF(NOT(ISERROR(INDIRECT("I"&VLOOKUP(A207,$AT$206:$AV$287,3,0)))),INDIRECT("I"&VLOOKUP(A207,$AT$206:$AV$287,3,0))*SalesTaxRate,"") -> 0 | AT207: =COUNTIF($AU$206:$AU207,"<>1") -> 2 | AU207: =IF($AU11=1,$D11,1) -> Array 2: Silfab SIL-400BG | AV207: =IF(AU207<>1,AW207,0) -> 11 | AW207: 11
A208: 3 | D208: =IF(NOT(ISERROR(INDEX($AT$206:$AU$285,MATCH(A208,$AT$206:$AT$285,0),2))),INDEX($AT$206:$AU$285,MATCH(A208,$AT$206:$AT$285,0),2),"") -> Array 1: SMA STP 50-US-41 {480V} | F208: 1470 | AT208: =COUNTIF($AU$206:$AU208,"<>1") -> 2 | AU208: =IF($AU12=1,$D12,1) -> 1 | AV208: 0 | AW208: 12
A209: 4 | D209: =IF(NOT(ISERROR(INDEX($AT$206:$AU$285,MATCH(A209,$AT$206:$AT$285,0),2))),INDEX($AT$206:$AU$285,MATCH(A209,$AT$206:$AT$285,0),2),"") -> Array 2: SMA STP 50-US-41 {480V} | F209: 0 | AT209: =COUNTIF($AU$206:$AU209,"<>1") -> 3 | AU209: Array 1: SMA STP 50-US-41 {480V} | AV209: 13 | AW209: 13
A210: 5 | D210: DC Disconnect | F210: 14 | AT210: =COUNTIF($AU$206:$AU210,"<>1") -> 4 | AU210: Array 2: SMA STP 50-US-41 {480V} | AV210: 14 | AW210: 14
A211: 6 | D211: AC Disconnect | F211: 8.75 | AT211: =COUNTIF($AU$206:$AU211,"<>1") -> 4 | AU211: 1 | AV211: 0 | AW211: 15
A212: 7 | D212: Distribution Panel & Circuit Breakers | F212: 10.5 | AT212: =COUNTIF($AU$206:$AU212,"<>1") -> 4 | AU212: 1 | AV212: 0 | AW212: 16
A213: 8 | D213: Conduit, Fittings, Connectors | F213: 0 | AT213: =COUNTIF($AU$206:$AU213,"<>1") -> 4 | AU213: 1 | AV213: 0 | AW213: 17
A214: 9 | D214: Wiring | F214: 0 | AT214: =COUNTIF($AU$206:$AU214,"<>1") -> 4 | AU214: 1 | AV214: 0 | AW214: 18
A215: 10 | AT215: =COUNTIF($AU$206:$AU215,"<>1") -> 4 | AU215: 1 | AV215: 0 | AW215: 19
A216: 11 | F216: =IF(NOT(ISERROR(INDIRECT("I"&VLOOKUP(A216,$AT$206:$AV$287,3,0)))),INDIRECT("I"&VLOOKUP(A216,$AT$206:$AV$287,3,0))*SalesTaxRate,"") ->  | AT216: =COUNTIF($AU$206:$AU216,"<>1") -> 4 | AU216: 1 | AV216: 0 | AW216: 20
A217: 12 | AT217: =COUNTIF($AU$206:$AU217,"<>1") -> 4 | AU217: 1 | AV217: 0 | AW217: 21
A218: 13 | AT218: =COUNTIF($AU$206:$AU218,"<>1") -> 4 | AU218: 1 | AV218: 0 | AW218: 22
A219: 14 | AT219: =COUNTIF($AU$206:$AU219,"<>1") -> 4 | AU219: 1 | AV219: 0 | AW219: 23
A220: 15 | AT220: =COUNTIF($AU$206:$AU220,"<>1") -> 4 | AU220: 1 | AV220: 0 | AW220: 24
A221: 16 | AT221: =COUNTIF($AU$206:$AU221,"<>1") -> 5 | AU221: DC Disconnect | AV221: 25 | AW221: 25
A222: 17 | AT222: =COUNTIF($AU$206:$AU222,"<>1") -> 6 | AU222: AC Disconnect | AV222: 26 | AW222: 26
A223: 18 | AT223: =COUNTIF($AU$206:$AU223,"<>1") -> 6 | AU223: 1 | AV223: 0 | AW223: 27
A224: 19 | AT224: =COUNTIF($AU$206:$AU224,"<>1") -> 7 | AU224: Distribution Panel & Circuit Breakers | AV224: 28 | AW224: 28
A225: 20 | AT225: =COUNTIF($AU$206:$AU225,"<>1") -> 7 | AU225: 1 | AV225: 0 | AW225: 29
A226: 21 | AT226: =COUNTIF($AU$206:$AU226,"<>1") -> 8 | AU226: Conduit, Fittings, Connectors | AV226: 30 | AW226: 30
A227: 22 | AT227: =COUNTIF($AU$206:$AU227,"<>1") -> 9 | AU227: Wiring | AV227: 31 | AW227: 31
A228: 23 | AT228: =COUNTIF($AU$206:$AU228,"<>1") -> 9 | AU228: 1 | AV228: 0 | AW228: 32
A229: 24 | AT229: =COUNTIF($AU$206:$AU229,"<>1") -> 9 | AU229: 1 | AV229: 0 | AW229: 33
A230: 25 | AT230: =COUNTIF($AU$206:$AU230,"<>1") -> 9 | AU230: 1 | AV230: 0 | AW230: 34
A231: 26 | AT231: =COUNTIF($AU$206:$AU231,"<>1") -> 9 | AU231: 1 | AV231: 0 | AW231: 35
A232: 27 | AT232: =COUNTIF($AU$206:$AU232,"<>1") -> 9 | AU232: 1 | AV232: 0 | AW232: 36
... 296 more rows

Sheet Shading--Array 1 (hidden)
A1: Shading Inputs | J1: Store Shading Data | T1: Load Shading Data | Y1: Load Shading Averages | AR1: StartPrivate | AT1: TRUE | AU1: Spot 1 | BM1: EndPrivate
AT2: TRUE | AU2: Spot 2
B3: Return to Inputs | AT3: FALSE | AU3: Spot 3
B5: Jump to User Defined Insolation | AT5: TRUE | AU5: Spot 4
B8: Active Shading Table | J8: '0' = No Sun '0<>1' = Partial Sun '1' = Full Sun
B9: Hour / Month | C9: 5am | D9: 5:30 | E9: 6am | F9: 6:30 | G9: 7am | H9: 7:30 | I9: 8am | J9: 8:30 | K9: 9am | L9: 9:30 | M9: 10am | N9: 10:30 | O9: 11am | P9: 11:30 | Q9: 12noon | R9: 12:30 | S9: 1pm | T9: 1:30 | U9: 2pm | V9: 2:30 | W9: 3pm | X9: 3:30 | Y9: 4pm | Z9: 4:30 | AA9: 5pm | AB9: 5:30 | AC9: 6pm | AD9: 6:30 | AF9: =SysArrayAzimuth & " " & SysArraySlope & "°" -> S 22° | AG9: South at Latitude-Tilt
B10: December | C10: 0 | D10: 0 | E10: 0 | F10: 0 | G10: 1 | H10: 1 | I10: 1 | J10: 1 | K10: 1 | L10: 1 | M10: 1 | N10: 1 | O10: 1 | P10: 1 | Q10: 1 | R10: 1 | S10: 1 | T10: 1 | U10: 1 | V10: 1 | W10: 1 | X10: 1 | Y10: 1 | Z10: 1 | AA10: 0 | AB10: 0 | AC10: 0 | AD10: 0 | AE10: Dec | AF10: =ProdPvt!BV316 -> 0.99845 | AG10: =ProdPvt!AE204 -> 1 | AV10: °
B11: January | C11: 0 | D11: 0 | E11: 0 | F11: 0 | G11: 0 | H11: 1 | I11: 1 | J11: 1 | K11: 1 | L11: 1 | M11: 1 | N11: 1 | O11: 1 | P11: 1 | Q11: 1 | R11: 1 | S11: 1 | T11: 1 | U11: 1 | V11: 1 | W11: 1 | X11: 1 | Y11: 1 | Z11: 1 | AA11: 0 | AB11: 0 | AC11: 0 | AD11: 0 | AE11: Jan | AF11: =ProdPvt!BV317 -> 0.99943 | AG11: =ProdPvt!AE205 -> 1
B12: November | C12: 0 | D12: 0 | E12: 0 | F12: 0 | G12: 1 | H12: 1 | I12: 1 | J12: 1 | K12: 1 | L12: 1 | M12: 1 | N12: 1 | O12: 1 | P12: 1 | Q12: 1 | R12: 1 | S12: 1 | T12: 1 | U12: 1 | V12: 1 | W12: 1 | X12: 1 | Y12: 1 | Z12: 1 | AA12: 0 | AB12: 0 | AC12: 0 | AD12: 0 | AE12: Nov | AF12: =ProdPvt!BV318 -> 0.99784 | AG12: =ProdPvt!AE206 -> 1
B13: February | C13: 0 | D13: 0 | E13: 0 | F13: 0 | G13: 1 | H13: 1 | I13: 1 | J13: 1 | K13: 1 | L13: 1 | M13: 1 | N13: 1 | O13: 1 | P13: 1 | Q13: 1 | R13: 1 | S13: 1 | T13: 1 | U13: 1 | V13: 1 | W13: 1 | X13: 1 | Y13: 1 | Z13: 1 | AA13: 0 | AB13: 0 | AC13: 0 | AD13: 0 | AE13: Feb | AF13: =ProdPvt!BV319 -> 0.99988 | AG13: =ProdPvt!AE207 -> 1
B14: October | C14: 0 | D14: 0 | E14: 0 | F14: 0 | G14: 1 | H14: 1 | I14: 1 | J14: 1 | K14: 1 | L14: 1 | M14: 1 | N14: 1 | O14: 1 | P14: 1 | Q14: 1 | R14: 1 | S14: 1 | T14: 1 | U14: 1 | V14: 1 | W14: 1 | X14: 1 | Y14: 1 | Z14: 1 | AA14: 0 | AB14: 0 | AC14: 0 | AD14: 0 | AE14: Oct | AF14: =ProdPvt!BV320 -> 0.99936 | AG14: =ProdPvt!AE208 -> 1
B15: March | C15: 0 | D15: 0 | E15: 0 | F15: 1 | G15: 1 | H15: 1 | I15: 1 | J15: 1 | K15: 1 | L15: 1 | M15: 1 | N15: 1 | O15: 1 | P15: 1 | Q15: 1 | R15: 1 | S15: 1 | T15: 1 | U15: 1 | V15: 1 | W15: 1 | X15: 1 | Y15: 1 | Z15: 1 | AA15: 1 | AB15: 1 | AC15: 0 | AD15: 0 | AE15: Mar | AF15: =ProdPvt!BV321 -> 0.99814 | AG15: =ProdPvt!AE209 -> 1
B16: September | C16: 0 | D16: 0 | E16: 0 | F16: 1 | G16: 1 | H16: 1 | I16: 1 | J16: 1 | K16: 1 | L16: 1 | M16: 1 | N16: 1 | O16: 1 | P16: 1 | Q16: 1 | R16: 1 | S16: 1 | T16: 1 | U16: 1 | V16: 1 | W16: 1 | X16: 1 | Y16: 1 | Z16: 1 | AA16: 1 | AB16: 1 | AC16: 0 | AD16: 0 | AE16: Sept | AF16: =ProdPvt!BV322 -> 0.99699 | AG16: =ProdPvt!AE210 -> 1
B17: April | C17: 0 | D17: 0 | E17: 0 | F17: 1 | G17: 1 | H17: 1 | I17: 1 | J17: 1 | K17: 1 | L17: 1 | M17: 1 | N17: 1 | O17: 1 | P17: 1 | Q17: 1 | R17: 1 | S17: 1 | T17: 1 | U17: 1 | V17: 1 | W17: 1 | X17: 1 | Y17: 1 | Z17: 1 | AA17: 1 | AB17: 1 | AC17: 0 | AD17: 0 | AE17: Apr | AF17: =ProdPvt!BV323 -> 0.99732 | AG17: =ProdPvt!AE211 -> 1
B18: August | C18: 0 | D18: 0 | E18: 1 | F18: 1 | G18: 1 | H18: 1 | I18: 1 | J18: 1 | K18: 1 | L18: 1 | M18: 1 | N18: 1 | O18: 1 | P18: 1 | Q18: 1 | R18: 1 | S18: 1 | T18: 1 | U18: 1 | V18: 1 | W18: 1 | X18: 1 | Y18: 1 | Z18: 1 | AA18: 1 | AB18: 1 | AC18: 0 | AD18: 0 | AE18: Aug | AF18: =ProdPvt!BV324 -> 0.99971 | AG18: =ProdPvt!AE212 -> 1
B19: May | C19: 0 | D19: 1 | E19: 1 | F19: 1 | G19: 1 | H19: 1 | I19: 1 | J19: 1 | K19: 1 | L19: 1 | M19: 1 | N19: 1 | O19: 1 | P19: 1 | Q19: 1 | R19: 1 | S19: 1 | T19: 1 | U19: 1 | V19: 1 | W19: 1 | X19: 1 | Y19: 1 | Z19: 1 | AA19: 1 | AB19: 1 | AC19: 0 | AD19: 0 | AE19: May | AF19: =ProdPvt!BV325 -> 0.9996 | AG19: =ProdPvt!AE213 -> 1
B20: July | C20: 0 | D20: 0 | E20: 1 | F20: 1 | G20: 1 | H20: 1 | I20: 1 | J20: 1 | K20: 1 | L20: 1 | M20: 1 | N20: 1 | O20: 1 | P20: 1 | Q20: 1 | R20: 1 | S20: 1 | T20: 1 | U20: 1 | V20: 1 | W20: 1 | X20: 1 | Y20: 1 | Z20: 1 | AA20: 1 | AB20: 1 | AC20: 0 | AD20: 0 | AE20: Jul | AF20: =ProdPvt!BV326 -> 1.003515 | AG20: =ProdPvt!AE214 -> 1
B21: June | C21: 0 | D21: 1 | E21: 1 | F21: 1 | G21: 1 | H21: 1 | I21: 1 | J21: 1 | K21: 1 | L21: 1 | M21: 1 | N21: 1 | O21: 1 | P21: 1 | Q21: 1 | R21: 1 | S21: 1 | T21: 1 | U21: 1 | V21: 1 | W21: 1 | X21: 1 | Y21: 1 | Z21: 1 | AA21: 1 | AB21: 1 | AC21: 1 | AD21: 0 | AE21: Jun | AF21: =ProdPvt!BV327 -> 0.99932 | AG21: =ProdPvt!AE215 -> 1
B23: Skyline Info (Optional): | T23: % of Max. Annual Production:
C24: Skyline Name | T24: 1 | V24: South Facing, Latitude-Tilt, No Shade | AC24: =AVERAGE(AG10:AG21) -> 1 | AF24: South, Latitude, With Shade
C25: Date of Creation | T25: =AVERAGE(AG10:AG21) -> 1 | V25: S Latitude With Shade
C26: Time of Creation | T26: =AT26 -> 0.9993329167 | V26: =SysArrayAzimuth & " " & SysArraySlope & "° No Shade" -> S 22° No Shade | AC26: =AT27 -> 0.9991295833 | AF26: =" " & SysArrayAzimuth & ", " & SysArraySlope & "°, With Shade" -> S, 22°, With Shade | AT26: =AVERAGE(ProdPvt!BV284:BV295) -> 0.9993329167 | AU26: Real System, No Sh.
C27: Latitude | T27: =AT27 -> 0.9991295833 | V27: =SysArrayAzimuth & " " & SysArraySlope & "° With Shade" -> S 22° With Shade | AT27: =AVERAGE(ProdPvt!BV316:BV327) -> 0.9991295833 | AU27: EffShadeAnnualAvg
C28: Magnetic Declination | T28: =AT28 -> 0.9997491667 | V28: =SysArrayAzimuth & " " & SysArraySlope & "° With Shade--SUMMER (May - Oct)" -> S 22° With Shade--SUMMER (May - Oct) | AT28: =AVERAGE(ProdPvt!BV320,ProdPvt!BV322,ProdPvt!BV324:BV327) -> 0.9997491667 | AU28: Summer Shade
B31: Storage Spot 1 | D31: ?
B32: December | C32: 0 | D32: 0 | E32: 0 | F32: 0 | G32: 1 | H32: 1 | I32: 1 | J32: 1 | K32: 1 | L32: 1 | M32: 1 | N32: 1 | O32: 1 | P32: 1 | Q32: 1 | R32: 1 | S32: 1 | T32: 1 | U32: 1 | V32: 1 | W32: 1 | X32: 1 | Y32: 1 | Z32: 1 | AA32: 0 | AB32: 0 | AC32: 0 | AD32: 0 | AE32: Dec
B33: January | C33: 0 | D33: 0 | E33: 0 | F33: 0 | G33: 0 | H33: 1 | I33: 1 | J33: 1 | K33: 1 | L33: 1 | M33: 1 | N33: 1 | O33: 1 | P33: 1 | Q33: 1 | R33: 1 | S33: 1 | T33: 1 | U33: 1 | V33: 1 | W33: 1 | X33: 1 | Y33: 1 | Z33: 1 | AA33: 0 | AB33: 0 | AC33: 0 | AD33: 0 | AE33: Jan
B34: November | C34: 0 | D34: 0 | E34: 0 | F34: 0 | G34: 1 | H34: 1 | I34: 1 | J34: 1 | K34: 1 | L34: 1 | M34: 1 | N34: 1 | O34: 1 | P34: 1 | Q34: 1 | R34: 1 | S34: 1 | T34: 1 | U34: 1 | V34: 1 | W34: 1 | X34: 1 | Y34: 1 | Z34: 1 | AA34: 0 | AB34: 0 | AC34: 0 | AD34: 0 | AE34: Nov
B35: February | C35: 0 | D35: 0 | E35: 0 | F35: 0 | G35: 1 | H35: 1 | I35: 1 | J35: 1 | K35: 1 | L35: 1 | M35: 1 | N35: 1 | O35: 1 | P35: 1 | Q35: 1 | R35: 1 | S35: 1 | T35: 1 | U35: 1 | V35: 1 | W35: 1 | X35: 1 | Y35: 1 | Z35: 1 | AA35: 0 | AB35: 0 | AC35: 0 | AD35: 0 | AE35: Feb
B36: October | C36: 0 | D36: 0 | E36: 0 | F36: 0 | G36: 1 | H36: 1 | I36: 1 | J36: 1 | K36: 1 | L36: 1 | M36: 1 | N36: 1 | O36: 1 | P36: 1 | Q36: 1 | R36: 1 | S36: 1 | T36: 1 | U36: 1 | V36: 1 | W36: 1 | X36: 1 | Y36: 1 | Z36: 1 | AA36: 0 | AB36: 0 | AC36: 0 | AD36: 0 | AE36: Oct
B37: March | C37: 0 | D37: 0 | E37: 0 | F37: 1 | G37: 1 | H37: 1 | I37: 1 | J37: 1 | K37: 1 | L37: 1 | M37: 1 | N37: 1 | O37: 1 | P37: 1 | Q37: 1 | R37: 1 | S37: 1 | T37: 1 | U37: 1 | V37: 1 | W37: 1 | X37: 1 | Y37: 1 | Z37: 1 | AA37: 1 | AB37: 1 | AC37: 0 | AD37: 0 | AE37: Mar
B38: September | C38: 0 | D38: 0 | E38: 0 | F38: 1 | G38: 1 | H38: 1 | I38: 1 | J38: 1 | K38: 1 | L38: 1 | M38: 1 | N38: 1 | O38: 1 | P38: 1 | Q38: 1 | R38: 1 | S38: 1 | T38: 1 | U38: 1 | V38: 1 | W38: 1 | X38: 1 | Y38: 1 | Z38: 1 | AA38: 1 | AB38: 1 | AC38: 0 | AD38: 0 | AE38: Sept
B39: April | C39: 0 | D39: 0 | E39: 0 | F39: 1 | G39: 1 | H39: 1 | I39: 1 | J39: 1 | K39: 1 | L39: 1 | M39: 1 | N39: 1 | O39: 1 | P39: 1 | Q39: 1 | R39: 1 | S39: 1 | T39: 1 | U39: 1 | V39: 1 | W39: 1 | X39: 1 | Y39: 1 | Z39: 1 | AA39: 1 | AB39: 1 | AC39: 0 | AD39: 0 | AE39: Apr
B40: August | C40: 0 | D40: 0 | E40: 1 | F40: 1 | G40: 1 | H40: 1 | I40: 1 | J40: 1 | K40: 1 | L40: 1 | M40: 1 | N40: 1 | O40: 1 | P40: 1 | Q40: 1 | R40: 1 | S40: 1 | T40: 1 | U40: 1 | V40: 1 | W40: 1 | X40: 1 | Y40: 1 | Z40: 1 | AA40: 1 | AB40: 1 | AC40: 0 | AD40: 0 | AE40: Aug
B41: May | C41: 0 | D41: 1 | E41: 1 | F41: 1 | G41: 1 | H41: 1 | I41: 1 | J41: 1 | K41: 1 | L41: 1 | M41: 1 | N41: 1 | O41: 1 | P41: 1 | Q41: 1 | R41: 1 | S41: 1 | T41: 1 | U41: 1 | V41: 1 | W41: 1 | X41: 1 | Y41: 1 | Z41: 1 | AA41: 1 | AB41: 1 | AC41: 0 | AD41: 0 | AE41: May
B42: July | C42: 0 | D42: 0 | E42: 1 | F42: 1 | G42: 1 | H42: 1 | I42: 1 | J42: 1 | K42: 1 | L42: 1 | M42: 1 | N42: 1 | O42: 1 | P42: 1 | Q42: 1 | R42: 1 | S42: 1 | T42: 1 | U42: 1 | V42: 1 | W42: 1 | X42: 1 | Y42: 1 | Z42: 1 | AA42: 1 | AB42: 1 | AC42: 0 | AD42: 0 | AE42: Jul
B43: June | C43: 0 | D43: 1 | E43: 1 | F43: 1 | G43: 1 | H43: 1 | I43: 1 | J43: 1 | K43: 1 | L43: 1 | M43: 1 | N43: 1 | O43: 1 | P43: 1 | Q43: 1 | R43: 1 | S43: 1 | T43: 1 | U43: 1 | V43: 1 | W43: 1 | X43: 1 | Y43: 1 | Z43: 1 | AA43: 1 | AB43: 1 | AC43: 1 | AD43: 0 | AE43: Jun
C44: Skyline Name
C45: Date of Creation
C46: Time of Creation
C47: Latitude
C48: Magnetic Declination
B50: Storage Spot 2
B51: December | C51: 0 | D51: 0 | E51: 0 | F51: 0 | G51: 1 | H51: 1 | I51: 1 | J51: 1 | K51: 1 | L51: 1 | M51: 1 | N51: 1 | O51: 1 | P51: 1 | Q51: 1 | R51: 1 | S51: 1 | T51: 1 | U51: 1 | V51: 1 | W51: 1 | X51: 1 | Y51: 1 | Z51: 1 | AA51: 0 | AB51: 0 | AC51: 0 | AD51: 0 | AE51: Dec
B52: January | C52: 0 | D52: 0 | E52: 0 | F52: 0 | G52: 0 | H52: 1 | I52: 1 | J52: 1 | K52: 1 | L52: 1 | M52: 1 | N52: 1 | O52: 1 | P52: 1 | Q52: 1 | R52: 1 | S52: 1 | T52: 1 | U52: 1 | V52: 1 | W52: 1 | X52: 1 | Y52: 1 | Z52: 1 | AA52: 0 | AB52: 0 | AC52: 0 | AD52: 0 | AE52: Jan
B53: November | C53: 0 | D53: 0 | E53: 0 | F53: 0 | G53: 1 | H53: 1 | I53: 1 | J53: 1 | K53: 1 | L53: 1 | M53: 1 | N53: 1 | O53: 1 | P53: 1 | Q53: 1 | R53: 1 | S53: 1 | T53: 1 | U53: 1 | V53: 1 | W53: 1 | X53: 1 | Y53: 1 | Z53: 1 | AA53: 0 | AB53: 0 | AC53: 0 | AD53: 0 | AE53: Nov
B54: February | C54: 0 | D54: 0 | E54: 0 | F54: 0 | G54: 1 | H54: 1 | I54: 1 | J54: 1 | K54: 1 | L54: 1 | M54: 1 | N54: 1 | O54: 1 | P54: 1 | Q54: 1 | R54: 1 | S54: 1 | T54: 1 | U54: 1 | V54: 1 | W54: 1 | X54: 1 | Y54: 1 | Z54: 1 | AA54: 0 | AB54: 0 | AC54: 0 | AD54: 0 | AE54: Feb
B55: October | C55: 0 | D55: 0 | E55: 0 | F55: 0 | G55: 1 | H55: 1 | I55: 1 | J55: 1 | K55: 1 | L55: 1 | M55: 1 | N55: 1 | O55: 1 | P55: 1 | Q55: 1 | R55: 1 | S55: 1 | T55: 1 | U55: 1 | V55: 1 | W55: 1 | X55: 1 | Y55: 1 | Z55: 1 | AA55: 0 | AB55: 0 | AC55: 0 | AD55: 0 | AE55: Oct
B56: March | C56: 0 | D56: 0 | E56: 0 | F56: 1 | G56: 1 | H56: 1 | I56: 1 | J56: 1 | K56: 1 | L56: 1 | M56: 1 | N56: 1 | O56: 1 | P56: 1 | Q56: 1 | R56: 1 | S56: 1 | T56: 1 | U56: 1 | V56: 1 | W56: 1 | X56: 1 | Y56: 1 | Z56: 1 | AA56: 1 | AB56: 1 | AC56: 0 | AD56: 0 | AE56: Mar
B57: September | C57: 0 | D57: 0 | E57: 0 | F57: 1 | G57: 1 | H57: 1 | I57: 1 | J57: 1 | K57: 1 | L57: 1 | M57: 1 | N57: 1 | O57: 1 | P57: 1 | Q57: 1 | R57: 1 | S57: 1 | T57: 1 | U57: 1 | V57: 1 | W57: 1 | X57: 1 | Y57: 1 | Z57: 1 | AA57: 1 | AB57: 1 | AC57: 0 | AD57: 0 | AE57: Sept
B58: April | C58: 0 | D58: 0 | E58: 0 | F58: 1 | G58: 1 | H58: 1 | I58: 1 | J58: 1 | K58: 1 | L58: 1 | M58: 1 | N58: 1 | O58: 1 | P58: 1 | Q58: 1 | R58: 1 | S58: 1 | T58: 1 | U58: 1 | V58: 1 | W58: 1 | X58: 1 | Y58: 1 | Z58: 1 | AA58: 1 | AB58: 1 | AC58: 0 | AD58: 0 | AE58: Apr
B59: August | C59: 0 | D59: 0 | E59: 1 | F59: 1 | G59: 1 | H59: 1 | I59: 1 | J59: 1 | K59: 1 | L59: 1 | M59: 1 | N59: 1 | O59: 1 | P59: 1 | Q59: 1 | R59: 1 | S59: 1 | T59: 1 | U59: 1 | V59: 1 | W59: 1 | X59: 1 | Y59: 1 | Z59: 1 | AA59: 1 | AB59: 1 | AC59: 0 | AD59: 0 | AE59: Aug
B60: May | C60: 0 | D60: 1 | E60: 1 | F60: 1 | G60: 1 | H60: 1 | I60: 1 | J60: 1 | K60: 1 | L60: 1 | M60: 1 | N60: 1 | O60: 1 | P60: 1 | Q60: 1 | R60: 1 | S60: 1 | T60: 1 | U60: 1 | V60: 1 | W60: 1 | X60: 1 | Y60: 1 | Z60: 1 | AA60: 1 | AB60: 1 | AC60: 0 | AD60: 0 | AE60: May
B61: July | C61: 0 | D61: 0 | E61: 1 | F61: 1 | G61: 1 | H61: 1 | I61: 1 | J61: 1 | K61: 1 | L61: 1 | M61: 1 | N61: 1 | O61: 1 | P61: 1 | Q61: 1 | R61: 1 | S61: 1 | T61: 1 | U61: 1 | V61: 1 | W61: 1 | X61: 1 | Y61: 1 | Z61: 1 | AA61: 1 | AB61: 1 | AC61: 0 | AD61: 0 | AE61: Jul
B62: June | C62: 0 | D62: 1 | E62: 1 | F62: 1 | G62: 1 | H62: 1 | I62: 1 | J62: 1 | K62: 1 | L62: 1 | M62: 1 | N62: 1 | O62: 1 | P62: 1 | Q62: 1 | R62: 1 | S62: 1 | T62: 1 | U62: 1 | V62: 1 | W62: 1 | X62: 1 | Y62: 1 | Z62: 1 | AA62: 1 | AB62: 1 | AC62: 1 | AD62: 0 | AE62: Jun
C63: Skyline Name
C64: Date of Creation
C65: Time of Creation
C66: Latitude
C67: Magnetic Declination
B69: Storage Spot 3
B70: December | C70: 0 | D70: 0 | E70: 0 | F70: 0 | G70: 1 | H70: 1 | I70: 1 | J70: 1 | K70: 1 | L70: 1 | M70: 1 | N70: 1 | O70: 1 | P70: 1 | Q70: 1 | R70: 1 | S70: 1 | T70: 1 | U70: 1 | V70: 1 | W70: 1 | X70: 1 | Y70: 1 | Z70: 1 | AA70: 0 | AB70: 0 | AC70: 0 | AD70: 0 | AE70: Dec
B71: January | C71: 0 | D71: 0 | E71: 0 | F71: 0 | G71: 0 | H71: 1 | I71: 1 | J71: 1 | K71: 1 | L71: 1 | M71: 1 | N71: 1 | O71: 1 | P71: 1 | Q71: 1 | R71: 1 | S71: 1 | T71: 1 | U71: 1 | V71: 1 | W71: 1 | X71: 1 | Y71: 1 | Z71: 1 | AA71: 0 | AB71: 0 | AC71: 0 | AD71: 0 | AE71: Jan
B72: November | C72: 0 | D72: 0 | E72: 0 | F72: 0 | G72: 1 | H72: 1 | I72: 1 | J72: 1 | K72: 1 | L72: 1 | M72: 1 | N72: 1 | O72: 1 | P72: 1 | Q72: 1 | R72: 1 | S72: 1 | T72: 1 | U72: 1 | V72: 1 | W72: 1 | X72: 1 | Y72: 1 | Z72: 1 | AA72: 0 | AB72: 0 | AC72: 0 | AD72: 0 | AE72: Nov
B73: February | C73: 0 | D73: 0 | E73: 0 | F73: 0 | G73: 1 | H73: 1 | I73: 1 | J73: 1 | K73: 1 | L73: 1 | M73: 1 | N73: 1 | O73: 1 | P73: 1 | Q73: 1 | R73: 1 | S73: 1 | T73: 1 | U73: 1 | V73: 1 | W73: 1 | X73: 1 | Y73: 1 | Z73: 1 | AA73: 0 | AB73: 0 | AC73: 0 | AD73: 0 | AE73: Feb
B74: October | C74: 0 | D74: 0 | E74: 0 | F74: 0 | G74: 1 | H74: 1 | I74: 1 | J74: 1 | K74: 1 | L74: 1 | M74: 1 | N74: 1 | O74: 1 | P74: 1 | Q74: 1 | R74: 1 | S74: 1 | T74: 1 | U74: 1 | V74: 1 | W74: 1 | X74: 1 | Y74: 1 | Z74: 1 | AA74: 0 | AB74: 0 | AC74: 0 | AD74: 0 | AE74: Oct
B75: March | C75: 0 | D75: 0 | E75: 0 | F75: 1 | G75: 1 | H75: 1 | I75: 1 | J75: 1 | K75: 1 | L75: 1 | M75: 1 | N75: 1 | O75: 1 | P75: 1 | Q75: 1 | R75: 1 | S75: 1 | T75: 1 | U75: 1 | V75: 1 | W75: 1 | X75: 1 | Y75: 1 | Z75: 1 | AA75: 1 | AB75: 1 | AC75: 0 | AD75: 0 | AE75: Mar
B76: September | C76: 0 | D76: 0 | E76: 0 | F76: 1 | G76: 1 | H76: 1 | I76: 1 | J76: 1 | K76: 1 | L76: 1 | M76: 1 | N76: 1 | O76: 1 | P76: 1 | Q76: 1 | R76: 1 | S76: 1 | T76: 1 | U76: 1 | V76: 1 | W76: 1 | X76: 1 | Y76: 1 | Z76: 1 | AA76: 1 | AB76: 1 | AC76: 0 | AD76: 0 | AE76: Sept
B77: April | C77: 0 | D77: 0 | E77: 0 | F77: 1 | G77: 1 | H77: 1 | I77: 1 | J77: 1 | K77: 1 | L77: 1 | M77: 1 | N77: 1 | O77: 1 | P77: 1 | Q77: 1 | R77: 1 | S77: 1 | T77: 1 | U77: 1 | V77: 1 | W77: 1 | X77: 1 | Y77: 1 | Z77: 1 | AA77: 1 | AB77: 1 | AC77: 0 | AD77: 0 | AE77: Apr
B78: August | C78: 0 | D78: 0 | E78: 1 | F78: 1 | G78: 1 | H78: 1 | I78: 1 | J78: 1 | K78: 1 | L78: 1 | M78: 1 | N78: 1 | O78: 1 | P78: 1 | Q78: 1 | R78: 1 | S78: 1 | T78: 1 | U78: 1 | V78: 1 | W78: 1 | X78: 1 | Y78: 1 | Z78: 1 | AA78: 1 | AB78: 1 | AC78: 0 | AD78: 0 | AE78: Aug
B79: May | C79: 0 | D79: 1 | E79: 1 | F79: 1 | G79: 1 | H79: 1 | I79: 1 | J79: 1 | K79: 1 | L79: 1 | M79: 1 | N79: 1 | O79: 1 | P79: 1 | Q79: 1 | R79: 1 | S79: 1 | T79: 1 | U79: 1 | V79: 1 | W79: 1 | X79: 1 | Y79: 1 | Z79: 1 | AA79: 1 | AB79: 1 | AC79: 0 | AD79: 0 | AE79: May
B80: July | C80: 0 | D80: 0 | E80: 1 | F80: 1 | G80: 1 | H80: 1 | I80: 1 | J80: 1 | K80: 1 | L80: 1 | M80: 1 | N80: 1 | O80: 1 | P80: 1 | Q80: 1 | R80: 1 | S80: 1 | T80: 1 | U80: 1 | V80: 1 | W80: 1 | X80: 1 | Y80: 1 | Z80: 1 | AA80: 1 | AB80: 1 | AC80: 0 | AD80: 0 | AE80: Jul
B81: June | C81: 0 | D81: 1 | E81: 1 | F81: 1 | G81: 1 | H81: 1 | I81: 1 | J81: 1 | K81: 1 | L81: 1 | M81: 1 | N81: 1 | O81: 1 | P81: 1 | Q81: 1 | R81: 1 | S81: 1 | T81: 1 | U81: 1 | V81: 1 | W81: 1 | X81: 1 | Y81: 1 | Z81: 1 | AA81: 1 | AB81: 1 | AC81: 1 | AD81: 0 | AE81: Jun
C82: Skyline Name
C83: Date of Creation
C84: Time of Creation
C85: Latitude
C86: Magnetic Declination
B88: Storage Spot 4
B89: December | C89: 0 | D89: 0 | E89: 0 | F89: 0 | G89: 1 | H89: 1 | I89: 1 | J89: 1 | K89: 1 | L89: 1 | M89: 1 | N89: 1 | O89: 1 | P89: 1 | Q89: 1 | R89: 1 | S89: 1 | T89: 1 | U89: 1 | V89: 1 | W89: 1 | X89: 1 | Y89: 1 | Z89: 1 | AA89: 0 | AB89: 0 | AC89: 0 | AD89: 0 | AE89: Dec
B90: January | C90: 0 | D90: 0 | E90: 0 | F90: 0 | G90: 0 | H90: 1 | I90: 1 | J90: 1 | K90: 1 | L90: 1 | M90: 1 | N90: 1 | O90: 1 | P90: 1 | Q90: 1 | R90: 1 | S90: 1 | T90: 1 | U90: 1 | V90: 1 | W90: 1 | X90: 1 | Y90: 1 | Z90: 1 | AA90: 0 | AB90: 0 | AC90: 0 | AD90: 0 | AE90: Jan
B91: November | C91: 0 | D91: 0 | E91: 0 | F91: 0 | G91: 1 | H91: 1 | I91: 1 | J91: 1 | K91: 1 | L91: 1 | M91: 1 | N91: 1 | O91: 1 | P91: 1 | Q91: 1 | R91: 1 | S91: 1 | T91: 1 | U91: 1 | V91: 1 | W91: 1 | X91: 1 | Y91: 1 | Z91: 1 | AA91: 0 | AB91: 0 | AC91: 0 | AD91: 0 | AE91: Nov
B92: February | C92: 0 | D92: 0 | E92: 0 | F92: 0 | G92: 1 | H92: 1 | I92: 1 | J92: 1 | K92: 1 | L92: 1 | M92: 1 | N92: 1 | O92: 1 | P92: 1 | Q92: 1 | R92: 1 | S92: 1 | T92: 1 | U92: 1 | V92: 1 | W92: 1 | X92: 1 | Y92: 1 | Z92: 1 | AA92: 0 | AB92: 0 | AC92: 0 | AD92: 0 | AE92: Feb
B93: October | C93: 0 | D93: 0 | E93: 0 | F93: 0 | G93: 1 | H93: 1 | I93: 1 | J93: 1 | K93: 1 | L93: 1 | M93: 1 | N93: 1 | O93: 1 | P93: 1 | Q93: 1 | R93: 1 | S93: 1 | T93: 1 | U93: 1 | V93: 1 | W93: 1 | X93: 1 | Y93: 1 | Z93: 1 | AA93: 0 | AB93: 0 | AC93: 0 | AD93: 0 | AE93: Oct
B94: March | C94: 0 | D94: 0 | E94: 0 | F94: 1 | G94: 1 | H94: 1 | I94: 1 | J94: 1 | K94: 1 | L94: 1 | M94: 1 | N94: 1 | O94: 1 | P94: 1 | Q94: 1 | R94: 1 | S94: 1 | T94: 1 | U94: 1 | V94: 1 | W94: 1 | X94: 1 | Y94: 1 | Z94: 1 | AA94: 1 | AB94: 1 | AC94: 0 | AD94: 0 | AE94: Mar
B95: September | C95: 0 | D95: 0 | E95: 0 | F95: 1 | G95: 1 | H95: 1 | I95: 1 | J95: 1 | K95: 1 | L95: 1 | M95: 1 | N95: 1 | O95: 1 | P95: 1 | Q95: 1 | R95: 1 | S95: 1 | T95: 1 | U95: 1 | V95: 1 | W95: 1 | X95: 1 | Y95: 1 | Z95: 1 | AA95: 1 | AB95: 1 | AC95: 0 | AD95: 0 | AE95: Sept
B96: April | C96: 0 | D96: 0 | E96: 0 | F96: 1 | G96: 1 | H96: 1 | I96: 1 | J96: 1 | K96: 1 | L96: 1 | M96: 1 | N96: 1 | O96: 1 | P96: 1 | Q96: 1 | R96: 1 | S96: 1 | T96: 1 | U96: 1 | V96: 1 | W96: 1 | X96: 1 | Y96: 1 | Z96: 1 | AA96: 1 | AB96: 1 | AC96: 0 | AD96: 0 | AE96: Apr
B97: August | C97: 0 | D97: 0 | E97: 1 | F97: 1 | G97: 1 | H97: 1 | I97: 1 | J97: 1 | K97: 1 | L97: 1 | M97: 1 | N97: 1 | O97: 1 | P97: 1 | Q97: 1 | R97: 1 | S97: 1 | T97: 1 | U97: 1 | V97: 1 | W97: 1 | X97: 1 | Y97: 1 | Z97: 1 | AA97: 1 | AB97: 1 | AC97: 0 | AD97: 0 | AE97: Aug
B98: May | C98: 0 | D98: 1 | E98: 1 | F98: 1 | G98: 1 | H98: 1 | I98: 1 | J98: 1 | K98: 1 | L98: 1 | M98: 1 | N98: 1 | O98: 1 | P98: 1 | Q98: 1 | R98: 1 | S98: 1 | T98: 1 | U98: 1 | V98: 1 | W98: 1 | X98: 1 | Y98: 1 | Z98: 1 | AA98: 1 | AB98: 1 | AC98: 0 | AD98: 0 | AE98: May
B99: July | C99: 0 | D99: 0 | E99: 1 | F99: 1 | G99: 1 | H99: 1 | I99: 1 | J99: 1 | K99: 1 | L99: 1 | M99: 1 | N99: 1 | O99: 1 | P99: 1 | Q99: 1 | R99: 1 | S99: 1 | T99: 1 | U99: 1 | V99: 1 | W99: 1 | X99: 1 | Y99: 1 | Z99: 1 | AA99: 1 | AB99: 1 | AC99: 0 | AD99: 0 | AE99: Jul
B100: June | C100: 0 | D100: 1 | E100: 1 | F100: 1 | G100: 1 | H100: 1 | I100: 1 | J100: 1 | K100: 1 | L100: 1 | M100: 1 | N100: 1 | O100: 1 | P100: 1 | Q100: 1 | R100: 1 | S100: 1 | T100: 1 | U100: 1 | V100: 1 | W100: 1 | X100: 1 | Y100: 1 | Z100: 1 | AA100: 1 | AB100: 1 | AC100: 1 | AD100: 0 | AE100: Jun
C101: Skyline Name
C102: Date of Creation
C103: Time of Creation
C104: Latitude
C105: Magnetic Declination
A113: StartPrivate
B115: Reset Shading
B116: Dec | C116: 0 | D116: 0 | E116: 0 | F116: 0 | G116: 1 | H116: 1 | I116: 1 | J116: 1 | K116: 1 | L116: 1 | M116: 1 | N116: 1 | O116: 1 | P116: 1 | Q116: 1 | R116: 1 | S116: 1 | T116: 1 | U116: 1 | V116: 1 | W116: 1 | X116: 1 | Y116: 1 | Z116: 1 | AA116: 0 | AB116: 0 | AC116: 0 | AD116: 0 | AE116: Dec
B117: Jan | C117: 0 | D117: 0 | E117: 0 | F117: 0 | G117: 0 | H117: 1 | I117: 1 | J117: 1 | K117: 1 | L117: 1 | M117: 1 | N117: 1 | O117: 1 | P117: 1 | Q117: 1 | R117: 1 | S117: 1 | T117: 1 | U117: 1 | V117: 1 | W117: 1 | X117: 1 | Y117: 1 | Z117: 1 | AA117: 0 | AB117: 0 | AC117: 0 | AD117: 0 | AE117: Jan
B118: Nov | C118: 0 | D118: 0 | E118: 0 | F118: 0 | G118: 1 | H118: 1 | I118: 1 | J118: 1 | K118: 1 | L118: 1 | M118: 1 | N118: 1 | O118: 1 | P118: 1 | Q118: 1 | R118: 1 | S118: 1 | T118: 1 | U118: 1 | V118: 1 | W118: 1 | X118: 1 | Y118: 1 | Z118: 1 | AA118: 0 | AB118: 0 | AC118: 0 | AD118: 0 | AE118: Nov
B119: Feb | C119: 0 | D119: 0 | E119: 0 | F119: 0 | G119: 1 | H119: 1 | I119: 1 | J119: 1 | K119: 1 | L119: 1 | M119: 1 | N119: 1 | O119: 1 | P119: 1 | Q119: 1 | R119: 1 | S119: 1 | T119: 1 | U119: 1 | V119: 1 | W119: 1 | X119: 1 | Y119: 1 | Z119: 1 | AA119: 0 | AB119: 0 | AC119: 0 | AD119: 0 | AE119: Feb
B120: Oct | C120: 0 | D120: 0 | E120: 0 | F120: 0 | G120: 1 | H120: 1 | I120: 1 | J120: 1 | K120: 1 | L120: 1 | M120: 1 | N120: 1 | O120: 1 | P120: 1 | Q120: 1 | R120: 1 | S120: 1 | T120: 1 | U120: 1 | V120: 1 | W120: 1 | X120: 1 | Y120: 1 | Z120: 1 | AA120: 0 | AB120: 0 | AC120: 0 | AD120: 0 | AE120: Oct
B121: Mar | C121: 0 | D121: 0 | E121: 0 | F121: 1 | G121: 1 | H121: 1 | I121: 1 | J121: 1 | K121: 1 | L121: 1 | M121: 1 | N121: 1 | O121: 1 | P121: 1 | Q121: 1 | R121: 1 | S121: 1 | T121: 1 | U121: 1 | V121: 1 | W121: 1 | X121: 1 | Y121: 1 | Z121: 1 | AA121: 1 | AB121: 1 | AC121: 0 | AD121: 0 | AE121: Mar
B122: Sept | C122: 0 | D122: 0 | E122: 0 | F122: 1 | G122: 1 | H122: 1 | I122: 1 | J122: 1 | K122: 1 | L122: 1 | M122: 1 | N122: 1 | O122: 1 | P122: 1 | Q122: 1 | R122: 1 | S122: 1 | T122: 1 | U122: 1 | V122: 1 | W122: 1 | X122: 1 | Y122: 1 | Z122: 1 | AA122: 1 | AB122: 1 | AC122: 0 | AD122: 0 | AE122: Sept
B123: Apr | C123: 0 | D123: 0 | E123: 0 | F123: 1 | G123: 1 | H123: 1 | I123: 1 | J123: 1 | K123: 1 | L123: 1 | M123: 1 | N123: 1 | O123: 1 | P123: 1 | Q123: 1 | R123: 1 | S123: 1 | T123: 1 | U123: 1 | V123: 1 | W123: 1 | X123: 1 | Y123: 1 | Z123: 1 | AA123: 1 | AB123: 1 | AC123: 0 | AD123: 0 | AE123: Apr
B124: Aug | C124: 0 | D124: 0 | E124: 1 | F124: 1 | G124: 1 | H124: 1 | I124: 1 | J124: 1 | K124: 1 | L124: 1 | M124: 1 | N124: 1 | O124: 1 | P124: 1 | Q124: 1 | R124: 1 | S124: 1 | T124: 1 | U124: 1 | V124: 1 | W124: 1 | X124: 1 | Y124: 1 | Z124: 1 | AA124: 1 | AB124: 1 | AC124: 0 | AD124: 0 | AE124: Aug
B125: May | C125: 0 | D125: 1 | E125: 1 | F125: 1 | G125: 1 | H125: 1 | I125: 1 | J125: 1 | K125: 1 | L125: 1 | M125: 1 | N125: 1 | O125: 1 | P125: 1 | Q125: 1 | R125: 1 | S125: 1 | T125: 1 | U125: 1 | V125: 1 | W125: 1 | X125: 1 | Y125: 1 | Z125: 1 | AA125: 1 | AB125: 1 | AC125: 0 | AD125: 0 | AE125: May
B126: Jul | C126: 0 | D126: 0 | E126: 1 | F126: 1 | G126: 1 | H126: 1 | I126: 1 | J126: 1 | K126: 1 | L126: 1 | M126: 1 | N126: 1 | O126: 1 | P126: 1 | Q126: 1 | R126: 1 | S126: 1 | T126: 1 | U126: 1 | V126: 1 | W126: 1 | X126: 1 | Y126: 1 | Z126: 1 | AA126: 1 | AB126: 1 | AC126: 0 | AD126: 0 | AE126: Jul
B127: Jun | C127: 0 | D127: 1 | E127: 1 | F127: 1 | G127: 1 | H127: 1 | I127: 1 | J127: 1 | K127: 1 | L127: 1 | M127: 1 | N127: 1 | O127: 1 | P127: 1 | Q127: 1 | R127: 1 | S127: 1 | T127: 1 | U127: 1 | V127: 1 | W127: 1 | X127: 1 | Y127: 1 | Z127: 1 | AA127: 1 | AB127: 1 | AC127: 1 | AD127: 0 | AE127: Jun
A129: EndPrivate
A136: User Defined Insolation: | G136: These numbers can be gotten for a nearby city from the NREL Redbook:
B137: Return to Inputs | G137: NREL Redbook
B138: InsolationArrayUserDefined:
B139: 1 | C139: 2 | D139: 3 | E139: 4 | F139: 5 | G139: 6 | H139: 7 | I139: 8 | J139: 9 | K139: 10 | L139: 11 | M139: 12 | N139: 13 | O139: 14 | P139: 15 | Q139: 16 | R139: 17 | S139: 18 | T139: 19
B140: 2 | C140: User Defined Insolation1 | G140: Kansas City | Q140: Latitude=: | R140: 39.3 | AT140: =SUBSTITUTE(G140,",","")&","&R140 -> Kansas City,39.3 | AZ140: Name of User Defined Location1 Home | BJ140: Latitude=: | BK140: 32
B141: 3 | F141: Tilt (deg) | G141: Jan | H141: Feb | I141: Mar | J141: Apr | K141: May | L141: Jun | M141: Jul | N141: Aug | O141: Sep | P141: Oct | Q141: Nov | R141: Dec | AY141: Tilt (deg) | AZ141: Jan | BA141: Feb | BB141: Mar | BC141: Apr | BD141: May | BE141: Jun | BF141: Jul | BG141: Aug | BH141: Sep | BI141: Oct | BJ141: Nov | BK141: Dec
B142: 4 | F142: 0 | G142: 2.2 | H142: 3 | I142: 3.9 | J142: 5.1 | K142: 5.9 | L142: 6.5 | M142: 6.6 | N142: 5.8 | O142: 4.6 | P142: 3.6 | Q142: 2.3 | R142: 1.9 | AT142: =G142&","&H142&","&I142&","&J142&","&K142&","&L142&","&M142&","&N142&","&O142&","&P142&","&Q142&","&R142 -> 2.2,3,3.9,5.1,5.9,6.5,6.6,5.8,4.6,3.6,2.3,1.9 | AY142: 0 | AZ142: 1 | BA142: 1 | BB142: 2 | BC142: 2 | BD142: 3 | BE142: 3 | BF142: 4 | BG142: 3 | BH142: 3 | BI142: 2 | BJ142: 2 | BK142: 1
B143: 5 | F143: ="Latitude-15° ("&R140-15&"°)" -> Latitude-15° (24.3°) | G143: 3.4 | H143: 4 | I143: 4.7 | J143: 5.5 | K143: 5.9 | L143: 6.3 | M143: 6.5 | N143: 6.1 | O143: 5.3 | P143: 4.6 | Q143: 3.4 | R143: 2.9 | AT143: =G143&","&H143&","&I143&","&J143&","&K143&","&L143&","&M143&","&N143&","&O143&","&P143&","&Q143&","&R143 -> 3.4,4,4.7,5.5,5.9,6.3,6.5,6.1,5.3,4.6,3.4,2.9 | AY143: Latitude-15° (17°) | AZ143: 2 | BA143: 3 | BB143: 4 | BC143: 5 | BD143: 5 | BE143: 6 | BF143: 6 | BG143: 5 | BH143: 4 | BI143: 3 | BJ143: 2 | BK143: 2
B144: 6 | F144: ="Latitude ("&R140&"°)" -> Latitude (39.3°) | G144: 3.8 | H144: 4.3 | I144: 4.8 | J144: 5.4 | K144: 5.6 | L144: 5.8 | M144: 6 | N144: 5.9 | O144: 5.4 | P144: 5 | Q144: 3.8 | R144: 3.3 | AT144: =G144&","&H144&","&I144&","&J144&","&K144&","&L144&","&M144&","&N144&","&O144&","&P144&","&Q144&","&R144 -> 3.8,4.3,4.8,5.4,5.6,5.8,6,5.9,5.4,5,3.8,3.3 | AY144: Latitude (32°) | AZ144: 3 | BA144: 3 | BB144: 4 | BC144: 4 | BD144: 5 | BE144: 5 | BF144: 5 | BG144: 5 | BH144: 5 | BI144: 4 | BJ144: 3 | BK144: 2
B145: 7 | F145: ="Latitude+15° ("&R140+15&"°)" -> Latitude+15° (54.3°) | G145: 4.1 | H145: 4.4 | I145: 4.7 | J145: 5 | K145: 4.9 | L145: 5 | M145: 5.3 | N145: 5.3 | O145: 5.2 | P145: 5 | Q145: 4 | R145: 3.5 | AT145: =G145&","&H145&","&I145&","&J145&","&K145&","&L145&","&M145&","&N145&","&O145&","&P145&","&Q145&","&R145 -> 4.1,4.4,4.7,5,4.9,5,5.3,5.3,5.2,5,4,3.5 | AY145: Latitude+15° (47°) | AZ145: 1 | BA145: 1 | BB145: 1 | BC145: 1 | BD145: 1 | BE145: 1 | BF145: 1.1 | BG145: 1 | BH145: 1 | BI145: 1 | BJ145: 1 | BK145: 1
B146: 8 | F146: 90 | G146: 3.8 | H146: 3.8 | I146: 3.5 | J146: 3.1 | K146: 2.7 | L146: 2.5 | M146: 2.7 | N146: 3.1 | O146: 3.6 | P146: 4 | Q146: 3.5 | R146: 3.3 | AT146: =G146&","&H146&","&I146&","&J146&","&K146&","&L146&","&M146&","&N146&","&O146&","&P146&","&Q146&","&R146 -> 3.8,3.8,3.5,3.1,2.7,2.5,2.7,3.1,3.6,4,3.5,3.3 | AY146: 90 | AZ146: 1 | BA146: 1 | BB146: 1 | BC146: 1 | BD146: 1 | BE146: 1 | BF146: 1.1 | BG146: 1 | BH146: 1 | BI146: 1 | BJ146: 1 | BK146: 1
B147: 9 | AT147: =IF((AT140&","&AT142&","&AT143&","&AT144&","&AT145&","&AT146)=AT148,"[Default]",(AT140&","&AT142&","&AT143&","&AT144&","&AT145&","&AT146)) -> Kansas City,39.3,2.2,3,3.9,5.1,5.9,6.5,6.6,5.8,4.6,3.6,2.3,1.9,3.4,4,4.7,5.5,5.9,6.3,6.5,6.1,5.3,4.6,3.4,2.9,3.8,4.3,4.8,5.4,5.6,5.8,6,5.9,5.4,5,3.8,3.3,4.1,4.4,4.7,5,4.9,5,5.3,5.3,5.2,5,4,3.5,3.8,3.8,3.5,3.1,2.7,2.5,2.7,3.1,3.6,4,3.5,3.3
B148: 10 | AT148: Name of User Defined Location1 Home,32,1,1,2,2,3,3,4,3,3,2,2,1,2,3,4,5,5,6,6,5,4,3,2,2,3,3,4,4,5,5,5,5,5,4,3,2,1,1,1,1,1,1,1.1,1,1,1,1,1,1,1,1,1,1,1,1.1,1,1,1,1,1
B149: 11
B150: 12 | C150: User Defined Insolation2 | G150: St. Louis | Q150: Latitude=: | R150: 38.75 | AT150: =SUBSTITUTE(G150,",","")&","&R150 -> St. Louis,38.75 | AZ150: Name of User Defined Location2 Vacation Home | BJ150: Latitude=: | BK150: 45
B151: 13 | F151: Tilt (deg) | G151: Jan | H151: Feb | I151: Mar | J151: Apr | K151: May | L151: Jun | M151: Jul | N151: Aug | O151: Sep | P151: Oct | Q151: Nov | R151: Dec | AY151: Tilt (deg) | AZ151: Jan | BA151: Feb | BB151: Mar | BC151: Apr | BD151: May | BE151: Jun | BF151: Jul | BG151: Aug | BH151: Sep | BI151: Oct | BJ151: Nov | BK151: Dec
B152: 14 | F152: 0 | G152: 2.2 | H152: 2.9 | I152: 3.9 | J152: 5 | K152: 5.9 | L152: 6.4 | M152: 6.4 | N152: 5.7 | O152: 4.6 | P152: 3.5 | Q152: 2.3 | R152: 1.8 | AT152: =G152&","&H152&","&I152&","&J152&","&K152&","&L152&","&M152&","&N152&","&O152&","&P152&","&Q152&","&R152 -> 2.2,2.9,3.9,5,5.9,6.4,6.4,5.7,4.6,3.5,2.3,1.8 | AY152: 0 | AZ152: 0.1 | BA152: 1 | BB152: 2 | BC152: 2 | BD152: 3 | BE152: 3 | BF152: 4 | BG152: 3 | BH152: 3 | BI152: 2 | BJ152: 2 | BK152: 1
B153: 15 | F153: ="Latitude-15° ("&R150-15&"°)" -> Latitude-15° (23.75°) | G153: 3.2 | H153: 3.8 | I153: 4.6 | J153: 5.4 | K153: 5.9 | L153: 6.3 | M153: 6.3 | N153: 6 | O153: 5.3 | P153: 4.5 | Q153: 3.2 | R153: 2.7 | AT153: =G153&","&H153&","&I153&","&J153&","&K153&","&L153&","&M153&","&N153&","&O153&","&P153&","&Q153&","&R153 -> 3.2,3.8,4.6,5.4,5.9,6.3,6.3,6,5.3,4.5,3.2,2.7 | AY153: Latitude-15° (30°) | AZ153: 0.2 | BA153: 3 | BB153: 4 | BC153: 5 | BD153: 5 | BE153: 6 | BF153: 6 | BG153: 5 | BH153: 4 | BI153: 3 | BJ153: 2 | BK153: 2
B154: 16 | F154: ="Latitude ("&R150&"°)" -> Latitude (38.75°) | G154: 3.6 | H154: 4.2 | I154: 4.7 | J154: 5.3 | K154: 5.6 | L154: 5.8 | M154: 5.9 | N154: 5.7 | O154: 5.3 | P154: 4.8 | Q154: 3.5 | R154: 3.1 | AT154: =G154&","&H154&","&I154&","&J154&","&K154&","&L154&","&M154&","&N154&","&O154&","&P154&","&Q154&","&R154 -> 3.6,4.2,4.7,5.3,5.6,5.8,5.9,5.7,5.3,4.8,3.5,3.1 | AY154: Latitude (45°) | AZ154: 0.3 | BA154: 3 | BB154: 4 | BC154: 4 | BD154: 5 | BE154: 5 | BF154: 5.5 | BG154: 5 | BH154: 5 | BI154: 4 | BJ154: 3 | BK154: 2
B155: 17 | F155: ="Latitude+15° ("&R150+15&"°)" -> Latitude+15° (53.75°) | G155: 3.8 | H155: 4.3 | I155: 4.6 | J155: 4.9 | K155: 4.9 | L155: 5 | M155: 5.1 | N155: 5.2 | O155: 5.1 | P155: 4.8 | Q155: 3.7 | R155: 3.3 | AT155: =G155&","&H155&","&I155&","&J155&","&K155&","&L155&","&M155&","&N155&","&O155&","&P155&","&Q155&","&R155 -> 3.8,4.3,4.6,4.9,4.9,5,5.1,5.2,5.1,4.8,3.7,3.3 | AY155: Latitude+15° (60°) | AZ155: 0.4 | BA155: 1 | BB155: 1 | BC155: 1 | BD155: 1 | BE155: 1 | BF155: 0.6 | BG155: 1 | BH155: 1 | BI155: 1 | BJ155: 1 | BK155: 1
B156: 18 | F156: 90 | G156: 3.5 | H156: 3.7 | I156: 3.4 | J156: 3.1 | K156: 2.6 | L156: 2.4 | M156: 2.6 | N156: 3 | O156: 3.5 | P156: 3.8 | Q156: 3.2 | R156: 3 | AT156: =G156&","&H156&","&I156&","&J156&","&K156&","&L156&","&M156&","&N156&","&O156&","&P156&","&Q156&","&R156 -> 3.5,3.7,3.4,3.1,2.6,2.4,2.6,3,3.5,3.8,3.2,3 | AY156: 90 | AZ156: 7 | BA156: 1 | BB156: 1 | BC156: 1 | BD156: 1 | BE156: 1 | BF156: 1.1 | BG156: 1 | BH156: 1 | BI156: 1 | BJ156: 1 | BK156: 1
B157: 19 | AT157: =IF((AT150&","&AT152&","&AT153&","&AT154&","&AT155&","&AT156)=AT158,"[Default]",(AT150&","&AT152&","&AT153&","&AT154&","&AT155&","&AT156)) -> St. Louis,38.75,2.2,2.9,3.9,5,5.9,6.4,6.4,5.7,4.6,3.5,2.3,1.8,3.2,3.8,4.6,5.4,5.9,6.3,6.3,6,5.3,4.5,3.2,2.7,3.6,4.2,4.7,5.3,5.6,5.8,5.9,5.7,5.3,4.8,3.5,3.1,3.8,4.3,4.6,4.9,4.9,5,5.1,5.2,5.1,4.8,3.7,3.3,3.5,3.7,3.4,3.1,2.6,2.4,2.6,3,3.5,3.8,3.2,3
B158: 20 | AT158: Name of User Defined Location2 Vacation Home,45,0.1,1,2,2,3,3,4,3,3,2,2,1,0.2,3,4,5,5,6,6,5,4,3,2,2,0.3,3,4,4,5,5,5.5,5,5,4,3,2,0.4,1,1,1,1,1,0.6,1,1,1,1,1,7,1,1,1,1,1,1.1,1,1,1,1,1
B159: 21
B160: 22 | C160: User Defined Insolation3 | G160: Columbia | Q160: Latitude=: | R160: 38.82 | AT160: =SUBSTITUTE(G160,",","")&","&R160 -> Columbia,38.82 | AZ160: Name of User Defined Location3 Zoo | BJ160: Latitude=: | BK160: 38
B161: 23 | F161: Tilt (deg) | G161: Jan | H161: Feb | I161: Mar | J161: Apr | K161: May | L161: Jun | M161: Jul | N161: Aug | O161: Sep | P161: Oct | Q161: Nov | R161: Dec | AY161: Tilt (deg) | AZ161: Jan | BA161: Feb | BB161: Mar | BC161: Apr | BD161: May | BE161: Jun | BF161: Jul | BG161: Aug | BH161: Sep | BI161: Oct | BJ161: Nov | BK161: Dec
B162: 24 | F162: 0 | G162: 2.2 | H162: 3 | I162: 4 | J162: 5.2 | K162: 6 | L162: 6.6 | M162: 6.6 | N162: 5.9 | O162: 4.6 | P162: 3.5 | Q162: 2.3 | R162: 1.9 | AT162: =G162&","&H162&","&I162&","&J162&","&K162&","&L162&","&M162&","&N162&","&O162&","&P162&","&Q162&","&R162 -> 2.2,3,4,5.2,6,6.6,6.6,5.9,4.6,3.5,2.3,1.9 | AY162: 0 | AZ162: 1 | BA162: 1 | BB162: 2 | BC162: 2 | BD162: 3 | BE162: 3 | BF162: 4 | BG162: 3 | BH162: 3 | BI162: 2 | BJ162: 2 | BK162: 1
B163: 25 | F163: ="Latitude-15° ("&R160-15&"°)" -> Latitude-15° (23.82°) | G163: 3.3 | H163: 4 | I163: 4.7 | J163: 5.6 | K163: 6 | L163: 6.4 | M163: 6.6 | N163: 6.2 | O163: 5.3 | P163: 4.5 | Q163: 3.2 | R163: 2.8 | AT163: =G163&","&H163&","&I163&","&J163&","&K163&","&L163&","&M163&","&N163&","&O163&","&P163&","&Q163&","&R163 -> 3.3,4,4.7,5.6,6,6.4,6.6,6.2,5.3,4.5,3.2,2.8 | AY163: Latitude-15° (23°) | AZ163: 2 | BA163: 3 | BB163: 4 | BC163: 5 | BD163: 5 | BE163: 6 | BF163: 6 | BG163: 5 | BH163: 4 | BI163: 3 | BJ163: 2 | BK163: 2
B164: 26 | F164: ="Latitude ("&R160&"°)" -> Latitude (38.82°) | G164: 3.8 | H164: 4.4 | I164: 4.9 | J164: 5.5 | K164: 5.6 | L164: 5.9 | M164: 6.1 | N164: 5.9 | O164: 5.4 | P164: 4.9 | Q164: 3.6 | R164: 3.2 | AT164: =G164&","&H164&","&I164&","&J164&","&K164&","&L164&","&M164&","&N164&","&O164&","&P164&","&Q164&","&R164 -> 3.8,4.4,4.9,5.5,5.6,5.9,6.1,5.9,5.4,4.9,3.6,3.2 | AY164: Latitude (38°) | AZ164: 3 | BA164: 3 | BB164: 4 | BC164: 4 | BD164: 5 | BE164: 5 | BF164: 5 | BG164: 5 | BH164: 5 | BI164: 4 | BJ164: 3 | BK164: 2
B165: 27 | F165: ="Latitude+15° ("&R160+15&"°)" -> Latitude+15° (53.82°) | G165: 4 | H165: 4.5 | I165: 4.8 | J165: 5.1 | K165: 5 | L165: 5.1 | M165: 5.3 | N165: 5.4 | O165: 5.1 | P165: 4.9 | Q165: 3.8 | R165: 3.4 | AT165: =G165&","&H165&","&I165&","&J165&","&K165&","&L165&","&M165&","&N165&","&O165&","&P165&","&Q165&","&R165 -> 4,4.5,4.8,5.1,5,5.1,5.3,5.4,5.1,4.9,3.8,3.4 | AY165: Latitude+15° (53°) | AZ165: 1 | BA165: 1 | BB165: 1 | BC165: 1 | BD165: 1 | BE165: 1 | BF165: 1.1 | BG165: 1 | BH165: 1 | BI165: 1 | BJ165: 1 | BK165: 1
B166: 28 | F166: 90 | G166: 3.7 | H166: 3.9 | I166: 3.5 | J166: 3.2 | K166: 2.7 | L166: 2.5 | M166: 2.7 | N166: 3.1 | O166: 3.5 | P166: 3.98 | Q166: 3.3 | R166: 3.2 | AT166: =G166&","&H166&","&I166&","&J166&","&K166&","&L166&","&M166&","&N166&","&O166&","&P166&","&Q166&","&R166 -> 3.7,3.9,3.5,3.2,2.7,2.5,2.7,3.1,3.5,3.98,3.3,3.2 | AY166: 90 | AZ166: 1 | BA166: 1 | BB166: 1 | BC166: 1 | BD166: 1 | BE166: 1 | BF166: 1.1 | BG166: 1 | BH166: 1 | BI166: 1 | BJ166: 1 | BK166: 1
B167: 29 | AT167: =IF((AT160&","&AT162&","&AT163&","&AT164&","&AT165&","&AT166)=AT168,"[Default]",(AT160&","&AT162&","&AT163&","&AT164&","&AT165&","&AT166)) -> Columbia,38.82,2.2,3,4,5.2,6,6.6,6.6,5.9,4.6,3.5,2.3,1.9,3.3,4,4.7,5.6,6,6.4,6.6,6.2,5.3,4.5,3.2,2.8,3.8,4.4,4.9,5.5,5.6,5.9,6.1,5.9,5.4,4.9,3.6,3.2,4,4.5,4.8,5.1,5,5.1,5.3,5.4,5.1,4.9,3.8,3.4,3.7,3.9,3.5,3.2,2.7,2.5,2.7,3.1,3.5,3.98,3.3,3.2
B168: 30 | AT168: Name of User Defined Location3 Zoo,38,1,1,2,2,3,3,4,3,3,2,2,1,2,3,4,5,5,6,6,5,4,3,2,2,3,3,4,4,5,5,5,5,5,4,3,2,1,1,1,1,1,1,1.1,1,1,1,1,1,1,1,1,1,1,1,1.1,1,1,1,1,1
B169: 31
B170: 32 | C170: User Defined Insolation4 | G170: Springfield | Q170: Latitude=: | R170: 37.23 | AT170: =SUBSTITUTE(G170,",","")&","&R170 -> Springfield,37.23 | AZ170: Name of User Defined Location4 Over There | BJ170: Latitude=: | BK170: 38
B171: 33 | F171: Tilt (deg) | G171: Jan | H171: Feb | I171: Mar | J171: Apr | K171: May | L171: Jun | M171: Jul | N171: Aug | O171: Sep | P171: Oct | Q171: Nov | R171: Dec | AY171: Tilt (deg) | AZ171: Jan | BA171: Feb | BB171: Mar | BC171: Apr | BD171: May | BE171: Jun | BF171: Jul | BG171: Aug | BH171: Sep | BI171: Oct | BJ171: Nov | BK171: Dec
B172: 34 | F172: 0 | G172: 2.4 | H172: 3.1 | I172: 4.1 | J172: 5.2 | K172: 5.9 | L172: 6.4 | M172: 6.6 | N172: 5.9 | O172: 4.7 | P172: 3.7 | Q172: 2.5 | R172: 2 | AT172: =G172&","&H172&","&I172&","&J172&","&K172&","&L172&","&M172&","&N172&","&O172&","&P172&","&Q172&","&R172 -> 2.4,3.1,4.1,5.2,5.9,6.4,6.6,5.9,4.7,3.7,2.5,2 | AY172: 0 | AZ172: 1 | BA172: 1 | BB172: 2 | BC172: 2 | BD172: 3 | BE172: 3 | BF172: 4 | BG172: 3 | BH172: 3 | BI172: 2 | BJ172: 2 | BK172: 1
B173: 35 | F173: ="Latitude-15° ("&R170-15&"°)" -> Latitude-15° (22.23°) | G173: 3.4 | H173: 3.9 | I173: 4.7 | J173: 5.6 | K173: 5.9 | L173: 6.2 | M173: 6.5 | N173: 6.2 | O173: 5.3 | P173: 4.6 | Q173: 3.4 | R173: 2.9 | AT173: =G173&","&H173&","&I173&","&J173&","&K173&","&L173&","&M173&","&N173&","&O173&","&P173&","&Q173&","&R173 -> 3.4,3.9,4.7,5.6,5.9,6.2,6.5,6.2,5.3,4.6,3.4,2.9 | AY173: Latitude-15° (23°) | AZ173: 2 | BA173: 3 | BB173: 4 | BC173: 5 | BD173: 5 | BE173: 6 | BF173: 6 | BG173: 5 | BH173: 4 | BI173: 3 | BJ173: 2 | BK173: 2
B174: 36 | F174: ="Latitude ("&R170&"°)" -> Latitude (37.23°) | G174: 3.8 | H174: 4.3 | I174: 4.9 | J174: 5.4 | K174: 5.6 | L174: 5.7 | M174: 6 | N174: 5.9 | O174: 5.4 | P174: 4.9 | Q174: 3.8 | R174: 3.3 | AT174: =G174&","&H174&","&I174&","&J174&","&K174&","&L174&","&M174&","&N174&","&O174&","&P174&","&Q174&","&R174 -> 3.8,4.3,4.9,5.4,5.6,5.7,6,5.9,5.4,4.9,3.8,3.3 | AY174: Latitude (38°) | AZ174: 3 | BA174: 3 | BB174: 4 | BC174: 4 | BD174: 5 | BE174: 5 | BF174: 5 | BG174: 5 | BH174: 5 | BI174: 4 | BJ174: 3 | BK174: 2
B175: 37 | F175: ="Latitude+15° ("&R170+15&"°)" -> Latitude+15° (52.23°) | G175: 4.1 | H175: 4.4 | I175: 4.8 | J175: 5 | K175: 4.9 | L175: 5 | M175: 5.2 | N175: 5.4 | O175: 5.1 | P175: 5 | Q175: 3.9 | R175: 3.5 | AT175: =G175&","&H175&","&I175&","&J175&","&K175&","&L175&","&M175&","&N175&","&O175&","&P175&","&Q175&","&R175 -> 4.1,4.4,4.8,5,4.9,5,5.2,5.4,5.1,5,3.9,3.5 | AY175: Latitude+15° (53°) | AZ175: 1 | BA175: 1 | BB175: 1 | BC175: 1 | BD175: 1 | BE175: 1 | BF175: 1.1 | BG175: 1 | BH175: 1 | BI175: 1 | BJ175: 1 | BK175: 1
B176: 38 | F176: 90 | G176: 3.7 | H176: 3.7 | I176: 3.5 | J176: 3 | K176: 2.5 | L176: 2.3 | M176: 2.5 | N176: 3 | O176: 3.4 | P176: 3.9 | Q176: 3.4 | R176: 3.3 | AT176: =G176&","&H176&","&I176&","&J176&","&K176&","&L176&","&M176&","&N176&","&O176&","&P176&","&Q176&","&R176 -> 3.7,3.7,3.5,3,2.5,2.3,2.5,3,3.4,3.9,3.4,3.3 | AY176: 90 | AZ176: 1 | BA176: 1 | BB176: 1 | BC176: 1 | BD176: 1 | BE176: 1 | BF176: 1.1 | BG176: 1 | BH176: 1 | BI176: 1 | BJ176: 1 | BK176: 1
B177: 39 | AT177: =IF((AT170&","&AT172&","&AT173&","&AT174&","&AT175&","&AT176)=AT178,"[Default]",(AT170&","&AT172&","&AT173&","&AT174&","&AT175&","&AT176)) -> Springfield,37.23,2.4,3.1,4.1,5.2,5.9,6.4,6.6,5.9,4.7,3.7,2.5,2,3.4,3.9,4.7,5.6,5.9,6.2,6.5,6.2,5.3,4.6,3.4,2.9,3.8,4.3,4.9,5.4,5.6,5.7,6,5.9,5.4,4.9,3.8,3.3,4.1,4.4,4.8,5,4.9,5,5.2,5.4,5.1,5,3.9,3.5,3.7,3.7,3.5,3,2.5,2.3,2.5,3,3.4,3.9,3.4,3.3
B178: 40 | AT178: Name of User Defined Location4 Over There,38,1,1,2,2,3,3,4,3,3,2,2,1,2,3,4,5,5,6,6,5,4,3,2,2,3,3,4,4,5,5,5,5,5,4,3,2,1,1,1,1,1,1,1.1,1,1,1,1,1,1,1,1,1,1,1,1.1,1,1,1,1,1
B179: 41
B180: 42 | C180: User Defined Insolation5 | G180: Springfield | Q180: Latitude=: | R180: 37.23 | AT180: =SUBSTITUTE(G180,",","")&","&R180 -> Springfield,37.23 | AZ180: Name of User Defined Location5 Down South | BJ180: Latitude=: | BK180: 38
B181: 43 | F181: Tilt (deg) | G181: Jan | H181: Feb | I181: Mar | J181: Apr | K181: May | L181: Jun | M181: Jul | N181: Aug | O181: Sep | P181: Oct | Q181: Nov | R181: Dec | AY181: Tilt (deg) | AZ181: Jan | BA181: Feb | BB181: Mar | BC181: Apr | BD181: May | BE181: Jun | BF181: Jul | BG181: Aug | BH181: Sep | BI181: Oct | BJ181: Nov | BK181: Dec
B182: 44 | F182: 0 | G182: 2.4 | H182: 3.1 | I182: 4.1 | J182: 5.2 | K182: 5.9 | L182: 6.4 | M182: 6.6 | N182: 5.9 | O182: 4.7 | P182: 3.7 | Q182: 2.5 | R182: 2 | AH182: =IF(LEFT(SiteRedbookCity,4)="User",AH140,AH161) ->  | AI182: =IF(LEFT(SiteRedbookCity,4)="User",AI140,AI161) ->  | AJ182: =IF(LEFT(SiteRedbookCity,4)="User",AJ140,AJ161) ->  | AO182: =IF(LEFT(SiteRedbookCity,4)="User",AO140,AO161) ->  | AT182: =G182&","&H182&","&I182&","&J182&","&K182&","&L182&","&M182&","&N182&","&O182&","&P182&","&Q182&","&R182 -> 2.4,3.1,4.1,5.2,5.9,6.4,6.6,5.9,4.7,3.7,2.5,2 | AY182: 0 | AZ182: 1 | BA182: 1 | BB182: 2 | BC182: 2 | BD182: 3 | BE182: 3 | BF182: 4 | BG182: 3 | BH182: 3 | BI182: 2 | BJ182: 2 | BK182: 1
B183: 45 | F183: ="Latitude-15° ("&R180-15&"°)" -> Latitude-15° (22.23°) | G183: 3.4 | H183: 3.9 | I183: 4.7 | J183: 5.6 | K183: 5.9 | L183: 6.2 | M183: 6.5 | N183: 6.2 | O183: 5.3 | P183: 4.6 | Q183: 3.4 | R183: 2.9 | AT183: =G183&","&H183&","&I183&","&J183&","&K183&","&L183&","&M183&","&N183&","&O183&","&P183&","&Q183&","&R183 -> 3.4,3.9,4.7,5.6,5.9,6.2,6.5,6.2,5.3,4.6,3.4,2.9 | AY183: Latitude-15° (23°) | AZ183: 2 | BA183: 3 | BB183: 4 | BC183: 5 | BD183: 5 | BE183: 6 | BF183: 6 | BG183: 5 | BH183: 4 | BI183: 3 | BJ183: 2 | BK183: 2
B184: 46 | F184: ="Latitude ("&R180&"°)" -> Latitude (37.23°) | G184: 3.8 | H184: 4.3 | I184: 4.9 | J184: 5.4 | K184: 5.6 | L184: 5.7 | M184: 6 | N184: 5.9 | O184: 5.4 | P184: 4.9 | Q184: 3.8 | R184: 3.3 | AT184: =G184&","&H184&","&I184&","&J184&","&K184&","&L184&","&M184&","&N184&","&O184&","&P184&","&Q184&","&R184 -> 3.8,4.3,4.9,5.4,5.6,5.7,6,5.9,5.4,4.9,3.8,3.3 | AY184: Latitude (38°) | AZ184: 3 | BA184: 3 | BB184: 4 | BC184: 4 | BD184: 5 | BE184: 5 | BF184: 5 | BG184: 5 | BH184: 5 | BI184: 4 | BJ184: 3 | BK184: 2
B185: 47 | F185: ="Latitude+15° ("&R180+15&"°)" -> Latitude+15° (52.23°) | G185: 4.1 | H185: 4.4 | I185: 4.8 | J185: 5 | K185: 4.9 | L185: 5 | M185: 5.2 | N185: 5.4 | O185: 5.1 | P185: 5 | Q185: 3.9 | R185: 3.5 | AT185: =G185&","&H185&","&I185&","&J185&","&K185&","&L185&","&M185&","&N185&","&O185&","&P185&","&Q185&","&R185 -> 4.1,4.4,4.8,5,4.9,5,5.2,5.4,5.1,5,3.9,3.5 | AY185: Latitude+15° (53°) | AZ185: 1 | BA185: 1 | BB185: 1 | BC185: 1 | BD185: 1 | BE185: 1 | BF185: 1.1 | BG185: 1 | BH185: 1 | BI185: 1 | BJ185: 1 | BK185: 1
B186: 48 | F186: 90 | G186: 3.7 | H186: 3.7 | I186: 3.5 | J186: 3 | K186: 2.5 | L186: 2.3 | M186: 2.5 | N186: 3 | O186: 3.4 | P186: 3.9 | Q186: 3.4 | R186: 3.3 | AT186: =G186&","&H186&","&I186&","&J186&","&K186&","&L186&","&M186&","&N186&","&O186&","&P186&","&Q186&","&R186 -> 3.7,3.7,3.5,3,2.5,2.3,2.5,3,3.4,3.9,3.4,3.3 | AY186: 90 | AZ186: 1 | BA186: 1 | BB186: 1 | BC186: 1 | BD186: 1 | BE186: 1 | BF186: 1.1 | BG186: 1 | BH186: 1 | BI186: 1 | BJ186: 1 | BK186: 1
B187: 49 | AT187: =IF((AT180&","&AT182&","&AT183&","&AT184&","&AT185&","&AT186)=AT188,"[Default]",(AT180&","&AT182&","&AT183&","&AT184&","&AT185&","&AT186)) -> Springfield,37.23,2.4,3.1,4.1,5.2,5.9,6.4,6.6,5.9,4.7,3.7,2.5,2,3.4,3.9,4.7,5.6,5.9,6.2,6.5,6.2,5.3,4.6,3.4,2.9,3.8,4.3,4.9,5.4,5.6,5.7,6,5.9,5.4,4.9,3.8,3.3,4.1,4.4,4.8,5,4.9,5,5.2,5.4,5.1,5,3.9,3.5,3.7,3.7,3.5,3,2.5,2.3,2.5,3,3.4,3.9,3.4,3.3
B188: 50 | AT188: Name of User Defined Location5 Down South,38,1,1,2,2,3,3,4,3,3,2,2,1,2,3,4,5,5,6,6,5,4,3,2,2,3,3,4,4,5,5,5,5,5,4,3,2,1,1,1,1,1,1,1.1,1,1,1,1,1,1,1,1,1,1,1,1.1,1,1,1,1,1
B189: 51
B190: 52 | C190: User Defined Insolation6 | G190: Name of User Defined Location6 Up North | Q190: Latitude=: | R190: 25 | AT190: =SUBSTITUTE(G190,",","")&","&R190 -> Name of User Defined Location6 Up North,25 | AZ190: Name of User Defined Location6 Up North | BJ190: Latitude=: | BK190: 38
B191: 53 | F191: Tilt (deg) | G191: Jan | H191: Feb | I191: Mar | J191: Apr | K191: May | L191: Jun | M191: Jul | N191: Aug | O191: Sep | P191: Oct | Q191: Nov | R191: Dec | AY191: Tilt (deg) | AZ191: Jan | BA191: Feb | BB191: Mar | BC191: Apr | BD191: May | BE191: Jun | BF191: Jul | BG191: Aug | BH191: Sep | BI191: Oct | BJ191: Nov | BK191: Dec
B192: 54 | F192: 0 | G192: 1 | H192: 1 | I192: 2 | J192: 2 | K192: 3 | L192: 3 | M192: 4 | N192: 3 | O192: 3 | P192: 2 | Q192: 2 | R192: 1 | AT192: =G192&","&H192&","&I192&","&J192&","&K192&","&L192&","&M192&","&N192&","&O192&","&P192&","&Q192&","&R192 -> 1,1,2,2,3,3,4,3,3,2,2,1 | AY192: 0 | AZ192: 1 | BA192: 1 | BB192: 2 | BC192: 2 | BD192: 3 | BE192: 3 | BF192: 4 | BG192: 3 | BH192: 3 | BI192: 2 | BJ192: 2 | BK192: 1
B193: 55 | F193: ="Latitude-15° ("&R190-15&"°)" -> Latitude-15° (10°) | G193: 2 | H193: 3 | I193: 4 | J193: 5 | K193: 5 | L193: 6 | M193: 6 | N193: 5 | O193: 4 | P193: 3 | Q193: 2 | R193: 2 | AT193: =G193&","&H193&","&I193&","&J193&","&K193&","&L193&","&M193&","&N193&","&O193&","&P193&","&Q193&","&R193 -> 2,3,4,5,5,6,6,5,4,3,2,2 | AY193: Latitude-15° (23°) | AZ193: 2 | BA193: 3 | BB193: 4 | BC193: 5 | BD193: 5 | BE193: 6 | BF193: 6 | BG193: 5 | BH193: 4 | BI193: 3 | BJ193: 2 | BK193: 2
B194: 56 | F194: ="Latitude ("&R190&"°)" -> Latitude (25°) | G194: 3 | H194: 3 | I194: 4 | J194: 4 | K194: 5 | L194: 5 | M194: 5 | N194: 5 | O194: 5 | P194: 4 | Q194: 3 | R194: 2 | AT194: =G194&","&H194&","&I194&","&J194&","&K194&","&L194&","&M194&","&N194&","&O194&","&P194&","&Q194&","&R194 -> 3,3,4,4,5,5,5,5,5,4,3,2 | AY194: Latitude (38°) | AZ194: 3 | BA194: 3 | BB194: 4 | BC194: 4 | BD194: 5 | BE194: 5 | BF194: 5 | BG194: 5 | BH194: 5 | BI194: 4 | BJ194: 3 | BK194: 2
B195: 57 | F195: ="Latitude+15° ("&R190+15&"°)" -> Latitude+15° (40°) | G195: 1 | H195: 1 | I195: 1 | J195: 1 | K195: 1 | L195: 1 | M195: 1.1 | N195: 1 | O195: 1 | P195: 1 | Q195: 1 | R195: 1 | AT195: =G195&","&H195&","&I195&","&J195&","&K195&","&L195&","&M195&","&N195&","&O195&","&P195&","&Q195&","&R195 -> 1,1,1,1,1,1,1.1,1,1,1,1,1 | AY195: Latitude+15° (53°) | AZ195: 1 | BA195: 1 | BB195: 1 | BC195: 1 | BD195: 1 | BE195: 1 | BF195: 1.1 | BG195: 1 | BH195: 1 | BI195: 1 | BJ195: 1 | BK195: 1
B196: 58 | F196: 90 | G196: 1 | H196: 1 | I196: 1 | J196: 1 | K196: 1 | L196: 1 | M196: 1.1 | N196: 1 | O196: 1 | P196: 1 | Q196: 1 | R196: 1 | AT196: =G196&","&H196&","&I196&","&J196&","&K196&","&L196&","&M196&","&N196&","&O196&","&P196&","&Q196&","&R196 -> 1,1,1,1,1,1,1.1,1,1,1,1,1 | AY196: 90 | AZ196: 1 | BA196: 1 | BB196: 1 | BC196: 1 | BD196: 1 | BE196: 1 | BF196: 1.1 | BG196: 1 | BH196: 1 | BI196: 1 | BJ196: 1 | BK196: 1
B197: 59 | AT197: =IF((AT190&","&AT192&","&AT193&","&AT194&","&AT195&","&AT196)=AT198,"[Default]",(AT190&","&AT192&","&AT193&","&AT194&","&AT195&","&AT196)) -> Name of User Defined Location6 Up North,25,1,1,2,2,3,3,4,3,3,2,2,1,2,3,4,5,5,6,6,5,4,3,2,2,3,3,4,4,5,5,5,5,5,4,3,2,1,1,1,1,1,1,1.1,1,1,1,1,1,1,1,1,1,1,1,1.1,1,1,1,1,1
B198: 60 | AT198: Name of User Defined Location6 Up North,38,1,1,2,2,3,3,4,3,3,2,2,1,2,3,4,5,5,6,6,5,4,3,2,2,3,3,4,4,5,5,5,5,5,4,3,2,1,1,1,1,1,1,1.1,1,1,1,1,1,1,1,1,1,1,1,1.1,1,1,1,1,1
B199: 61
B200: 62 | C200: User Defined Insolation7 | G200: Name of User Defined Location7 Back East | Q200: Latitude=: | R200: 38 | AT200: =SUBSTITUTE(G200,",","")&","&R200 -> Name of User Defined Location7 Back East,38 | AZ200: Name of User Defined Location7 Back East | BJ200: Latitude=: | BK200: 38
B201: 63 | F201: Tilt (deg) | G201: Jan | H201: Feb | I201: Mar | J201: Apr | K201: May | L201: Jun | M201: Jul | N201: Aug | O201: Sep | P201: Oct | Q201: Nov | R201: Dec | AY201: Tilt (deg) | AZ201: Jan | BA201: Feb | BB201: Mar | BC201: Apr | BD201: May | BE201: Jun | BF201: Jul | BG201: Aug | BH201: Sep | BI201: Oct | BJ201: Nov | BK201: Dec
B202: 64 | F202: 0 | G202: 1 | H202: 1 | I202: 2 | J202: 2 | K202: 3 | L202: 3 | M202: 4 | N202: 3 | O202: 3 | P202: 2 | Q202: 2 | R202: 1 | AT202: =G202&","&H202&","&I202&","&J202&","&K202&","&L202&","&M202&","&N202&","&O202&","&P202&","&Q202&","&R202 -> 1,1,2,2,3,3,4,3,3,2,2,1 | AY202: 0 | AZ202: 1 | BA202: 1 | BB202: 2 | BC202: 2 | BD202: 3 | BE202: 3 | BF202: 4 | BG202: 3 | BH202: 3 | BI202: 2 | BJ202: 2 | BK202: 1
B203: 65 | F203: ="Latitude-15° ("&R200-15&"°)" -> Latitude-15° (23°) | G203: 2 | H203: 3 | I203: 4 | J203: 5 | K203: 5 | L203: 6 | M203: 6 | N203: 5 | O203: 4 | P203: 3 | Q203: 2 | R203: 2 | AT203: =G203&","&H203&","&I203&","&J203&","&K203&","&L203&","&M203&","&N203&","&O203&","&P203&","&Q203&","&R203 -> 2,3,4,5,5,6,6,5,4,3,2,2 | AY203: Latitude-15° (23°) | AZ203: 2 | BA203: 3 | BB203: 4 | BC203: 5 | BD203: 5 | BE203: 6 | BF203: 6 | BG203: 5 | BH203: 4 | BI203: 3 | BJ203: 2 | BK203: 2
B204: 66 | F204: ="Latitude ("&R200&"°)" -> Latitude (38°) | G204: 3 | H204: 3 | I204: 4 | J204: 4 | K204: 5 | L204: 5 | M204: 5 | N204: 5 | O204: 5 | P204: 4 | Q204: 3 | R204: 2 | AT204: =G204&","&H204&","&I204&","&J204&","&K204&","&L204&","&M204&","&N204&","&O204&","&P204&","&Q204&","&R204 -> 3,3,4,4,5,5,5,5,5,4,3,2 | AY204: Latitude (38°) | AZ204: 3 | BA204: 3 | BB204: 4 | BC204: 4 | BD204: 5 | BE204: 5 | BF204: 5 | BG204: 5 | BH204: 5 | BI204: 4 | BJ204: 3 | BK204: 2
B205: 67 | F205: ="Latitude+15° ("&R200+15&"°)" -> Latitude+15° (53°) | G205: 1 | H205: 1 | I205: 1 | J205: 1 | K205: 1 | L205: 1 | M205: 1.1 | N205: 1 | O205: 1 | P205: 1 | Q205: 1 | R205: 1 | AT205: =G205&","&H205&","&I205&","&J205&","&K205&","&L205&","&M205&","&N205&","&O205&","&P205&","&Q205&","&R205 -> 1,1,1,1,1,1,1.1,1,1,1,1,1 | AY205: Latitude+15° (53°) | AZ205: 1 | BA205: 1 | BB205: 1 | BC205: 1 | BD205: 1 | BE205: 1 | BF205: 1.1 | BG205: 1 | BH205: 1 | BI205: 1 | BJ205: 1 | BK205: 1
B206: 68 | F206: 90 | G206: 1 | H206: 1 | I206: 1 | J206: 1 | K206: 1 | L206: 1 | M206: 1.1 | N206: 1 | O206: 1 | P206: 1 | Q206: 1 | R206: 1 | AT206: =G206&","&H206&","&I206&","&J206&","&K206&","&L206&","&M206&","&N206&","&O206&","&P206&","&Q206&","&R206 -> 1,1,1,1,1,1,1.1,1,1,1,1,1 | AY206: 90 | AZ206: 1 | BA206: 1 | BB206: 1 | BC206: 1 | BD206: 1 | BE206: 1 | BF206: 1.1 | BG206: 1 | BH206: 1 | BI206: 1 | BJ206: 1 | BK206: 1
B207: 69 | AT207: =IF((AT200&","&AT202&","&AT203&","&AT204&","&AT205&","&AT206)=AT208,"[Default]",(AT200&","&AT202&","&AT203&","&AT204&","&AT205&","&AT206)) -> [Default]
B208: 70 | AT208: Name of User Defined Location7 Back East,38,1,1,2,2,3,3,4,3,3,2,2,1,2,3,4,5,5,6,6,5,4,3,2,2,3,3,4,4,5,5,5,5,5,4,3,2,1,1,1,1,1,1,1.1,1,1,1,1,1,1,1,1,1,1,1,1.1,1,1,1,1,1
B209: 71
B210: 72 | C210: User Defined Insolation8 | G210: Name of User Defined Location8 Out West | Q210: Latitude=: | R210: 38 | AT210: =SUBSTITUTE(G210,",","")&","&R210 -> Name of User Defined Location8 Out West,38 | AZ210: Name of User Defined Location8 Out West | BJ210: Latitude=: | BK210: 38
B211: 73 | F211: Tilt (deg) | G211: Jan | H211: Feb | I211: Mar | J211: Apr | K211: May | L211: Jun | M211: Jul | N211: Aug | O211: Sep | P211: Oct | Q211: Nov | R211: Dec | AY211: Tilt (deg) | AZ211: Jan | BA211: Feb | BB211: Mar | BC211: Apr | BD211: May | BE211: Jun | BF211: Jul | BG211: Aug | BH211: Sep | BI211: Oct | BJ211: Nov | BK211: Dec
B212: 74 | F212: 0 | G212: 1 | H212: 1 | I212: 2 | J212: 2 | K212: 3 | L212: 3 | M212: 4 | N212: 3 | O212: 3 | P212: 2 | Q212: 2 | R212: 1 | AT212: =G212&","&H212&","&I212&","&J212&","&K212&","&L212&","&M212&","&N212&","&O212&","&P212&","&Q212&","&R212 -> 1,1,2,2,3,3,4,3,3,2,2,1 | AY212: 0 | AZ212: 1 | BA212: 1 | BB212: 2 | BC212: 2 | BD212: 3 | BE212: 3 | BF212: 4 | BG212: 3 | BH212: 3 | BI212: 2 | BJ212: 2 | BK212: 1
B213: 75 | F213: ="Latitude-15° ("&R210-15&"°)" -> Latitude-15° (23°) | G213: 2 | H213: 3 | I213: 4 | J213: 5 | K213: 5 | L213: 6 | M213: 6 | N213: 5 | O213: 4 | P213: 3 | Q213: 2 | R213: 2 | AT213: =G213&","&H213&","&I213&","&J213&","&K213&","&L213&","&M213&","&N213&","&O213&","&P213&","&Q213&","&R213 -> 2,3,4,5,5,6,6,5,4,3,2,2 | AY213: Latitude-15° (23°) | AZ213: 2 | BA213: 3 | BB213: 4 | BC213: 5 | BD213: 5 | BE213: 6 | BF213: 6 | BG213: 5 | BH213: 4 | BI213: 3 | BJ213: 2 | BK213: 2
B214: 76 | F214: ="Latitude ("&R210&"°)" -> Latitude (38°) | G214: 3 | H214: 3 | I214: 4 | J214: 4 | K214: 5 | L214: 5 | M214: 5 | N214: 5 | O214: 5 | P214: 4 | Q214: 3 | R214: 2 | AT214: =G214&","&H214&","&I214&","&J214&","&K214&","&L214&","&M214&","&N214&","&O214&","&P214&","&Q214&","&R214 -> 3,3,4,4,5,5,5,5,5,4,3,2 | AY214: Latitude (38°) | AZ214: 3 | BA214: 3 | BB214: 4 | BC214: 4 | BD214: 5 | BE214: 5 | BF214: 5 | BG214: 5 | BH214: 5 | BI214: 4 | BJ214: 3 | BK214: 2
B215: 77 | F215: ="Latitude+15° ("&R210+15&"°)" -> Latitude+15° (53°) | G215: 1 | H215: 1 | I215: 1 | J215: 1 | K215: 1 | L215: 1 | M215: 1.1 | N215: 1 | O215: 1 | P215: 1 | Q215: 1 | R215: 1 | AT215: =G215&","&H215&","&I215&","&J215&","&K215&","&L215&","&M215&","&N215&","&O215&","&P215&","&Q215&","&R215 -> 1,1,1,1,1,1,1.1,1,1,1,1,1 | AY215: Latitude+15° (53°) | AZ215: 1 | BA215: 1 | BB215: 1 | BC215: 1 | BD215: 1 | BE215: 1 | BF215: 1.1 | BG215: 1 | BH215: 1 | BI215: 1 | BJ215: 1 | BK215: 1
B216: 78 | F216: 90 | G216: 1 | H216: 1 | I216: 1 | J216: 1 | K216: 1 | L216: 1 | M216: 1.1 | N216: 1 | O216: 1 | P216: 1 | Q216: 1 | R216: 1 | AT216: =G216&","&H216&","&I216&","&J216&","&K216&","&L216&","&M216&","&N216&","&O216&","&P216&","&Q216&","&R216 -> 1,1,1,1,1,1,1.1,1,1,1,1,1 | AY216: 90 | AZ216: 1 | BA216: 1 | BB216: 1 | BC216: 1 | BD216: 1 | BE216: 1 | BF216: 1.1 | BG216: 1 | BH216: 1 | BI216: 1 | BJ216: 1 | BK216: 1
B217: 79 | AT217: =IF((AT210&","&AT212&","&AT213&","&AT214&","&AT215&","&AT216)=AT218,"[Default]",(AT210&","&AT212&","&AT213&","&AT214&","&AT215&","&AT216)) -> [Default]
B218: 80 | AT218: Name of User Defined Location8 Out West,38,1,1,2,2,3,3,4,3,3,2,2,1,2,3,4,5,5,6,6,5,4,3,2,2,3,3,4,4,5,5,5,5,5,4,3,2,1,1,1,1,1,1,1.1,1,1,1,1,1,1,1,1,1,1,1,1.1,1,1,1,1,1
B219: 81
B220: 82
B221: 83
B222: 84
B223: 85
BZ266: LastCell

Sheet Shading--Array 2 (hidden)
A1: Shading Inputs | J1: Store Shading Data | T1: Load Shading Data | Y1: Load Shading Averages | AR1: StartPrivate | AT1: TRUE | AU1: Spot 1 | AY1: EndPrivate
AT2: FALSE | AU2: Spot 2
A3: Array 2 | AT3: TRUE | AU3: Spot 3
B5: Return to Inputs | AT5: TRUE | AU5: Spot 4
B8: Active Shading Table | J8: '0' = No Sun '0<>1' = Partial Sun '1' = Full Sun
B9: Hour / Month | C9: 5am | D9: 5:30 | E9: 6am | F9: 6:30 | G9: 7am | H9: 7:30 | I9: 8am | J9: 8:30 | K9: 9am | L9: 9:30 | M9: 10am | N9: 10:30 | O9: 11am | P9: 11:30 | Q9: 12noon | R9: 12:30 | S9: 1pm | T9: 1:30 | U9: 2pm | V9: 2:30 | W9: 3pm | X9: 3:30 | Y9: 4pm | Z9: 4:30 | AA9: 5pm | AB9: 5:30 | AC9: 6pm | AD9: 6:30 | AF9: =SysArrayAzimuth & " " & SysArraySlope & "°" -> S 22° | AG9: South at Latitude-Tilt
B10: December | C10: 0 | D10: 0 | E10: 0 | F10: 0 | G10: 1 | H10: 1 | I10: 1 | J10: 1 | K10: 1 | L10: 1 | M10: 1 | N10: 1 | O10: 1 | P10: 1 | Q10: 1 | R10: 1 | S10: 1 | T10: 1 | U10: 1 | V10: 1 | W10: 1 | X10: 1 | Y10: 1 | Z10: 1 | AA10: 0 | AB10: 0 | AC10: 0 | AD10: 0 | AE10: Dec | AF10: =ProdPvt!DB316 -> 0.99845 | AG10: =ProdPvt!AE220 -> 1
B11: January | C11: 0 | D11: 0 | E11: 0 | F11: 0 | G11: 0 | H11: 1 | I11: 1 | J11: 1 | K11: 1 | L11: 1 | M11: 1 | N11: 1 | O11: 1 | P11: 1 | Q11: 1 | R11: 1 | S11: 1 | T11: 1 | U11: 1 | V11: 1 | W11: 1 | X11: 1 | Y11: 1 | Z11: 1 | AA11: 0 | AB11: 0 | AC11: 0 | AD11: 0 | AE11: Jan | AF11: =ProdPvt!DB317 -> 0.99943 | AG11: =ProdPvt!AE221 -> 1 | AZ11: °
B12: November | C12: 0 | D12: 0 | E12: 0 | F12: 0 | G12: 1 | H12: 1 | I12: 1 | J12: 1 | K12: 1 | L12: 1 | M12: 1 | N12: 1 | O12: 1 | P12: 1 | Q12: 1 | R12: 1 | S12: 1 | T12: 1 | U12: 1 | V12: 1 | W12: 1 | X12: 1 | Y12: 1 | Z12: 1 | AA12: 0 | AB12: 0 | AC12: 0 | AD12: 0 | AE12: Nov | AF12: =ProdPvt!DB318 -> 0.99784 | AG12: =ProdPvt!AE222 -> 1
B13: February | C13: 0 | D13: 0 | E13: 0 | F13: 0 | G13: 1 | H13: 1 | I13: 1 | J13: 1 | K13: 1 | L13: 1 | M13: 1 | N13: 1 | O13: 1 | P13: 1 | Q13: 1 | R13: 1 | S13: 1 | T13: 1 | U13: 1 | V13: 1 | W13: 1 | X13: 1 | Y13: 1 | Z13: 1 | AA13: 0 | AB13: 0 | AC13: 0 | AD13: 0 | AE13: Feb | AF13: =ProdPvt!DB319 -> 0.99988 | AG13: =ProdPvt!AE223 -> 1
B14: October | C14: 0 | D14: 0 | E14: 0 | F14: 0 | G14: 1 | H14: 1 | I14: 1 | J14: 1 | K14: 1 | L14: 1 | M14: 1 | N14: 1 | O14: 1 | P14: 1 | Q14: 1 | R14: 1 | S14: 1 | T14: 1 | U14: 1 | V14: 1 | W14: 1 | X14: 1 | Y14: 1 | Z14: 1 | AA14: 0 | AB14: 0 | AC14: 0 | AD14: 0 | AE14: Oct | AF14: =ProdPvt!DB320 -> 0.99936 | AG14: =ProdPvt!AE224 -> 1
B15: March | C15: 0 | D15: 0 | E15: 0 | F15: 1 | G15: 1 | H15: 1 | I15: 1 | J15: 1 | K15: 1 | L15: 1 | M15: 1 | N15: 1 | O15: 1 | P15: 1 | Q15: 1 | R15: 1 | S15: 1 | T15: 1 | U15: 1 | V15: 1 | W15: 1 | X15: 1 | Y15: 1 | Z15: 1 | AA15: 1 | AB15: 1 | AC15: 0 | AD15: 0 | AE15: Mar | AF15: =ProdPvt!DB321 -> 0.99814 | AG15: =ProdPvt!AE225 -> 1
B16: September | C16: 0 | D16: 0 | E16: 0 | F16: 1 | G16: 1 | H16: 1 | I16: 1 | J16: 1 | K16: 1 | L16: 1 | M16: 1 | N16: 1 | O16: 1 | P16: 1 | Q16: 1 | R16: 1 | S16: 1 | T16: 1 | U16: 1 | V16: 1 | W16: 1 | X16: 1 | Y16: 1 | Z16: 1 | AA16: 1 | AB16: 1 | AC16: 0 | AD16: 0 | AE16: Sept | AF16: =ProdPvt!DB322 -> 0.99699 | AG16: =ProdPvt!AE226 -> 1
B17: April | C17: 0 | D17: 0 | E17: 0 | F17: 1 | G17: 1 | H17: 1 | I17: 1 | J17: 1 | K17: 1 | L17: 1 | M17: 1 | N17: 1 | O17: 1 | P17: 1 | Q17: 1 | R17: 1 | S17: 1 | T17: 1 | U17: 1 | V17: 1 | W17: 1 | X17: 1 | Y17: 1 | Z17: 1 | AA17: 1 | AB17: 1 | AC17: 0 | AD17: 0 | AE17: Apr | AF17: =ProdPvt!DB323 -> 0.99732 | AG17: =ProdPvt!AE227 -> 1
B18: August | C18: 0 | D18: 0 | E18: 1 | F18: 1 | G18: 1 | H18: 1 | I18: 1 | J18: 1 | K18: 1 | L18: 1 | M18: 1 | N18: 1 | O18: 1 | P18: 1 | Q18: 1 | R18: 1 | S18: 1 | T18: 1 | U18: 1 | V18: 1 | W18: 1 | X18: 1 | Y18: 1 | Z18: 1 | AA18: 1 | AB18: 1 | AC18: 0 | AD18: 0 | AE18: Aug | AF18: =ProdPvt!DB324 -> 0.99971 | AG18: =ProdPvt!AE228 -> 1
B19: May | C19: 0 | D19: 1 | E19: 1 | F19: 1 | G19: 1 | H19: 1 | I19: 1 | J19: 1 | K19: 1 | L19: 1 | M19: 1 | N19: 1 | O19: 1 | P19: 1 | Q19: 1 | R19: 1 | S19: 1 | T19: 1 | U19: 1 | V19: 1 | W19: 1 | X19: 1 | Y19: 1 | Z19: 1 | AA19: 1 | AB19: 1 | AC19: 0 | AD19: 0 | AE19: May | AF19: =ProdPvt!DB325 -> 0.9996 | AG19: =ProdPvt!AE229 -> 1
B20: July | C20: 0 | D20: 0 | E20: 1 | F20: 1 | G20: 1 | H20: 1 | I20: 1 | J20: 1 | K20: 1 | L20: 1 | M20: 1 | N20: 1 | O20: 1 | P20: 1 | Q20: 1 | R20: 1 | S20: 1 | T20: 1 | U20: 1 | V20: 1 | W20: 1 | X20: 1 | Y20: 1 | Z20: 1 | AA20: 1 | AB20: 1 | AC20: 0 | AD20: 0 | AE20: Jul | AF20: =ProdPvt!DB326 -> 1.003515 | AG20: =ProdPvt!AE230 -> 1
B21: June | C21: 0 | D21: 1 | E21: 1 | F21: 1 | G21: 1 | H21: 1 | I21: 1 | J21: 1 | K21: 1 | L21: 1 | M21: 1 | N21: 1 | O21: 1 | P21: 1 | Q21: 1 | R21: 1 | S21: 1 | T21: 1 | U21: 1 | V21: 1 | W21: 1 | X21: 1 | Y21: 1 | Z21: 1 | AA21: 1 | AB21: 1 | AC21: 1 | AD21: 0 | AE21: Jun | AF21: =ProdPvt!DB327 -> 0.99932 | AG21: =ProdPvt!AE231 -> 1 | AS21: Average (4), 10/17/2007 11:15:00 AM, , 37, 14 | AV21: Average (4), 10/17/2007 11:15:00 AM, , 37, 14 | AY21: Average (4), 10/17/2007 11:15:00 AM, , 37, 14
B23: Skyline Info (Optional): | T23: % of Max. Annual Production:
C24: Skyline Name | T24: 1 | V24: South Facing, Latitude-Tilt, No Shade | AC24: =AVERAGE(AG10:AG21) -> 1 | AF24: South, Latitude, With Shade
C25: Date of Creation | T25: =AVERAGE(AG10:AG21) -> 1 | V25: S Latitude With Shade
C26: Time of Creation | T26: =AT26 -> 0.9993329167 | V26: =SysArrayAzimuth2 & " " & SysArraySlope2 & "° No Shade" -> S 22° No Shade | AC26: =AT27 -> 0.9991295833 | AF26: =" " & SysArrayAzimuth2 & ", " & SysArraySlope2 & "°, With Shade" -> S, 22°, With Shade | AT26: =AVERAGE(ProdPvt!DB284:DB295) -> 0.9993329167 | AU26: Real System, No Sh.
C27: Latitude | T27: =AT27 -> 0.9991295833 | V27: =SysArrayAzimuth2 & " " & SysArraySlope2 & "° With Shade" -> S 22° With Shade | AT27: =AVERAGE(ProdPvt!DB316:DB327) -> 0.9991295833 | AU27: EffShadeAnnualAvg
C28: Magnetic Declination | T28: =AT28 -> 0.9997491667 | V28: =SysArrayAzimuth2 & " " & SysArraySlope2 & "° With Shade--SUMMER (May - Oct)" -> S 22° With Shade--SUMMER (May - Oct) | AT28: =AVERAGE(ProdPvt!DB320,ProdPvt!DB322,ProdPvt!DB324:DB327) -> 0.9997491667 | AU28: Summer Shade
B31: Storage Spot 1 | D31: ?
B32: December | C32: 0 | D32: 0 | E32: 0 | F32: 0 | G32: 1 | H32: 1 | I32: 1 | J32: 1 | K32: 1 | L32: 1 | M32: 1 | N32: 1 | O32: 1 | P32: 1 | Q32: 1 | R32: 1 | S32: 1 | T32: 1 | U32: 1 | V32: 1 | W32: 1 | X32: 1 | Y32: 1 | Z32: 1 | AA32: 0 | AB32: 0 | AC32: 0 | AD32: 0 | AE32: Dec
B33: January | C33: 0 | D33: 0 | E33: 0 | F33: 0 | G33: 0 | H33: 1 | I33: 1 | J33: 1 | K33: 1 | L33: 1 | M33: 1 | N33: 1 | O33: 1 | P33: 1 | Q33: 1 | R33: 1 | S33: 1 | T33: 1 | U33: 1 | V33: 1 | W33: 1 | X33: 1 | Y33: 1 | Z33: 1 | AA33: 0 | AB33: 0 | AC33: 0 | AD33: 0 | AE33: Jan
B34: November | C34: 0 | D34: 0 | E34: 0 | F34: 0 | G34: 1 | H34: 1 | I34: 1 | J34: 1 | K34: 1 | L34: 1 | M34: 1 | N34: 1 | O34: 1 | P34: 1 | Q34: 1 | R34: 1 | S34: 1 | T34: 1 | U34: 1 | V34: 1 | W34: 1 | X34: 1 | Y34: 1 | Z34: 1 | AA34: 0 | AB34: 0 | AC34: 0 | AD34: 0 | AE34: Nov
B35: February | C35: 0 | D35: 0 | E35: 0 | F35: 0 | G35: 1 | H35: 1 | I35: 1 | J35: 1 | K35: 1 | L35: 1 | M35: 1 | N35: 1 | O35: 1 | P35: 1 | Q35: 1 | R35: 1 | S35: 1 | T35: 1 | U35: 1 | V35: 1 | W35: 1 | X35: 1 | Y35: 1 | Z35: 1 | AA35: 0 | AB35: 0 | AC35: 0 | AD35: 0 | AE35: Feb
B36: October | C36: 0 | D36: 0 | E36: 0 | F36: 0 | G36: 1 | H36: 1 | I36: 1 | J36: 1 | K36: 1 | L36: 1 | M36: 1 | N36: 1 | O36: 1 | P36: 1 | Q36: 1 | R36: 1 | S36: 1 | T36: 1 | U36: 1 | V36: 1 | W36: 1 | X36: 1 | Y36: 1 | Z36: 1 | AA36: 0 | AB36: 0 | AC36: 0 | AD36: 0 | AE36: Oct
B37: March | C37: 0 | D37: 0 | E37: 0 | F37: 1 | G37: 1 | H37: 1 | I37: 1 | J37: 1 | K37: 1 | L37: 1 | M37: 1 | N37: 1 | O37: 1 | P37: 1 | Q37: 1 | R37: 1 | S37: 1 | T37: 1 | U37: 1 | V37: 1 | W37: 1 | X37: 1 | Y37: 1 | Z37: 1 | AA37: 1 | AB37: 1 | AC37: 0 | AD37: 0 | AE37: Mar
B38: September | C38: 0 | D38: 0 | E38: 0 | F38: 1 | G38: 1 | H38: 1 | I38: 1 | J38: 1 | K38: 1 | L38: 1 | M38: 1 | N38: 1 | O38: 1 | P38: 1 | Q38: 1 | R38: 1 | S38: 1 | T38: 1 | U38: 1 | V38: 1 | W38: 1 | X38: 1 | Y38: 1 | Z38: 1 | AA38: 1 | AB38: 1 | AC38: 0 | AD38: 0 | AE38: Sept
B39: April | C39: 0 | D39: 0 | E39: 0 | F39: 1 | G39: 1 | H39: 1 | I39: 1 | J39: 1 | K39: 1 | L39: 1 | M39: 1 | N39: 1 | O39: 1 | P39: 1 | Q39: 1 | R39: 1 | S39: 1 | T39: 1 | U39: 1 | V39: 1 | W39: 1 | X39: 1 | Y39: 1 | Z39: 1 | AA39: 1 | AB39: 1 | AC39: 0 | AD39: 0 | AE39: Apr
B40: August | C40: 0 | D40: 0 | E40: 1 | F40: 1 | G40: 1 | H40: 1 | I40: 1 | J40: 1 | K40: 1 | L40: 1 | M40: 1 | N40: 1 | O40: 1 | P40: 1 | Q40: 1 | R40: 1 | S40: 1 | T40: 1 | U40: 1 | V40: 1 | W40: 1 | X40: 1 | Y40: 1 | Z40: 1 | AA40: 1 | AB40: 1 | AC40: 0 | AD40: 0 | AE40: Aug
B41: May | C41: 0 | D41: 1 | E41: 1 | F41: 1 | G41: 1 | H41: 1 | I41: 1 | J41: 1 | K41: 1 | L41: 1 | M41: 1 | N41: 1 | O41: 1 | P41: 1 | Q41: 1 | R41: 1 | S41: 1 | T41: 1 | U41: 1 | V41: 1 | W41: 1 | X41: 1 | Y41: 1 | Z41: 1 | AA41: 1 | AB41: 1 | AC41: 0 | AD41: 0 | AE41: May
B42: July | C42: 0 | D42: 0 | E42: 1 | F42: 1 | G42: 1 | H42: 1 | I42: 1 | J42: 1 | K42: 1 | L42: 1 | M42: 1 | N42: 1 | O42: 1 | P42: 1 | Q42: 1 | R42: 1 | S42: 1 | T42: 1 | U42: 1 | V42: 1 | W42: 1 | X42: 1 | Y42: 1 | Z42: 1 | AA42: 1 | AB42: 1 | AC42: 0 | AD42: 0 | AE42: Jul
B43: June | C43: 0 | D43: 1 | E43: 1 | F43: 1 | G43: 1 | H43: 1 | I43: 1 | J43: 1 | K43: 1 | L43: 1 | M43: 1 | N43: 1 | O43: 1 | P43: 1 | Q43: 1 | R43: 1 | S43: 1 | T43: 1 | U43: 1 | V43: 1 | W43: 1 | X43: 1 | Y43: 1 | Z43: 1 | AA43: 1 | AB43: 1 | AC43: 1 | AD43: 0 | AE43: Jun
C44: Skyline Name
C45: Date of Creation
C46: Time of Creation
C47: Latitude
C48: Magnetic Declination
B50: Storage Spot 2
B51: December | C51: 0 | D51: 0 | E51: 0 | F51: 0 | G51: 1 | H51: 1 | I51: 1 | J51: 1 | K51: 1 | L51: 1 | M51: 1 | N51: 1 | O51: 1 | P51: 1 | Q51: 1 | R51: 1 | S51: 1 | T51: 1 | U51: 1 | V51: 1 | W51: 1 | X51: 1 | Y51: 1 | Z51: 1 | AA51: 0 | AB51: 0 | AC51: 0 | AD51: 0 | AE51: Dec
B52: January | C52: 0 | D52: 0 | E52: 0 | F52: 0 | G52: 0 | H52: 1 | I52: 1 | J52: 1 | K52: 1 | L52: 1 | M52: 1 | N52: 1 | O52: 1 | P52: 1 | Q52: 1 | R52: 1 | S52: 1 | T52: 1 | U52: 1 | V52: 1 | W52: 1 | X52: 1 | Y52: 1 | Z52: 1 | AA52: 0 | AB52: 0 | AC52: 0 | AD52: 0 | AE52: Jan
B53: November | C53: 0 | D53: 0 | E53: 0 | F53: 0 | G53: 1 | H53: 1 | I53: 1 | J53: 1 | K53: 1 | L53: 1 | M53: 1 | N53: 1 | O53: 1 | P53: 1 | Q53: 1 | R53: 1 | S53: 1 | T53: 1 | U53: 1 | V53: 1 | W53: 1 | X53: 1 | Y53: 1 | Z53: 1 | AA53: 0 | AB53: 0 | AC53: 0 | AD53: 0 | AE53: Nov
B54: February | C54: 0 | D54: 0 | E54: 0 | F54: 0 | G54: 1 | H54: 1 | I54: 1 | J54: 1 | K54: 1 | L54: 1 | M54: 1 | N54: 1 | O54: 1 | P54: 1 | Q54: 1 | R54: 1 | S54: 1 | T54: 1 | U54: 1 | V54: 1 | W54: 1 | X54: 1 | Y54: 1 | Z54: 1 | AA54: 0 | AB54: 0 | AC54: 0 | AD54: 0 | AE54: Feb
B55: October | C55: 0 | D55: 0 | E55: 0 | F55: 0 | G55: 1 | H55: 1 | I55: 1 | J55: 1 | K55: 1 | L55: 1 | M55: 1 | N55: 1 | O55: 1 | P55: 1 | Q55: 1 | R55: 1 | S55: 1 | T55: 1 | U55: 1 | V55: 1 | W55: 1 | X55: 1 | Y55: 1 | Z55: 1 | AA55: 0 | AB55: 0 | AC55: 0 | AD55: 0 | AE55: Oct
B56: March | C56: 0 | D56: 0 | E56: 0 | F56: 1 | G56: 1 | H56: 1 | I56: 1 | J56: 1 | K56: 1 | L56: 1 | M56: 1 | N56: 1 | O56: 1 | P56: 1 | Q56: 1 | R56: 1 | S56: 1 | T56: 1 | U56: 1 | V56: 1 | W56: 1 | X56: 1 | Y56: 1 | Z56: 1 | AA56: 1 | AB56: 1 | AC56: 0 | AD56: 0 | AE56: Mar
B57: September | C57: 0 | D57: 0 | E57: 0 | F57: 1 | G57: 1 | H57: 1 | I57: 1 | J57: 1 | K57: 1 | L57: 1 | M57: 1 | N57: 1 | O57: 1 | P57: 1 | Q57: 1 | R57: 1 | S57: 1 | T57: 1 | U57: 1 | V57: 1 | W57: 1 | X57: 1 | Y57: 1 | Z57: 1 | AA57: 1 | AB57: 1 | AC57: 0 | AD57: 0 | AE57: Sept
B58: April | C58: 0 | D58: 0 | E58: 0 | F58: 1 | G58: 1 | H58: 1 | I58: 1 | J58: 1 | K58: 1 | L58: 1 | M58: 1 | N58: 1 | O58: 1 | P58: 1 | Q58: 1 | R58: 1 | S58: 1 | T58: 1 | U58: 1 | V58: 1 | W58: 1 | X58: 1 | Y58: 1 | Z58: 1 | AA58: 1 | AB58: 1 | AC58: 0 | AD58: 0 | AE58: Apr
B59: August | C59: 0 | D59: 0 | E59: 1 | F59: 1 | G59: 1 | H59: 1 | I59: 1 | J59: 1 | K59: 1 | L59: 1 | M59: 1 | N59: 1 | O59: 1 | P59: 1 | Q59: 1 | R59: 1 | S59: 1 | T59: 1 | U59: 1 | V59: 1 | W59: 1 | X59: 1 | Y59: 1 | Z59: 1 | AA59: 1 | AB59: 1 | AC59: 0 | AD59: 0 | AE59: Aug
B60: May | C60: 0 | D60: 1 | E60: 1 | F60: 1 | G60: 1 | H60: 1 | I60: 1 | J60: 1 | K60: 1 | L60: 1 | M60: 1 | N60: 1 | O60: 1 | P60: 1 | Q60: 1 | R60: 1 | S60: 1 | T60: 1 | U60: 1 | V60: 1 | W60: 1 | X60: 1 | Y60: 1 | Z60: 1 | AA60: 1 | AB60: 1 | AC60: 0 | AD60: 0 | AE60: May
B61: July | C61: 0 | D61: 0 | E61: 1 | F61: 1 | G61: 1 | H61: 1 | I61: 1 | J61: 1 | K61: 1 | L61: 1 | M61: 1 | N61: 1 | O61: 1 | P61: 1 | Q61: 1 | R61: 1 | S61: 1 | T61: 1 | U61: 1 | V61: 1 | W61: 1 | X61: 1 | Y61: 1 | Z61: 1 | AA61: 1 | AB61: 1 | AC61: 0 | AD61: 0 | AE61: Jul
B62: June | C62: 0 | D62: 1 | E62: 1 | F62: 1 | G62: 1 | H62: 1 | I62: 1 | J62: 1 | K62: 1 | L62: 1 | M62: 1 | N62: 1 | O62: 1 | P62: 1 | Q62: 1 | R62: 1 | S62: 1 | T62: 1 | U62: 1 | V62: 1 | W62: 1 | X62: 1 | Y62: 1 | Z62: 1 | AA62: 1 | AB62: 1 | AC62: 1 | AD62: 0 | AE62: Jun
C63: Skyline Name
C64: Date of Creation
C65: Time of Creation
C66: Latitude
C67: Magnetic Declination
B69: Storage Spot 3
B70: December | C70: 0 | D70: 0 | E70: 0 | F70: 0 | G70: 1 | H70: 1 | I70: 1 | J70: 1 | K70: 1 | L70: 1 | M70: 1 | N70: 1 | O70: 1 | P70: 1 | Q70: 1 | R70: 1 | S70: 1 | T70: 1 | U70: 1 | V70: 1 | W70: 1 | X70: 1 | Y70: 1 | Z70: 1 | AA70: 0 | AB70: 0 | AC70: 0 | AD70: 0 | AE70: Dec
B71: January | C71: 0 | D71: 0 | E71: 0 | F71: 0 | G71: 0 | H71: 1 | I71: 1 | J71: 1 | K71: 1 | L71: 1 | M71: 1 | N71: 1 | O71: 1 | P71: 1 | Q71: 1 | R71: 1 | S71: 1 | T71: 1 | U71: 1 | V71: 1 | W71: 1 | X71: 1 | Y71: 1 | Z71: 1 | AA71: 0 | AB71: 0 | AC71: 0 | AD71: 0 | AE71: Jan
B72: November | C72: 0 | D72: 0 | E72: 0 | F72: 0 | G72: 1 | H72: 1 | I72: 1 | J72: 1 | K72: 1 | L72: 1 | M72: 1 | N72: 1 | O72: 1 | P72: 1 | Q72: 1 | R72: 1 | S72: 1 | T72: 1 | U72: 1 | V72: 1 | W72: 1 | X72: 1 | Y72: 1 | Z72: 1 | AA72: 0 | AB72: 0 | AC72: 0 | AD72: 0 | AE72: Nov
B73: February | C73: 0 | D73: 0 | E73: 0 | F73: 0 | G73: 1 | H73: 1 | I73: 1 | J73: 1 | K73: 1 | L73: 1 | M73: 1 | N73: 1 | O73: 1 | P73: 1 | Q73: 1 | R73: 1 | S73: 1 | T73: 1 | U73: 1 | V73: 1 | W73: 1 | X73: 1 | Y73: 1 | Z73: 1 | AA73: 0 | AB73: 0 | AC73: 0 | AD73: 0 | AE73: Feb
B74: October | C74: 0 | D74: 0 | E74: 0 | F74: 0 | G74: 1 | H74: 1 | I74: 1 | J74: 1 | K74: 1 | L74: 1 | M74: 1 | N74: 1 | O74: 1 | P74: 1 | Q74: 1 | R74: 1 | S74: 1 | T74: 1 | U74: 1 | V74: 1 | W74: 1 | X74: 1 | Y74: 1 | Z74: 1 | AA74: 0 | AB74: 0 | AC74: 0 | AD74: 0 | AE74: Oct
B75: March | C75: 0 | D75: 0 | E75: 0 | F75: 1 | G75: 1 | H75: 1 | I75: 1 | J75: 1 | K75: 1 | L75: 1 | M75: 1 | N75: 1 | O75: 1 | P75: 1 | Q75: 1 | R75: 1 | S75: 1 | T75: 1 | U75: 1 | V75: 1 | W75: 1 | X75: 1 | Y75: 1 | Z75: 1 | AA75: 1 | AB75: 1 | AC75: 0 | AD75: 0 | AE75: Mar
B76: September | C76: 0 | D76: 0 | E76: 0 | F76: 1 | G76: 1 | H76: 1 | I76: 1 | J76: 1 | K76: 1 | L76: 1 | M76: 1 | N76: 1 | O76: 1 | P76: 1 | Q76: 1 | R76: 1 | S76: 1 | T76: 1 | U76: 1 | V76: 1 | W76: 1 | X76: 1 | Y76: 1 | Z76: 1 | AA76: 1 | AB76: 1 | AC76: 0 | AD76: 0 | AE76: Sept
B77: April | C77: 0 | D77: 0 | E77: 0 | F77: 1 | G77: 1 | H77: 1 | I77: 1 | J77: 1 | K77: 1 | L77: 1 | M77: 1 | N77: 1 | O77: 1 | P77: 1 | Q77: 1 | R77: 1 | S77: 1 | T77: 1 | U77: 1 | V77: 1 | W77: 1 | X77: 1 | Y77: 1 | Z77: 1 | AA77: 1 | AB77: 1 | AC77: 0 | AD77: 0 | AE77: Apr
B78: August | C78: 0 | D78: 0 | E78: 1 | F78: 1 | G78: 1 | H78: 1 | I78: 1 | J78: 1 | K78: 1 | L78: 1 | M78: 1 | N78: 1 | O78: 1 | P78: 1 | Q78: 1 | R78: 1 | S78: 1 | T78: 1 | U78: 1 | V78: 1 | W78: 1 | X78: 1 | Y78: 1 | Z78: 1 | AA78: 1 | AB78: 1 | AC78: 0 | AD78: 0 | AE78: Aug
B79: May | C79: 0 | D79: 1 | E79: 1 | F79: 1 | G79: 1 | H79: 1 | I79: 1 | J79: 1 | K79: 1 | L79: 1 | M79: 1 | N79: 1 | O79: 1 | P79: 1 | Q79: 1 | R79: 1 | S79: 1 | T79: 1 | U79: 1 | V79: 1 | W79: 1 | X79: 1 | Y79: 1 | Z79: 1 | AA79: 1 | AB79: 1 | AC79: 0 | AD79: 0 | AE79: May
B80: July | C80: 0 | D80: 0 | E80: 1 | F80: 1 | G80: 1 | H80: 1 | I80: 1 | J80: 1 | K80: 1 | L80: 1 | M80: 1 | N80: 1 | O80: 1 | P80: 1 | Q80: 1 | R80: 1 | S80: 1 | T80: 1 | U80: 1 | V80: 1 | W80: 1 | X80: 1 | Y80: 1 | Z80: 1 | AA80: 1 | AB80: 1 | AC80: 0 | AD80: 0 | AE80: Jul
B81: June | C81: 0 | D81: 1 | E81: 1 | F81: 1 | G81: 1 | H81: 1 | I81: 1 | J81: 1 | K81: 1 | L81: 1 | M81: 1 | N81: 1 | O81: 1 | P81: 1 | Q81: 1 | R81: 1 | S81: 1 | T81: 1 | U81: 1 | V81: 1 | W81: 1 | X81: 1 | Y81: 1 | Z81: 1 | AA81: 1 | AB81: 1 | AC81: 1 | AD81: 0 | AE81: Jun
C82: Skyline Name
C83: Date of Creation
C84: Time of Creation
C85: Latitude
C86: Magnetic Declination
B88: Storage Spot 4
B89: December | C89: 0 | D89: 0 | E89: 0 | F89: 0 | G89: 1 | H89: 1 | I89: 1 | J89: 1 | K89: 1 | L89: 1 | M89: 1 | N89: 1 | O89: 1 | P89: 1 | Q89: 1 | R89: 1 | S89: 1 | T89: 1 | U89: 1 | V89: 1 | W89: 1 | X89: 1 | Y89: 1 | Z89: 1 | AA89: 0 | AB89: 0 | AC89: 0 | AD89: 0 | AE89: Dec
B90: January | C90: 0 | D90: 0 | E90: 0 | F90: 0 | G90: 0 | H90: 1 | I90: 1 | J90: 1 | K90: 1 | L90: 1 | M90: 1 | N90: 1 | O90: 1 | P90: 1 | Q90: 1 | R90: 1 | S90: 1 | T90: 1 | U90: 1 | V90: 1 | W90: 1 | X90: 1 | Y90: 1 | Z90: 1 | AA90: 0 | AB90: 0 | AC90: 0 | AD90: 0 | AE90: Jan
B91: November | C91: 0 | D91: 0 | E91: 0 | F91: 0 | G91: 1 | H91: 1 | I91: 1 | J91: 1 | K91: 1 | L91: 1 | M91: 1 | N91: 1 | O91: 1 | P91: 1 | Q91: 1 | R91: 1 | S91: 1 | T91: 1 | U91: 1 | V91: 1 | W91: 1 | X91: 1 | Y91: 1 | Z91: 1 | AA91: 0 | AB91: 0 | AC91: 0 | AD91: 0 | AE91: Nov
B92: February | C92: 0 | D92: 0 | E92: 0 | F92: 0 | G92: 1 | H92: 1 | I92: 1 | J92: 1 | K92: 1 | L92: 1 | M92: 1 | N92: 1 | O92: 1 | P92: 1 | Q92: 1 | R92: 1 | S92: 1 | T92: 1 | U92: 1 | V92: 1 | W92: 1 | X92: 1 | Y92: 1 | Z92: 1 | AA92: 0 | AB92: 0 | AC92: 0 | AD92: 0 | AE92: Feb
B93: October | C93: 0 | D93: 0 | E93: 0 | F93: 0 | G93: 1 | H93: 1 | I93: 1 | J93: 1 | K93: 1 | L93: 1 | M93: 1 | N93: 1 | O93: 1 | P93: 1 | Q93: 1 | R93: 1 | S93: 1 | T93: 1 | U93: 1 | V93: 1 | W93: 1 | X93: 1 | Y93: 1 | Z93: 1 | AA93: 0 | AB93: 0 | AC93: 0 | AD93: 0 | AE93: Oct
B94: March | C94: 0 | D94: 0 | E94: 0 | F94: 1 | G94: 1 | H94: 1 | I94: 1 | J94: 1 | K94: 1 | L94: 1 | M94: 1 | N94: 1 | O94: 1 | P94: 1 | Q94: 1 | R94: 1 | S94: 1 | T94: 1 | U94: 1 | V94: 1 | W94: 1 | X94: 1 | Y94: 1 | Z94: 1 | AA94: 1 | AB94: 1 | AC94: 0 | AD94: 0 | AE94: Mar
B95: September | C95: 0 | D95: 0 | E95: 0 | F95: 1 | G95: 1 | H95: 1 | I95: 1 | J95: 1 | K95: 1 | L95: 1 | M95: 1 | N95: 1 | O95: 1 | P95: 1 | Q95: 1 | R95: 1 | S95: 1 | T95: 1 | U95: 1 | V95: 1 | W95: 1 | X95: 1 | Y95: 1 | Z95: 1 | AA95: 1 | AB95: 1 | AC95: 0 | AD95: 0 | AE95: Sept
B96: April | C96: 0 | D96: 0 | E96: 0 | F96: 1 | G96: 1 | H96: 1 | I96: 1 | J96: 1 | K96: 1 | L96: 1 | M96: 1 | N96: 1 | O96: 1 | P96: 1 | Q96: 1 | R96: 1 | S96: 1 | T96: 1 | U96: 1 | V96: 1 | W96: 1 | X96: 1 | Y96: 1 | Z96: 1 | AA96: 1 | AB96: 1 | AC96: 0 | AD96: 0 | AE96: Apr
B97: August | C97: 0 | D97: 0 | E97: 1 | F97: 1 | G97: 1 | H97: 1 | I97: 1 | J97: 1 | K97: 1 | L97: 1 | M97: 1 | N97: 1 | O97: 1 | P97: 1 | Q97: 1 | R97: 1 | S97: 1 | T97: 1 | U97: 1 | V97: 1 | W97: 1 | X97: 1 | Y97: 1 | Z97: 1 | AA97: 1 | AB97: 1 | AC97: 0 | AD97: 0 | AE97: Aug
B98: May | C98: 0 | D98: 1 | E98: 1 | F98: 1 | G98: 1 | H98: 1 | I98: 1 | J98: 1 | K98: 1 | L98: 1 | M98: 1 | N98: 1 | O98: 1 | P98: 1 | Q98: 1 | R98: 1 | S98: 1 | T98: 1 | U98: 1 | V98: 1 | W98: 1 | X98: 1 | Y98: 1 | Z98: 1 | AA98: 1 | AB98: 1 | AC98: 0 | AD98: 0 | AE98: May
B99: July | C99: 0 | D99: 0 | E99: 1 | F99: 1 | G99: 1 | H99: 1 | I99: 1 | J99: 1 | K99: 1 | L99: 1 | M99: 1 | N99: 1 | O99: 1 | P99: 1 | Q99: 1 | R99: 1 | S99: 1 | T99: 1 | U99: 1 | V99: 1 | W99: 1 | X99: 1 | Y99: 1 | Z99: 1 | AA99: 1 | AB99: 1 | AC99: 0 | AD99: 0 | AE99: Jul
B100: June | C100: 0 | D100: 1 | E100: 1 | F100: 1 | G100: 1 | H100: 1 | I100: 1 | J100: 1 | K100: 1 | L100: 1 | M100: 1 | N100: 1 | O100: 1 | P100: 1 | Q100: 1 | R100: 1 | S100: 1 | T100: 1 | U100: 1 | V100: 1 | W100: 1 | X100: 1 | Y100: 1 | Z100: 1 | AA100: 1 | AB100: 1 | AC100: 1 | AD100: 0 | AE100: Jun
C101: Skyline Name
C102: Date of Creation
C103: Time of Creation
C104: Latitude
C105: Magnetic Declination
A113: StartPrivate
B115: Reset Shading
B116: Dec | C116: 0 | D116: 0 | E116: 0 | F116: 0 | G116: 1 | H116: 1 | I116: 1 | J116: 1 | K116: 1 | L116: 1 | M116: 1 | N116: 1 | O116: 1 | P116: 1 | Q116: 1 | R116: 1 | S116: 1 | T116: 1 | U116: 1 | V116: 1 | W116: 1 | X116: 1 | Y116: 1 | Z116: 1 | AA116: 0 | AB116: 0 | AC116: 0 | AD116: 0 | AE116: Dec
B117: Jan | C117: 0 | D117: 0 | E117: 0 | F117: 0 | G117: 0 | H117: 1 | I117: 1 | J117: 1 | K117: 1 | L117: 1 | M117: 1 | N117: 1 | O117: 1 | P117: 1 | Q117: 1 | R117: 1 | S117: 1 | T117: 1 | U117: 1 | V117: 1 | W117: 1 | X117: 1 | Y117: 1 | Z117: 1 | AA117: 0 | AB117: 0 | AC117: 0 | AD117: 0 | AE117: Jan
B118: Nov | C118: 0 | D118: 0 | E118: 0 | F118: 0 | G118: 1 | H118: 1 | I118: 1 | J118: 1 | K118: 1 | L118: 1 | M118: 1 | N118: 1 | O118: 1 | P118: 1 | Q118: 1 | R118: 1 | S118: 1 | T118: 1 | U118: 1 | V118: 1 | W118: 1 | X118: 1 | Y118: 1 | Z118: 1 | AA118: 0 | AB118: 0 | AC118: 0 | AD118: 0 | AE118: Nov
B119: Feb | C119: 0 | D119: 0 | E119: 0 | F119: 0 | G119: 1 | H119: 1 | I119: 1 | J119: 1 | K119: 1 | L119: 1 | M119: 1 | N119: 1 | O119: 1 | P119: 1 | Q119: 1 | R119: 1 | S119: 1 | T119: 1 | U119: 1 | V119: 1 | W119: 1 | X119: 1 | Y119: 1 | Z119: 1 | AA119: 0 | AB119: 0 | AC119: 0 | AD119: 0 | AE119: Feb
B120: Oct | C120: 0 | D120: 0 | E120: 0 | F120: 0 | G120: 1 | H120: 1 | I120: 1 | J120: 1 | K120: 1 | L120: 1 | M120: 1 | N120: 1 | O120: 1 | P120: 1 | Q120: 1 | R120: 1 | S120: 1 | T120: 1 | U120: 1 | V120: 1 | W120: 1 | X120: 1 | Y120: 1 | Z120: 1 | AA120: 0 | AB120: 0 | AC120: 0 | AD120: 0 | AE120: Oct
B121: Mar | C121: 0 | D121: 0 | E121: 0 | F121: 1 | G121: 1 | H121: 1 | I121: 1 | J121: 1 | K121: 1 | L121: 1 | M121: 1 | N121: 1 | O121: 1 | P121: 1 | Q121: 1 | R121: 1 | S121: 1 | T121: 1 | U121: 1 | V121: 1 | W121: 1 | X121: 1 | Y121: 1 | Z121: 1 | AA121: 1 | AB121: 1 | AC121: 0 | AD121: 0 | AE121: Mar
B122: Sept | C122: 0 | D122: 0 | E122: 0 | F122: 1 | G122: 1 | H122: 1 | I122: 1 | J122: 1 | K122: 1 | L122: 1 | M122: 1 | N122: 1 | O122: 1 | P122: 1 | Q122: 1 | R122: 1 | S122: 1 | T122: 1 | U122: 1 | V122: 1 | W122: 1 | X122: 1 | Y122: 1 | Z122: 1 | AA122: 1 | AB122: 1 | AC122: 0 | AD122: 0 | AE122: Sept
B123: Apr | C123: 0 | D123: 0 | E123: 0 | F123: 1 | G123: 1 | H123: 1 | I123: 1 | J123: 1 | K123: 1 | L123: 1 | M123: 1 | N123: 1 | O123: 1 | P123: 1 | Q123: 1 | R123: 1 | S123: 1 | T123: 1 | U123: 1 | V123: 1 | W123: 1 | X123: 1 | Y123: 1 | Z123: 1 | AA123: 1 | AB123: 1 | AC123: 0 | AD123: 0 | AE123: Apr
B124: Aug | C124: 0 | D124: 0 | E124: 1 | F124: 1 | G124: 1 | H124: 1 | I124: 1 | J124: 1 | K124: 1 | L124: 1 | M124: 1 | N124: 1 | O124: 1 | P124: 1 | Q124: 1 | R124: 1 | S124: 1 | T124: 1 | U124: 1 | V124: 1 | W124: 1 | X124: 1 | Y124: 1 | Z124: 1 | AA124: 1 | AB124: 1 | AC124: 0 | AD124: 0 | AE124: Aug
B125: May | C125: 0 | D125: 1 | E125: 1 | F125: 1 | G125: 1 | H125: 1 | I125: 1 | J125: 1 | K125: 1 | L125: 1 | M125: 1 | N125: 1 | O125: 1 | P125: 1 | Q125: 1 | R125: 1 | S125: 1 | T125: 1 | U125: 1 | V125: 1 | W125: 1 | X125: 1 | Y125: 1 | Z125: 1 | AA125: 1 | AB125: 1 | AC125: 0 | AD125: 0 | AE125: May
B126: Jul | C126: 0 | D126: 0 | E126: 1 | F126: 1 | G126: 1 | H126: 1 | I126: 1 | J126: 1 | K126: 1 | L126: 1 | M126: 1 | N126: 1 | O126: 1 | P126: 1 | Q126: 1 | R126: 1 | S126: 1 | T126: 1 | U126: 1 | V126: 1 | W126: 1 | X126: 1 | Y126: 1 | Z126: 1 | AA126: 1 | AB126: 1 | AC126: 0 | AD126: 0 | AE126: Jul
B127: Jun | C127: 0 | D127: 1 | E127: 1 | F127: 1 | G127: 1 | H127: 1 | I127: 1 | J127: 1 | K127: 1 | L127: 1 | M127: 1 | N127: 1 | O127: 1 | P127: 1 | Q127: 1 | R127: 1 | S127: 1 | T127: 1 | U127: 1 | V127: 1 | W127: 1 | X127: 1 | Y127: 1 | Z127: 1 | AA127: 1 | AB127: 1 | AC127: 1 | AD127: 0 | AE127: Jun
A129: EndPrivate
AH182: =IF(LEFT(SiteRedbookCity,4)="User",AH140,AH161) ->  | AI182: =IF(LEFT(SiteRedbookCity,4)="User",AI140,AI161) ->  | AJ182: =IF(LEFT(SiteRedbookCity,4)="User",AJ140,AJ161) ->  | AK182: =IF(LEFT(SiteRedbookCity,4)="User",AK140,AK161) -> 
BC266: LastCell

Sheet Overview (hidden)
AJ1: StartExtraPublic | BI1: EndExtraPublic | BL1: StartPrivate | BV1: EndPrivate
B2: ="Top" -> Top | C2: ="IRR" -> IRR | D2: =IF(Fin1IsDebt,IF(Fin1IsLoc,"LOC","Loan")&" 1 Annual Payments",IF(Fin2IsDebt,IF(Fin1IsLoc,"LOC","Loan")&" 2 Annual Payments","")) -> Loan 1 Annual Payments | G2: =IF(OR(Fin1IsDebt,Fin2IsDebt),IF(Fin1IsLoc,"LOC","Loan")&" Cash Flow",IF(Fin1IsPPA,"PPA Cash Flow",IF(Fin1IsLease,"Lease Cash Flow",""))) -> Loan Cash Flow | J2: ="Resale" -> Resale
C3: Year: | D3: 0 | E3: 1 | F3: 2 | G3: 3 | H3: 4 | I3: 5 | J3: 6 | K3: 7 | L3: 8 | M3: 9 | N3: 10 | O3: 11 | P3: 12 | Q3: 13 | R3: 14 | S3: 15 | T3: 16 | U3: 17 | V3: 18 | W3: 19 | X3: 20 | Y3: 21 | Z3: 22 | AA3: 23 | AB3: 24 | AC3: 25
B5: Proposal Template Design & Review | BM5: Toggle Row 1 / Column A
B6: Proposal Header Design & Review
B8: Print Proposal
B10: Document Template Design & Review
B12: Print Document
B14: View After-Tax Analysis*
B15: View Analysis with Pre-Tax Adjustment
A17: =IF(OverviewIRR_PreTax,"IRRPreTaxStart","IRRAfterTaxStart") -> IRRPreTaxStart | B17: =" "&IF(OverviewIRR_PreTax,IF(ISBLANK(TimelinesPvt!$B$103),"",TimelinesPvt!$B$103),IF(ISBLANK(TimelinesPvt!$B$161),"",TimelinesPvt!$B$161)) -> Commercial After-Tax Analysis | C17: =" " &IF(OR(Fin1IsLease,Fin1IsPPA),"This IRR timeline assumes cash purchase. See below for a "&IF(Fin1IsLease,"lease","PPA")&"-specific timeline.",IF(OverviewIRR_PreTax,IF(ISBLANK(TimelinesPvt!$C$103),"",TimelinesPvt!$C$103),IF(ISBLANK(TimelinesPvt!$C$161),"",TimelinesPvt!$C$161))) -> 
A18: YearLabel | B18: =IF(OverviewIRR_PreTax,IF(ISBLANK(TimelinesPvt!$B$105),"",TimelinesPvt!$B$105),IF(ISBLANK(TimelinesPvt!$B$163),"",TimelinesPvt!$B$163)) ->  | C18: =IF(OverviewIRR_PreTax,IF(ISBLANK(TimelinesPvt!$C$105),"",TimelinesPvt!$C$105),IF(ISBLANK(TimelinesPvt!$C$163),"",TimelinesPvt!$C$163)) ->  | E18: =IF(OverviewIRR_PreTax,IF(ISBLANK(TimelinesPvt!$E$105),"",TimelinesPvt!$E$105),IF(ISBLANK(TimelinesPvt!$E$163),"",TimelinesPvt!$E$163)) ->  | F18: =IF(OverviewIRR_PreTax,IF(ISBLANK(TimelinesPvt!$F$105),"",TimelinesPvt!$F$105),IF(ISBLANK(TimelinesPvt!$F$163),"",TimelinesPvt!$F$163)) ->  | G18: =IF(OverviewIRR_PreTax,IF(ISBLANK(TimelinesPvt!$G$105),"",TimelinesPvt!$G$105),IF(ISBLANK(TimelinesPvt!$G$163),"",TimelinesPvt!$G$163)) ->  | H18: =IF(OverviewIRR_PreTax,IF(ISBLANK(TimelinesPvt!$H$105),"",TimelinesPvt!$H$105),IF(ISBLANK(TimelinesPvt!$H$163),"",TimelinesPvt!$H$163)) ->  | I18: =IF(OverviewIRR_PreTax,IF(ISBLANK(TimelinesPvt!$I$105),"",TimelinesPvt!$I$105),IF(ISBLANK(TimelinesPvt!$I$163),"",TimelinesPvt!$I$163)) ->  | J18: =IF(OverviewIRR_PreTax,IF(ISBLANK(TimelinesPvt!$J$105),"",TimelinesPvt!$J$105),IF(ISBLANK(TimelinesPvt!$J$163),"",TimelinesPvt!$J$163)) ->  | K18: =IF(OverviewIRR_PreTax,IF(ISBLANK(TimelinesPvt!$K$105),"",TimelinesPvt!$K$105),IF(ISBLANK(TimelinesPvt!$K$163),"",TimelinesPvt!$K$163)) ->  | L18: =IF(OverviewIRR_PreTax,IF(ISBLANK(TimelinesPvt!$L$105),"",TimelinesPvt!$L$105),IF(ISBLANK(TimelinesPvt!$L$163),"",TimelinesPvt!$L$163)) ->  | M18: =IF(OverviewIRR_PreTax,IF(ISBLANK(TimelinesPvt!$M$105),"",TimelinesPvt!$M$105),IF(ISBLANK(TimelinesPvt!$M$163),"",TimelinesPvt!$M$163)) ->  | N18: =IF(OverviewIRR_PreTax,IF(ISBLANK(TimelinesPvt!$N$105),"",TimelinesPvt!$N$105),IF(ISBLANK(TimelinesPvt!$N$163),"",TimelinesPvt!$N$163)) ->  | O18: =IF(OverviewIRR_PreTax,IF(ISBLANK(TimelinesPvt!$O$105),"",TimelinesPvt!$O$105),IF(ISBLANK(TimelinesPvt!$O$163),"",TimelinesPvt!$O$163)) ->  | P18: =IF(OverviewIRR_PreTax,IF(ISBLANK(TimelinesPvt!$P$105),"",TimelinesPvt!$P$105),IF(ISBLANK(TimelinesPvt!$P$163),"",TimelinesPvt!$P$163)) ->  | Q18: =IF(OverviewIRR_PreTax,IF(ISBLANK(TimelinesPvt!$Q$105),"",TimelinesPvt!$Q$105),IF(ISBLANK(TimelinesPvt!$Q$163),"",TimelinesPvt!$Q$163)) -> Year: | R18: =IF(OverviewIRR_PreTax,IF(ISBLANK(TimelinesPvt!$R$105),"",TimelinesPvt!$R$105),IF(ISBLANK(TimelinesPvt!$R$163),"",TimelinesPvt!$R$163)) ->  | S18: =IF(OverviewIRR_PreTax,IF(ISBLANK(TimelinesPvt!$S$105),"",TimelinesPvt!$S$105),IF(ISBLANK(TimelinesPvt!$S$163),"",TimelinesPvt!$S$163)) ->  | T18: =IF(OverviewIRR_PreTax,IF(ISBLANK(TimelinesPvt!$T$105),"",TimelinesPvt!$T$105),IF(ISBLANK(TimelinesPvt!$T$163),"",TimelinesPvt!$T$163)) ->  | U18: =IF(OverviewIRR_PreTax,IF(ISBLANK(TimelinesPvt!$U$105),"",TimelinesPvt!$U$105),IF(ISBLANK(TimelinesPvt!$U$163),"",TimelinesPvt!$U$163)) ->  | V18: =IF(OverviewIRR_PreTax,IF(ISBLANK(TimelinesPvt!$V$105),"",TimelinesPvt!$V$105),IF(ISBLANK(TimelinesPvt!$V$163),"",TimelinesPvt!$V$163)) ->  | W18: =IF(OverviewIRR_PreTax,IF(ISBLANK(TimelinesPvt!$W$105),"",TimelinesPvt!$W$105),IF(ISBLANK(TimelinesPvt!$W$163),"",TimelinesPvt!$W$163)) ->  | X18: =IF(OverviewIRR_PreTax,IF(ISBLANK(TimelinesPvt!$X$105),"",TimelinesPvt!$X$105),IF(ISBLANK(TimelinesPvt!$X$163),"",TimelinesPvt!$X$163)) ->  | Y18: =IF(OverviewIRR_PreTax,IF(ISBLANK(TimelinesPvt!$Y$105),"",TimelinesPvt!$Y$105),IF(ISBLANK(TimelinesPvt!$Y$163),"",TimelinesPvt!$Y$163)) ->  | Z18: =IF(OverviewIRR_PreTax,IF(ISBLANK(TimelinesPvt!$Z$105),"",TimelinesPvt!$Z$105),IF(ISBLANK(TimelinesPvt!$Z$163),"",TimelinesPvt!$Z$163)) ->  | AA18: =IF(OverviewIRR_PreTax,IF(ISBLANK(TimelinesPvt!$AA$105),"",TimelinesPvt!$AA$105),IF(ISBLANK(TimelinesPvt!$AA$163),"",TimelinesPvt!$AA$163)) ->  | AB18: =IF(OverviewIRR_PreTax,IF(ISBLANK(TimelinesPvt!$AB$105),"",TimelinesPvt!$AB$105),IF(ISBLANK(TimelinesPvt!$AB$163),"",TimelinesPvt!$AB$163)) ->  | AC18: =IF(OverviewIRR_PreTax,IF(ISBLANK(TimelinesPvt!$AC$105),"",TimelinesPvt!$AC$105),IF(ISBLANK(TimelinesPvt!$AC$163),"",TimelinesPvt!$AC$163)) -> 
A19: SavingsLabel | B19: =IF(OverviewIRR_PreTax,IF(ISBLANK(TimelinesPvt!$B$106),"",TimelinesPvt!$B$106),IF(ISBLANK(TimelinesPvt!$B$164),"",TimelinesPvt!$B$164)) -> Operating Savings: | C19: =IF(OverviewIRR_PreTax,IF(ISBLANK(TimelinesPvt!$C$106),"",TimelinesPvt!$C$106),IF(ISBLANK(TimelinesPvt!$C$164),"",TimelinesPvt!$C$164)) ->  | D19: =IF(OverviewIRR_PreTax,IF(ISBLANK(TimelinesPvt!$D$106),"",TimelinesPvt!$D$106),IF(ISBLANK(TimelinesPvt!$D$164),"",TimelinesPvt!$D$164)) -> 0 | E19: =IF(OverviewIRR_PreTax,IF(ISBLANK(TimelinesPvt!$E$106),"",TimelinesPvt!$E$106),IF(ISBLANK(TimelinesPvt!$E$164),"",TimelinesPvt!$E$164)) -> 1 | F19: =IF(OverviewIRR_PreTax,IF(ISBLANK(TimelinesPvt!$F$106),"",TimelinesPvt!$F$106),IF(ISBLANK(TimelinesPvt!$F$164),"",TimelinesPvt!$F$164)) -> 2 | G19: =IF(OverviewIRR_PreTax,IF(ISBLANK(TimelinesPvt!$G$106),"",TimelinesPvt!$G$106),IF(ISBLANK(TimelinesPvt!$G$164),"",TimelinesPvt!$G$164)) -> 3 | H19: =IF(OverviewIRR_PreTax,IF(ISBLANK(TimelinesPvt!$H$106),"",TimelinesPvt!$H$106),IF(ISBLANK(TimelinesPvt!$H$164),"",TimelinesPvt!$H$164)) -> 4 | I19: =IF(OverviewIRR_PreTax,IF(ISBLANK(TimelinesPvt!$I$106),"",TimelinesPvt!$I$106),IF(ISBLANK(TimelinesPvt!$I$164),"",TimelinesPvt!$I$164)) -> 5 | J19: =IF(OverviewIRR_PreTax,IF(ISBLANK(TimelinesPvt!$J$106),"",TimelinesPvt!$J$106),IF(ISBLANK(TimelinesPvt!$J$164),"",TimelinesPvt!$J$164)) -> 6 | K19: =IF(OverviewIRR_PreTax,IF(ISBLANK(TimelinesPvt!$K$106),"",TimelinesPvt!$K$106),IF(ISBLANK(TimelinesPvt!$K$164),"",TimelinesPvt!$K$164)) -> 7 | L19: =IF(OverviewIRR_PreTax,IF(ISBLANK(TimelinesPvt!$L$106),"",TimelinesPvt!$L$106),IF(ISBLANK(TimelinesPvt!$L$164),"",TimelinesPvt!$L$164)) -> 8 | M19: =IF(OverviewIRR_PreTax,IF(ISBLANK(TimelinesPvt!$M$106),"",TimelinesPvt!$M$106),IF(ISBLANK(TimelinesPvt!$M$164),"",TimelinesPvt!$M$164)) -> 9 | N19: =IF(OverviewIRR_PreTax,IF(ISBLANK(TimelinesPvt!$N$106),"",TimelinesPvt!$N$106),IF(ISBLANK(TimelinesPvt!$N$164),"",TimelinesPvt!$N$164)) -> 10 | O19: =IF(OverviewIRR_PreTax,IF(ISBLANK(TimelinesPvt!$O$106),"",TimelinesPvt!$O$106),IF(ISBLANK(TimelinesPvt!$O$164),"",TimelinesPvt!$O$164)) -> 11 | P19: =IF(OverviewIRR_PreTax,IF(ISBLANK(TimelinesPvt!$P$106),"",TimelinesPvt!$P$106),IF(ISBLANK(TimelinesPvt!$P$164),"",TimelinesPvt!$P$164)) -> 12 | Q19: =IF(OverviewIRR_PreTax,IF(ISBLANK(TimelinesPvt!$Q$106),"",TimelinesPvt!$Q$106),IF(ISBLANK(TimelinesPvt!$Q$164),"",TimelinesPvt!$Q$164)) -> 13 | R19: =IF(OverviewIRR_PreTax,IF(ISBLANK(TimelinesPvt!$R$106),"",TimelinesPvt!$R$106),IF(ISBLANK(TimelinesPvt!$R$164),"",TimelinesPvt!$R$164)) -> 14 | S19: =IF(OverviewIRR_PreTax,IF(ISBLANK(TimelinesPvt!$S$106),"",TimelinesPvt!$S$106),IF(ISBLANK(TimelinesPvt!$S$164),"",TimelinesPvt!$S$164)) -> 15 | T19: =IF(OverviewIRR_PreTax,IF(ISBLANK(TimelinesPvt!$T$106),"",TimelinesPvt!$T$106),IF(ISBLANK(TimelinesPvt!$T$164),"",TimelinesPvt!$T$164)) -> 16 | U19: =IF(OverviewIRR_PreTax,IF(ISBLANK(TimelinesPvt!$U$106),"",TimelinesPvt!$U$106),IF(ISBLANK(TimelinesPvt!$U$164),"",TimelinesPvt!$U$164)) -> 17 | V19: =IF(OverviewIRR_PreTax,IF(ISBLANK(TimelinesPvt!$V$106),"",TimelinesPvt!$V$106),IF(ISBLANK(TimelinesPvt!$V$164),"",TimelinesPvt!$V$164)) -> 18 | W19: =IF(OverviewIRR_PreTax,IF(ISBLANK(TimelinesPvt!$W$106),"",TimelinesPvt!$W$106),IF(ISBLANK(TimelinesPvt!$W$164),"",TimelinesPvt!$W$164)) -> 19 | X19: =IF(OverviewIRR_PreTax,IF(ISBLANK(TimelinesPvt!$X$106),"",TimelinesPvt!$X$106),IF(ISBLANK(TimelinesPvt!$X$164),"",TimelinesPvt!$X$164)) -> 20 | Y19: =IF(OverviewIRR_PreTax,IF(ISBLANK(TimelinesPvt!$Y$106),"",TimelinesPvt!$Y$106),IF(ISBLANK(TimelinesPvt!$Y$164),"",TimelinesPvt!$Y$164)) -> 21 | Z19: =IF(OverviewIRR_PreTax,IF(ISBLANK(TimelinesPvt!$Z$106),"",TimelinesPvt!$Z$106),IF(ISBLANK(TimelinesPvt!$Z$164),"",TimelinesPvt!$Z$164)) -> 22 | AA19: =IF(OverviewIRR_PreTax,IF(ISBLANK(TimelinesPvt!$AA$106),"",TimelinesPvt!$AA$106),IF(ISBLANK(TimelinesPvt!$AA$164),"",TimelinesPvt!$AA$164)) -> 23 | AB19: =IF(OverviewIRR_PreTax,IF(ISBLANK(TimelinesPvt!$AB$106),"",TimelinesPvt!$AB$106),IF(ISBLANK(TimelinesPvt!$AB$164),"",TimelinesPvt!$AB$164)) -> 24 | AC19: =IF(OverviewIRR_PreTax,IF(ISBLANK(TimelinesPvt!$AC$106),"",TimelinesPvt!$AC$106),IF(ISBLANK(TimelinesPvt!$AC$164),"",TimelinesPvt!$AC$164)) -> 25
A20: AvoidedElectricBill | B20: =IF(OverviewIRR_PreTax,IF(ISBLANK(TimelinesPvt!$B$107),"",TimelinesPvt!$B$107),IF(ISBLANK(TimelinesPvt!$B$165),"",TimelinesPvt!$B$165)) -> Avoided Electricity Purchases / Annual Savings | C20: =IF(OverviewIRR_PreTax,IF(ISBLANK(TimelinesPvt!$C$107),"",TimelinesPvt!$C$107),IF(ISBLANK(TimelinesPvt!$C$165),"",TimelinesPvt!$C$165)) ->  | D20: =IF(OverviewIRR_PreTax,IF(ISBLANK(TimelinesPvt!$D$107),"",TimelinesPvt!$D$107),IF(ISBLANK(TimelinesPvt!$D$165),"",TimelinesPvt!$D$165)) ->  | E20: =IF(OverviewIRR_PreTax,IF(ISBLANK(TimelinesPvt!$E$107),"",TimelinesPvt!$E$107),IF(ISBLANK(TimelinesPvt!$E$165),"",TimelinesPvt!$E$165)) -> 8631.138116 | F20: =IF(OverviewIRR_PreTax,IF(ISBLANK(TimelinesPvt!$F$107),"",TimelinesPvt!$F$107),IF(ISBLANK(TimelinesPvt!$F$165),"",TimelinesPvt!$F$165)) -> 8846.916569 | G20: =IF(OverviewIRR_PreTax,IF(ISBLANK(TimelinesPvt!$G$107),"",TimelinesPvt!$G$107),IF(ISBLANK(TimelinesPvt!$G$165),"",TimelinesPvt!$G$165)) -> 9068.089483 | H20: =IF(OverviewIRR_PreTax,IF(ISBLANK(TimelinesPvt!$H$107),"",TimelinesPvt!$H$107),IF(ISBLANK(TimelinesPvt!$H$165),"",TimelinesPvt!$H$165)) -> 9294.79172 | I20: =IF(OverviewIRR_PreTax,IF(ISBLANK(TimelinesPvt!$I$107),"",TimelinesPvt!$I$107),IF(ISBLANK(TimelinesPvt!$I$165),"",TimelinesPvt!$I$165)) -> 9527.161513 | J20: =IF(OverviewIRR_PreTax,IF(ISBLANK(TimelinesPvt!$J$107),"",TimelinesPvt!$J$107),IF(ISBLANK(TimelinesPvt!$J$165),"",TimelinesPvt!$J$165)) -> 9765.340551 | K20: =IF(OverviewIRR_PreTax,IF(ISBLANK(TimelinesPvt!$K$107),"",TimelinesPvt!$K$107),IF(ISBLANK(TimelinesPvt!$K$165),"",TimelinesPvt!$K$165)) -> 10009.47406 | L20: =IF(OverviewIRR_PreTax,IF(ISBLANK(TimelinesPvt!$L$107),"",TimelinesPvt!$L$107),IF(ISBLANK(TimelinesPvt!$L$165),"",TimelinesPvt!$L$165)) -> 10259.71092 | M20: =IF(OverviewIRR_PreTax,IF(ISBLANK(TimelinesPvt!$M$107),"",TimelinesPvt!$M$107),IF(ISBLANK(TimelinesPvt!$M$165),"",TimelinesPvt!$M$165)) -> 10516.20369 | N20: =IF(OverviewIRR_PreTax,IF(ISBLANK(TimelinesPvt!$N$107),"",TimelinesPvt!$N$107),IF(ISBLANK(TimelinesPvt!$N$165),"",TimelinesPvt!$N$165)) -> 10779.10878 | O20: =IF(OverviewIRR_PreTax,IF(ISBLANK(TimelinesPvt!$O$107),"",TimelinesPvt!$O$107),IF(ISBLANK(TimelinesPvt!$O$165),"",TimelinesPvt!$O$165)) -> 11048.5865 | P20: =IF(OverviewIRR_PreTax,IF(ISBLANK(TimelinesPvt!$P$107),"",TimelinesPvt!$P$107),IF(ISBLANK(TimelinesPvt!$P$165),"",TimelinesPvt!$P$165)) -> 11324.80116 | Q20: =IF(OverviewIRR_PreTax,IF(ISBLANK(TimelinesPvt!$Q$107),"",TimelinesPvt!$Q$107),IF(ISBLANK(TimelinesPvt!$Q$165),"",TimelinesPvt!$Q$165)) -> 11607.92119 | R20: =IF(OverviewIRR_PreTax,IF(ISBLANK(TimelinesPvt!$R$107),"",TimelinesPvt!$R$107),IF(ISBLANK(TimelinesPvt!$R$165),"",TimelinesPvt!$R$165)) -> 11898.11922 | S20: =IF(OverviewIRR_PreTax,IF(ISBLANK(TimelinesPvt!$S$107),"",TimelinesPvt!$S$107),IF(ISBLANK(TimelinesPvt!$S$165),"",TimelinesPvt!$S$165)) -> 12195.5722 | T20: =IF(OverviewIRR_PreTax,IF(ISBLANK(TimelinesPvt!$T$107),"",TimelinesPvt!$T$107),IF(ISBLANK(TimelinesPvt!$T$165),"",TimelinesPvt!$T$165)) -> 12500.46151 | U20: =IF(OverviewIRR_PreTax,IF(ISBLANK(TimelinesPvt!$U$107),"",TimelinesPvt!$U$107),IF(ISBLANK(TimelinesPvt!$U$165),"",TimelinesPvt!$U$165)) -> 12812.97305 | V20: =IF(OverviewIRR_PreTax,IF(ISBLANK(TimelinesPvt!$V$107),"",TimelinesPvt!$V$107),IF(ISBLANK(TimelinesPvt!$V$165),"",TimelinesPvt!$V$165)) -> 13133.29737 | W20: =IF(OverviewIRR_PreTax,IF(ISBLANK(TimelinesPvt!$W$107),"",TimelinesPvt!$W$107),IF(ISBLANK(TimelinesPvt!$W$165),"",TimelinesPvt!$W$165)) -> 13461.62981 | X20: =IF(OverviewIRR_PreTax,IF(ISBLANK(TimelinesPvt!$X$107),"",TimelinesPvt!$X$107),IF(ISBLANK(TimelinesPvt!$X$165),"",TimelinesPvt!$X$165)) -> 13798.17055 | Y20: =IF(OverviewIRR_PreTax,IF(ISBLANK(TimelinesPvt!$Y$107),"",TimelinesPvt!$Y$107),IF(ISBLANK(TimelinesPvt!$Y$165),"",TimelinesPvt!$Y$165)) -> 14143.12481 | Z20: =IF(OverviewIRR_PreTax,IF(ISBLANK(TimelinesPvt!$Z$107),"",TimelinesPvt!$Z$107),IF(ISBLANK(TimelinesPvt!$Z$165),"",TimelinesPvt!$Z$165)) -> 14496.70294 | AA20: =IF(OverviewIRR_PreTax,IF(ISBLANK(TimelinesPvt!$AA$107),"",TimelinesPvt!$AA$107),IF(ISBLANK(TimelinesPvt!$AA$165),"",TimelinesPvt!$AA$165)) -> 14859.12051 | AB20: =IF(OverviewIRR_PreTax,IF(ISBLANK(TimelinesPvt!$AB$107),"",TimelinesPvt!$AB$107),IF(ISBLANK(TimelinesPvt!$AB$165),"",TimelinesPvt!$AB$165)) -> 15230.59852 | AC20: =IF(OverviewIRR_PreTax,IF(ISBLANK(TimelinesPvt!$AC$107),"",TimelinesPvt!$AC$107),IF(ISBLANK(TimelinesPvt!$AC$165),"",TimelinesPvt!$AC$165)) -> 15611.36348 | BQ20: Header Printing
A21: RecPayments | B21: =IF(OverviewIRR_PreTax,IF(ISBLANK(TimelinesPvt!$B$108),"",TimelinesPvt!$B$108),IF(ISBLANK(TimelinesPvt!$B$166),"",TimelinesPvt!$B$166)) -> No REC Value Included | C21: =IF(OverviewIRR_PreTax,IF(ISBLANK(TimelinesPvt!$C$108),"",TimelinesPvt!$C$108),IF(ISBLANK(TimelinesPvt!$C$166),"",TimelinesPvt!$C$166)) ->  | D21: =IF(OverviewIRR_PreTax,IF(ISBLANK(TimelinesPvt!$D$108),"",TimelinesPvt!$D$108),IF(ISBLANK(TimelinesPvt!$D$166),"",TimelinesPvt!$D$166)) ->  | E21: =IF(OverviewIRR_PreTax,IF(ISBLANK(TimelinesPvt!$E$108),"",TimelinesPvt!$E$108),IF(ISBLANK(TimelinesPvt!$E$166),"",TimelinesPvt!$E$166)) -> 0 | F21: =IF(OverviewIRR_PreTax,IF(ISBLANK(TimelinesPvt!$F$108),"",TimelinesPvt!$F$108),IF(ISBLANK(TimelinesPvt!$F$166),"",TimelinesPvt!$F$166)) -> 0 | G21: =IF(OverviewIRR_PreTax,IF(ISBLANK(TimelinesPvt!$G$108),"",TimelinesPvt!$G$108),IF(ISBLANK(TimelinesPvt!$G$166),"",TimelinesPvt!$G$166)) -> 0 | H21: =IF(OverviewIRR_PreTax,IF(ISBLANK(TimelinesPvt!$H$108),"",TimelinesPvt!$H$108),IF(ISBLANK(TimelinesPvt!$H$166),"",TimelinesPvt!$H$166)) -> 0 | I21: =IF(OverviewIRR_PreTax,IF(ISBLANK(TimelinesPvt!$I$108),"",TimelinesPvt!$I$108),IF(ISBLANK(TimelinesPvt!$I$166),"",TimelinesPvt!$I$166)) -> 0 | J21: =IF(OverviewIRR_PreTax,IF(ISBLANK(TimelinesPvt!$J$108),"",TimelinesPvt!$J$108),IF(ISBLANK(TimelinesPvt!$J$166),"",TimelinesPvt!$J$166)) -> 0 | K21: =IF(OverviewIRR_PreTax,IF(ISBLANK(TimelinesPvt!$K$108),"",TimelinesPvt!$K$108),IF(ISBLANK(TimelinesPvt!$K$166),"",TimelinesPvt!$K$166)) -> 0 | L21: =IF(OverviewIRR_PreTax,IF(ISBLANK(TimelinesPvt!$L$108),"",TimelinesPvt!$L$108),IF(ISBLANK(TimelinesPvt!$L$166),"",TimelinesPvt!$L$166)) -> 0 | M21: =IF(OverviewIRR_PreTax,IF(ISBLANK(TimelinesPvt!$M$108),"",TimelinesPvt!$M$108),IF(ISBLANK(TimelinesPvt!$M$166),"",TimelinesPvt!$M$166)) -> 0 | N21: =IF(OverviewIRR_PreTax,IF(ISBLANK(TimelinesPvt!$N$108),"",TimelinesPvt!$N$108),IF(ISBLANK(TimelinesPvt!$N$166),"",TimelinesPvt!$N$166)) -> 0 | O21: =IF(OverviewIRR_PreTax,IF(ISBLANK(TimelinesPvt!$O$108),"",TimelinesPvt!$O$108),IF(ISBLANK(TimelinesPvt!$O$166),"",TimelinesPvt!$O$166)) -> 0 | P21: =IF(OverviewIRR_PreTax,IF(ISBLANK(TimelinesPvt!$P$108),"",TimelinesPvt!$P$108),IF(ISBLANK(TimelinesPvt!$P$166),"",TimelinesPvt!$P$166)) -> 0 | Q21: =IF(OverviewIRR_PreTax,IF(ISBLANK(TimelinesPvt!$Q$108),"",TimelinesPvt!$Q$108),IF(ISBLANK(TimelinesPvt!$Q$166),"",TimelinesPvt!$Q$166)) -> 0 | R21: =IF(OverviewIRR_PreTax,IF(ISBLANK(TimelinesPvt!$R$108),"",TimelinesPvt!$R$108),IF(ISBLANK(TimelinesPvt!$R$166),"",TimelinesPvt!$R$166)) -> 0 | S21: =IF(OverviewIRR_PreTax,IF(ISBLANK(TimelinesPvt!$S$108),"",TimelinesPvt!$S$108),IF(ISBLANK(TimelinesPvt!$S$166),"",TimelinesPvt!$S$166)) -> 0 | T21: =IF(OverviewIRR_PreTax,IF(ISBLANK(TimelinesPvt!$T$108),"",TimelinesPvt!$T$108),IF(ISBLANK(TimelinesPvt!$T$166),"",TimelinesPvt!$T$166)) -> 0 | U21: =IF(OverviewIRR_PreTax,IF(ISBLANK(TimelinesPvt!$U$108),"",TimelinesPvt!$U$108),IF(ISBLANK(TimelinesPvt!$U$166),"",TimelinesPvt!$U$166)) -> 0 | V21: =IF(OverviewIRR_PreTax,IF(ISBLANK(TimelinesPvt!$V$108),"",TimelinesPvt!$V$108),IF(ISBLANK(TimelinesPvt!$V$166),"",TimelinesPvt!$V$166)) -> 0 | W21: =IF(OverviewIRR_PreTax,IF(ISBLANK(TimelinesPvt!$W$108),"",TimelinesPvt!$W$108),IF(ISBLANK(TimelinesPvt!$W$166),"",TimelinesPvt!$W$166)) -> 0 | X21: =IF(OverviewIRR_PreTax,IF(ISBLANK(TimelinesPvt!$X$108),"",TimelinesPvt!$X$108),IF(ISBLANK(TimelinesPvt!$X$166),"",TimelinesPvt!$X$166)) -> 0 | Y21: =IF(OverviewIRR_PreTax,IF(ISBLANK(TimelinesPvt!$Y$108),"",TimelinesPvt!$Y$108),IF(ISBLANK(TimelinesPvt!$Y$166),"",TimelinesPvt!$Y$166)) -> 0 | Z21: =IF(OverviewIRR_PreTax,IF(ISBLANK(TimelinesPvt!$Z$108),"",TimelinesPvt!$Z$108),IF(ISBLANK(TimelinesPvt!$Z$166),"",TimelinesPvt!$Z$166)) -> 0 | AA21: =IF(OverviewIRR_PreTax,IF(ISBLANK(TimelinesPvt!$AA$108),"",TimelinesPvt!$AA$108),IF(ISBLANK(TimelinesPvt!$AA$166),"",TimelinesPvt!$AA$166)) -> 0 | AB21: =IF(OverviewIRR_PreTax,IF(ISBLANK(TimelinesPvt!$AB$108),"",TimelinesPvt!$AB$108),IF(ISBLANK(TimelinesPvt!$AB$166),"",TimelinesPvt!$AB$166)) -> 0 | AC21: =IF(OverviewIRR_PreTax,IF(ISBLANK(TimelinesPvt!$AC$108),"",TimelinesPvt!$AC$108),IF(ISBLANK(TimelinesPvt!$AC$166),"",TimelinesPvt!$AC$166)) -> 0 | BQ21: . | BR21: ="Keep entire column " & UPPER(IF(COLUMN(BQ21)<=26,CHAR(96+COLUMN(BQ21)),(CHAR(96+(ROUNDDOWN((COLUMN(BQ21)-1)/26,0)))&CHAR(96+IF(MOD(COLUMN(BQ21),26)=0,26,MOD(COLUMN(BQ21),26))))))& " blank." -> Keep entire column BQ blank.
B22: =IF(OverviewIRR_PreTax,IF(ISBLANK(TimelinesPvt!$B$109),"",TimelinesPvt!$B$109),IF(ISBLANK(TimelinesPvt!$B$167),"",TimelinesPvt!$B$167)) ->  | C22: =IF(OverviewIRR_PreTax,IF(ISBLANK(TimelinesPvt!$C$109),"",TimelinesPvt!$C$109),IF(ISBLANK(TimelinesPvt!$C$167),"",TimelinesPvt!$C$167)) ->  | D22: =IF(OverviewIRR_PreTax,IF(ISBLANK(TimelinesPvt!$D$109),"",TimelinesPvt!$D$109),IF(ISBLANK(TimelinesPvt!$D$167),"",TimelinesPvt!$D$167)) ->  | E22: =IF(OverviewIRR_PreTax,IF(ISBLANK(TimelinesPvt!$E$109),"",TimelinesPvt!$E$109),IF(ISBLANK(TimelinesPvt!$E$167),"",TimelinesPvt!$E$167)) ->  | F22: =IF(OverviewIRR_PreTax,IF(ISBLANK(TimelinesPvt!$F$109),"",TimelinesPvt!$F$109),IF(ISBLANK(TimelinesPvt!$F$167),"",TimelinesPvt!$F$167)) ->  | G22: =IF(OverviewIRR_PreTax,IF(ISBLANK(TimelinesPvt!$G$109),"",TimelinesPvt!$G$109),IF(ISBLANK(TimelinesPvt!$G$167),"",TimelinesPvt!$G$167)) ->  | H22: =IF(OverviewIRR_PreTax,IF(ISBLANK(TimelinesPvt!$H$109),"",TimelinesPvt!$H$109),IF(ISBLANK(TimelinesPvt!$H$167),"",TimelinesPvt!$H$167)) ->  | I22: =IF(OverviewIRR_PreTax,IF(ISBLANK(TimelinesPvt!$I$109),"",TimelinesPvt!$I$109),IF(ISBLANK(TimelinesPvt!$I$167),"",TimelinesPvt!$I$167)) ->  | J22: =IF(OverviewIRR_PreTax,IF(ISBLANK(TimelinesPvt!$J$109),"",TimelinesPvt!$J$109),IF(ISBLANK(TimelinesPvt!$J$167),"",TimelinesPvt!$J$167)) ->  | K22: =IF(OverviewIRR_PreTax,IF(ISBLANK(TimelinesPvt!$K$109),"",TimelinesPvt!$K$109),IF(ISBLANK(TimelinesPvt!$K$167),"",TimelinesPvt!$K$167)) ->  | L22: =IF(OverviewIRR_PreTax,IF(ISBLANK(TimelinesPvt!$L$109),"",TimelinesPvt!$L$109),IF(ISBLANK(TimelinesPvt!$L$167),"",TimelinesPvt!$L$167)) ->  | M22: =IF(OverviewIRR_PreTax,IF(ISBLANK(TimelinesPvt!$M$109),"",TimelinesPvt!$M$109),IF(ISBLANK(TimelinesPvt!$M$167),"",TimelinesPvt!$M$167)) ->  | N22: =IF(OverviewIRR_PreTax,IF(ISBLANK(TimelinesPvt!$N$109),"",TimelinesPvt!$N$109),IF(ISBLANK(TimelinesPvt!$N$167),"",TimelinesPvt!$N$167)) ->  | O22: =IF(OverviewIRR_PreTax,IF(ISBLANK(TimelinesPvt!$O$109),"",TimelinesPvt!$O$109),IF(ISBLANK(TimelinesPvt!$O$167),"",TimelinesPvt!$O$167)) ->  | P22: =IF(OverviewIRR_PreTax,IF(ISBLANK(TimelinesPvt!$P$109),"",TimelinesPvt!$P$109),IF(ISBLANK(TimelinesPvt!$P$167),"",TimelinesPvt!$P$167)) ->  | Q22: =IF(OverviewIRR_PreTax,IF(ISBLANK(TimelinesPvt!$Q$109),"",TimelinesPvt!$Q$109),IF(ISBLANK(TimelinesPvt!$Q$167),"",TimelinesPvt!$Q$167)) ->  | R22: =IF(OverviewIRR_PreTax,IF(ISBLANK(TimelinesPvt!$R$109),"",TimelinesPvt!$R$109),IF(ISBLANK(TimelinesPvt!$R$167),"",TimelinesPvt!$R$167)) ->  | S22: =IF(OverviewIRR_PreTax,IF(ISBLANK(TimelinesPvt!$S$109),"",TimelinesPvt!$S$109),IF(ISBLANK(TimelinesPvt!$S$167),"",TimelinesPvt!$S$167)) ->  | T22: =IF(OverviewIRR_PreTax,IF(ISBLANK(TimelinesPvt!$T$109),"",TimelinesPvt!$T$109),IF(ISBLANK(TimelinesPvt!$T$167),"",TimelinesPvt!$T$167)) ->  | U22: =IF(OverviewIRR_PreTax,IF(ISBLANK(TimelinesPvt!$U$109),"",TimelinesPvt!$U$109),IF(ISBLANK(TimelinesPvt!$U$167),"",TimelinesPvt!$U$167)) ->  | V22: =IF(OverviewIRR_PreTax,IF(ISBLANK(TimelinesPvt!$V$109),"",TimelinesPvt!$V$109),IF(ISBLANK(TimelinesPvt!$V$167),"",TimelinesPvt!$V$167)) ->  | W22: =IF(OverviewIRR_PreTax,IF(ISBLANK(TimelinesPvt!$W$109),"",TimelinesPvt!$W$109),IF(ISBLANK(TimelinesPvt!$W$167),"",TimelinesPvt!$W$167)) ->  | X22: =IF(OverviewIRR_PreTax,IF(ISBLANK(TimelinesPvt!$X$109),"",TimelinesPvt!$X$109),IF(ISBLANK(TimelinesPvt!$X$167),"",TimelinesPvt!$X$167)) ->  | Y22: =IF(OverviewIRR_PreTax,IF(ISBLANK(TimelinesPvt!$Y$109),"",TimelinesPvt!$Y$109),IF(ISBLANK(TimelinesPvt!$Y$167),"",TimelinesPvt!$Y$167)) ->  | Z22: =IF(OverviewIRR_PreTax,IF(ISBLANK(TimelinesPvt!$Z$109),"",TimelinesPvt!$Z$109),IF(ISBLANK(TimelinesPvt!$Z$167),"",TimelinesPvt!$Z$167)) ->  | AA22: =IF(OverviewIRR_PreTax,IF(ISBLANK(TimelinesPvt!$AA$109),"",TimelinesPvt!$AA$109),IF(ISBLANK(TimelinesPvt!$AA$167),"",TimelinesPvt!$AA$167)) ->  | AB22: =IF(OverviewIRR_PreTax,IF(ISBLANK(TimelinesPvt!$AB$109),"",TimelinesPvt!$AB$109),IF(ISBLANK(TimelinesPvt!$AB$167),"",TimelinesPvt!$AB$167)) ->  | AC22: =IF(OverviewIRR_PreTax,IF(ISBLANK(TimelinesPvt!$AC$109),"",TimelinesPvt!$AC$109),IF(ISBLANK(TimelinesPvt!$AC$167),"",TimelinesPvt!$AC$167)) -> 
A23: SystemCostLabel | B23: =IF(OverviewIRR_PreTax,IF(ISBLANK(TimelinesPvt!$B$110),"",TimelinesPvt!$B$110),IF(ISBLANK(TimelinesPvt!$B$168),"",TimelinesPvt!$B$168)) -> System Cost & Incentives: | C23: =IF(OverviewIRR_PreTax,IF(ISBLANK(TimelinesPvt!$C$110),"",TimelinesPvt!$C$110),IF(ISBLANK(TimelinesPvt!$C$168),"",TimelinesPvt!$C$168)) ->  | D23: =IF(OverviewIRR_PreTax,IF(ISBLANK(TimelinesPvt!$D$110),"",TimelinesPvt!$D$110),IF(ISBLANK(TimelinesPvt!$D$168),"",TimelinesPvt!$D$168)) ->  | E23: =IF(OverviewIRR_PreTax,IF(ISBLANK(TimelinesPvt!$E$110),"",TimelinesPvt!$E$110),IF(ISBLANK(TimelinesPvt!$E$168),"",TimelinesPvt!$E$168)) ->  | F23: =IF(OverviewIRR_PreTax,IF(ISBLANK(TimelinesPvt!$F$110),"",TimelinesPvt!$F$110),IF(ISBLANK(TimelinesPvt!$F$168),"",TimelinesPvt!$F$168)) ->  | G23: =IF(OverviewIRR_PreTax,IF(ISBLANK(TimelinesPvt!$G$110),"",TimelinesPvt!$G$110),IF(ISBLANK(TimelinesPvt!$G$168),"",TimelinesPvt!$G$168)) ->  | H23: =IF(OverviewIRR_PreTax,IF(ISBLANK(TimelinesPvt!$H$110),"",TimelinesPvt!$H$110),IF(ISBLANK(TimelinesPvt!$H$168),"",TimelinesPvt!$H$168)) ->  | I23: =IF(OverviewIRR_PreTax,IF(ISBLANK(TimelinesPvt!$I$110),"",TimelinesPvt!$I$110),IF(ISBLANK(TimelinesPvt!$I$168),"",TimelinesPvt!$I$168)) ->  | J23: =IF(OverviewIRR_PreTax,IF(ISBLANK(TimelinesPvt!$J$110),"",TimelinesPvt!$J$110),IF(ISBLANK(TimelinesPvt!$J$168),"",TimelinesPvt!$J$168)) ->  | K23: =IF(OverviewIRR_PreTax,IF(ISBLANK(TimelinesPvt!$K$110),"",TimelinesPvt!$K$110),IF(ISBLANK(TimelinesPvt!$K$168),"",TimelinesPvt!$K$168)) ->  | L23: =IF(OverviewIRR_PreTax,IF(ISBLANK(TimelinesPvt!$L$110),"",TimelinesPvt!$L$110),IF(ISBLANK(TimelinesPvt!$L$168),"",TimelinesPvt!$L$168)) ->  | M23: =IF(OverviewIRR_PreTax,IF(ISBLANK(TimelinesPvt!$M$110),"",TimelinesPvt!$M$110),IF(ISBLANK(TimelinesPvt!$M$168),"",TimelinesPvt!$M$168)) ->  | N23: =IF(OverviewIRR_PreTax,IF(ISBLANK(TimelinesPvt!$N$110),"",TimelinesPvt!$N$110),IF(ISBLANK(TimelinesPvt!$N$168),"",TimelinesPvt!$N$168)) ->  | O23: =IF(OverviewIRR_PreTax,IF(ISBLANK(TimelinesPvt!$O$110),"",TimelinesPvt!$O$110),IF(ISBLANK(TimelinesPvt!$O$168),"",TimelinesPvt!$O$168)) ->  | P23: =IF(OverviewIRR_PreTax,IF(ISBLANK(TimelinesPvt!$P$110),"",TimelinesPvt!$P$110),IF(ISBLANK(TimelinesPvt!$P$168),"",TimelinesPvt!$P$168)) ->  | Q23: =IF(OverviewIRR_PreTax,IF(ISBLANK(TimelinesPvt!$Q$110),"",TimelinesPvt!$Q$110),IF(ISBLANK(TimelinesPvt!$Q$168),"",TimelinesPvt!$Q$168)) ->  | R23: =IF(OverviewIRR_PreTax,IF(ISBLANK(TimelinesPvt!$R$110),"",TimelinesPvt!$R$110),IF(ISBLANK(TimelinesPvt!$R$168),"",TimelinesPvt!$R$168)) ->  | S23: =IF(OverviewIRR_PreTax,IF(ISBLANK(TimelinesPvt!$S$110),"",TimelinesPvt!$S$110),IF(ISBLANK(TimelinesPvt!$S$168),"",TimelinesPvt!$S$168)) ->  | T23: =IF(OverviewIRR_PreTax,IF(ISBLANK(TimelinesPvt!$T$110),"",TimelinesPvt!$T$110),IF(ISBLANK(TimelinesPvt!$T$168),"",TimelinesPvt!$T$168)) ->  | U23: =IF(OverviewIRR_PreTax,IF(ISBLANK(TimelinesPvt!$U$110),"",TimelinesPvt!$U$110),IF(ISBLANK(TimelinesPvt!$U$168),"",TimelinesPvt!$U$168)) ->  | V23: =IF(OverviewIRR_PreTax,IF(ISBLANK(TimelinesPvt!$V$110),"",TimelinesPvt!$V$110),IF(ISBLANK(TimelinesPvt!$V$168),"",TimelinesPvt!$V$168)) ->  | W23: =IF(OverviewIRR_PreTax,IF(ISBLANK(TimelinesPvt!$W$110),"",TimelinesPvt!$W$110),IF(ISBLANK(TimelinesPvt!$W$168),"",TimelinesPvt!$W$168)) ->  | X23: =IF(OverviewIRR_PreTax,IF(ISBLANK(TimelinesPvt!$X$110),"",TimelinesPvt!$X$110),IF(ISBLANK(TimelinesPvt!$X$168),"",TimelinesPvt!$X$168)) ->  | Y23: =IF(OverviewIRR_PreTax,IF(ISBLANK(TimelinesPvt!$Y$110),"",TimelinesPvt!$Y$110),IF(ISBLANK(TimelinesPvt!$Y$168),"",TimelinesPvt!$Y$168)) ->  | Z23: =IF(OverviewIRR_PreTax,IF(ISBLANK(TimelinesPvt!$Z$110),"",TimelinesPvt!$Z$110),IF(ISBLANK(TimelinesPvt!$Z$168),"",TimelinesPvt!$Z$168)) ->  | AA23: =IF(OverviewIRR_PreTax,IF(ISBLANK(TimelinesPvt!$AA$110),"",TimelinesPvt!$AA$110),IF(ISBLANK(TimelinesPvt!$AA$168),"",TimelinesPvt!$AA$168)) ->  | AB23: =IF(OverviewIRR_PreTax,IF(ISBLANK(TimelinesPvt!$AB$110),"",TimelinesPvt!$AB$110),IF(ISBLANK(TimelinesPvt!$AB$168),"",TimelinesPvt!$AB$168)) ->  | AC23: =IF(OverviewIRR_PreTax,IF(ISBLANK(TimelinesPvt!$AC$110),"",TimelinesPvt!$AC$110),IF(ISBLANK(TimelinesPvt!$AC$168),"",TimelinesPvt!$AC$168)) -> 
A24: SystemCost | B24: =IF(OverviewIRR_PreTax,IF(ISBLANK(TimelinesPvt!$B$111),"",TimelinesPvt!$B$111),IF(ISBLANK(TimelinesPvt!$B$169),"",TimelinesPvt!$B$169)) -> System Capital Cost with Fees, before Rebates | C24: =IF(OverviewIRR_PreTax,IF(ISBLANK(TimelinesPvt!$C$111),"",TimelinesPvt!$C$111),IF(ISBLANK(TimelinesPvt!$C$169),"",TimelinesPvt!$C$169)) ->  | D24: =IF(OverviewIRR_PreTax,IF(ISBLANK(TimelinesPvt!$D$111),"",TimelinesPvt!$D$111),IF(ISBLANK(TimelinesPvt!$D$169),"",TimelinesPvt!$D$169)) -> -221380 | E24: =IF(OverviewIRR_PreTax,IF(ISBLANK(TimelinesPvt!$E$111),"",TimelinesPvt!$E$111),IF(ISBLANK(TimelinesPvt!$E$169),"",TimelinesPvt!$E$169)) ->  | F24: =IF(OverviewIRR_PreTax,IF(ISBLANK(TimelinesPvt!$F$111),"",TimelinesPvt!$F$111),IF(ISBLANK(TimelinesPvt!$F$169),"",TimelinesPvt!$F$169)) ->  | G24: =IF(OverviewIRR_PreTax,IF(ISBLANK(TimelinesPvt!$G$111),"",TimelinesPvt!$G$111),IF(ISBLANK(TimelinesPvt!$G$169),"",TimelinesPvt!$G$169)) ->  | H24: =IF(OverviewIRR_PreTax,IF(ISBLANK(TimelinesPvt!$H$111),"",TimelinesPvt!$H$111),IF(ISBLANK(TimelinesPvt!$H$169),"",TimelinesPvt!$H$169)) ->  | I24: =IF(OverviewIRR_PreTax,IF(ISBLANK(TimelinesPvt!$I$111),"",TimelinesPvt!$I$111),IF(ISBLANK(TimelinesPvt!$I$169),"",TimelinesPvt!$I$169)) ->  | J24: =IF(OverviewIRR_PreTax,IF(ISBLANK(TimelinesPvt!$J$111),"",TimelinesPvt!$J$111),IF(ISBLANK(TimelinesPvt!$J$169),"",TimelinesPvt!$J$169)) ->  | K24: =IF(OverviewIRR_PreTax,IF(ISBLANK(TimelinesPvt!$K$111),"",TimelinesPvt!$K$111),IF(ISBLANK(TimelinesPvt!$K$169),"",TimelinesPvt!$K$169)) ->  | L24: =IF(OverviewIRR_PreTax,IF(ISBLANK(TimelinesPvt!$L$111),"",TimelinesPvt!$L$111),IF(ISBLANK(TimelinesPvt!$L$169),"",TimelinesPvt!$L$169)) ->  | M24: =IF(OverviewIRR_PreTax,IF(ISBLANK(TimelinesPvt!$M$111),"",TimelinesPvt!$M$111),IF(ISBLANK(TimelinesPvt!$M$169),"",TimelinesPvt!$M$169)) ->  | N24: =IF(OverviewIRR_PreTax,IF(ISBLANK(TimelinesPvt!$N$111),"",TimelinesPvt!$N$111),IF(ISBLANK(TimelinesPvt!$N$169),"",TimelinesPvt!$N$169)) ->  | O24: =IF(OverviewIRR_PreTax,IF(ISBLANK(TimelinesPvt!$O$111),"",TimelinesPvt!$O$111),IF(ISBLANK(TimelinesPvt!$O$169),"",TimelinesPvt!$O$169)) ->  | P24: =IF(OverviewIRR_PreTax,IF(ISBLANK(TimelinesPvt!$P$111),"",TimelinesPvt!$P$111),IF(ISBLANK(TimelinesPvt!$P$169),"",TimelinesPvt!$P$169)) ->  | Q24: =IF(OverviewIRR_PreTax,IF(ISBLANK(TimelinesPvt!$Q$111),"",TimelinesPvt!$Q$111),IF(ISBLANK(TimelinesPvt!$Q$169),"",TimelinesPvt!$Q$169)) ->  | R24: =IF(OverviewIRR_PreTax,IF(ISBLANK(TimelinesPvt!$R$111),"",TimelinesPvt!$R$111),IF(ISBLANK(TimelinesPvt!$R$169),"",TimelinesPvt!$R$169)) ->  | S24: =IF(OverviewIRR_PreTax,IF(ISBLANK(TimelinesPvt!$S$111),"",TimelinesPvt!$S$111),IF(ISBLANK(TimelinesPvt!$S$169),"",TimelinesPvt!$S$169)) ->  | T24: =IF(OverviewIRR_PreTax,IF(ISBLANK(TimelinesPvt!$T$111),"",TimelinesPvt!$T$111),IF(ISBLANK(TimelinesPvt!$T$169),"",TimelinesPvt!$T$169)) ->  | U24: =IF(OverviewIRR_PreTax,IF(ISBLANK(TimelinesPvt!$U$111),"",TimelinesPvt!$U$111),IF(ISBLANK(TimelinesPvt!$U$169),"",TimelinesPvt!$U$169)) ->  | V24: =IF(OverviewIRR_PreTax,IF(ISBLANK(TimelinesPvt!$V$111),"",TimelinesPvt!$V$111),IF(ISBLANK(TimelinesPvt!$V$169),"",TimelinesPvt!$V$169)) ->  | W24: =IF(OverviewIRR_PreTax,IF(ISBLANK(TimelinesPvt!$W$111),"",TimelinesPvt!$W$111),IF(ISBLANK(TimelinesPvt!$W$169),"",TimelinesPvt!$W$169)) ->  | X24: =IF(OverviewIRR_PreTax,IF(ISBLANK(TimelinesPvt!$X$111),"",TimelinesPvt!$X$111),IF(ISBLANK(TimelinesPvt!$X$169),"",TimelinesPvt!$X$169)) ->  | Y24: =IF(OverviewIRR_PreTax,IF(ISBLANK(TimelinesPvt!$Y$111),"",TimelinesPvt!$Y$111),IF(ISBLANK(TimelinesPvt!$Y$169),"",TimelinesPvt!$Y$169)) ->  | Z24: =IF(OverviewIRR_PreTax,IF(ISBLANK(TimelinesPvt!$Z$111),"",TimelinesPvt!$Z$111),IF(ISBLANK(TimelinesPvt!$Z$169),"",TimelinesPvt!$Z$169)) ->  | AA24: =IF(OverviewIRR_PreTax,IF(ISBLANK(TimelinesPvt!$AA$111),"",TimelinesPvt!$AA$111),IF(ISBLANK(TimelinesPvt!$AA$169),"",TimelinesPvt!$AA$169)) ->  | AB24: =IF(OverviewIRR_PreTax,IF(ISBLANK(TimelinesPvt!$AB$111),"",TimelinesPvt!$AB$111),IF(ISBLANK(TimelinesPvt!$AB$169),"",TimelinesPvt!$AB$169)) ->  | AC24: =IF(OverviewIRR_PreTax,IF(ISBLANK(TimelinesPvt!$AC$111),"",TimelinesPvt!$AC$111),IF(ISBLANK(TimelinesPvt!$AC$169),"",TimelinesPvt!$AC$169)) -> 
A25: Rebate&Grant | B25: =IF(OverviewIRR_PreTax,IF(ISBLANK(TimelinesPvt!$B$112),"",TimelinesPvt!$B$112),IF(ISBLANK(TimelinesPvt!$B$170),"",TimelinesPvt!$B$170)) -> Rebates & Grants | C25: =IF(OverviewIRR_PreTax,IF(ISBLANK(TimelinesPvt!$C$112),"",TimelinesPvt!$C$112),IF(ISBLANK(TimelinesPvt!$C$170),"",TimelinesPvt!$C$170)) ->  | D25: =IF(OverviewIRR_PreTax,IF(ISBLANK(TimelinesPvt!$D$112),"",TimelinesPvt!$D$112),IF(ISBLANK(TimelinesPvt!$D$170),"",TimelinesPvt!$D$170)) -> 0 | E25: =IF(OverviewIRR_PreTax,IF(ISBLANK(TimelinesPvt!$E$112),"",TimelinesPvt!$E$112),IF(ISBLANK(TimelinesPvt!$E$170),"",TimelinesPvt!$E$170)) ->  | F25: =IF(OverviewIRR_PreTax,IF(ISBLANK(TimelinesPvt!$F$112),"",TimelinesPvt!$F$112),IF(ISBLANK(TimelinesPvt!$F$170),"",TimelinesPvt!$F$170)) ->  | G25: =IF(OverviewIRR_PreTax,IF(ISBLANK(TimelinesPvt!$G$112),"",TimelinesPvt!$G$112),IF(ISBLANK(TimelinesPvt!$G$170),"",TimelinesPvt!$G$170)) ->  | H25: =IF(OverviewIRR_PreTax,IF(ISBLANK(TimelinesPvt!$H$112),"",TimelinesPvt!$H$112),IF(ISBLANK(TimelinesPvt!$H$170),"",TimelinesPvt!$H$170)) ->  | I25: =IF(OverviewIRR_PreTax,IF(ISBLANK(TimelinesPvt!$I$112),"",TimelinesPvt!$I$112),IF(ISBLANK(TimelinesPvt!$I$170),"",TimelinesPvt!$I$170)) ->  | J25: =IF(OverviewIRR_PreTax,IF(ISBLANK(TimelinesPvt!$J$112),"",TimelinesPvt!$J$112),IF(ISBLANK(TimelinesPvt!$J$170),"",TimelinesPvt!$J$170)) ->  | K25: =IF(OverviewIRR_PreTax,IF(ISBLANK(TimelinesPvt!$K$112),"",TimelinesPvt!$K$112),IF(ISBLANK(TimelinesPvt!$K$170),"",TimelinesPvt!$K$170)) ->  | L25: =IF(OverviewIRR_PreTax,IF(ISBLANK(TimelinesPvt!$L$112),"",TimelinesPvt!$L$112),IF(ISBLANK(TimelinesPvt!$L$170),"",TimelinesPvt!$L$170)) ->  | M25: =IF(OverviewIRR_PreTax,IF(ISBLANK(TimelinesPvt!$M$112),"",TimelinesPvt!$M$112),IF(ISBLANK(TimelinesPvt!$M$170),"",TimelinesPvt!$M$170)) ->  | N25: =IF(OverviewIRR_PreTax,IF(ISBLANK(TimelinesPvt!$N$112),"",TimelinesPvt!$N$112),IF(ISBLANK(TimelinesPvt!$N$170),"",TimelinesPvt!$N$170)) ->  | O25: =IF(OverviewIRR_PreTax,IF(ISBLANK(TimelinesPvt!$O$112),"",TimelinesPvt!$O$112),IF(ISBLANK(TimelinesPvt!$O$170),"",TimelinesPvt!$O$170)) ->  | P25: =IF(OverviewIRR_PreTax,IF(ISBLANK(TimelinesPvt!$P$112),"",TimelinesPvt!$P$112),IF(ISBLANK(TimelinesPvt!$P$170),"",TimelinesPvt!$P$170)) ->  | Q25: =IF(OverviewIRR_PreTax,IF(ISBLANK(TimelinesPvt!$Q$112),"",TimelinesPvt!$Q$112),IF(ISBLANK(TimelinesPvt!$Q$170),"",TimelinesPvt!$Q$170)) ->  | R25: =IF(OverviewIRR_PreTax,IF(ISBLANK(TimelinesPvt!$R$112),"",TimelinesPvt!$R$112),IF(ISBLANK(TimelinesPvt!$R$170),"",TimelinesPvt!$R$170)) ->  | S25: =IF(OverviewIRR_PreTax,IF(ISBLANK(TimelinesPvt!$S$112),"",TimelinesPvt!$S$112),IF(ISBLANK(TimelinesPvt!$S$170),"",TimelinesPvt!$S$170)) ->  | T25: =IF(OverviewIRR_PreTax,IF(ISBLANK(TimelinesPvt!$T$112),"",TimelinesPvt!$T$112),IF(ISBLANK(TimelinesPvt!$T$170),"",TimelinesPvt!$T$170)) ->  | U25: =IF(OverviewIRR_PreTax,IF(ISBLANK(TimelinesPvt!$U$112),"",TimelinesPvt!$U$112),IF(ISBLANK(TimelinesPvt!$U$170),"",TimelinesPvt!$U$170)) ->  | V25: =IF(OverviewIRR_PreTax,IF(ISBLANK(TimelinesPvt!$V$112),"",TimelinesPvt!$V$112),IF(ISBLANK(TimelinesPvt!$V$170),"",TimelinesPvt!$V$170)) ->  | W25: =IF(OverviewIRR_PreTax,IF(ISBLANK(TimelinesPvt!$W$112),"",TimelinesPvt!$W$112),IF(ISBLANK(TimelinesPvt!$W$170),"",TimelinesPvt!$W$170)) ->  | X25: =IF(OverviewIRR_PreTax,IF(ISBLANK(TimelinesPvt!$X$112),"",TimelinesPvt!$X$112),IF(ISBLANK(TimelinesPvt!$X$170),"",TimelinesPvt!$X$170)) ->  | Y25: =IF(OverviewIRR_PreTax,IF(ISBLANK(TimelinesPvt!$Y$112),"",TimelinesPvt!$Y$112),IF(ISBLANK(TimelinesPvt!$Y$170),"",TimelinesPvt!$Y$170)) ->  | Z25: =IF(OverviewIRR_PreTax,IF(ISBLANK(TimelinesPvt!$Z$112),"",TimelinesPvt!$Z$112),IF(ISBLANK(TimelinesPvt!$Z$170),"",TimelinesPvt!$Z$170)) ->  | AA25: =IF(OverviewIRR_PreTax,IF(ISBLANK(TimelinesPvt!$AA$112),"",TimelinesPvt!$AA$112),IF(ISBLANK(TimelinesPvt!$AA$170),"",TimelinesPvt!$AA$170)) ->  | AB25: =IF(OverviewIRR_PreTax,IF(ISBLANK(TimelinesPvt!$AB$112),"",TimelinesPvt!$AB$112),IF(ISBLANK(TimelinesPvt!$AB$170),"",TimelinesPvt!$AB$170)) ->  | AC25: =IF(OverviewIRR_PreTax,IF(ISBLANK(TimelinesPvt!$AC$112),"",TimelinesPvt!$AC$112),IF(ISBLANK(TimelinesPvt!$AC$170),"",TimelinesPvt!$AC$170)) -> 
A26: PbiPayments | B26: =IF(OverviewIRR_PreTax,IF(ISBLANK(TimelinesPvt!$B$113),"",TimelinesPvt!$B$113),IF(ISBLANK(TimelinesPvt!$B$171),"",TimelinesPvt!$B$171)) -> Performance Based Incentive | C26: =IF(OverviewIRR_PreTax,IF(ISBLANK(TimelinesPvt!$C$113),"",TimelinesPvt!$C$113),IF(ISBLANK(TimelinesPvt!$C$171),"",TimelinesPvt!$C$171)) ->  | D26: =IF(OverviewIRR_PreTax,IF(ISBLANK(TimelinesPvt!$D$113),"",TimelinesPvt!$D$113),IF(ISBLANK(TimelinesPvt!$D$171),"",TimelinesPvt!$D$171)) ->  | E26: =IF(OverviewIRR_PreTax,IF(ISBLANK(TimelinesPvt!$E$113),"",TimelinesPvt!$E$113),IF(ISBLANK(TimelinesPvt!$E$171),"",TimelinesPvt!$E$171)) -> 0 | F26: =IF(OverviewIRR_PreTax,IF(ISBLANK(TimelinesPvt!$F$113),"",TimelinesPvt!$F$113),IF(ISBLANK(TimelinesPvt!$F$171),"",TimelinesPvt!$F$171)) -> 0 | G26: =IF(OverviewIRR_PreTax,IF(ISBLANK(TimelinesPvt!$G$113),"",TimelinesPvt!$G$113),IF(ISBLANK(TimelinesPvt!$G$171),"",TimelinesPvt!$G$171)) -> 0 | H26: =IF(OverviewIRR_PreTax,IF(ISBLANK(TimelinesPvt!$H$113),"",TimelinesPvt!$H$113),IF(ISBLANK(TimelinesPvt!$H$171),"",TimelinesPvt!$H$171)) -> 0 | I26: =IF(OverviewIRR_PreTax,IF(ISBLANK(TimelinesPvt!$I$113),"",TimelinesPvt!$I$113),IF(ISBLANK(TimelinesPvt!$I$171),"",TimelinesPvt!$I$171)) -> 0 | J26: =IF(OverviewIRR_PreTax,IF(ISBLANK(TimelinesPvt!$J$113),"",TimelinesPvt!$J$113),IF(ISBLANK(TimelinesPvt!$J$171),"",TimelinesPvt!$J$171)) -> 0 | K26: =IF(OverviewIRR_PreTax,IF(ISBLANK(TimelinesPvt!$K$113),"",TimelinesPvt!$K$113),IF(ISBLANK(TimelinesPvt!$K$171),"",TimelinesPvt!$K$171)) -> 0 | L26: =IF(OverviewIRR_PreTax,IF(ISBLANK(TimelinesPvt!$L$113),"",TimelinesPvt!$L$113),IF(ISBLANK(TimelinesPvt!$L$171),"",TimelinesPvt!$L$171)) -> 0 | M26: =IF(OverviewIRR_PreTax,IF(ISBLANK(TimelinesPvt!$M$113),"",TimelinesPvt!$M$113),IF(ISBLANK(TimelinesPvt!$M$171),"",TimelinesPvt!$M$171)) -> 0 | N26: =IF(OverviewIRR_PreTax,IF(ISBLANK(TimelinesPvt!$N$113),"",TimelinesPvt!$N$113),IF(ISBLANK(TimelinesPvt!$N$171),"",TimelinesPvt!$N$171)) -> 0 | O26: =IF(OverviewIRR_PreTax,IF(ISBLANK(TimelinesPvt!$O$113),"",TimelinesPvt!$O$113),IF(ISBLANK(TimelinesPvt!$O$171),"",TimelinesPvt!$O$171)) -> 0 | P26: =IF(OverviewIRR_PreTax,IF(ISBLANK(TimelinesPvt!$P$113),"",TimelinesPvt!$P$113),IF(ISBLANK(TimelinesPvt!$P$171),"",TimelinesPvt!$P$171)) -> 0 | Q26: =IF(OverviewIRR_PreTax,IF(ISBLANK(TimelinesPvt!$Q$113),"",TimelinesPvt!$Q$113),IF(ISBLANK(TimelinesPvt!$Q$171),"",TimelinesPvt!$Q$171)) -> 0 | R26: =IF(OverviewIRR_PreTax,IF(ISBLANK(TimelinesPvt!$R$113),"",TimelinesPvt!$R$113),IF(ISBLANK(TimelinesPvt!$R$171),"",TimelinesPvt!$R$171)) -> 0 | S26: =IF(OverviewIRR_PreTax,IF(ISBLANK(TimelinesPvt!$S$113),"",TimelinesPvt!$S$113),IF(ISBLANK(TimelinesPvt!$S$171),"",TimelinesPvt!$S$171)) -> 0 | T26: =IF(OverviewIRR_PreTax,IF(ISBLANK(TimelinesPvt!$T$113),"",TimelinesPvt!$T$113),IF(ISBLANK(TimelinesPvt!$T$171),"",TimelinesPvt!$T$171)) -> 0 | U26: =IF(OverviewIRR_PreTax,IF(ISBLANK(TimelinesPvt!$U$113),"",TimelinesPvt!$U$113),IF(ISBLANK(TimelinesPvt!$U$171),"",TimelinesPvt!$U$171)) -> 0 | V26: =IF(OverviewIRR_PreTax,IF(ISBLANK(TimelinesPvt!$V$113),"",TimelinesPvt!$V$113),IF(ISBLANK(TimelinesPvt!$V$171),"",TimelinesPvt!$V$171)) -> 0 | W26: =IF(OverviewIRR_PreTax,IF(ISBLANK(TimelinesPvt!$W$113),"",TimelinesPvt!$W$113),IF(ISBLANK(TimelinesPvt!$W$171),"",TimelinesPvt!$W$171)) -> 0 | X26: =IF(OverviewIRR_PreTax,IF(ISBLANK(TimelinesPvt!$X$113),"",TimelinesPvt!$X$113),IF(ISBLANK(TimelinesPvt!$X$171),"",TimelinesPvt!$X$171)) -> 0 | Y26: =IF(OverviewIRR_PreTax,IF(ISBLANK(TimelinesPvt!$Y$113),"",TimelinesPvt!$Y$113),IF(ISBLANK(TimelinesPvt!$Y$171),"",TimelinesPvt!$Y$171)) -> 0 | Z26: =IF(OverviewIRR_PreTax,IF(ISBLANK(TimelinesPvt!$Z$113),"",TimelinesPvt!$Z$113),IF(ISBLANK(TimelinesPvt!$Z$171),"",TimelinesPvt!$Z$171)) -> 0 | AA26: =IF(OverviewIRR_PreTax,IF(ISBLANK(TimelinesPvt!$AA$113),"",TimelinesPvt!$AA$113),IF(ISBLANK(TimelinesPvt!$AA$171),"",TimelinesPvt!$AA$171)) -> 0 | AB26: =IF(OverviewIRR_PreTax,IF(ISBLANK(TimelinesPvt!$AB$113),"",TimelinesPvt!$AB$113),IF(ISBLANK(TimelinesPvt!$AB$171),"",TimelinesPvt!$AB$171)) -> 0 | AC26: =IF(OverviewIRR_PreTax,IF(ISBLANK(TimelinesPvt!$AC$113),"",TimelinesPvt!$AC$113),IF(ISBLANK(TimelinesPvt!$AC$171),"",TimelinesPvt!$AC$171)) -> 0
A27: EnergyEffCost | B27: =IF(OverviewIRR_PreTax,IF(ISBLANK(TimelinesPvt!$B$114),"",TimelinesPvt!$B$114),IF(ISBLANK(TimelinesPvt!$B$172),"",TimelinesPvt!$B$172)) -> Energy Efficiency Net Expense | C27: =IF(OverviewIRR_PreTax,IF(ISBLANK(TimelinesPvt!$C$114),"",TimelinesPvt!$C$114),IF(ISBLANK(TimelinesPvt!$C$172),"",TimelinesPvt!$C$172)) ->  | D27: =IF(OverviewIRR_PreTax,IF(ISBLANK(TimelinesPvt!$D$114),"",TimelinesPvt!$D$114),IF(ISBLANK(TimelinesPvt!$D$172),"",TimelinesPvt!$D$172)) -> 0 | E27: =IF(OverviewIRR_PreTax,IF(ISBLANK(TimelinesPvt!$E$114),"",TimelinesPvt!$E$114),IF(ISBLANK(TimelinesPvt!$E$172),"",TimelinesPvt!$E$172)) ->  | F27: =IF(OverviewIRR_PreTax,IF(ISBLANK(TimelinesPvt!$F$114),"",TimelinesPvt!$F$114),IF(ISBLANK(TimelinesPvt!$F$172),"",TimelinesPvt!$F$172)) ->  | G27: =IF(OverviewIRR_PreTax,IF(ISBLANK(TimelinesPvt!$G$114),"",TimelinesPvt!$G$114),IF(ISBLANK(TimelinesPvt!$G$172),"",TimelinesPvt!$G$172)) ->  | H27: =IF(OverviewIRR_PreTax,IF(ISBLANK(TimelinesPvt!$H$114),"",TimelinesPvt!$H$114),IF(ISBLANK(TimelinesPvt!$H$172),"",TimelinesPvt!$H$172)) ->  | I27: =IF(OverviewIRR_PreTax,IF(ISBLANK(TimelinesPvt!$I$114),"",TimelinesPvt!$I$114),IF(ISBLANK(TimelinesPvt!$I$172),"",TimelinesPvt!$I$172)) ->  | J27: =IF(OverviewIRR_PreTax,IF(ISBLANK(TimelinesPvt!$J$114),"",TimelinesPvt!$J$114),IF(ISBLANK(TimelinesPvt!$J$172),"",TimelinesPvt!$J$172)) ->  | K27: =IF(OverviewIRR_PreTax,IF(ISBLANK(TimelinesPvt!$K$114),"",TimelinesPvt!$K$114),IF(ISBLANK(TimelinesPvt!$K$172),"",TimelinesPvt!$K$172)) ->  | L27: =IF(OverviewIRR_PreTax,IF(ISBLANK(TimelinesPvt!$L$114),"",TimelinesPvt!$L$114),IF(ISBLANK(TimelinesPvt!$L$172),"",TimelinesPvt!$L$172)) ->  | M27: =IF(OverviewIRR_PreTax,IF(ISBLANK(TimelinesPvt!$M$114),"",TimelinesPvt!$M$114),IF(ISBLANK(TimelinesPvt!$M$172),"",TimelinesPvt!$M$172)) ->  | N27: =IF(OverviewIRR_PreTax,IF(ISBLANK(TimelinesPvt!$N$114),"",TimelinesPvt!$N$114),IF(ISBLANK(TimelinesPvt!$N$172),"",TimelinesPvt!$N$172)) ->  | O27: =IF(OverviewIRR_PreTax,IF(ISBLANK(TimelinesPvt!$O$114),"",TimelinesPvt!$O$114),IF(ISBLANK(TimelinesPvt!$O$172),"",TimelinesPvt!$O$172)) ->  | P27: =IF(OverviewIRR_PreTax,IF(ISBLANK(TimelinesPvt!$P$114),"",TimelinesPvt!$P$114),IF(ISBLANK(TimelinesPvt!$P$172),"",TimelinesPvt!$P$172)) ->  | Q27: =IF(OverviewIRR_PreTax,IF(ISBLANK(TimelinesPvt!$Q$114),"",TimelinesPvt!$Q$114),IF(ISBLANK(TimelinesPvt!$Q$172),"",TimelinesPvt!$Q$172)) ->  | R27: =IF(OverviewIRR_PreTax,IF(ISBLANK(TimelinesPvt!$R$114),"",TimelinesPvt!$R$114),IF(ISBLANK(TimelinesPvt!$R$172),"",TimelinesPvt!$R$172)) ->  | S27: =IF(OverviewIRR_PreTax,IF(ISBLANK(TimelinesPvt!$S$114),"",TimelinesPvt!$S$114),IF(ISBLANK(TimelinesPvt!$S$172),"",TimelinesPvt!$S$172)) ->  | T27: =IF(OverviewIRR_PreTax,IF(ISBLANK(TimelinesPvt!$T$114),"",TimelinesPvt!$T$114),IF(ISBLANK(TimelinesPvt!$T$172),"",TimelinesPvt!$T$172)) ->  | U27: =IF(OverviewIRR_PreTax,IF(ISBLANK(TimelinesPvt!$U$114),"",TimelinesPvt!$U$114),IF(ISBLANK(TimelinesPvt!$U$172),"",TimelinesPvt!$U$172)) ->  | V27: =IF(OverviewIRR_PreTax,IF(ISBLANK(TimelinesPvt!$V$114),"",TimelinesPvt!$V$114),IF(ISBLANK(TimelinesPvt!$V$172),"",TimelinesPvt!$V$172)) ->  | W27: =IF(OverviewIRR_PreTax,IF(ISBLANK(TimelinesPvt!$W$114),"",TimelinesPvt!$W$114),IF(ISBLANK(TimelinesPvt!$W$172),"",TimelinesPvt!$W$172)) ->  | X27: =IF(OverviewIRR_PreTax,IF(ISBLANK(TimelinesPvt!$X$114),"",TimelinesPvt!$X$114),IF(ISBLANK(TimelinesPvt!$X$172),"",TimelinesPvt!$X$172)) ->  | Y27: =IF(OverviewIRR_PreTax,IF(ISBLANK(TimelinesPvt!$Y$114),"",TimelinesPvt!$Y$114),IF(ISBLANK(TimelinesPvt!$Y$172),"",TimelinesPvt!$Y$172)) ->  | Z27: =IF(OverviewIRR_PreTax,IF(ISBLANK(TimelinesPvt!$Z$114),"",TimelinesPvt!$Z$114),IF(ISBLANK(TimelinesPvt!$Z$172),"",TimelinesPvt!$Z$172)) ->  | AA27: =IF(OverviewIRR_PreTax,IF(ISBLANK(TimelinesPvt!$AA$114),"",TimelinesPvt!$AA$114),IF(ISBLANK(TimelinesPvt!$AA$172),"",TimelinesPvt!$AA$172)) ->  | AB27: =IF(OverviewIRR_PreTax,IF(ISBLANK(TimelinesPvt!$AB$114),"",TimelinesPvt!$AB$114),IF(ISBLANK(TimelinesPvt!$AB$172),"",TimelinesPvt!$AB$172)) ->  | AC27: =IF(OverviewIRR_PreTax,IF(ISBLANK(TimelinesPvt!$AC$114),"",TimelinesPvt!$AC$114),IF(ISBLANK(TimelinesPvt!$AC$172),"",TimelinesPvt!$AC$172)) -> 
A29: ExpensesLabel | B29: =IF(OverviewIRR_PreTax,IF(ISBLANK(TimelinesPvt!$B$116),"",TimelinesPvt!$B$116),IF(ISBLANK(TimelinesPvt!$B$174),"",TimelinesPvt!$B$174)) -> Operating Expenses: | C29: =IF(OverviewIRR_PreTax,IF(ISBLANK(TimelinesPvt!$C$116),"",TimelinesPvt!$C$116),IF(ISBLANK(TimelinesPvt!$C$174),"",TimelinesPvt!$C$174)) ->  | D29: =IF(OverviewIRR_PreTax,IF(ISBLANK(TimelinesPvt!$D$116),"",TimelinesPvt!$D$116),IF(ISBLANK(TimelinesPvt!$D$174),"",TimelinesPvt!$D$174)) ->  | E29: =IF(OverviewIRR_PreTax,IF(ISBLANK(TimelinesPvt!$E$116),"",TimelinesPvt!$E$116),IF(ISBLANK(TimelinesPvt!$E$174),"",TimelinesPvt!$E$174)) ->  | F29: =IF(OverviewIRR_PreTax,IF(ISBLANK(TimelinesPvt!$F$116),"",TimelinesPvt!$F$116),IF(ISBLANK(TimelinesPvt!$F$174),"",TimelinesPvt!$F$174)) ->  | G29: =IF(OverviewIRR_PreTax,IF(ISBLANK(TimelinesPvt!$G$116),"",TimelinesPvt!$G$116),IF(ISBLANK(TimelinesPvt!$G$174),"",TimelinesPvt!$G$174)) ->  | H29: =IF(OverviewIRR_PreTax,IF(ISBLANK(TimelinesPvt!$H$116),"",TimelinesPvt!$H$116),IF(ISBLANK(TimelinesPvt!$H$174),"",TimelinesPvt!$H$174)) ->  | I29: =IF(OverviewIRR_PreTax,IF(ISBLANK(TimelinesPvt!$I$116),"",TimelinesPvt!$I$116),IF(ISBLANK(TimelinesPvt!$I$174),"",TimelinesPvt!$I$174)) ->  | J29: =IF(OverviewIRR_PreTax,IF(ISBLANK(TimelinesPvt!$J$116),"",TimelinesPvt!$J$116),IF(ISBLANK(TimelinesPvt!$J$174),"",TimelinesPvt!$J$174)) ->  | K29: =IF(OverviewIRR_PreTax,IF(ISBLANK(TimelinesPvt!$K$116),"",TimelinesPvt!$K$116),IF(ISBLANK(TimelinesPvt!$K$174),"",TimelinesPvt!$K$174)) ->  | L29: =IF(OverviewIRR_PreTax,IF(ISBLANK(TimelinesPvt!$L$116),"",TimelinesPvt!$L$116),IF(ISBLANK(TimelinesPvt!$L$174),"",TimelinesPvt!$L$174)) ->  | M29: =IF(OverviewIRR_PreTax,IF(ISBLANK(TimelinesPvt!$M$116),"",TimelinesPvt!$M$116),IF(ISBLANK(TimelinesPvt!$M$174),"",TimelinesPvt!$M$174)) ->  | N29: =IF(OverviewIRR_PreTax,IF(ISBLANK(TimelinesPvt!$N$116),"",TimelinesPvt!$N$116),IF(ISBLANK(TimelinesPvt!$N$174),"",TimelinesPvt!$N$174)) ->  | O29: =IF(OverviewIRR_PreTax,IF(ISBLANK(TimelinesPvt!$O$116),"",TimelinesPvt!$O$116),IF(ISBLANK(TimelinesPvt!$O$174),"",TimelinesPvt!$O$174)) ->  | P29: =IF(OverviewIRR_PreTax,IF(ISBLANK(TimelinesPvt!$P$116),"",TimelinesPvt!$P$116),IF(ISBLANK(TimelinesPvt!$P$174),"",TimelinesPvt!$P$174)) ->  | Q29: =IF(OverviewIRR_PreTax,IF(ISBLANK(TimelinesPvt!$Q$116),"",TimelinesPvt!$Q$116),IF(ISBLANK(TimelinesPvt!$Q$174),"",TimelinesPvt!$Q$174)) ->  | R29: =IF(OverviewIRR_PreTax,IF(ISBLANK(TimelinesPvt!$R$116),"",TimelinesPvt!$R$116),IF(ISBLANK(TimelinesPvt!$R$174),"",TimelinesPvt!$R$174)) ->  | S29: =IF(OverviewIRR_PreTax,IF(ISBLANK(TimelinesPvt!$S$116),"",TimelinesPvt!$S$116),IF(ISBLANK(TimelinesPvt!$S$174),"",TimelinesPvt!$S$174)) ->  | T29: =IF(OverviewIRR_PreTax,IF(ISBLANK(TimelinesPvt!$T$116),"",TimelinesPvt!$T$116),IF(ISBLANK(TimelinesPvt!$T$174),"",TimelinesPvt!$T$174)) ->  | U29: =IF(OverviewIRR_PreTax,IF(ISBLANK(TimelinesPvt!$U$116),"",TimelinesPvt!$U$116),IF(ISBLANK(TimelinesPvt!$U$174),"",TimelinesPvt!$U$174)) ->  | V29: =IF(OverviewIRR_PreTax,IF(ISBLANK(TimelinesPvt!$V$116),"",TimelinesPvt!$V$116),IF(ISBLANK(TimelinesPvt!$V$174),"",TimelinesPvt!$V$174)) ->  | W29: =IF(OverviewIRR_PreTax,IF(ISBLANK(TimelinesPvt!$W$116),"",TimelinesPvt!$W$116),IF(ISBLANK(TimelinesPvt!$W$174),"",TimelinesPvt!$W$174)) ->  | X29: =IF(OverviewIRR_PreTax,IF(ISBLANK(TimelinesPvt!$X$116),"",TimelinesPvt!$X$116),IF(ISBLANK(TimelinesPvt!$X$174),"",TimelinesPvt!$X$174)) ->  | Y29: =IF(OverviewIRR_PreTax,IF(ISBLANK(TimelinesPvt!$Y$116),"",TimelinesPvt!$Y$116),IF(ISBLANK(TimelinesPvt!$Y$174),"",TimelinesPvt!$Y$174)) ->  | Z29: =IF(OverviewIRR_PreTax,IF(ISBLANK(TimelinesPvt!$Z$116),"",TimelinesPvt!$Z$116),IF(ISBLANK(TimelinesPvt!$Z$174),"",TimelinesPvt!$Z$174)) ->  | AA29: =IF(OverviewIRR_PreTax,IF(ISBLANK(TimelinesPvt!$AA$116),"",TimelinesPvt!$AA$116),IF(ISBLANK(TimelinesPvt!$AA$174),"",TimelinesPvt!$AA$174)) ->  | AB29: =IF(OverviewIRR_PreTax,IF(ISBLANK(TimelinesPvt!$AB$116),"",TimelinesPvt!$AB$116),IF(ISBLANK(TimelinesPvt!$AB$174),"",TimelinesPvt!$AB$174)) ->  | AC29: =IF(OverviewIRR_PreTax,IF(ISBLANK(TimelinesPvt!$AC$116),"",TimelinesPvt!$AC$116),IF(ISBLANK(TimelinesPvt!$AC$174),"",TimelinesPvt!$AC$174)) -> 
A30: SystemMaint | B30: =IF(OverviewIRR_PreTax,IF(ISBLANK(TimelinesPvt!$B$117),"",TimelinesPvt!$B$117),IF(ISBLANK(TimelinesPvt!$B$175),"",TimelinesPvt!$B$175)) -> System Maintenance at 0.2% of gross system cost per year | C30: =IF(OverviewIRR_PreTax,IF(ISBLANK(TimelinesPvt!$C$117),"",TimelinesPvt!$C$117),IF(ISBLANK(TimelinesPvt!$C$175),"",TimelinesPvt!$C$175)) ->  | D30: =IF(OverviewIRR_PreTax,IF(ISBLANK(TimelinesPvt!$D$117),"",TimelinesPvt!$D$117),IF(ISBLANK(TimelinesPvt!$D$175),"",TimelinesPvt!$D$175)) ->  | E30: =IF(OverviewIRR_PreTax,IF(ISBLANK(TimelinesPvt!$E$117),"",TimelinesPvt!$E$117),IF(ISBLANK(TimelinesPvt!$E$175),"",TimelinesPvt!$E$175)) -> -418.06 | F30: =IF(OverviewIRR_PreTax,IF(ISBLANK(TimelinesPvt!$F$117),"",TimelinesPvt!$F$117),IF(ISBLANK(TimelinesPvt!$F$175),"",TimelinesPvt!$F$175)) -> -432.6921 | G30: =IF(OverviewIRR_PreTax,IF(ISBLANK(TimelinesPvt!$G$117),"",TimelinesPvt!$G$117),IF(ISBLANK(TimelinesPvt!$G$175),"",TimelinesPvt!$G$175)) -> -447.8363235 | H30: =IF(OverviewIRR_PreTax,IF(ISBLANK(TimelinesPvt!$H$117),"",TimelinesPvt!$H$117),IF(ISBLANK(TimelinesPvt!$H$175),"",TimelinesPvt!$H$175)) -> -463.5105948 | I30: =IF(OverviewIRR_PreTax,IF(ISBLANK(TimelinesPvt!$I$117),"",TimelinesPvt!$I$117),IF(ISBLANK(TimelinesPvt!$I$175),"",TimelinesPvt!$I$175)) -> -479.7334656 | J30: =IF(OverviewIRR_PreTax,IF(ISBLANK(TimelinesPvt!$J$117),"",TimelinesPvt!$J$117),IF(ISBLANK(TimelinesPvt!$J$175),"",TimelinesPvt!$J$175)) -> -496.5241369 | K30: =IF(OverviewIRR_PreTax,IF(ISBLANK(TimelinesPvt!$K$117),"",TimelinesPvt!$K$117),IF(ISBLANK(TimelinesPvt!$K$175),"",TimelinesPvt!$K$175)) -> -513.9024817 | L30: =IF(OverviewIRR_PreTax,IF(ISBLANK(TimelinesPvt!$L$117),"",TimelinesPvt!$L$117),IF(ISBLANK(TimelinesPvt!$L$175),"",TimelinesPvt!$L$175)) -> -531.8890686 | M30: =IF(OverviewIRR_PreTax,IF(ISBLANK(TimelinesPvt!$M$117),"",TimelinesPvt!$M$117),IF(ISBLANK(TimelinesPvt!$M$175),"",TimelinesPvt!$M$175)) -> -550.505186 | N30: =IF(OverviewIRR_PreTax,IF(ISBLANK(TimelinesPvt!$N$117),"",TimelinesPvt!$N$117),IF(ISBLANK(TimelinesPvt!$N$175),"",TimelinesPvt!$N$175)) -> -569.7728675 | O30: =IF(OverviewIRR_PreTax,IF(ISBLANK(TimelinesPvt!$O$117),"",TimelinesPvt!$O$117),IF(ISBLANK(TimelinesPvt!$O$175),"",TimelinesPvt!$O$175)) -> -589.7149179 | P30: =IF(OverviewIRR_PreTax,IF(ISBLANK(TimelinesPvt!$P$117),"",TimelinesPvt!$P$117),IF(ISBLANK(TimelinesPvt!$P$175),"",TimelinesPvt!$P$175)) -> -610.35494 | Q30: =IF(OverviewIRR_PreTax,IF(ISBLANK(TimelinesPvt!$Q$117),"",TimelinesPvt!$Q$117),IF(ISBLANK(TimelinesPvt!$Q$175),"",TimelinesPvt!$Q$175)) -> -631.7173629 | R30: =IF(OverviewIRR_PreTax,IF(ISBLANK(TimelinesPvt!$R$117),"",TimelinesPvt!$R$117),IF(ISBLANK(TimelinesPvt!$R$175),"",TimelinesPvt!$R$175)) -> -653.8274706 | S30: =IF(OverviewIRR_PreTax,IF(ISBLANK(TimelinesPvt!$S$117),"",TimelinesPvt!$S$117),IF(ISBLANK(TimelinesPvt!$S$175),"",TimelinesPvt!$S$175)) -> -676.7114321 | T30: =IF(OverviewIRR_PreTax,IF(ISBLANK(TimelinesPvt!$T$117),"",TimelinesPvt!$T$117),IF(ISBLANK(TimelinesPvt!$T$175),"",TimelinesPvt!$T$175)) -> -700.3963322 | U30: =IF(OverviewIRR_PreTax,IF(ISBLANK(TimelinesPvt!$U$117),"",TimelinesPvt!$U$117),IF(ISBLANK(TimelinesPvt!$U$175),"",TimelinesPvt!$U$175)) -> -724.9102038 | V30: =IF(OverviewIRR_PreTax,IF(ISBLANK(TimelinesPvt!$V$117),"",TimelinesPvt!$V$117),IF(ISBLANK(TimelinesPvt!$V$175),"",TimelinesPvt!$V$175)) -> -750.2820609 | W30: =IF(OverviewIRR_PreTax,IF(ISBLANK(TimelinesPvt!$W$117),"",TimelinesPvt!$W$117),IF(ISBLANK(TimelinesPvt!$W$175),"",TimelinesPvt!$W$175)) -> -776.5419331 | X30: =IF(OverviewIRR_PreTax,IF(ISBLANK(TimelinesPvt!$X$117),"",TimelinesPvt!$X$117),IF(ISBLANK(TimelinesPvt!$X$175),"",TimelinesPvt!$X$175)) -> -803.7209007 | Y30: =IF(OverviewIRR_PreTax,IF(ISBLANK(TimelinesPvt!$Y$117),"",TimelinesPvt!$Y$117),IF(ISBLANK(TimelinesPvt!$Y$175),"",TimelinesPvt!$Y$175)) -> -831.8511323 | Z30: =IF(OverviewIRR_PreTax,IF(ISBLANK(TimelinesPvt!$Z$117),"",TimelinesPvt!$Z$117),IF(ISBLANK(TimelinesPvt!$Z$175),"",TimelinesPvt!$Z$175)) -> -860.9659219 | AA30: =IF(OverviewIRR_PreTax,IF(ISBLANK(TimelinesPvt!$AA$117),"",TimelinesPvt!$AA$117),IF(ISBLANK(TimelinesPvt!$AA$175),"",TimelinesPvt!$AA$175)) -> -891.0997292 | AB30: =IF(OverviewIRR_PreTax,IF(ISBLANK(TimelinesPvt!$AB$117),"",TimelinesPvt!$AB$117),IF(ISBLANK(TimelinesPvt!$AB$175),"",TimelinesPvt!$AB$175)) -> -922.2882197 | AC30: =IF(OverviewIRR_PreTax,IF(ISBLANK(TimelinesPvt!$AC$117),"",TimelinesPvt!$AC$117),IF(ISBLANK(TimelinesPvt!$AC$175),"",TimelinesPvt!$AC$175)) -> -954.5683074
A31: InverterRepl | B31: =IF(OverviewIRR_PreTax,IF(ISBLANK(TimelinesPvt!$B$118),"",TimelinesPvt!$B$118),IF(ISBLANK(TimelinesPvt!$B$176),"",TimelinesPvt!$B$176)) -> Inverter Replacement at $300 per kW in Year 20 | C31: =IF(OverviewIRR_PreTax,IF(ISBLANK(TimelinesPvt!$C$118),"",TimelinesPvt!$C$118),IF(ISBLANK(TimelinesPvt!$C$176),"",TimelinesPvt!$C$176)) ->  | D31: =IF(OverviewIRR_PreTax,IF(ISBLANK(TimelinesPvt!$D$118),"",TimelinesPvt!$D$118),IF(ISBLANK(TimelinesPvt!$D$176),"",TimelinesPvt!$D$176)) ->  | E31: =IF(OverviewIRR_PreTax,IF(ISBLANK(TimelinesPvt!$E$118),"",TimelinesPvt!$E$118),IF(ISBLANK(TimelinesPvt!$E$176),"",TimelinesPvt!$E$176)) -> 0 | F31: =IF(OverviewIRR_PreTax,IF(ISBLANK(TimelinesPvt!$F$118),"",TimelinesPvt!$F$118),IF(ISBLANK(TimelinesPvt!$F$176),"",TimelinesPvt!$F$176)) -> 0 | G31: =IF(OverviewIRR_PreTax,IF(ISBLANK(TimelinesPvt!$G$118),"",TimelinesPvt!$G$118),IF(ISBLANK(TimelinesPvt!$G$176),"",TimelinesPvt!$G$176)) -> 0 | H31: =IF(OverviewIRR_PreTax,IF(ISBLANK(TimelinesPvt!$H$118),"",TimelinesPvt!$H$118),IF(ISBLANK(TimelinesPvt!$H$176),"",TimelinesPvt!$H$176)) -> 0 | I31: =IF(OverviewIRR_PreTax,IF(ISBLANK(TimelinesPvt!$I$118),"",TimelinesPvt!$I$118),IF(ISBLANK(TimelinesPvt!$I$176),"",TimelinesPvt!$I$176)) -> 0 | J31: =IF(OverviewIRR_PreTax,IF(ISBLANK(TimelinesPvt!$J$118),"",TimelinesPvt!$J$118),IF(ISBLANK(TimelinesPvt!$J$176),"",TimelinesPvt!$J$176)) -> 0 | K31: =IF(OverviewIRR_PreTax,IF(ISBLANK(TimelinesPvt!$K$118),"",TimelinesPvt!$K$118),IF(ISBLANK(TimelinesPvt!$K$176),"",TimelinesPvt!$K$176)) -> 0 | L31: =IF(OverviewIRR_PreTax,IF(ISBLANK(TimelinesPvt!$L$118),"",TimelinesPvt!$L$118),IF(ISBLANK(TimelinesPvt!$L$176),"",TimelinesPvt!$L$176)) -> 0 | M31: =IF(OverviewIRR_PreTax,IF(ISBLANK(TimelinesPvt!$M$118),"",TimelinesPvt!$M$118),IF(ISBLANK(TimelinesPvt!$M$176),"",TimelinesPvt!$M$176)) -> 0 | N31: =IF(OverviewIRR_PreTax,IF(ISBLANK(TimelinesPvt!$N$118),"",TimelinesPvt!$N$118),IF(ISBLANK(TimelinesPvt!$N$176),"",TimelinesPvt!$N$176)) -> 0 | O31: =IF(OverviewIRR_PreTax,IF(ISBLANK(TimelinesPvt!$O$118),"",TimelinesPvt!$O$118),IF(ISBLANK(TimelinesPvt!$O$176),"",TimelinesPvt!$O$176)) -> 0 | P31: =IF(OverviewIRR_PreTax,IF(ISBLANK(TimelinesPvt!$P$118),"",TimelinesPvt!$P$118),IF(ISBLANK(TimelinesPvt!$P$176),"",TimelinesPvt!$P$176)) -> 0 | Q31: =IF(OverviewIRR_PreTax,IF(ISBLANK(TimelinesPvt!$Q$118),"",TimelinesPvt!$Q$118),IF(ISBLANK(TimelinesPvt!$Q$176),"",TimelinesPvt!$Q$176)) -> 0 | R31: =IF(OverviewIRR_PreTax,IF(ISBLANK(TimelinesPvt!$R$118),"",TimelinesPvt!$R$118),IF(ISBLANK(TimelinesPvt!$R$176),"",TimelinesPvt!$R$176)) -> 0 | S31: =IF(OverviewIRR_PreTax,IF(ISBLANK(TimelinesPvt!$S$118),"",TimelinesPvt!$S$118),IF(ISBLANK(TimelinesPvt!$S$176),"",TimelinesPvt!$S$176)) -> 0 | T31: =IF(OverviewIRR_PreTax,IF(ISBLANK(TimelinesPvt!$T$118),"",TimelinesPvt!$T$118),IF(ISBLANK(TimelinesPvt!$T$176),"",TimelinesPvt!$T$176)) -> 0 | U31: =IF(OverviewIRR_PreTax,IF(ISBLANK(TimelinesPvt!$U$118),"",TimelinesPvt!$U$118),IF(ISBLANK(TimelinesPvt!$U$176),"",TimelinesPvt!$U$176)) -> 0 | V31: =IF(OverviewIRR_PreTax,IF(ISBLANK(TimelinesPvt!$V$118),"",TimelinesPvt!$V$118),IF(ISBLANK(TimelinesPvt!$V$176),"",TimelinesPvt!$V$176)) -> 0 | W31: =IF(OverviewIRR_PreTax,IF(ISBLANK(TimelinesPvt!$W$118),"",TimelinesPvt!$W$118),IF(ISBLANK(TimelinesPvt!$W$176),"",TimelinesPvt!$W$176)) -> 0 | X31: =IF(OverviewIRR_PreTax,IF(ISBLANK(TimelinesPvt!$X$118),"",TimelinesPvt!$X$118),IF(ISBLANK(TimelinesPvt!$X$176),"",TimelinesPvt!$X$176)) -> -30000 | Y31: =IF(OverviewIRR_PreTax,IF(ISBLANK(TimelinesPvt!$Y$118),"",TimelinesPvt!$Y$118),IF(ISBLANK(TimelinesPvt!$Y$176),"",TimelinesPvt!$Y$176)) -> 0 | Z31: =IF(OverviewIRR_PreTax,IF(ISBLANK(TimelinesPvt!$Z$118),"",TimelinesPvt!$Z$118),IF(ISBLANK(TimelinesPvt!$Z$176),"",TimelinesPvt!$Z$176)) -> 0 | AA31: =IF(OverviewIRR_PreTax,IF(ISBLANK(TimelinesPvt!$AA$118),"",TimelinesPvt!$AA$118),IF(ISBLANK(TimelinesPvt!$AA$176),"",TimelinesPvt!$AA$176)) -> 0 | AB31: =IF(OverviewIRR_PreTax,IF(ISBLANK(TimelinesPvt!$AB$118),"",TimelinesPvt!$AB$118),IF(ISBLANK(TimelinesPvt!$AB$176),"",TimelinesPvt!$AB$176)) -> 0 | AC31: =IF(OverviewIRR_PreTax,IF(ISBLANK(TimelinesPvt!$AC$118),"",TimelinesPvt!$AC$118),IF(ISBLANK(TimelinesPvt!$AC$176),"",TimelinesPvt!$AC$176)) -> 0
A32: MonitoringCost | B32: =IF(OverviewIRR_PreTax,IF(ISBLANK(TimelinesPvt!$B$119),"",TimelinesPvt!$B$119),IF(ISBLANK(TimelinesPvt!$B$177),"",TimelinesPvt!$B$177)) -> No Monitoring Expense Included In This Analysis | C32: =IF(OverviewIRR_PreTax,IF(ISBLANK(TimelinesPvt!$C$119),"",TimelinesPvt!$C$119),IF(ISBLANK(TimelinesPvt!$C$177),"",TimelinesPvt!$C$177)) ->  | D32: =IF(OverviewIRR_PreTax,IF(ISBLANK(TimelinesPvt!$D$119),"",TimelinesPvt!$D$119),IF(ISBLANK(TimelinesPvt!$D$177),"",TimelinesPvt!$D$177)) ->  | E32: =IF(OverviewIRR_PreTax,IF(ISBLANK(TimelinesPvt!$E$119),"",TimelinesPvt!$E$119),IF(ISBLANK(TimelinesPvt!$E$177),"",TimelinesPvt!$E$177)) -> 0 | F32: =IF(OverviewIRR_PreTax,IF(ISBLANK(TimelinesPvt!$F$119),"",TimelinesPvt!$F$119),IF(ISBLANK(TimelinesPvt!$F$177),"",TimelinesPvt!$F$177)) -> 0 | G32: =IF(OverviewIRR_PreTax,IF(ISBLANK(TimelinesPvt!$G$119),"",TimelinesPvt!$G$119),IF(ISBLANK(TimelinesPvt!$G$177),"",TimelinesPvt!$G$177)) -> 0 | H32: =IF(OverviewIRR_PreTax,IF(ISBLANK(TimelinesPvt!$H$119),"",TimelinesPvt!$H$119),IF(ISBLANK(TimelinesPvt!$H$177),"",TimelinesPvt!$H$177)) -> 0 | I32: =IF(OverviewIRR_PreTax,IF(ISBLANK(TimelinesPvt!$I$119),"",TimelinesPvt!$I$119),IF(ISBLANK(TimelinesPvt!$I$177),"",TimelinesPvt!$I$177)) -> 0 | J32: =IF(OverviewIRR_PreTax,IF(ISBLANK(TimelinesPvt!$J$119),"",TimelinesPvt!$J$119),IF(ISBLANK(TimelinesPvt!$J$177),"",TimelinesPvt!$J$177)) -> 0 | K32: =IF(OverviewIRR_PreTax,IF(ISBLANK(TimelinesPvt!$K$119),"",TimelinesPvt!$K$119),IF(ISBLANK(TimelinesPvt!$K$177),"",TimelinesPvt!$K$177)) -> 0 | L32: =IF(OverviewIRR_PreTax,IF(ISBLANK(TimelinesPvt!$L$119),"",TimelinesPvt!$L$119),IF(ISBLANK(TimelinesPvt!$L$177),"",TimelinesPvt!$L$177)) -> 0 | M32: =IF(OverviewIRR_PreTax,IF(ISBLANK(TimelinesPvt!$M$119),"",TimelinesPvt!$M$119),IF(ISBLANK(TimelinesPvt!$M$177),"",TimelinesPvt!$M$177)) -> 0 | N32: =IF(OverviewIRR_PreTax,IF(ISBLANK(TimelinesPvt!$N$119),"",TimelinesPvt!$N$119),IF(ISBLANK(TimelinesPvt!$N$177),"",TimelinesPvt!$N$177)) -> 0 | O32: =IF(OverviewIRR_PreTax,IF(ISBLANK(TimelinesPvt!$O$119),"",TimelinesPvt!$O$119),IF(ISBLANK(TimelinesPvt!$O$177),"",TimelinesPvt!$O$177)) -> 0 | P32: =IF(OverviewIRR_PreTax,IF(ISBLANK(TimelinesPvt!$P$119),"",TimelinesPvt!$P$119),IF(ISBLANK(TimelinesPvt!$P$177),"",TimelinesPvt!$P$177)) -> 0 | Q32: =IF(OverviewIRR_PreTax,IF(ISBLANK(TimelinesPvt!$Q$119),"",TimelinesPvt!$Q$119),IF(ISBLANK(TimelinesPvt!$Q$177),"",TimelinesPvt!$Q$177)) -> 0 | R32: =IF(OverviewIRR_PreTax,IF(ISBLANK(TimelinesPvt!$R$119),"",TimelinesPvt!$R$119),IF(ISBLANK(TimelinesPvt!$R$177),"",TimelinesPvt!$R$177)) -> 0 | S32: =IF(OverviewIRR_PreTax,IF(ISBLANK(TimelinesPvt!$S$119),"",TimelinesPvt!$S$119),IF(ISBLANK(TimelinesPvt!$S$177),"",TimelinesPvt!$S$177)) -> 0 | T32: =IF(OverviewIRR_PreTax,IF(ISBLANK(TimelinesPvt!$T$119),"",TimelinesPvt!$T$119),IF(ISBLANK(TimelinesPvt!$T$177),"",TimelinesPvt!$T$177)) -> 0 | U32: =IF(OverviewIRR_PreTax,IF(ISBLANK(TimelinesPvt!$U$119),"",TimelinesPvt!$U$119),IF(ISBLANK(TimelinesPvt!$U$177),"",TimelinesPvt!$U$177)) -> 0 | V32: =IF(OverviewIRR_PreTax,IF(ISBLANK(TimelinesPvt!$V$119),"",TimelinesPvt!$V$119),IF(ISBLANK(TimelinesPvt!$V$177),"",TimelinesPvt!$V$177)) -> 0 | W32: =IF(OverviewIRR_PreTax,IF(ISBLANK(TimelinesPvt!$W$119),"",TimelinesPvt!$W$119),IF(ISBLANK(TimelinesPvt!$W$177),"",TimelinesPvt!$W$177)) -> 0 | X32: =IF(OverviewIRR_PreTax,IF(ISBLANK(TimelinesPvt!$X$119),"",TimelinesPvt!$X$119),IF(ISBLANK(TimelinesPvt!$X$177),"",TimelinesPvt!$X$177)) -> 0 | Y32: =IF(OverviewIRR_PreTax,IF(ISBLANK(TimelinesPvt!$Y$119),"",TimelinesPvt!$Y$119),IF(ISBLANK(TimelinesPvt!$Y$177),"",TimelinesPvt!$Y$177)) -> 0 | Z32: =IF(OverviewIRR_PreTax,IF(ISBLANK(TimelinesPvt!$Z$119),"",TimelinesPvt!$Z$119),IF(ISBLANK(TimelinesPvt!$Z$177),"",TimelinesPvt!$Z$177)) -> 0 | AA32: =IF(OverviewIRR_PreTax,IF(ISBLANK(TimelinesPvt!$AA$119),"",TimelinesPvt!$AA$119),IF(ISBLANK(TimelinesPvt!$AA$177),"",TimelinesPvt!$AA$177)) -> 0 | AB32: =IF(OverviewIRR_PreTax,IF(ISBLANK(TimelinesPvt!$AB$119),"",TimelinesPvt!$AB$119),IF(ISBLANK(TimelinesPvt!$AB$177),"",TimelinesPvt!$AB$177)) -> 0 | AC32: =IF(OverviewIRR_PreTax,IF(ISBLANK(TimelinesPvt!$AC$119),"",TimelinesPvt!$AC$119),IF(ISBLANK(TimelinesPvt!$AC$177),"",TimelinesPvt!$AC$177)) -> 0
B33: =IF(OverviewIRR_PreTax,IF(ISBLANK(TimelinesPvt!$B$120),"",TimelinesPvt!$B$120),IF(ISBLANK(TimelinesPvt!$B$178),"",TimelinesPvt!$B$178)) ->  | C33: =IF(OverviewIRR_PreTax,IF(ISBLANK(TimelinesPvt!$C$120),"",TimelinesPvt!$C$120),IF(ISBLANK(TimelinesPvt!$C$178),"",TimelinesPvt!$C$178)) ->  | D33: =IF(OverviewIRR_PreTax,IF(ISBLANK(TimelinesPvt!$D$120),"",TimelinesPvt!$D$120),IF(ISBLANK(TimelinesPvt!$D$178),"",TimelinesPvt!$D$178)) ->  | E33: =IF(OverviewIRR_PreTax,IF(ISBLANK(TimelinesPvt!$E$120),"",TimelinesPvt!$E$120),IF(ISBLANK(TimelinesPvt!$E$178),"",TimelinesPvt!$E$178)) ->  | F33: =IF(OverviewIRR_PreTax,IF(ISBLANK(TimelinesPvt!$F$120),"",TimelinesPvt!$F$120),IF(ISBLANK(TimelinesPvt!$F$178),"",TimelinesPvt!$F$178)) ->  | G33: =IF(OverviewIRR_PreTax,IF(ISBLANK(TimelinesPvt!$G$120),"",TimelinesPvt!$G$120),IF(ISBLANK(TimelinesPvt!$G$178),"",TimelinesPvt!$G$178)) ->  | H33: =IF(OverviewIRR_PreTax,IF(ISBLANK(TimelinesPvt!$H$120),"",TimelinesPvt!$H$120),IF(ISBLANK(TimelinesPvt!$H$178),"",TimelinesPvt!$H$178)) ->  | I33: =IF(OverviewIRR_PreTax,IF(ISBLANK(TimelinesPvt!$I$120),"",TimelinesPvt!$I$120),IF(ISBLANK(TimelinesPvt!$I$178),"",TimelinesPvt!$I$178)) ->  | J33: =IF(OverviewIRR_PreTax,IF(ISBLANK(TimelinesPvt!$J$120),"",TimelinesPvt!$J$120),IF(ISBLANK(TimelinesPvt!$J$178),"",TimelinesPvt!$J$178)) ->  | K33: =IF(OverviewIRR_PreTax,IF(ISBLANK(TimelinesPvt!$K$120),"",TimelinesPvt!$K$120),IF(ISBLANK(TimelinesPvt!$K$178),"",TimelinesPvt!$K$178)) ->  | L33: =IF(OverviewIRR_PreTax,IF(ISBLANK(TimelinesPvt!$L$120),"",TimelinesPvt!$L$120),IF(ISBLANK(TimelinesPvt!$L$178),"",TimelinesPvt!$L$178)) ->  | M33: =IF(OverviewIRR_PreTax,IF(ISBLANK(TimelinesPvt!$M$120),"",TimelinesPvt!$M$120),IF(ISBLANK(TimelinesPvt!$M$178),"",TimelinesPvt!$M$178)) ->  | N33: =IF(OverviewIRR_PreTax,IF(ISBLANK(TimelinesPvt!$N$120),"",TimelinesPvt!$N$120),IF(ISBLANK(TimelinesPvt!$N$178),"",TimelinesPvt!$N$178)) ->  | O33: =IF(OverviewIRR_PreTax,IF(ISBLANK(TimelinesPvt!$O$120),"",TimelinesPvt!$O$120),IF(ISBLANK(TimelinesPvt!$O$178),"",TimelinesPvt!$O$178)) ->  | P33: =IF(OverviewIRR_PreTax,IF(ISBLANK(TimelinesPvt!$P$120),"",TimelinesPvt!$P$120),IF(ISBLANK(TimelinesPvt!$P$178),"",TimelinesPvt!$P$178)) ->  | Q33: =IF(OverviewIRR_PreTax,IF(ISBLANK(TimelinesPvt!$Q$120),"",TimelinesPvt!$Q$120),IF(ISBLANK(TimelinesPvt!$Q$178),"",TimelinesPvt!$Q$178)) ->  | R33: =IF(OverviewIRR_PreTax,IF(ISBLANK(TimelinesPvt!$R$120),"",TimelinesPvt!$R$120),IF(ISBLANK(TimelinesPvt!$R$178),"",TimelinesPvt!$R$178)) ->  | S33: =IF(OverviewIRR_PreTax,IF(ISBLANK(TimelinesPvt!$S$120),"",TimelinesPvt!$S$120),IF(ISBLANK(TimelinesPvt!$S$178),"",TimelinesPvt!$S$178)) ->  | T33: =IF(OverviewIRR_PreTax,IF(ISBLANK(TimelinesPvt!$T$120),"",TimelinesPvt!$T$120),IF(ISBLANK(TimelinesPvt!$T$178),"",TimelinesPvt!$T$178)) ->  | U33: =IF(OverviewIRR_PreTax,IF(ISBLANK(TimelinesPvt!$U$120),"",TimelinesPvt!$U$120),IF(ISBLANK(TimelinesPvt!$U$178),"",TimelinesPvt!$U$178)) ->  | V33: =IF(OverviewIRR_PreTax,IF(ISBLANK(TimelinesPvt!$V$120),"",TimelinesPvt!$V$120),IF(ISBLANK(TimelinesPvt!$V$178),"",TimelinesPvt!$V$178)) ->  | W33: =IF(OverviewIRR_PreTax,IF(ISBLANK(TimelinesPvt!$W$120),"",TimelinesPvt!$W$120),IF(ISBLANK(TimelinesPvt!$W$178),"",TimelinesPvt!$W$178)) ->  | X33: =IF(OverviewIRR_PreTax,IF(ISBLANK(TimelinesPvt!$X$120),"",TimelinesPvt!$X$120),IF(ISBLANK(TimelinesPvt!$X$178),"",TimelinesPvt!$X$178)) ->  | Y33: =IF(OverviewIRR_PreTax,IF(ISBLANK(TimelinesPvt!$Y$120),"",TimelinesPvt!$Y$120),IF(ISBLANK(TimelinesPvt!$Y$178),"",TimelinesPvt!$Y$178)) ->  | Z33: =IF(OverviewIRR_PreTax,IF(ISBLANK(TimelinesPvt!$Z$120),"",TimelinesPvt!$Z$120),IF(ISBLANK(TimelinesPvt!$Z$178),"",TimelinesPvt!$Z$178)) ->  | AA33: =IF(OverviewIRR_PreTax,IF(ISBLANK(TimelinesPvt!$AA$120),"",TimelinesPvt!$AA$120),IF(ISBLANK(TimelinesPvt!$AA$178),"",TimelinesPvt!$AA$178)) ->  | AB33: =IF(OverviewIRR_PreTax,IF(ISBLANK(TimelinesPvt!$AB$120),"",TimelinesPvt!$AB$120),IF(ISBLANK(TimelinesPvt!$AB$178),"",TimelinesPvt!$AB$178)) ->  | AC33: =IF(OverviewIRR_PreTax,IF(ISBLANK(TimelinesPvt!$AC$120),"",TimelinesPvt!$AC$120),IF(ISBLANK(TimelinesPvt!$AC$178),"",TimelinesPvt!$AC$178)) -> 
A34: OperatingProfitLoss | B34: =IF(OverviewIRR_PreTax,IF(ISBLANK(TimelinesPvt!$B$121),"",TimelinesPvt!$B$121),IF(ISBLANK(TimelinesPvt!$B$179),"",TimelinesPvt!$B$179)) -> Operating Profit (loss): | C34: =IF(OverviewIRR_PreTax,IF(ISBLANK(TimelinesPvt!$C$121),"",TimelinesPvt!$C$121),IF(ISBLANK(TimelinesPvt!$C$179),"",TimelinesPvt!$C$179)) ->  | D34: =IF(OverviewIRR_PreTax,IF(ISBLANK(TimelinesPvt!$D$121),"",TimelinesPvt!$D$121),IF(ISBLANK(TimelinesPvt!$D$179),"",TimelinesPvt!$D$179)) -> -221380 | E34: =IF(OverviewIRR_PreTax,IF(ISBLANK(TimelinesPvt!$E$121),"",TimelinesPvt!$E$121),IF(ISBLANK(TimelinesPvt!$E$179),"",TimelinesPvt!$E$179)) -> 8213.078116 | F34: =IF(OverviewIRR_PreTax,IF(ISBLANK(TimelinesPvt!$F$121),"",TimelinesPvt!$F$121),IF(ISBLANK(TimelinesPvt!$F$179),"",TimelinesPvt!$F$179)) -> 8414.224469 | G34: =IF(OverviewIRR_PreTax,IF(ISBLANK(TimelinesPvt!$G$121),"",TimelinesPvt!$G$121),IF(ISBLANK(TimelinesPvt!$G$179),"",TimelinesPvt!$G$179)) -> 8620.253159 | H34: =IF(OverviewIRR_PreTax,IF(ISBLANK(TimelinesPvt!$H$121),"",TimelinesPvt!$H$121),IF(ISBLANK(TimelinesPvt!$H$179),"",TimelinesPvt!$H$179)) -> 8831.281125 | I34: =IF(OverviewIRR_PreTax,IF(ISBLANK(TimelinesPvt!$I$121),"",TimelinesPvt!$I$121),IF(ISBLANK(TimelinesPvt!$I$179),"",TimelinesPvt!$I$179)) -> 9047.428047 | J34: =IF(OverviewIRR_PreTax,IF(ISBLANK(TimelinesPvt!$J$121),"",TimelinesPvt!$J$121),IF(ISBLANK(TimelinesPvt!$J$179),"",TimelinesPvt!$J$179)) -> 9268.816414 | K34: =IF(OverviewIRR_PreTax,IF(ISBLANK(TimelinesPvt!$K$121),"",TimelinesPvt!$K$121),IF(ISBLANK(TimelinesPvt!$K$179),"",TimelinesPvt!$K$179)) -> 9495.571583 | L34: =IF(OverviewIRR_PreTax,IF(ISBLANK(TimelinesPvt!$L$121),"",TimelinesPvt!$L$121),IF(ISBLANK(TimelinesPvt!$L$179),"",TimelinesPvt!$L$179)) -> 9727.821848 | M34: =IF(OverviewIRR_PreTax,IF(ISBLANK(TimelinesPvt!$M$121),"",TimelinesPvt!$M$121),IF(ISBLANK(TimelinesPvt!$M$179),"",TimelinesPvt!$M$179)) -> 9965.698503 | N34: =IF(OverviewIRR_PreTax,IF(ISBLANK(TimelinesPvt!$N$121),"",TimelinesPvt!$N$121),IF(ISBLANK(TimelinesPvt!$N$179),"",TimelinesPvt!$N$179)) -> 10209.33591 | O34: =IF(OverviewIRR_PreTax,IF(ISBLANK(TimelinesPvt!$O$121),"",TimelinesPvt!$O$121),IF(ISBLANK(TimelinesPvt!$O$179),"",TimelinesPvt!$O$179)) -> 10458.87158 | P34: =IF(OverviewIRR_PreTax,IF(ISBLANK(TimelinesPvt!$P$121),"",TimelinesPvt!$P$121),IF(ISBLANK(TimelinesPvt!$P$179),"",TimelinesPvt!$P$179)) -> 10714.44622 | Q34: =IF(OverviewIRR_PreTax,IF(ISBLANK(TimelinesPvt!$Q$121),"",TimelinesPvt!$Q$121),IF(ISBLANK(TimelinesPvt!$Q$179),"",TimelinesPvt!$Q$179)) -> 10976.20383 | R34: =IF(OverviewIRR_PreTax,IF(ISBLANK(TimelinesPvt!$R$121),"",TimelinesPvt!$R$121),IF(ISBLANK(TimelinesPvt!$R$179),"",TimelinesPvt!$R$179)) -> 11244.29175 | S34: =IF(OverviewIRR_PreTax,IF(ISBLANK(TimelinesPvt!$S$121),"",TimelinesPvt!$S$121),IF(ISBLANK(TimelinesPvt!$S$179),"",TimelinesPvt!$S$179)) -> 11518.86077 | T34: =IF(OverviewIRR_PreTax,IF(ISBLANK(TimelinesPvt!$T$121),"",TimelinesPvt!$T$121),IF(ISBLANK(TimelinesPvt!$T$179),"",TimelinesPvt!$T$179)) -> 11800.06518 | U34: =IF(OverviewIRR_PreTax,IF(ISBLANK(TimelinesPvt!$U$121),"",TimelinesPvt!$U$121),IF(ISBLANK(TimelinesPvt!$U$179),"",TimelinesPvt!$U$179)) -> 12088.06284 | V34: =IF(OverviewIRR_PreTax,IF(ISBLANK(TimelinesPvt!$V$121),"",TimelinesPvt!$V$121),IF(ISBLANK(TimelinesPvt!$V$179),"",TimelinesPvt!$V$179)) -> 12383.01531 | W34: =IF(OverviewIRR_PreTax,IF(ISBLANK(TimelinesPvt!$W$121),"",TimelinesPvt!$W$121),IF(ISBLANK(TimelinesPvt!$W$179),"",TimelinesPvt!$W$179)) -> 12685.08787 | X34: =IF(OverviewIRR_PreTax,IF(ISBLANK(TimelinesPvt!$X$121),"",TimelinesPvt!$X$121),IF(ISBLANK(TimelinesPvt!$X$179),"",TimelinesPvt!$X$179)) -> -17005.55035 | Y34: =IF(OverviewIRR_PreTax,IF(ISBLANK(TimelinesPvt!$Y$121),"",TimelinesPvt!$Y$121),IF(ISBLANK(TimelinesPvt!$Y$179),"",TimelinesPvt!$Y$179)) -> 13311.27368 | Z34: =IF(OverviewIRR_PreTax,IF(ISBLANK(TimelinesPvt!$Z$121),"",TimelinesPvt!$Z$121),IF(ISBLANK(TimelinesPvt!$Z$179),"",TimelinesPvt!$Z$179)) -> 13635.73701 | AA34: =IF(OverviewIRR_PreTax,IF(ISBLANK(TimelinesPvt!$AA$121),"",TimelinesPvt!$AA$121),IF(ISBLANK(TimelinesPvt!$AA$179),"",TimelinesPvt!$AA$179)) -> 13968.02078 | AB34: =IF(OverviewIRR_PreTax,IF(ISBLANK(TimelinesPvt!$AB$121),"",TimelinesPvt!$AB$121),IF(ISBLANK(TimelinesPvt!$AB$179),"",TimelinesPvt!$AB$179)) -> 14308.3103 | AC34: =IF(OverviewIRR_PreTax,IF(ISBLANK(TimelinesPvt!$AC$121),"",TimelinesPvt!$AC$121),IF(ISBLANK(TimelinesPvt!$AC$179),"",TimelinesPvt!$AC$179)) -> 14656.79518
B35: =IF(OverviewIRR_PreTax,IF(ISBLANK(TimelinesPvt!$B$122),"",TimelinesPvt!$B$122),IF(ISBLANK(TimelinesPvt!$B$180),"",TimelinesPvt!$B$180)) ->  | C35: =IF(OverviewIRR_PreTax,IF(ISBLANK(TimelinesPvt!$C$122),"",TimelinesPvt!$C$122),IF(ISBLANK(TimelinesPvt!$C$180),"",TimelinesPvt!$C$180)) ->  | D35: =IF(OverviewIRR_PreTax,IF(ISBLANK(TimelinesPvt!$D$122),"",TimelinesPvt!$D$122),IF(ISBLANK(TimelinesPvt!$D$180),"",TimelinesPvt!$D$180)) ->  | E35: =IF(OverviewIRR_PreTax,IF(ISBLANK(TimelinesPvt!$E$122),"",TimelinesPvt!$E$122),IF(ISBLANK(TimelinesPvt!$E$180),"",TimelinesPvt!$E$180)) ->  | F35: =IF(OverviewIRR_PreTax,IF(ISBLANK(TimelinesPvt!$F$122),"",TimelinesPvt!$F$122),IF(ISBLANK(TimelinesPvt!$F$180),"",TimelinesPvt!$F$180)) ->  | G35: =IF(OverviewIRR_PreTax,IF(ISBLANK(TimelinesPvt!$G$122),"",TimelinesPvt!$G$122),IF(ISBLANK(TimelinesPvt!$G$180),"",TimelinesPvt!$G$180)) ->  | H35: =IF(OverviewIRR_PreTax,IF(ISBLANK(TimelinesPvt!$H$122),"",TimelinesPvt!$H$122),IF(ISBLANK(TimelinesPvt!$H$180),"",TimelinesPvt!$H$180)) ->  | I35: =IF(OverviewIRR_PreTax,IF(ISBLANK(TimelinesPvt!$I$122),"",TimelinesPvt!$I$122),IF(ISBLANK(TimelinesPvt!$I$180),"",TimelinesPvt!$I$180)) ->  | J35: =IF(OverviewIRR_PreTax,IF(ISBLANK(TimelinesPvt!$J$122),"",TimelinesPvt!$J$122),IF(ISBLANK(TimelinesPvt!$J$180),"",TimelinesPvt!$J$180)) ->  | K35: =IF(OverviewIRR_PreTax,IF(ISBLANK(TimelinesPvt!$K$122),"",TimelinesPvt!$K$122),IF(ISBLANK(TimelinesPvt!$K$180),"",TimelinesPvt!$K$180)) ->  | L35: =IF(OverviewIRR_PreTax,IF(ISBLANK(TimelinesPvt!$L$122),"",TimelinesPvt!$L$122),IF(ISBLANK(TimelinesPvt!$L$180),"",TimelinesPvt!$L$180)) ->  | M35: =IF(OverviewIRR_PreTax,IF(ISBLANK(TimelinesPvt!$M$122),"",TimelinesPvt!$M$122),IF(ISBLANK(TimelinesPvt!$M$180),"",TimelinesPvt!$M$180)) ->  | N35: =IF(OverviewIRR_PreTax,IF(ISBLANK(TimelinesPvt!$N$122),"",TimelinesPvt!$N$122),IF(ISBLANK(TimelinesPvt!$N$180),"",TimelinesPvt!$N$180)) ->  | O35: =IF(OverviewIRR_PreTax,IF(ISBLANK(TimelinesPvt!$O$122),"",TimelinesPvt!$O$122),IF(ISBLANK(TimelinesPvt!$O$180),"",TimelinesPvt!$O$180)) ->  | P35: =IF(OverviewIRR_PreTax,IF(ISBLANK(TimelinesPvt!$P$122),"",TimelinesPvt!$P$122),IF(ISBLANK(TimelinesPvt!$P$180),"",TimelinesPvt!$P$180)) ->  | Q35: =IF(OverviewIRR_PreTax,IF(ISBLANK(TimelinesPvt!$Q$122),"",TimelinesPvt!$Q$122),IF(ISBLANK(TimelinesPvt!$Q$180),"",TimelinesPvt!$Q$180)) ->  | R35: =IF(OverviewIRR_PreTax,IF(ISBLANK(TimelinesPvt!$R$122),"",TimelinesPvt!$R$122),IF(ISBLANK(TimelinesPvt!$R$180),"",TimelinesPvt!$R$180)) ->  | S35: =IF(OverviewIRR_PreTax,IF(ISBLANK(TimelinesPvt!$S$122),"",TimelinesPvt!$S$122),IF(ISBLANK(TimelinesPvt!$S$180),"",TimelinesPvt!$S$180)) ->  | T35: =IF(OverviewIRR_PreTax,IF(ISBLANK(TimelinesPvt!$T$122),"",TimelinesPvt!$T$122),IF(ISBLANK(TimelinesPvt!$T$180),"",TimelinesPvt!$T$180)) ->  | U35: =IF(OverviewIRR_PreTax,IF(ISBLANK(TimelinesPvt!$U$122),"",TimelinesPvt!$U$122),IF(ISBLANK(TimelinesPvt!$U$180),"",TimelinesPvt!$U$180)) ->  | V35: =IF(OverviewIRR_PreTax,IF(ISBLANK(TimelinesPvt!$V$122),"",TimelinesPvt!$V$122),IF(ISBLANK(TimelinesPvt!$V$180),"",TimelinesPvt!$V$180)) ->  | W35: =IF(OverviewIRR_PreTax,IF(ISBLANK(TimelinesPvt!$W$122),"",TimelinesPvt!$W$122),IF(ISBLANK(TimelinesPvt!$W$180),"",TimelinesPvt!$W$180)) ->  | X35: =IF(OverviewIRR_PreTax,IF(ISBLANK(TimelinesPvt!$X$122),"",TimelinesPvt!$X$122),IF(ISBLANK(TimelinesPvt!$X$180),"",TimelinesPvt!$X$180)) ->  | Y35: =IF(OverviewIRR_PreTax,IF(ISBLANK(TimelinesPvt!$Y$122),"",TimelinesPvt!$Y$122),IF(ISBLANK(TimelinesPvt!$Y$180),"",TimelinesPvt!$Y$180)) ->  | Z35: =IF(OverviewIRR_PreTax,IF(ISBLANK(TimelinesPvt!$Z$122),"",TimelinesPvt!$Z$122),IF(ISBLANK(TimelinesPvt!$Z$180),"",TimelinesPvt!$Z$180)) ->  | AA35: =IF(OverviewIRR_PreTax,IF(ISBLANK(TimelinesPvt!$AA$122),"",TimelinesPvt!$AA$122),IF(ISBLANK(TimelinesPvt!$AA$180),"",TimelinesPvt!$AA$180)) ->  | AB35: =IF(OverviewIRR_PreTax,IF(ISBLANK(TimelinesPvt!$AB$122),"",TimelinesPvt!$AB$122),IF(ISBLANK(TimelinesPvt!$AB$180),"",TimelinesPvt!$AB$180)) ->  | AC35: =IF(OverviewIRR_PreTax,IF(ISBLANK(TimelinesPvt!$AC$122),"",TimelinesPvt!$AC$122),IF(ISBLANK(TimelinesPvt!$AC$180),"",TimelinesPvt!$AC$180)) -> 
A36: TaxEffectsLabel | B36: =IF(OverviewIRR_PreTax,IF(ISBLANK(TimelinesPvt!$B$123),"",TimelinesPvt!$B$123),IF(ISBLANK(TimelinesPvt!$B$181),"",TimelinesPvt!$B$181)) -> Federal & State Tax Effects: | C36: =IF(OverviewIRR_PreTax,IF(ISBLANK(TimelinesPvt!$C$123),"",TimelinesPvt!$C$123),IF(ISBLANK(TimelinesPvt!$C$181),"",TimelinesPvt!$C$181)) ->  | D36: =IF(OverviewIRR_PreTax,IF(ISBLANK(TimelinesPvt!$D$123),"",TimelinesPvt!$D$123),IF(ISBLANK(TimelinesPvt!$D$181),"",TimelinesPvt!$D$181)) ->  | E36: =IF(OverviewIRR_PreTax,IF(ISBLANK(TimelinesPvt!$E$123),"",TimelinesPvt!$E$123),IF(ISBLANK(TimelinesPvt!$E$181),"",TimelinesPvt!$E$181)) ->  | F36: =IF(OverviewIRR_PreTax,IF(ISBLANK(TimelinesPvt!$F$123),"",TimelinesPvt!$F$123),IF(ISBLANK(TimelinesPvt!$F$181),"",TimelinesPvt!$F$181)) ->  | G36: =IF(OverviewIRR_PreTax,IF(ISBLANK(TimelinesPvt!$G$123),"",TimelinesPvt!$G$123),IF(ISBLANK(TimelinesPvt!$G$181),"",TimelinesPvt!$G$181)) ->  | H36: =IF(OverviewIRR_PreTax,IF(ISBLANK(TimelinesPvt!$H$123),"",TimelinesPvt!$H$123),IF(ISBLANK(TimelinesPvt!$H$181),"",TimelinesPvt!$H$181)) ->  | I36: =IF(OverviewIRR_PreTax,IF(ISBLANK(TimelinesPvt!$I$123),"",TimelinesPvt!$I$123),IF(ISBLANK(TimelinesPvt!$I$181),"",TimelinesPvt!$I$181)) ->  | J36: =IF(OverviewIRR_PreTax,IF(ISBLANK(TimelinesPvt!$J$123),"",TimelinesPvt!$J$123),IF(ISBLANK(TimelinesPvt!$J$181),"",TimelinesPvt!$J$181)) ->  | K36: =IF(OverviewIRR_PreTax,IF(ISBLANK(TimelinesPvt!$K$123),"",TimelinesPvt!$K$123),IF(ISBLANK(TimelinesPvt!$K$181),"",TimelinesPvt!$K$181)) ->  | L36: =IF(OverviewIRR_PreTax,IF(ISBLANK(TimelinesPvt!$L$123),"",TimelinesPvt!$L$123),IF(ISBLANK(TimelinesPvt!$L$181),"",TimelinesPvt!$L$181)) ->  | M36: =IF(OverviewIRR_PreTax,IF(ISBLANK(TimelinesPvt!$M$123),"",TimelinesPvt!$M$123),IF(ISBLANK(TimelinesPvt!$M$181),"",TimelinesPvt!$M$181)) ->  | N36: =IF(OverviewIRR_PreTax,IF(ISBLANK(TimelinesPvt!$N$123),"",TimelinesPvt!$N$123),IF(ISBLANK(TimelinesPvt!$N$181),"",TimelinesPvt!$N$181)) ->  | O36: =IF(OverviewIRR_PreTax,IF(ISBLANK(TimelinesPvt!$O$123),"",TimelinesPvt!$O$123),IF(ISBLANK(TimelinesPvt!$O$181),"",TimelinesPvt!$O$181)) ->  | P36: =IF(OverviewIRR_PreTax,IF(ISBLANK(TimelinesPvt!$P$123),"",TimelinesPvt!$P$123),IF(ISBLANK(TimelinesPvt!$P$181),"",TimelinesPvt!$P$181)) ->  | Q36: =IF(OverviewIRR_PreTax,IF(ISBLANK(TimelinesPvt!$Q$123),"",TimelinesPvt!$Q$123),IF(ISBLANK(TimelinesPvt!$Q$181),"",TimelinesPvt!$Q$181)) ->  | R36: =IF(OverviewIRR_PreTax,IF(ISBLANK(TimelinesPvt!$R$123),"",TimelinesPvt!$R$123),IF(ISBLANK(TimelinesPvt!$R$181),"",TimelinesPvt!$R$181)) ->  | S36: =IF(OverviewIRR_PreTax,IF(ISBLANK(TimelinesPvt!$S$123),"",TimelinesPvt!$S$123),IF(ISBLANK(TimelinesPvt!$S$181),"",TimelinesPvt!$S$181)) ->  | T36: =IF(OverviewIRR_PreTax,IF(ISBLANK(TimelinesPvt!$T$123),"",TimelinesPvt!$T$123),IF(ISBLANK(TimelinesPvt!$T$181),"",TimelinesPvt!$T$181)) ->  | U36: =IF(OverviewIRR_PreTax,IF(ISBLANK(TimelinesPvt!$U$123),"",TimelinesPvt!$U$123),IF(ISBLANK(TimelinesPvt!$U$181),"",TimelinesPvt!$U$181)) ->  | V36: =IF(OverviewIRR_PreTax,IF(ISBLANK(TimelinesPvt!$V$123),"",TimelinesPvt!$V$123),IF(ISBLANK(TimelinesPvt!$V$181),"",TimelinesPvt!$V$181)) ->  | W36: =IF(OverviewIRR_PreTax,IF(ISBLANK(TimelinesPvt!$W$123),"",TimelinesPvt!$W$123),IF(ISBLANK(TimelinesPvt!$W$181),"",TimelinesPvt!$W$181)) ->  | X36: =IF(OverviewIRR_PreTax,IF(ISBLANK(TimelinesPvt!$X$123),"",TimelinesPvt!$X$123),IF(ISBLANK(TimelinesPvt!$X$181),"",TimelinesPvt!$X$181)) ->  | Y36: =IF(OverviewIRR_PreTax,IF(ISBLANK(TimelinesPvt!$Y$123),"",TimelinesPvt!$Y$123),IF(ISBLANK(TimelinesPvt!$Y$181),"",TimelinesPvt!$Y$181)) ->  | Z36: =IF(OverviewIRR_PreTax,IF(ISBLANK(TimelinesPvt!$Z$123),"",TimelinesPvt!$Z$123),IF(ISBLANK(TimelinesPvt!$Z$181),"",TimelinesPvt!$Z$181)) ->  | AA36: =IF(OverviewIRR_PreTax,IF(ISBLANK(TimelinesPvt!$AA$123),"",TimelinesPvt!$AA$123),IF(ISBLANK(TimelinesPvt!$AA$181),"",TimelinesPvt!$AA$181)) ->  | AB36: =IF(OverviewIRR_PreTax,IF(ISBLANK(TimelinesPvt!$AB$123),"",TimelinesPvt!$AB$123),IF(ISBLANK(TimelinesPvt!$AB$181),"",TimelinesPvt!$AB$181)) ->  | AC36: =IF(OverviewIRR_PreTax,IF(ISBLANK(TimelinesPvt!$AC$123),"",TimelinesPvt!$AC$123),IF(ISBLANK(TimelinesPvt!$AC$181),"",TimelinesPvt!$AC$181)) -> 
A37: FedTaxOnIncentives | B37: =IF(OverviewIRR_PreTax,IF(ISBLANK(TimelinesPvt!$B$124),"",TimelinesPvt!$B$124),IF(ISBLANK(TimelinesPvt!$B$182),"",TimelinesPvt!$B$182)) -> . | C37: =IF(OverviewIRR_PreTax,IF(ISBLANK(TimelinesPvt!$C$124),"",TimelinesPvt!$C$124),IF(ISBLANK(TimelinesPvt!$C$182),"",TimelinesPvt!$C$182)) ->  | D37: =IF(OverviewIRR_PreTax,IF(ISBLANK(TimelinesPvt!$D$124),"",TimelinesPvt!$D$124),IF(ISBLANK(TimelinesPvt!$D$182),"",TimelinesPvt!$D$182)) ->  | E37: =IF(OverviewIRR_PreTax,IF(ISBLANK(TimelinesPvt!$E$124),"",TimelinesPvt!$E$124),IF(ISBLANK(TimelinesPvt!$E$182),"",TimelinesPvt!$E$182)) -> 0 | F37: =IF(OverviewIRR_PreTax,IF(ISBLANK(TimelinesPvt!$F$124),"",TimelinesPvt!$F$124),IF(ISBLANK(TimelinesPvt!$F$182),"",TimelinesPvt!$F$182)) -> 0 | G37: =IF(OverviewIRR_PreTax,IF(ISBLANK(TimelinesPvt!$G$124),"",TimelinesPvt!$G$124),IF(ISBLANK(TimelinesPvt!$G$182),"",TimelinesPvt!$G$182)) -> 0 | H37: =IF(OverviewIRR_PreTax,IF(ISBLANK(TimelinesPvt!$H$124),"",TimelinesPvt!$H$124),IF(ISBLANK(TimelinesPvt!$H$182),"",TimelinesPvt!$H$182)) -> 0 | I37: =IF(OverviewIRR_PreTax,IF(ISBLANK(TimelinesPvt!$I$124),"",TimelinesPvt!$I$124),IF(ISBLANK(TimelinesPvt!$I$182),"",TimelinesPvt!$I$182)) -> 0 | J37: =IF(OverviewIRR_PreTax,IF(ISBLANK(TimelinesPvt!$J$124),"",TimelinesPvt!$J$124),IF(ISBLANK(TimelinesPvt!$J$182),"",TimelinesPvt!$J$182)) -> 0 | K37: =IF(OverviewIRR_PreTax,IF(ISBLANK(TimelinesPvt!$K$124),"",TimelinesPvt!$K$124),IF(ISBLANK(TimelinesPvt!$K$182),"",TimelinesPvt!$K$182)) -> 0 | L37: =IF(OverviewIRR_PreTax,IF(ISBLANK(TimelinesPvt!$L$124),"",TimelinesPvt!$L$124),IF(ISBLANK(TimelinesPvt!$L$182),"",TimelinesPvt!$L$182)) -> 0 | M37: =IF(OverviewIRR_PreTax,IF(ISBLANK(TimelinesPvt!$M$124),"",TimelinesPvt!$M$124),IF(ISBLANK(TimelinesPvt!$M$182),"",TimelinesPvt!$M$182)) -> 0 | N37: =IF(OverviewIRR_PreTax,IF(ISBLANK(TimelinesPvt!$N$124),"",TimelinesPvt!$N$124),IF(ISBLANK(TimelinesPvt!$N$182),"",TimelinesPvt!$N$182)) -> 0 | O37: =IF(OverviewIRR_PreTax,IF(ISBLANK(TimelinesPvt!$O$124),"",TimelinesPvt!$O$124),IF(ISBLANK(TimelinesPvt!$O$182),"",TimelinesPvt!$O$182)) -> 0 | P37: =IF(OverviewIRR_PreTax,IF(ISBLANK(TimelinesPvt!$P$124),"",TimelinesPvt!$P$124),IF(ISBLANK(TimelinesPvt!$P$182),"",TimelinesPvt!$P$182)) -> 0 | Q37: =IF(OverviewIRR_PreTax,IF(ISBLANK(TimelinesPvt!$Q$124),"",TimelinesPvt!$Q$124),IF(ISBLANK(TimelinesPvt!$Q$182),"",TimelinesPvt!$Q$182)) -> 0 | R37: =IF(OverviewIRR_PreTax,IF(ISBLANK(TimelinesPvt!$R$124),"",TimelinesPvt!$R$124),IF(ISBLANK(TimelinesPvt!$R$182),"",TimelinesPvt!$R$182)) -> 0 | S37: =IF(OverviewIRR_PreTax,IF(ISBLANK(TimelinesPvt!$S$124),"",TimelinesPvt!$S$124),IF(ISBLANK(TimelinesPvt!$S$182),"",TimelinesPvt!$S$182)) -> 0 | T37: =IF(OverviewIRR_PreTax,IF(ISBLANK(TimelinesPvt!$T$124),"",TimelinesPvt!$T$124),IF(ISBLANK(TimelinesPvt!$T$182),"",TimelinesPvt!$T$182)) -> 0 | U37: =IF(OverviewIRR_PreTax,IF(ISBLANK(TimelinesPvt!$U$124),"",TimelinesPvt!$U$124),IF(ISBLANK(TimelinesPvt!$U$182),"",TimelinesPvt!$U$182)) -> 0 | V37: =IF(OverviewIRR_PreTax,IF(ISBLANK(TimelinesPvt!$V$124),"",TimelinesPvt!$V$124),IF(ISBLANK(TimelinesPvt!$V$182),"",TimelinesPvt!$V$182)) -> 0 | W37: =IF(OverviewIRR_PreTax,IF(ISBLANK(TimelinesPvt!$W$124),"",TimelinesPvt!$W$124),IF(ISBLANK(TimelinesPvt!$W$182),"",TimelinesPvt!$W$182)) -> 0 | X37: =IF(OverviewIRR_PreTax,IF(ISBLANK(TimelinesPvt!$X$124),"",TimelinesPvt!$X$124),IF(ISBLANK(TimelinesPvt!$X$182),"",TimelinesPvt!$X$182)) -> 0 | Y37: =IF(OverviewIRR_PreTax,IF(ISBLANK(TimelinesPvt!$Y$124),"",TimelinesPvt!$Y$124),IF(ISBLANK(TimelinesPvt!$Y$182),"",TimelinesPvt!$Y$182)) -> 0 | Z37: =IF(OverviewIRR_PreTax,IF(ISBLANK(TimelinesPvt!$Z$124),"",TimelinesPvt!$Z$124),IF(ISBLANK(TimelinesPvt!$Z$182),"",TimelinesPvt!$Z$182)) -> 0 | AA37: =IF(OverviewIRR_PreTax,IF(ISBLANK(TimelinesPvt!$AA$124),"",TimelinesPvt!$AA$124),IF(ISBLANK(TimelinesPvt!$AA$182),"",TimelinesPvt!$AA$182)) -> 0 | AB37: =IF(OverviewIRR_PreTax,IF(ISBLANK(TimelinesPvt!$AB$124),"",TimelinesPvt!$AB$124),IF(ISBLANK(TimelinesPvt!$AB$182),"",TimelinesPvt!$AB$182)) -> 0 | AC37: =IF(OverviewIRR_PreTax,IF(ISBLANK(TimelinesPvt!$AC$124),"",TimelinesPvt!$AC$124),IF(ISBLANK(TimelinesPvt!$AC$182),"",TimelinesPvt!$AC$182)) -> 0
A39: FedTaxCreditBasis | B39: =IF(OverviewIRR_PreTax,IF(ISBLANK(TimelinesPvt!$B$126),"",TimelinesPvt!$B$126),IF(ISBLANK(TimelinesPvt!$B$184),"",TimelinesPvt!$B$184)) -> Federal Tax Credit Basis | C39: =IF(OverviewIRR_PreTax,IF(ISBLANK(TimelinesPvt!$C$126),"",TimelinesPvt!$C$126),IF(ISBLANK(TimelinesPvt!$C$184),"",TimelinesPvt!$C$184)) ->  | D39: =IF(OverviewIRR_PreTax,IF(ISBLANK(TimelinesPvt!$D$126),"",TimelinesPvt!$D$126),IF(ISBLANK(TimelinesPvt!$D$184),"",TimelinesPvt!$D$184)) -> 221380 | E39: =IF(OverviewIRR_PreTax,IF(ISBLANK(TimelinesPvt!$E$126),"",TimelinesPvt!$E$126),IF(ISBLANK(TimelinesPvt!$E$184),"",TimelinesPvt!$E$184)) ->  | F39: =IF(OverviewIRR_PreTax,IF(ISBLANK(TimelinesPvt!$F$126),"",TimelinesPvt!$F$126),IF(ISBLANK(TimelinesPvt!$F$184),"",TimelinesPvt!$F$184)) ->  | G39: =IF(OverviewIRR_PreTax,IF(ISBLANK(TimelinesPvt!$G$126),"",TimelinesPvt!$G$126),IF(ISBLANK(TimelinesPvt!$G$184),"",TimelinesPvt!$G$184)) ->  | H39: =IF(OverviewIRR_PreTax,IF(ISBLANK(TimelinesPvt!$H$126),"",TimelinesPvt!$H$126),IF(ISBLANK(TimelinesPvt!$H$184),"",TimelinesPvt!$H$184)) ->  | I39: =IF(OverviewIRR_PreTax,IF(ISBLANK(TimelinesPvt!$I$126),"",TimelinesPvt!$I$126),IF(ISBLANK(TimelinesPvt!$I$184),"",TimelinesPvt!$I$184)) ->  | J39: =IF(OverviewIRR_PreTax,IF(ISBLANK(TimelinesPvt!$J$126),"",TimelinesPvt!$J$126),IF(ISBLANK(TimelinesPvt!$J$184),"",TimelinesPvt!$J$184)) ->  | K39: =IF(OverviewIRR_PreTax,IF(ISBLANK(TimelinesPvt!$K$126),"",TimelinesPvt!$K$126),IF(ISBLANK(TimelinesPvt!$K$184),"",TimelinesPvt!$K$184)) ->  | L39: =IF(OverviewIRR_PreTax,IF(ISBLANK(TimelinesPvt!$L$126),"",TimelinesPvt!$L$126),IF(ISBLANK(TimelinesPvt!$L$184),"",TimelinesPvt!$L$184)) ->  | M39: =IF(OverviewIRR_PreTax,IF(ISBLANK(TimelinesPvt!$M$126),"",TimelinesPvt!$M$126),IF(ISBLANK(TimelinesPvt!$M$184),"",TimelinesPvt!$M$184)) ->  | N39: =IF(OverviewIRR_PreTax,IF(ISBLANK(TimelinesPvt!$N$126),"",TimelinesPvt!$N$126),IF(ISBLANK(TimelinesPvt!$N$184),"",TimelinesPvt!$N$184)) ->  | O39: =IF(OverviewIRR_PreTax,IF(ISBLANK(TimelinesPvt!$O$126),"",TimelinesPvt!$O$126),IF(ISBLANK(TimelinesPvt!$O$184),"",TimelinesPvt!$O$184)) ->  | P39: =IF(OverviewIRR_PreTax,IF(ISBLANK(TimelinesPvt!$P$126),"",TimelinesPvt!$P$126),IF(ISBLANK(TimelinesPvt!$P$184),"",TimelinesPvt!$P$184)) ->  | Q39: =IF(OverviewIRR_PreTax,IF(ISBLANK(TimelinesPvt!$Q$126),"",TimelinesPvt!$Q$126),IF(ISBLANK(TimelinesPvt!$Q$184),"",TimelinesPvt!$Q$184)) ->  | R39: =IF(OverviewIRR_PreTax,IF(ISBLANK(TimelinesPvt!$R$126),"",TimelinesPvt!$R$126),IF(ISBLANK(TimelinesPvt!$R$184),"",TimelinesPvt!$R$184)) ->  | S39: =IF(OverviewIRR_PreTax,IF(ISBLANK(TimelinesPvt!$S$126),"",TimelinesPvt!$S$126),IF(ISBLANK(TimelinesPvt!$S$184),"",TimelinesPvt!$S$184)) ->  | T39: =IF(OverviewIRR_PreTax,IF(ISBLANK(TimelinesPvt!$T$126),"",TimelinesPvt!$T$126),IF(ISBLANK(TimelinesPvt!$T$184),"",TimelinesPvt!$T$184)) ->  | U39: =IF(OverviewIRR_PreTax,IF(ISBLANK(TimelinesPvt!$U$126),"",TimelinesPvt!$U$126),IF(ISBLANK(TimelinesPvt!$U$184),"",TimelinesPvt!$U$184)) ->  | V39: =IF(OverviewIRR_PreTax,IF(ISBLANK(TimelinesPvt!$V$126),"",TimelinesPvt!$V$126),IF(ISBLANK(TimelinesPvt!$V$184),"",TimelinesPvt!$V$184)) ->  | W39: =IF(OverviewIRR_PreTax,IF(ISBLANK(TimelinesPvt!$W$126),"",TimelinesPvt!$W$126),IF(ISBLANK(TimelinesPvt!$W$184),"",TimelinesPvt!$W$184)) ->  | X39: =IF(OverviewIRR_PreTax,IF(ISBLANK(TimelinesPvt!$X$126),"",TimelinesPvt!$X$126),IF(ISBLANK(TimelinesPvt!$X$184),"",TimelinesPvt!$X$184)) ->  | Y39: =IF(OverviewIRR_PreTax,IF(ISBLANK(TimelinesPvt!$Y$126),"",TimelinesPvt!$Y$126),IF(ISBLANK(TimelinesPvt!$Y$184),"",TimelinesPvt!$Y$184)) ->  | Z39: =IF(OverviewIRR_PreTax,IF(ISBLANK(TimelinesPvt!$Z$126),"",TimelinesPvt!$Z$126),IF(ISBLANK(TimelinesPvt!$Z$184),"",TimelinesPvt!$Z$184)) ->  | AA39: =IF(OverviewIRR_PreTax,IF(ISBLANK(TimelinesPvt!$AA$126),"",TimelinesPvt!$AA$126),IF(ISBLANK(TimelinesPvt!$AA$184),"",TimelinesPvt!$AA$184)) ->  | AB39: =IF(OverviewIRR_PreTax,IF(ISBLANK(TimelinesPvt!$AB$126),"",TimelinesPvt!$AB$126),IF(ISBLANK(TimelinesPvt!$AB$184),"",TimelinesPvt!$AB$184)) ->  | AC39: =IF(OverviewIRR_PreTax,IF(ISBLANK(TimelinesPvt!$AC$126),"",TimelinesPvt!$AC$126),IF(ISBLANK(TimelinesPvt!$AC$184),"",TimelinesPvt!$AC$184)) -> 
A40: FedTaxCredit | B40: =IF(OverviewIRR_PreTax,IF(ISBLANK(TimelinesPvt!$B$127),"",TimelinesPvt!$B$127),IF(ISBLANK(TimelinesPvt!$B$185),"",TimelinesPvt!$B$185)) -> 30% Federal Tax Credit | C40: =IF(OverviewIRR_PreTax,IF(ISBLANK(TimelinesPvt!$C$127),"",TimelinesPvt!$C$127),IF(ISBLANK(TimelinesPvt!$C$185),"",TimelinesPvt!$C$185)) ->  | D40: =IF(OverviewIRR_PreTax,IF(ISBLANK(TimelinesPvt!$D$127),"",TimelinesPvt!$D$127),IF(ISBLANK(TimelinesPvt!$D$185),"",TimelinesPvt!$D$185)) -> 0 | E40: =IF(OverviewIRR_PreTax,IF(ISBLANK(TimelinesPvt!$E$127),"",TimelinesPvt!$E$127),IF(ISBLANK(TimelinesPvt!$E$185),"",TimelinesPvt!$E$185)) -> 66414 | F40: =IF(OverviewIRR_PreTax,IF(ISBLANK(TimelinesPvt!$F$127),"",TimelinesPvt!$F$127),IF(ISBLANK(TimelinesPvt!$F$185),"",TimelinesPvt!$F$185)) -> 0 | G40: =IF(OverviewIRR_PreTax,IF(ISBLANK(TimelinesPvt!$G$127),"",TimelinesPvt!$G$127),IF(ISBLANK(TimelinesPvt!$G$185),"",TimelinesPvt!$G$185)) -> 0 | H40: =IF(OverviewIRR_PreTax,IF(ISBLANK(TimelinesPvt!$H$127),"",TimelinesPvt!$H$127),IF(ISBLANK(TimelinesPvt!$H$185),"",TimelinesPvt!$H$185)) -> 0 | I40: =IF(OverviewIRR_PreTax,IF(ISBLANK(TimelinesPvt!$I$127),"",TimelinesPvt!$I$127),IF(ISBLANK(TimelinesPvt!$I$185),"",TimelinesPvt!$I$185)) -> 0 | J40: =IF(OverviewIRR_PreTax,IF(ISBLANK(TimelinesPvt!$J$127),"",TimelinesPvt!$J$127),IF(ISBLANK(TimelinesPvt!$J$185),"",TimelinesPvt!$J$185)) -> 0 | K40: =IF(OverviewIRR_PreTax,IF(ISBLANK(TimelinesPvt!$K$127),"",TimelinesPvt!$K$127),IF(ISBLANK(TimelinesPvt!$K$185),"",TimelinesPvt!$K$185)) -> 0 | L40: =IF(OverviewIRR_PreTax,IF(ISBLANK(TimelinesPvt!$L$127),"",TimelinesPvt!$L$127),IF(ISBLANK(TimelinesPvt!$L$185),"",TimelinesPvt!$L$185)) -> 0 | M40: =IF(OverviewIRR_PreTax,IF(ISBLANK(TimelinesPvt!$M$127),"",TimelinesPvt!$M$127),IF(ISBLANK(TimelinesPvt!$M$185),"",TimelinesPvt!$M$185)) -> 0 | N40: =IF(OverviewIRR_PreTax,IF(ISBLANK(TimelinesPvt!$N$127),"",TimelinesPvt!$N$127),IF(ISBLANK(TimelinesPvt!$N$185),"",TimelinesPvt!$N$185)) -> 0 | O40: =IF(OverviewIRR_PreTax,IF(ISBLANK(TimelinesPvt!$O$127),"",TimelinesPvt!$O$127),IF(ISBLANK(TimelinesPvt!$O$185),"",TimelinesPvt!$O$185)) -> 0 | P40: =IF(OverviewIRR_PreTax,IF(ISBLANK(TimelinesPvt!$P$127),"",TimelinesPvt!$P$127),IF(ISBLANK(TimelinesPvt!$P$185),"",TimelinesPvt!$P$185)) -> 0 | Q40: =IF(OverviewIRR_PreTax,IF(ISBLANK(TimelinesPvt!$Q$127),"",TimelinesPvt!$Q$127),IF(ISBLANK(TimelinesPvt!$Q$185),"",TimelinesPvt!$Q$185)) -> 0 | R40: =IF(OverviewIRR_PreTax,IF(ISBLANK(TimelinesPvt!$R$127),"",TimelinesPvt!$R$127),IF(ISBLANK(TimelinesPvt!$R$185),"",TimelinesPvt!$R$185)) -> 0 | S40: =IF(OverviewIRR_PreTax,IF(ISBLANK(TimelinesPvt!$S$127),"",TimelinesPvt!$S$127),IF(ISBLANK(TimelinesPvt!$S$185),"",TimelinesPvt!$S$185)) -> 0 | T40: =IF(OverviewIRR_PreTax,IF(ISBLANK(TimelinesPvt!$T$127),"",TimelinesPvt!$T$127),IF(ISBLANK(TimelinesPvt!$T$185),"",TimelinesPvt!$T$185)) -> 0 | U40: =IF(OverviewIRR_PreTax,IF(ISBLANK(TimelinesPvt!$U$127),"",TimelinesPvt!$U$127),IF(ISBLANK(TimelinesPvt!$U$185),"",TimelinesPvt!$U$185)) -> 0 | V40: =IF(OverviewIRR_PreTax,IF(ISBLANK(TimelinesPvt!$V$127),"",TimelinesPvt!$V$127),IF(ISBLANK(TimelinesPvt!$V$185),"",TimelinesPvt!$V$185)) -> 0 | W40: =IF(OverviewIRR_PreTax,IF(ISBLANK(TimelinesPvt!$W$127),"",TimelinesPvt!$W$127),IF(ISBLANK(TimelinesPvt!$W$185),"",TimelinesPvt!$W$185)) -> 0 | X40: =IF(OverviewIRR_PreTax,IF(ISBLANK(TimelinesPvt!$X$127),"",TimelinesPvt!$X$127),IF(ISBLANK(TimelinesPvt!$X$185),"",TimelinesPvt!$X$185)) -> 0 | Y40: =IF(OverviewIRR_PreTax,IF(ISBLANK(TimelinesPvt!$Y$127),"",TimelinesPvt!$Y$127),IF(ISBLANK(TimelinesPvt!$Y$185),"",TimelinesPvt!$Y$185)) -> 0 | Z40: =IF(OverviewIRR_PreTax,IF(ISBLANK(TimelinesPvt!$Z$127),"",TimelinesPvt!$Z$127),IF(ISBLANK(TimelinesPvt!$Z$185),"",TimelinesPvt!$Z$185)) -> 0 | AA40: =IF(OverviewIRR_PreTax,IF(ISBLANK(TimelinesPvt!$AA$127),"",TimelinesPvt!$AA$127),IF(ISBLANK(TimelinesPvt!$AA$185),"",TimelinesPvt!$AA$185)) -> 0 | AB40: =IF(OverviewIRR_PreTax,IF(ISBLANK(TimelinesPvt!$AB$127),"",TimelinesPvt!$AB$127),IF(ISBLANK(TimelinesPvt!$AB$185),"",TimelinesPvt!$AB$185)) -> 0 | AC40: =IF(OverviewIRR_PreTax,IF(ISBLANK(TimelinesPvt!$AC$127),"",TimelinesPvt!$AC$127),IF(ISBLANK(TimelinesPvt!$AC$185),"",TimelinesPvt!$AC$185)) -> 0
B41: =IF(OverviewIRR_PreTax,IF(ISBLANK(TimelinesPvt!$B$128),"",TimelinesPvt!$B$128),IF(ISBLANK(TimelinesPvt!$B$186),"",TimelinesPvt!$B$186)) ->  | C41: =IF(OverviewIRR_PreTax,IF(ISBLANK(TimelinesPvt!$C$128),"",TimelinesPvt!$C$128),IF(ISBLANK(TimelinesPvt!$C$186),"",TimelinesPvt!$C$186)) ->  | D41: =IF(OverviewIRR_PreTax,IF(ISBLANK(TimelinesPvt!$D$128),"",TimelinesPvt!$D$128),IF(ISBLANK(TimelinesPvt!$D$186),"",TimelinesPvt!$D$186)) ->  | E41: =IF(OverviewIRR_PreTax,IF(ISBLANK(TimelinesPvt!$E$128),"",TimelinesPvt!$E$128),IF(ISBLANK(TimelinesPvt!$E$186),"",TimelinesPvt!$E$186)) ->  | F41: =IF(OverviewIRR_PreTax,IF(ISBLANK(TimelinesPvt!$F$128),"",TimelinesPvt!$F$128),IF(ISBLANK(TimelinesPvt!$F$186),"",TimelinesPvt!$F$186)) ->  | G41: =IF(OverviewIRR_PreTax,IF(ISBLANK(TimelinesPvt!$G$128),"",TimelinesPvt!$G$128),IF(ISBLANK(TimelinesPvt!$G$186),"",TimelinesPvt!$G$186)) ->  | H41: =IF(OverviewIRR_PreTax,IF(ISBLANK(TimelinesPvt!$H$128),"",TimelinesPvt!$H$128),IF(ISBLANK(TimelinesPvt!$H$186),"",TimelinesPvt!$H$186)) ->  | I41: =IF(OverviewIRR_PreTax,IF(ISBLANK(TimelinesPvt!$I$128),"",TimelinesPvt!$I$128),IF(ISBLANK(TimelinesPvt!$I$186),"",TimelinesPvt!$I$186)) ->  | J41: =IF(OverviewIRR_PreTax,IF(ISBLANK(TimelinesPvt!$J$128),"",TimelinesPvt!$J$128),IF(ISBLANK(TimelinesPvt!$J$186),"",TimelinesPvt!$J$186)) ->  | K41: =IF(OverviewIRR_PreTax,IF(ISBLANK(TimelinesPvt!$K$128),"",TimelinesPvt!$K$128),IF(ISBLANK(TimelinesPvt!$K$186),"",TimelinesPvt!$K$186)) ->  | L41: =IF(OverviewIRR_PreTax,IF(ISBLANK(TimelinesPvt!$L$128),"",TimelinesPvt!$L$128),IF(ISBLANK(TimelinesPvt!$L$186),"",TimelinesPvt!$L$186)) ->  | M41: =IF(OverviewIRR_PreTax,IF(ISBLANK(TimelinesPvt!$M$128),"",TimelinesPvt!$M$128),IF(ISBLANK(TimelinesPvt!$M$186),"",TimelinesPvt!$M$186)) ->  | N41: =IF(OverviewIRR_PreTax,IF(ISBLANK(TimelinesPvt!$N$128),"",TimelinesPvt!$N$128),IF(ISBLANK(TimelinesPvt!$N$186),"",TimelinesPvt!$N$186)) ->  | O41: =IF(OverviewIRR_PreTax,IF(ISBLANK(TimelinesPvt!$O$128),"",TimelinesPvt!$O$128),IF(ISBLANK(TimelinesPvt!$O$186),"",TimelinesPvt!$O$186)) ->  | P41: =IF(OverviewIRR_PreTax,IF(ISBLANK(TimelinesPvt!$P$128),"",TimelinesPvt!$P$128),IF(ISBLANK(TimelinesPvt!$P$186),"",TimelinesPvt!$P$186)) ->  | Q41: =IF(OverviewIRR_PreTax,IF(ISBLANK(TimelinesPvt!$Q$128),"",TimelinesPvt!$Q$128),IF(ISBLANK(TimelinesPvt!$Q$186),"",TimelinesPvt!$Q$186)) ->  | R41: =IF(OverviewIRR_PreTax,IF(ISBLANK(TimelinesPvt!$R$128),"",TimelinesPvt!$R$128),IF(ISBLANK(TimelinesPvt!$R$186),"",TimelinesPvt!$R$186)) ->  | S41: =IF(OverviewIRR_PreTax,IF(ISBLANK(TimelinesPvt!$S$128),"",TimelinesPvt!$S$128),IF(ISBLANK(TimelinesPvt!$S$186),"",TimelinesPvt!$S$186)) ->  | T41: =IF(OverviewIRR_PreTax,IF(ISBLANK(TimelinesPvt!$T$128),"",TimelinesPvt!$T$128),IF(ISBLANK(TimelinesPvt!$T$186),"",TimelinesPvt!$T$186)) ->  | U41: =IF(OverviewIRR_PreTax,IF(ISBLANK(TimelinesPvt!$U$128),"",TimelinesPvt!$U$128),IF(ISBLANK(TimelinesPvt!$U$186),"",TimelinesPvt!$U$186)) ->  | V41: =IF(OverviewIRR_PreTax,IF(ISBLANK(TimelinesPvt!$V$128),"",TimelinesPvt!$V$128),IF(ISBLANK(TimelinesPvt!$V$186),"",TimelinesPvt!$V$186)) ->  | W41: =IF(OverviewIRR_PreTax,IF(ISBLANK(TimelinesPvt!$W$128),"",TimelinesPvt!$W$128),IF(ISBLANK(TimelinesPvt!$W$186),"",TimelinesPvt!$W$186)) ->  | X41: =IF(OverviewIRR_PreTax,IF(ISBLANK(TimelinesPvt!$X$128),"",TimelinesPvt!$X$128),IF(ISBLANK(TimelinesPvt!$X$186),"",TimelinesPvt!$X$186)) ->  | Y41: =IF(OverviewIRR_PreTax,IF(ISBLANK(TimelinesPvt!$Y$128),"",TimelinesPvt!$Y$128),IF(ISBLANK(TimelinesPvt!$Y$186),"",TimelinesPvt!$Y$186)) ->  | Z41: =IF(OverviewIRR_PreTax,IF(ISBLANK(TimelinesPvt!$Z$128),"",TimelinesPvt!$Z$128),IF(ISBLANK(TimelinesPvt!$Z$186),"",TimelinesPvt!$Z$186)) ->  | AA41: =IF(OverviewIRR_PreTax,IF(ISBLANK(TimelinesPvt!$AA$128),"",TimelinesPvt!$AA$128),IF(ISBLANK(TimelinesPvt!$AA$186),"",TimelinesPvt!$AA$186)) ->  | AB41: =IF(OverviewIRR_PreTax,IF(ISBLANK(TimelinesPvt!$AB$128),"",TimelinesPvt!$AB$128),IF(ISBLANK(TimelinesPvt!$AB$186),"",TimelinesPvt!$AB$186)) ->  | AC41: =IF(OverviewIRR_PreTax,IF(ISBLANK(TimelinesPvt!$AC$128),"",TimelinesPvt!$AC$128),IF(ISBLANK(TimelinesPvt!$AC$186),"",TimelinesPvt!$AC$186)) -> 
A42: StateTaxCreditBasis | B42: =IF(OverviewIRR_PreTax,IF(ISBLANK(TimelinesPvt!$B$129),"",TimelinesPvt!$B$129),IF(ISBLANK(TimelinesPvt!$B$187),"",TimelinesPvt!$B$187)) -> . | C42: =IF(OverviewIRR_PreTax,IF(ISBLANK(TimelinesPvt!$C$129),"",TimelinesPvt!$C$129),IF(ISBLANK(TimelinesPvt!$C$187),"",TimelinesPvt!$C$187)) ->  | D42: =IF(OverviewIRR_PreTax,IF(ISBLANK(TimelinesPvt!$D$129),"",TimelinesPvt!$D$129),IF(ISBLANK(TimelinesPvt!$D$187),"",TimelinesPvt!$D$187)) -> 0 | E42: =IF(OverviewIRR_PreTax,IF(ISBLANK(TimelinesPvt!$E$129),"",TimelinesPvt!$E$129),IF(ISBLANK(TimelinesPvt!$E$187),"",TimelinesPvt!$E$187)) ->  | F42: =IF(OverviewIRR_PreTax,IF(ISBLANK(TimelinesPvt!$F$129),"",TimelinesPvt!$F$129),IF(ISBLANK(TimelinesPvt!$F$187),"",TimelinesPvt!$F$187)) -> 0 | G42: =IF(OverviewIRR_PreTax,IF(ISBLANK(TimelinesPvt!$G$129),"",TimelinesPvt!$G$129),IF(ISBLANK(TimelinesPvt!$G$187),"",TimelinesPvt!$G$187)) -> 0 | H42: =IF(OverviewIRR_PreTax,IF(ISBLANK(TimelinesPvt!$H$129),"",TimelinesPvt!$H$129),IF(ISBLANK(TimelinesPvt!$H$187),"",TimelinesPvt!$H$187)) -> 0 | I42: =IF(OverviewIRR_PreTax,IF(ISBLANK(TimelinesPvt!$I$129),"",TimelinesPvt!$I$129),IF(ISBLANK(TimelinesPvt!$I$187),"",TimelinesPvt!$I$187)) ->  | J42: =IF(OverviewIRR_PreTax,IF(ISBLANK(TimelinesPvt!$J$129),"",TimelinesPvt!$J$129),IF(ISBLANK(TimelinesPvt!$J$187),"",TimelinesPvt!$J$187)) ->  | K42: =IF(OverviewIRR_PreTax,IF(ISBLANK(TimelinesPvt!$K$129),"",TimelinesPvt!$K$129),IF(ISBLANK(TimelinesPvt!$K$187),"",TimelinesPvt!$K$187)) ->  | L42: =IF(OverviewIRR_PreTax,IF(ISBLANK(TimelinesPvt!$L$129),"",TimelinesPvt!$L$129),IF(ISBLANK(TimelinesPvt!$L$187),"",TimelinesPvt!$L$187)) ->  | M42: =IF(OverviewIRR_PreTax,IF(ISBLANK(TimelinesPvt!$M$129),"",TimelinesPvt!$M$129),IF(ISBLANK(TimelinesPvt!$M$187),"",TimelinesPvt!$M$187)) ->  | N42: =IF(OverviewIRR_PreTax,IF(ISBLANK(TimelinesPvt!$N$129),"",TimelinesPvt!$N$129),IF(ISBLANK(TimelinesPvt!$N$187),"",TimelinesPvt!$N$187)) ->  | O42: =IF(OverviewIRR_PreTax,IF(ISBLANK(TimelinesPvt!$O$129),"",TimelinesPvt!$O$129),IF(ISBLANK(TimelinesPvt!$O$187),"",TimelinesPvt!$O$187)) ->  | P42: =IF(OverviewIRR_PreTax,IF(ISBLANK(TimelinesPvt!$P$129),"",TimelinesPvt!$P$129),IF(ISBLANK(TimelinesPvt!$P$187),"",TimelinesPvt!$P$187)) ->  | Q42: =IF(OverviewIRR_PreTax,IF(ISBLANK(TimelinesPvt!$Q$129),"",TimelinesPvt!$Q$129),IF(ISBLANK(TimelinesPvt!$Q$187),"",TimelinesPvt!$Q$187)) ->  | R42: =IF(OverviewIRR_PreTax,IF(ISBLANK(TimelinesPvt!$R$129),"",TimelinesPvt!$R$129),IF(ISBLANK(TimelinesPvt!$R$187),"",TimelinesPvt!$R$187)) ->  | S42: =IF(OverviewIRR_PreTax,IF(ISBLANK(TimelinesPvt!$S$129),"",TimelinesPvt!$S$129),IF(ISBLANK(TimelinesPvt!$S$187),"",TimelinesPvt!$S$187)) ->  | T42: =IF(OverviewIRR_PreTax,IF(ISBLANK(TimelinesPvt!$T$129),"",TimelinesPvt!$T$129),IF(ISBLANK(TimelinesPvt!$T$187),"",TimelinesPvt!$T$187)) ->  | U42: =IF(OverviewIRR_PreTax,IF(ISBLANK(TimelinesPvt!$U$129),"",TimelinesPvt!$U$129),IF(ISBLANK(TimelinesPvt!$U$187),"",TimelinesPvt!$U$187)) ->  | V42: =IF(OverviewIRR_PreTax,IF(ISBLANK(TimelinesPvt!$V$129),"",TimelinesPvt!$V$129),IF(ISBLANK(TimelinesPvt!$V$187),"",TimelinesPvt!$V$187)) ->  | W42: =IF(OverviewIRR_PreTax,IF(ISBLANK(TimelinesPvt!$W$129),"",TimelinesPvt!$W$129),IF(ISBLANK(TimelinesPvt!$W$187),"",TimelinesPvt!$W$187)) ->  | X42: =IF(OverviewIRR_PreTax,IF(ISBLANK(TimelinesPvt!$X$129),"",TimelinesPvt!$X$129),IF(ISBLANK(TimelinesPvt!$X$187),"",TimelinesPvt!$X$187)) ->  | Y42: =IF(OverviewIRR_PreTax,IF(ISBLANK(TimelinesPvt!$Y$129),"",TimelinesPvt!$Y$129),IF(ISBLANK(TimelinesPvt!$Y$187),"",TimelinesPvt!$Y$187)) ->  | Z42: =IF(OverviewIRR_PreTax,IF(ISBLANK(TimelinesPvt!$Z$129),"",TimelinesPvt!$Z$129),IF(ISBLANK(TimelinesPvt!$Z$187),"",TimelinesPvt!$Z$187)) ->  | AA42: =IF(OverviewIRR_PreTax,IF(ISBLANK(TimelinesPvt!$AA$129),"",TimelinesPvt!$AA$129),IF(ISBLANK(TimelinesPvt!$AA$187),"",TimelinesPvt!$AA$187)) ->  | AB42: =IF(OverviewIRR_PreTax,IF(ISBLANK(TimelinesPvt!$AB$129),"",TimelinesPvt!$AB$129),IF(ISBLANK(TimelinesPvt!$AB$187),"",TimelinesPvt!$AB$187)) ->  | AC42: =IF(OverviewIRR_PreTax,IF(ISBLANK(TimelinesPvt!$AC$129),"",TimelinesPvt!$AC$129),IF(ISBLANK(TimelinesPvt!$AC$187),"",TimelinesPvt!$AC$187)) -> 
A43: StateTaxCredit | B43: =IF(OverviewIRR_PreTax,IF(ISBLANK(TimelinesPvt!$B$130),"",TimelinesPvt!$B$130),IF(ISBLANK(TimelinesPvt!$B$188),"",TimelinesPvt!$B$188)) -> . | C43: =IF(OverviewIRR_PreTax,IF(ISBLANK(TimelinesPvt!$C$130),"",TimelinesPvt!$C$130),IF(ISBLANK(TimelinesPvt!$C$188),"",TimelinesPvt!$C$188)) ->  | D43: =IF(OverviewIRR_PreTax,IF(ISBLANK(TimelinesPvt!$D$130),"",TimelinesPvt!$D$130),IF(ISBLANK(TimelinesPvt!$D$188),"",TimelinesPvt!$D$188)) -> 0 | E43: =IF(OverviewIRR_PreTax,IF(ISBLANK(TimelinesPvt!$E$130),"",TimelinesPvt!$E$130),IF(ISBLANK(TimelinesPvt!$E$188),"",TimelinesPvt!$E$188)) -> 0 | F43: =IF(OverviewIRR_PreTax,IF(ISBLANK(TimelinesPvt!$F$130),"",TimelinesPvt!$F$130),IF(ISBLANK(TimelinesPvt!$F$188),"",TimelinesPvt!$F$188)) -> 0 | G43: =IF(OverviewIRR_PreTax,IF(ISBLANK(TimelinesPvt!$G$130),"",TimelinesPvt!$G$130),IF(ISBLANK(TimelinesPvt!$G$188),"",TimelinesPvt!$G$188)) -> 0 | H43: =IF(OverviewIRR_PreTax,IF(ISBLANK(TimelinesPvt!$H$130),"",TimelinesPvt!$H$130),IF(ISBLANK(TimelinesPvt!$H$188),"",TimelinesPvt!$H$188)) -> 0 | I43: =IF(OverviewIRR_PreTax,IF(ISBLANK(TimelinesPvt!$I$130),"",TimelinesPvt!$I$130),IF(ISBLANK(TimelinesPvt!$I$188),"",TimelinesPvt!$I$188)) -> 0 | J43: =IF(OverviewIRR_PreTax,IF(ISBLANK(TimelinesPvt!$J$130),"",TimelinesPvt!$J$130),IF(ISBLANK(TimelinesPvt!$J$188),"",TimelinesPvt!$J$188)) -> 0 | K43: =IF(OverviewIRR_PreTax,IF(ISBLANK(TimelinesPvt!$K$130),"",TimelinesPvt!$K$130),IF(ISBLANK(TimelinesPvt!$K$188),"",TimelinesPvt!$K$188)) -> 0 | L43: =IF(OverviewIRR_PreTax,IF(ISBLANK(TimelinesPvt!$L$130),"",TimelinesPvt!$L$130),IF(ISBLANK(TimelinesPvt!$L$188),"",TimelinesPvt!$L$188)) -> 0 | M43: =IF(OverviewIRR_PreTax,IF(ISBLANK(TimelinesPvt!$M$130),"",TimelinesPvt!$M$130),IF(ISBLANK(TimelinesPvt!$M$188),"",TimelinesPvt!$M$188)) -> 0 | N43: =IF(OverviewIRR_PreTax,IF(ISBLANK(TimelinesPvt!$N$130),"",TimelinesPvt!$N$130),IF(ISBLANK(TimelinesPvt!$N$188),"",TimelinesPvt!$N$188)) -> 0 | O43: =IF(OverviewIRR_PreTax,IF(ISBLANK(TimelinesPvt!$O$130),"",TimelinesPvt!$O$130),IF(ISBLANK(TimelinesPvt!$O$188),"",TimelinesPvt!$O$188)) -> 0 | P43: =IF(OverviewIRR_PreTax,IF(ISBLANK(TimelinesPvt!$P$130),"",TimelinesPvt!$P$130),IF(ISBLANK(TimelinesPvt!$P$188),"",TimelinesPvt!$P$188)) -> 0 | Q43: =IF(OverviewIRR_PreTax,IF(ISBLANK(TimelinesPvt!$Q$130),"",TimelinesPvt!$Q$130),IF(ISBLANK(TimelinesPvt!$Q$188),"",TimelinesPvt!$Q$188)) -> 0 | R43: =IF(OverviewIRR_PreTax,IF(ISBLANK(TimelinesPvt!$R$130),"",TimelinesPvt!$R$130),IF(ISBLANK(TimelinesPvt!$R$188),"",TimelinesPvt!$R$188)) -> 0 | S43: =IF(OverviewIRR_PreTax,IF(ISBLANK(TimelinesPvt!$S$130),"",TimelinesPvt!$S$130),IF(ISBLANK(TimelinesPvt!$S$188),"",TimelinesPvt!$S$188)) -> 0 | T43: =IF(OverviewIRR_PreTax,IF(ISBLANK(TimelinesPvt!$T$130),"",TimelinesPvt!$T$130),IF(ISBLANK(TimelinesPvt!$T$188),"",TimelinesPvt!$T$188)) -> 0 | U43: =IF(OverviewIRR_PreTax,IF(ISBLANK(TimelinesPvt!$U$130),"",TimelinesPvt!$U$130),IF(ISBLANK(TimelinesPvt!$U$188),"",TimelinesPvt!$U$188)) -> 0 | V43: =IF(OverviewIRR_PreTax,IF(ISBLANK(TimelinesPvt!$V$130),"",TimelinesPvt!$V$130),IF(ISBLANK(TimelinesPvt!$V$188),"",TimelinesPvt!$V$188)) -> 0 | W43: =IF(OverviewIRR_PreTax,IF(ISBLANK(TimelinesPvt!$W$130),"",TimelinesPvt!$W$130),IF(ISBLANK(TimelinesPvt!$W$188),"",TimelinesPvt!$W$188)) -> 0 | X43: =IF(OverviewIRR_PreTax,IF(ISBLANK(TimelinesPvt!$X$130),"",TimelinesPvt!$X$130),IF(ISBLANK(TimelinesPvt!$X$188),"",TimelinesPvt!$X$188)) -> 0 | Y43: =IF(OverviewIRR_PreTax,IF(ISBLANK(TimelinesPvt!$Y$130),"",TimelinesPvt!$Y$130),IF(ISBLANK(TimelinesPvt!$Y$188),"",TimelinesPvt!$Y$188)) -> 0 | Z43: =IF(OverviewIRR_PreTax,IF(ISBLANK(TimelinesPvt!$Z$130),"",TimelinesPvt!$Z$130),IF(ISBLANK(TimelinesPvt!$Z$188),"",TimelinesPvt!$Z$188)) -> 0 | AA43: =IF(OverviewIRR_PreTax,IF(ISBLANK(TimelinesPvt!$AA$130),"",TimelinesPvt!$AA$130),IF(ISBLANK(TimelinesPvt!$AA$188),"",TimelinesPvt!$AA$188)) -> 0 | AB43: =IF(OverviewIRR_PreTax,IF(ISBLANK(TimelinesPvt!$AB$130),"",TimelinesPvt!$AB$130),IF(ISBLANK(TimelinesPvt!$AB$188),"",TimelinesPvt!$AB$188)) -> 0 | AC43: =IF(OverviewIRR_PreTax,IF(ISBLANK(TimelinesPvt!$AC$130),"",TimelinesPvt!$AC$130),IF(ISBLANK(TimelinesPvt!$AC$188),"",TimelinesPvt!$AC$188)) -> 0
A44: FedTaxOnStateCredit | B44: =IF(OverviewIRR_PreTax,IF(ISBLANK(TimelinesPvt!$B$131),"",TimelinesPvt!$B$131),IF(ISBLANK(TimelinesPvt!$B$189),"",TimelinesPvt!$B$189)) -> . | C44: =IF(OverviewIRR_PreTax,IF(ISBLANK(TimelinesPvt!$C$131),"",TimelinesPvt!$C$131),IF(ISBLANK(TimelinesPvt!$C$189),"",TimelinesPvt!$C$189)) ->  | D44: =IF(OverviewIRR_PreTax,IF(ISBLANK(TimelinesPvt!$D$131),"",TimelinesPvt!$D$131),IF(ISBLANK(TimelinesPvt!$D$189),"",TimelinesPvt!$D$189)) ->  | E44: =IF(OverviewIRR_PreTax,IF(ISBLANK(TimelinesPvt!$E$131),"",TimelinesPvt!$E$131),IF(ISBLANK(TimelinesPvt!$E$189),"",TimelinesPvt!$E$189)) -> 0 | F44: =IF(OverviewIRR_PreTax,IF(ISBLANK(TimelinesPvt!$F$131),"",TimelinesPvt!$F$131),IF(ISBLANK(TimelinesPvt!$F$189),"",TimelinesPvt!$F$189)) -> 0 | G44: =IF(OverviewIRR_PreTax,IF(ISBLANK(TimelinesPvt!$G$131),"",TimelinesPvt!$G$131),IF(ISBLANK(TimelinesPvt!$G$189),"",TimelinesPvt!$G$189)) -> 0 | H44: =IF(OverviewIRR_PreTax,IF(ISBLANK(TimelinesPvt!$H$131),"",TimelinesPvt!$H$131),IF(ISBLANK(TimelinesPvt!$H$189),"",TimelinesPvt!$H$189)) -> 0 | I44: =IF(OverviewIRR_PreTax,IF(ISBLANK(TimelinesPvt!$I$131),"",TimelinesPvt!$I$131),IF(ISBLANK(TimelinesPvt!$I$189),"",TimelinesPvt!$I$189)) -> 0 | J44: =IF(OverviewIRR_PreTax,IF(ISBLANK(TimelinesPvt!$J$131),"",TimelinesPvt!$J$131),IF(ISBLANK(TimelinesPvt!$J$189),"",TimelinesPvt!$J$189)) -> 0 | K44: =IF(OverviewIRR_PreTax,IF(ISBLANK(TimelinesPvt!$K$131),"",TimelinesPvt!$K$131),IF(ISBLANK(TimelinesPvt!$K$189),"",TimelinesPvt!$K$189)) -> 0 | L44: =IF(OverviewIRR_PreTax,IF(ISBLANK(TimelinesPvt!$L$131),"",TimelinesPvt!$L$131),IF(ISBLANK(TimelinesPvt!$L$189),"",TimelinesPvt!$L$189)) -> 0 | M44: =IF(OverviewIRR_PreTax,IF(ISBLANK(TimelinesPvt!$M$131),"",TimelinesPvt!$M$131),IF(ISBLANK(TimelinesPvt!$M$189),"",TimelinesPvt!$M$189)) -> 0 | N44: =IF(OverviewIRR_PreTax,IF(ISBLANK(TimelinesPvt!$N$131),"",TimelinesPvt!$N$131),IF(ISBLANK(TimelinesPvt!$N$189),"",TimelinesPvt!$N$189)) -> 0 | O44: =IF(OverviewIRR_PreTax,IF(ISBLANK(TimelinesPvt!$O$131),"",TimelinesPvt!$O$131),IF(ISBLANK(TimelinesPvt!$O$189),"",TimelinesPvt!$O$189)) -> 0 | P44: =IF(OverviewIRR_PreTax,IF(ISBLANK(TimelinesPvt!$P$131),"",TimelinesPvt!$P$131),IF(ISBLANK(TimelinesPvt!$P$189),"",TimelinesPvt!$P$189)) -> 0 | Q44: =IF(OverviewIRR_PreTax,IF(ISBLANK(TimelinesPvt!$Q$131),"",TimelinesPvt!$Q$131),IF(ISBLANK(TimelinesPvt!$Q$189),"",TimelinesPvt!$Q$189)) -> 0 | R44: =IF(OverviewIRR_PreTax,IF(ISBLANK(TimelinesPvt!$R$131),"",TimelinesPvt!$R$131),IF(ISBLANK(TimelinesPvt!$R$189),"",TimelinesPvt!$R$189)) -> 0 | S44: =IF(OverviewIRR_PreTax,IF(ISBLANK(TimelinesPvt!$S$131),"",TimelinesPvt!$S$131),IF(ISBLANK(TimelinesPvt!$S$189),"",TimelinesPvt!$S$189)) -> 0 | T44: =IF(OverviewIRR_PreTax,IF(ISBLANK(TimelinesPvt!$T$131),"",TimelinesPvt!$T$131),IF(ISBLANK(TimelinesPvt!$T$189),"",TimelinesPvt!$T$189)) -> 0 | U44: =IF(OverviewIRR_PreTax,IF(ISBLANK(TimelinesPvt!$U$131),"",TimelinesPvt!$U$131),IF(ISBLANK(TimelinesPvt!$U$189),"",TimelinesPvt!$U$189)) -> 0 | V44: =IF(OverviewIRR_PreTax,IF(ISBLANK(TimelinesPvt!$V$131),"",TimelinesPvt!$V$131),IF(ISBLANK(TimelinesPvt!$V$189),"",TimelinesPvt!$V$189)) -> 0 | W44: =IF(OverviewIRR_PreTax,IF(ISBLANK(TimelinesPvt!$W$131),"",TimelinesPvt!$W$131),IF(ISBLANK(TimelinesPvt!$W$189),"",TimelinesPvt!$W$189)) -> 0 | X44: =IF(OverviewIRR_PreTax,IF(ISBLANK(TimelinesPvt!$X$131),"",TimelinesPvt!$X$131),IF(ISBLANK(TimelinesPvt!$X$189),"",TimelinesPvt!$X$189)) -> 0 | Y44: =IF(OverviewIRR_PreTax,IF(ISBLANK(TimelinesPvt!$Y$131),"",TimelinesPvt!$Y$131),IF(ISBLANK(TimelinesPvt!$Y$189),"",TimelinesPvt!$Y$189)) -> 0 | Z44: =IF(OverviewIRR_PreTax,IF(ISBLANK(TimelinesPvt!$Z$131),"",TimelinesPvt!$Z$131),IF(ISBLANK(TimelinesPvt!$Z$189),"",TimelinesPvt!$Z$189)) -> 0 | AA44: =IF(OverviewIRR_PreTax,IF(ISBLANK(TimelinesPvt!$AA$131),"",TimelinesPvt!$AA$131),IF(ISBLANK(TimelinesPvt!$AA$189),"",TimelinesPvt!$AA$189)) -> 0 | AB44: =IF(OverviewIRR_PreTax,IF(ISBLANK(TimelinesPvt!$AB$131),"",TimelinesPvt!$AB$131),IF(ISBLANK(TimelinesPvt!$AB$189),"",TimelinesPvt!$AB$189)) -> 0 | AC44: =IF(OverviewIRR_PreTax,IF(ISBLANK(TimelinesPvt!$AC$131),"",TimelinesPvt!$AC$131),IF(ISBLANK(TimelinesPvt!$AC$189),"",TimelinesPvt!$AC$189)) -> 0
B45: =IF(OverviewIRR_PreTax,IF(ISBLANK(TimelinesPvt!$B$132),"",TimelinesPvt!$B$132),IF(ISBLANK(TimelinesPvt!$B$190),"",TimelinesPvt!$B$190)) ->  | C45: =IF(OverviewIRR_PreTax,IF(ISBLANK(TimelinesPvt!$C$132),"",TimelinesPvt!$C$132),IF(ISBLANK(TimelinesPvt!$C$190),"",TimelinesPvt!$C$190)) ->  | D45: =IF(OverviewIRR_PreTax,IF(ISBLANK(TimelinesPvt!$D$132),"",TimelinesPvt!$D$132),IF(ISBLANK(TimelinesPvt!$D$190),"",TimelinesPvt!$D$190)) ->  | E45: =IF(OverviewIRR_PreTax,IF(ISBLANK(TimelinesPvt!$E$132),"",TimelinesPvt!$E$132),IF(ISBLANK(TimelinesPvt!$E$190),"",TimelinesPvt!$E$190)) ->  | F45: =IF(OverviewIRR_PreTax,IF(ISBLANK(TimelinesPvt!$F$132),"",TimelinesPvt!$F$132),IF(ISBLANK(TimelinesPvt!$F$190),"",TimelinesPvt!$F$190)) ->  | G45: =IF(OverviewIRR_PreTax,IF(ISBLANK(TimelinesPvt!$G$132),"",TimelinesPvt!$G$132),IF(ISBLANK(TimelinesPvt!$G$190),"",TimelinesPvt!$G$190)) ->  | H45: =IF(OverviewIRR_PreTax,IF(ISBLANK(TimelinesPvt!$H$132),"",TimelinesPvt!$H$132),IF(ISBLANK(TimelinesPvt!$H$190),"",TimelinesPvt!$H$190)) ->  | I45: =IF(OverviewIRR_PreTax,IF(ISBLANK(TimelinesPvt!$I$132),"",TimelinesPvt!$I$132),IF(ISBLANK(TimelinesPvt!$I$190),"",TimelinesPvt!$I$190)) ->  | J45: =IF(OverviewIRR_PreTax,IF(ISBLANK(TimelinesPvt!$J$132),"",TimelinesPvt!$J$132),IF(ISBLANK(TimelinesPvt!$J$190),"",TimelinesPvt!$J$190)) ->  | K45: =IF(OverviewIRR_PreTax,IF(ISBLANK(TimelinesPvt!$K$132),"",TimelinesPvt!$K$132),IF(ISBLANK(TimelinesPvt!$K$190),"",TimelinesPvt!$K$190)) ->  | L45: =IF(OverviewIRR_PreTax,IF(ISBLANK(TimelinesPvt!$L$132),"",TimelinesPvt!$L$132),IF(ISBLANK(TimelinesPvt!$L$190),"",TimelinesPvt!$L$190)) ->  | M45: =IF(OverviewIRR_PreTax,IF(ISBLANK(TimelinesPvt!$M$132),"",TimelinesPvt!$M$132),IF(ISBLANK(TimelinesPvt!$M$190),"",TimelinesPvt!$M$190)) ->  | N45: =IF(OverviewIRR_PreTax,IF(ISBLANK(TimelinesPvt!$N$132),"",TimelinesPvt!$N$132),IF(ISBLANK(TimelinesPvt!$N$190),"",TimelinesPvt!$N$190)) ->  | O45: =IF(OverviewIRR_PreTax,IF(ISBLANK(TimelinesPvt!$O$132),"",TimelinesPvt!$O$132),IF(ISBLANK(TimelinesPvt!$O$190),"",TimelinesPvt!$O$190)) ->  | P45: =IF(OverviewIRR_PreTax,IF(ISBLANK(TimelinesPvt!$P$132),"",TimelinesPvt!$P$132),IF(ISBLANK(TimelinesPvt!$P$190),"",TimelinesPvt!$P$190)) ->  | Q45: =IF(OverviewIRR_PreTax,IF(ISBLANK(TimelinesPvt!$Q$132),"",TimelinesPvt!$Q$132),IF(ISBLANK(TimelinesPvt!$Q$190),"",TimelinesPvt!$Q$190)) ->  | R45: =IF(OverviewIRR_PreTax,IF(ISBLANK(TimelinesPvt!$R$132),"",TimelinesPvt!$R$132),IF(ISBLANK(TimelinesPvt!$R$190),"",TimelinesPvt!$R$190)) ->  | S45: =IF(OverviewIRR_PreTax,IF(ISBLANK(TimelinesPvt!$S$132),"",TimelinesPvt!$S$132),IF(ISBLANK(TimelinesPvt!$S$190),"",TimelinesPvt!$S$190)) ->  | T45: =IF(OverviewIRR_PreTax,IF(ISBLANK(TimelinesPvt!$T$132),"",TimelinesPvt!$T$132),IF(ISBLANK(TimelinesPvt!$T$190),"",TimelinesPvt!$T$190)) ->  | U45: =IF(OverviewIRR_PreTax,IF(ISBLANK(TimelinesPvt!$U$132),"",TimelinesPvt!$U$132),IF(ISBLANK(TimelinesPvt!$U$190),"",TimelinesPvt!$U$190)) ->  | V45: =IF(OverviewIRR_PreTax,IF(ISBLANK(TimelinesPvt!$V$132),"",TimelinesPvt!$V$132),IF(ISBLANK(TimelinesPvt!$V$190),"",TimelinesPvt!$V$190)) ->  | W45: =IF(OverviewIRR_PreTax,IF(ISBLANK(TimelinesPvt!$W$132),"",TimelinesPvt!$W$132),IF(ISBLANK(TimelinesPvt!$W$190),"",TimelinesPvt!$W$190)) ->  | X45: =IF(OverviewIRR_PreTax,IF(ISBLANK(TimelinesPvt!$X$132),"",TimelinesPvt!$X$132),IF(ISBLANK(TimelinesPvt!$X$190),"",TimelinesPvt!$X$190)) ->  | Y45: =IF(OverviewIRR_PreTax,IF(ISBLANK(TimelinesPvt!$Y$132),"",TimelinesPvt!$Y$132),IF(ISBLANK(TimelinesPvt!$Y$190),"",TimelinesPvt!$Y$190)) ->  | Z45: =IF(OverviewIRR_PreTax,IF(ISBLANK(TimelinesPvt!$Z$132),"",TimelinesPvt!$Z$132),IF(ISBLANK(TimelinesPvt!$Z$190),"",TimelinesPvt!$Z$190)) ->  | AA45: =IF(OverviewIRR_PreTax,IF(ISBLANK(TimelinesPvt!$AA$132),"",TimelinesPvt!$AA$132),IF(ISBLANK(TimelinesPvt!$AA$190),"",TimelinesPvt!$AA$190)) ->  | AB45: =IF(OverviewIRR_PreTax,IF(ISBLANK(TimelinesPvt!$AB$132),"",TimelinesPvt!$AB$132),IF(ISBLANK(TimelinesPvt!$AB$190),"",TimelinesPvt!$AB$190)) ->  | AC45: =IF(OverviewIRR_PreTax,IF(ISBLANK(TimelinesPvt!$AC$132),"",TimelinesPvt!$AC$132),IF(ISBLANK(TimelinesPvt!$AC$190),"",TimelinesPvt!$AC$190)) -> 
A46: FedDeprBasis | B46: =IF(OverviewIRR_PreTax,IF(ISBLANK(TimelinesPvt!$B$133),"",TimelinesPvt!$B$133),IF(ISBLANK(TimelinesPvt!$B$191),"",TimelinesPvt!$B$191)) -> Federal Depr Basis: Fed Tax Credit Basis minus 1/2 the Fed Credit | D46: =IF(OverviewIRR_PreTax,IF(ISBLANK(TimelinesPvt!$D$133),"",TimelinesPvt!$D$133),IF(ISBLANK(TimelinesPvt!$D$191),"",TimelinesPvt!$D$191)) ->  | E46: =IF(OverviewIRR_PreTax,IF(ISBLANK(TimelinesPvt!$E$133),"",TimelinesPvt!$E$133),IF(ISBLANK(TimelinesPvt!$E$191),"",TimelinesPvt!$E$191)) -> 188173 | F46: =IF(OverviewIRR_PreTax,IF(ISBLANK(TimelinesPvt!$F$133),"",TimelinesPvt!$F$133),IF(ISBLANK(TimelinesPvt!$F$191),"",TimelinesPvt!$F$191)) ->  | G46: =IF(OverviewIRR_PreTax,IF(ISBLANK(TimelinesPvt!$G$133),"",TimelinesPvt!$G$133),IF(ISBLANK(TimelinesPvt!$G$191),"",TimelinesPvt!$G$191)) ->  | H46: =IF(OverviewIRR_PreTax,IF(ISBLANK(TimelinesPvt!$H$133),"",TimelinesPvt!$H$133),IF(ISBLANK(TimelinesPvt!$H$191),"",TimelinesPvt!$H$191)) ->  | I46: =IF(OverviewIRR_PreTax,IF(ISBLANK(TimelinesPvt!$I$133),"",TimelinesPvt!$I$133),IF(ISBLANK(TimelinesPvt!$I$191),"",TimelinesPvt!$I$191)) ->  | J46: =IF(OverviewIRR_PreTax,IF(ISBLANK(TimelinesPvt!$J$133),"",TimelinesPvt!$J$133),IF(ISBLANK(TimelinesPvt!$J$191),"",TimelinesPvt!$J$191)) ->  | K46: =IF(OverviewIRR_PreTax,IF(ISBLANK(TimelinesPvt!$K$133),"",TimelinesPvt!$K$133),IF(ISBLANK(TimelinesPvt!$K$191),"",TimelinesPvt!$K$191)) ->  | L46: =IF(OverviewIRR_PreTax,IF(ISBLANK(TimelinesPvt!$L$133),"",TimelinesPvt!$L$133),IF(ISBLANK(TimelinesPvt!$L$191),"",TimelinesPvt!$L$191)) ->  | M46: =IF(OverviewIRR_PreTax,IF(ISBLANK(TimelinesPvt!$M$133),"",TimelinesPvt!$M$133),IF(ISBLANK(TimelinesPvt!$M$191),"",TimelinesPvt!$M$191)) ->  | N46: =IF(OverviewIRR_PreTax,IF(ISBLANK(TimelinesPvt!$N$133),"",TimelinesPvt!$N$133),IF(ISBLANK(TimelinesPvt!$N$191),"",TimelinesPvt!$N$191)) ->  | O46: =IF(OverviewIRR_PreTax,IF(ISBLANK(TimelinesPvt!$O$133),"",TimelinesPvt!$O$133),IF(ISBLANK(TimelinesPvt!$O$191),"",TimelinesPvt!$O$191)) ->  | P46: =IF(OverviewIRR_PreTax,IF(ISBLANK(TimelinesPvt!$P$133),"",TimelinesPvt!$P$133),IF(ISBLANK(TimelinesPvt!$P$191),"",TimelinesPvt!$P$191)) ->  | Q46: =IF(OverviewIRR_PreTax,IF(ISBLANK(TimelinesPvt!$Q$133),"",TimelinesPvt!$Q$133),IF(ISBLANK(TimelinesPvt!$Q$191),"",TimelinesPvt!$Q$191)) ->  | R46: =IF(OverviewIRR_PreTax,IF(ISBLANK(TimelinesPvt!$R$133),"",TimelinesPvt!$R$133),IF(ISBLANK(TimelinesPvt!$R$191),"",TimelinesPvt!$R$191)) ->  | S46: =IF(OverviewIRR_PreTax,IF(ISBLANK(TimelinesPvt!$S$133),"",TimelinesPvt!$S$133),IF(ISBLANK(TimelinesPvt!$S$191),"",TimelinesPvt!$S$191)) ->  | T46: =IF(OverviewIRR_PreTax,IF(ISBLANK(TimelinesPvt!$T$133),"",TimelinesPvt!$T$133),IF(ISBLANK(TimelinesPvt!$T$191),"",TimelinesPvt!$T$191)) ->  | U46: =IF(OverviewIRR_PreTax,IF(ISBLANK(TimelinesPvt!$U$133),"",TimelinesPvt!$U$133),IF(ISBLANK(TimelinesPvt!$U$191),"",TimelinesPvt!$U$191)) ->  | V46: =IF(OverviewIRR_PreTax,IF(ISBLANK(TimelinesPvt!$V$133),"",TimelinesPvt!$V$133),IF(ISBLANK(TimelinesPvt!$V$191),"",TimelinesPvt!$V$191)) ->  | W46: =IF(OverviewIRR_PreTax,IF(ISBLANK(TimelinesPvt!$W$133),"",TimelinesPvt!$W$133),IF(ISBLANK(TimelinesPvt!$W$191),"",TimelinesPvt!$W$191)) ->  | X46: =IF(OverviewIRR_PreTax,IF(ISBLANK(TimelinesPvt!$X$133),"",TimelinesPvt!$X$133),IF(ISBLANK(TimelinesPvt!$X$191),"",TimelinesPvt!$X$191)) ->  | Y46: =IF(OverviewIRR_PreTax,IF(ISBLANK(TimelinesPvt!$Y$133),"",TimelinesPvt!$Y$133),IF(ISBLANK(TimelinesPvt!$Y$191),"",TimelinesPvt!$Y$191)) ->  | Z46: =IF(OverviewIRR_PreTax,IF(ISBLANK(TimelinesPvt!$Z$133),"",TimelinesPvt!$Z$133),IF(ISBLANK(TimelinesPvt!$Z$191),"",TimelinesPvt!$Z$191)) ->  | AA46: =IF(OverviewIRR_PreTax,IF(ISBLANK(TimelinesPvt!$AA$133),"",TimelinesPvt!$AA$133),IF(ISBLANK(TimelinesPvt!$AA$191),"",TimelinesPvt!$AA$191)) ->  | AB46: =IF(OverviewIRR_PreTax,IF(ISBLANK(TimelinesPvt!$AB$133),"",TimelinesPvt!$AB$133),IF(ISBLANK(TimelinesPvt!$AB$191),"",TimelinesPvt!$AB$191)) ->  | AC46: =IF(OverviewIRR_PreTax,IF(ISBLANK(TimelinesPvt!$AC$133),"",TimelinesPvt!$AC$133),IF(ISBLANK(TimelinesPvt!$AC$191),"",TimelinesPvt!$AC$191)) -> 
A47: StateDeprBasis | B47: =IF(OverviewIRR_PreTax,IF(ISBLANK(TimelinesPvt!$B$134),"",TimelinesPvt!$B$134),IF(ISBLANK(TimelinesPvt!$B$192),"",TimelinesPvt!$B$192)) -> State Depr Basis: System Cost after rebate and fees | C47: =IF(OverviewIRR_PreTax,IF(ISBLANK(TimelinesPvt!$C$134),"",TimelinesPvt!$C$134),IF(ISBLANK(TimelinesPvt!$C$192),"",TimelinesPvt!$C$192)) ->  | D47: =IF(OverviewIRR_PreTax,IF(ISBLANK(TimelinesPvt!$D$134),"",TimelinesPvt!$D$134),IF(ISBLANK(TimelinesPvt!$D$192),"",TimelinesPvt!$D$192)) ->  | E47: =IF(OverviewIRR_PreTax,IF(ISBLANK(TimelinesPvt!$E$134),"",TimelinesPvt!$E$134),IF(ISBLANK(TimelinesPvt!$E$192),"",TimelinesPvt!$E$192)) -> 221380 | F47: =IF(OverviewIRR_PreTax,IF(ISBLANK(TimelinesPvt!$F$134),"",TimelinesPvt!$F$134),IF(ISBLANK(TimelinesPvt!$F$192),"",TimelinesPvt!$F$192)) ->  | G47: =IF(OverviewIRR_PreTax,IF(ISBLANK(TimelinesPvt!$G$134),"",TimelinesPvt!$G$134),IF(ISBLANK(TimelinesPvt!$G$192),"",TimelinesPvt!$G$192)) ->  | H47: =IF(OverviewIRR_PreTax,IF(ISBLANK(TimelinesPvt!$H$134),"",TimelinesPvt!$H$134),IF(ISBLANK(TimelinesPvt!$H$192),"",TimelinesPvt!$H$192)) ->  | I47: =IF(OverviewIRR_PreTax,IF(ISBLANK(TimelinesPvt!$I$134),"",TimelinesPvt!$I$134),IF(ISBLANK(TimelinesPvt!$I$192),"",TimelinesPvt!$I$192)) ->  | J47: =IF(OverviewIRR_PreTax,IF(ISBLANK(TimelinesPvt!$J$134),"",TimelinesPvt!$J$134),IF(ISBLANK(TimelinesPvt!$J$192),"",TimelinesPvt!$J$192)) ->  | K47: =IF(OverviewIRR_PreTax,IF(ISBLANK(TimelinesPvt!$K$134),"",TimelinesPvt!$K$134),IF(ISBLANK(TimelinesPvt!$K$192),"",TimelinesPvt!$K$192)) ->  | L47: =IF(OverviewIRR_PreTax,IF(ISBLANK(TimelinesPvt!$L$134),"",TimelinesPvt!$L$134),IF(ISBLANK(TimelinesPvt!$L$192),"",TimelinesPvt!$L$192)) ->  | M47: =IF(OverviewIRR_PreTax,IF(ISBLANK(TimelinesPvt!$M$134),"",TimelinesPvt!$M$134),IF(ISBLANK(TimelinesPvt!$M$192),"",TimelinesPvt!$M$192)) ->  | N47: =IF(OverviewIRR_PreTax,IF(ISBLANK(TimelinesPvt!$N$134),"",TimelinesPvt!$N$134),IF(ISBLANK(TimelinesPvt!$N$192),"",TimelinesPvt!$N$192)) ->  | O47: =IF(OverviewIRR_PreTax,IF(ISBLANK(TimelinesPvt!$O$134),"",TimelinesPvt!$O$134),IF(ISBLANK(TimelinesPvt!$O$192),"",TimelinesPvt!$O$192)) ->  | P47: =IF(OverviewIRR_PreTax,IF(ISBLANK(TimelinesPvt!$P$134),"",TimelinesPvt!$P$134),IF(ISBLANK(TimelinesPvt!$P$192),"",TimelinesPvt!$P$192)) ->  | Q47: =IF(OverviewIRR_PreTax,IF(ISBLANK(TimelinesPvt!$Q$134),"",TimelinesPvt!$Q$134),IF(ISBLANK(TimelinesPvt!$Q$192),"",TimelinesPvt!$Q$192)) ->  | R47: =IF(OverviewIRR_PreTax,IF(ISBLANK(TimelinesPvt!$R$134),"",TimelinesPvt!$R$134),IF(ISBLANK(TimelinesPvt!$R$192),"",TimelinesPvt!$R$192)) ->  | S47: =IF(OverviewIRR_PreTax,IF(ISBLANK(TimelinesPvt!$S$134),"",TimelinesPvt!$S$134),IF(ISBLANK(TimelinesPvt!$S$192),"",TimelinesPvt!$S$192)) ->  | T47: =IF(OverviewIRR_PreTax,IF(ISBLANK(TimelinesPvt!$T$134),"",TimelinesPvt!$T$134),IF(ISBLANK(TimelinesPvt!$T$192),"",TimelinesPvt!$T$192)) ->  | U47: =IF(OverviewIRR_PreTax,IF(ISBLANK(TimelinesPvt!$U$134),"",TimelinesPvt!$U$134),IF(ISBLANK(TimelinesPvt!$U$192),"",TimelinesPvt!$U$192)) ->  | V47: =IF(OverviewIRR_PreTax,IF(ISBLANK(TimelinesPvt!$V$134),"",TimelinesPvt!$V$134),IF(ISBLANK(TimelinesPvt!$V$192),"",TimelinesPvt!$V$192)) ->  | W47: =IF(OverviewIRR_PreTax,IF(ISBLANK(TimelinesPvt!$W$134),"",TimelinesPvt!$W$134),IF(ISBLANK(TimelinesPvt!$W$192),"",TimelinesPvt!$W$192)) ->  | X47: =IF(OverviewIRR_PreTax,IF(ISBLANK(TimelinesPvt!$X$134),"",TimelinesPvt!$X$134),IF(ISBLANK(TimelinesPvt!$X$192),"",TimelinesPvt!$X$192)) ->  | Y47: =IF(OverviewIRR_PreTax,IF(ISBLANK(TimelinesPvt!$Y$134),"",TimelinesPvt!$Y$134),IF(ISBLANK(TimelinesPvt!$Y$192),"",TimelinesPvt!$Y$192)) ->  | Z47: =IF(OverviewIRR_PreTax,IF(ISBLANK(TimelinesPvt!$Z$134),"",TimelinesPvt!$Z$134),IF(ISBLANK(TimelinesPvt!$Z$192),"",TimelinesPvt!$Z$192)) ->  | AA47: =IF(OverviewIRR_PreTax,IF(ISBLANK(TimelinesPvt!$AA$134),"",TimelinesPvt!$AA$134),IF(ISBLANK(TimelinesPvt!$AA$192),"",TimelinesPvt!$AA$192)) ->  | AB47: =IF(OverviewIRR_PreTax,IF(ISBLANK(TimelinesPvt!$AB$134),"",TimelinesPvt!$AB$134),IF(ISBLANK(TimelinesPvt!$AB$192),"",TimelinesPvt!$AB$192)) ->  | AC47: =IF(OverviewIRR_PreTax,IF(ISBLANK(TimelinesPvt!$AC$134),"",TimelinesPvt!$AC$134),IF(ISBLANK(TimelinesPvt!$AC$192),"",TimelinesPvt!$AC$192)) -> 
A48: FedDeprPercent | B48: =IF(OverviewIRR_PreTax,IF(ISBLANK(TimelinesPvt!$B$135),"",TimelinesPvt!$B$135),IF(ISBLANK(TimelinesPvt!$B$193),"",TimelinesPvt!$B$193)) -> MACRS 5 year Accelerated Federal Depreciation (%) | C48: =IF(OverviewIRR_PreTax,IF(ISBLANK(TimelinesPvt!$C$135),"",TimelinesPvt!$C$135),IF(ISBLANK(TimelinesPvt!$C$193),"",TimelinesPvt!$C$193)) ->  | D48: =IF(OverviewIRR_PreTax,IF(ISBLANK(TimelinesPvt!$D$135),"",TimelinesPvt!$D$135),IF(ISBLANK(TimelinesPvt!$D$193),"",TimelinesPvt!$D$193)) ->  | E48: =IF(OverviewIRR_PreTax,IF(ISBLANK(TimelinesPvt!$E$135),"",TimelinesPvt!$E$135),IF(ISBLANK(TimelinesPvt!$E$193),"",TimelinesPvt!$E$193)) -> 1 | F48: =IF(OverviewIRR_PreTax,IF(ISBLANK(TimelinesPvt!$F$135),"",TimelinesPvt!$F$135),IF(ISBLANK(TimelinesPvt!$F$193),"",TimelinesPvt!$F$193)) ->  | G48: =IF(OverviewIRR_PreTax,IF(ISBLANK(TimelinesPvt!$G$135),"",TimelinesPvt!$G$135),IF(ISBLANK(TimelinesPvt!$G$193),"",TimelinesPvt!$G$193)) ->  | H48: =IF(OverviewIRR_PreTax,IF(ISBLANK(TimelinesPvt!$H$135),"",TimelinesPvt!$H$135),IF(ISBLANK(TimelinesPvt!$H$193),"",TimelinesPvt!$H$193)) ->  | I48: =IF(OverviewIRR_PreTax,IF(ISBLANK(TimelinesPvt!$I$135),"",TimelinesPvt!$I$135),IF(ISBLANK(TimelinesPvt!$I$193),"",TimelinesPvt!$I$193)) ->  | J48: =IF(OverviewIRR_PreTax,IF(ISBLANK(TimelinesPvt!$J$135),"",TimelinesPvt!$J$135),IF(ISBLANK(TimelinesPvt!$J$193),"",TimelinesPvt!$J$193)) ->  | K48: =IF(OverviewIRR_PreTax,IF(ISBLANK(TimelinesPvt!$K$135),"",TimelinesPvt!$K$135),IF(ISBLANK(TimelinesPvt!$K$193),"",TimelinesPvt!$K$193)) ->  | L48: =IF(OverviewIRR_PreTax,IF(ISBLANK(TimelinesPvt!$L$135),"",TimelinesPvt!$L$135),IF(ISBLANK(TimelinesPvt!$L$193),"",TimelinesPvt!$L$193)) ->  | M48: =IF(OverviewIRR_PreTax,IF(ISBLANK(TimelinesPvt!$M$135),"",TimelinesPvt!$M$135),IF(ISBLANK(TimelinesPvt!$M$193),"",TimelinesPvt!$M$193)) ->  | N48: =IF(OverviewIRR_PreTax,IF(ISBLANK(TimelinesPvt!$N$135),"",TimelinesPvt!$N$135),IF(ISBLANK(TimelinesPvt!$N$193),"",TimelinesPvt!$N$193)) ->  | O48: =IF(OverviewIRR_PreTax,IF(ISBLANK(TimelinesPvt!$O$135),"",TimelinesPvt!$O$135),IF(ISBLANK(TimelinesPvt!$O$193),"",TimelinesPvt!$O$193)) ->  | P48: =IF(OverviewIRR_PreTax,IF(ISBLANK(TimelinesPvt!$P$135),"",TimelinesPvt!$P$135),IF(ISBLANK(TimelinesPvt!$P$193),"",TimelinesPvt!$P$193)) ->  | Q48: =IF(OverviewIRR_PreTax,IF(ISBLANK(TimelinesPvt!$Q$135),"",TimelinesPvt!$Q$135),IF(ISBLANK(TimelinesPvt!$Q$193),"",TimelinesPvt!$Q$193)) ->  | R48: =IF(OverviewIRR_PreTax,IF(ISBLANK(TimelinesPvt!$R$135),"",TimelinesPvt!$R$135),IF(ISBLANK(TimelinesPvt!$R$193),"",TimelinesPvt!$R$193)) ->  | S48: =IF(OverviewIRR_PreTax,IF(ISBLANK(TimelinesPvt!$S$135),"",TimelinesPvt!$S$135),IF(ISBLANK(TimelinesPvt!$S$193),"",TimelinesPvt!$S$193)) ->  | T48: =IF(OverviewIRR_PreTax,IF(ISBLANK(TimelinesPvt!$T$135),"",TimelinesPvt!$T$135),IF(ISBLANK(TimelinesPvt!$T$193),"",TimelinesPvt!$T$193)) ->  | U48: =IF(OverviewIRR_PreTax,IF(ISBLANK(TimelinesPvt!$U$135),"",TimelinesPvt!$U$135),IF(ISBLANK(TimelinesPvt!$U$193),"",TimelinesPvt!$U$193)) ->  | V48: =IF(OverviewIRR_PreTax,IF(ISBLANK(TimelinesPvt!$V$135),"",TimelinesPvt!$V$135),IF(ISBLANK(TimelinesPvt!$V$193),"",TimelinesPvt!$V$193)) ->  | W48: =IF(OverviewIRR_PreTax,IF(ISBLANK(TimelinesPvt!$W$135),"",TimelinesPvt!$W$135),IF(ISBLANK(TimelinesPvt!$W$193),"",TimelinesPvt!$W$193)) ->  | X48: =IF(OverviewIRR_PreTax,IF(ISBLANK(TimelinesPvt!$X$135),"",TimelinesPvt!$X$135),IF(ISBLANK(TimelinesPvt!$X$193),"",TimelinesPvt!$X$193)) ->  | Y48: =IF(OverviewIRR_PreTax,IF(ISBLANK(TimelinesPvt!$Y$135),"",TimelinesPvt!$Y$135),IF(ISBLANK(TimelinesPvt!$Y$193),"",TimelinesPvt!$Y$193)) ->  | Z48: =IF(OverviewIRR_PreTax,IF(ISBLANK(TimelinesPvt!$Z$135),"",TimelinesPvt!$Z$135),IF(ISBLANK(TimelinesPvt!$Z$193),"",TimelinesPvt!$Z$193)) ->  | AA48: =IF(OverviewIRR_PreTax,IF(ISBLANK(TimelinesPvt!$AA$135),"",TimelinesPvt!$AA$135),IF(ISBLANK(TimelinesPvt!$AA$193),"",TimelinesPvt!$AA$193)) ->  | AB48: =IF(OverviewIRR_PreTax,IF(ISBLANK(TimelinesPvt!$AB$135),"",TimelinesPvt!$AB$135),IF(ISBLANK(TimelinesPvt!$AB$193),"",TimelinesPvt!$AB$193)) ->  | AC48: =IF(OverviewIRR_PreTax,IF(ISBLANK(TimelinesPvt!$AC$135),"",TimelinesPvt!$AC$135),IF(ISBLANK(TimelinesPvt!$AC$193),"",TimelinesPvt!$AC$193)) -> 
A49: StateDeprPercent | B49: =IF(OverviewIRR_PreTax,IF(ISBLANK(TimelinesPvt!$B$136),"",TimelinesPvt!$B$136),IF(ISBLANK(TimelinesPvt!$B$194),"",TimelinesPvt!$B$194)) -> MACRS 5 year Accelerated State Depreciation (%) | C49: =IF(OverviewIRR_PreTax,IF(ISBLANK(TimelinesPvt!$C$136),"",TimelinesPvt!$C$136),IF(ISBLANK(TimelinesPvt!$C$194),"",TimelinesPvt!$C$194)) ->  | D49: =IF(OverviewIRR_PreTax,IF(ISBLANK(TimelinesPvt!$D$136),"",TimelinesPvt!$D$136),IF(ISBLANK(TimelinesPvt!$D$194),"",TimelinesPvt!$D$194)) ->  | E49: =IF(OverviewIRR_PreTax,IF(ISBLANK(TimelinesPvt!$E$136),"",TimelinesPvt!$E$136),IF(ISBLANK(TimelinesPvt!$E$194),"",TimelinesPvt!$E$194)) -> 0.2 | F49: =IF(OverviewIRR_PreTax,IF(ISBLANK(TimelinesPvt!$F$136),"",TimelinesPvt!$F$136),IF(ISBLANK(TimelinesPvt!$F$194),"",TimelinesPvt!$F$194)) -> 0.32 | G49: =IF(OverviewIRR_PreTax,IF(ISBLANK(TimelinesPvt!$G$136),"",TimelinesPvt!$G$136),IF(ISBLANK(TimelinesPvt!$G$194),"",TimelinesPvt!$G$194)) -> 0.192 | H49: =IF(OverviewIRR_PreTax,IF(ISBLANK(TimelinesPvt!$H$136),"",TimelinesPvt!$H$136),IF(ISBLANK(TimelinesPvt!$H$194),"",TimelinesPvt!$H$194)) -> 0.115 | I49: =IF(OverviewIRR_PreTax,IF(ISBLANK(TimelinesPvt!$I$136),"",TimelinesPvt!$I$136),IF(ISBLANK(TimelinesPvt!$I$194),"",TimelinesPvt!$I$194)) -> 0.115 | J49: =IF(OverviewIRR_PreTax,IF(ISBLANK(TimelinesPvt!$J$136),"",TimelinesPvt!$J$136),IF(ISBLANK(TimelinesPvt!$J$194),"",TimelinesPvt!$J$194)) -> 0.058 | K49: =IF(OverviewIRR_PreTax,IF(ISBLANK(TimelinesPvt!$K$136),"",TimelinesPvt!$K$136),IF(ISBLANK(TimelinesPvt!$K$194),"",TimelinesPvt!$K$194)) ->  | L49: =IF(OverviewIRR_PreTax,IF(ISBLANK(TimelinesPvt!$L$136),"",TimelinesPvt!$L$136),IF(ISBLANK(TimelinesPvt!$L$194),"",TimelinesPvt!$L$194)) ->  | M49: =IF(OverviewIRR_PreTax,IF(ISBLANK(TimelinesPvt!$M$136),"",TimelinesPvt!$M$136),IF(ISBLANK(TimelinesPvt!$M$194),"",TimelinesPvt!$M$194)) ->  | N49: =IF(OverviewIRR_PreTax,IF(ISBLANK(TimelinesPvt!$N$136),"",TimelinesPvt!$N$136),IF(ISBLANK(TimelinesPvt!$N$194),"",TimelinesPvt!$N$194)) ->  | O49: =IF(OverviewIRR_PreTax,IF(ISBLANK(TimelinesPvt!$O$136),"",TimelinesPvt!$O$136),IF(ISBLANK(TimelinesPvt!$O$194),"",TimelinesPvt!$O$194)) ->  | P49: =IF(OverviewIRR_PreTax,IF(ISBLANK(TimelinesPvt!$P$136),"",TimelinesPvt!$P$136),IF(ISBLANK(TimelinesPvt!$P$194),"",TimelinesPvt!$P$194)) ->  | Q49: =IF(OverviewIRR_PreTax,IF(ISBLANK(TimelinesPvt!$Q$136),"",TimelinesPvt!$Q$136),IF(ISBLANK(TimelinesPvt!$Q$194),"",TimelinesPvt!$Q$194)) ->  | R49: =IF(OverviewIRR_PreTax,IF(ISBLANK(TimelinesPvt!$R$136),"",TimelinesPvt!$R$136),IF(ISBLANK(TimelinesPvt!$R$194),"",TimelinesPvt!$R$194)) ->  | S49: =IF(OverviewIRR_PreTax,IF(ISBLANK(TimelinesPvt!$S$136),"",TimelinesPvt!$S$136),IF(ISBLANK(TimelinesPvt!$S$194),"",TimelinesPvt!$S$194)) ->  | T49: =IF(OverviewIRR_PreTax,IF(ISBLANK(TimelinesPvt!$T$136),"",TimelinesPvt!$T$136),IF(ISBLANK(TimelinesPvt!$T$194),"",TimelinesPvt!$T$194)) ->  | U49: =IF(OverviewIRR_PreTax,IF(ISBLANK(TimelinesPvt!$U$136),"",TimelinesPvt!$U$136),IF(ISBLANK(TimelinesPvt!$U$194),"",TimelinesPvt!$U$194)) ->  | V49: =IF(OverviewIRR_PreTax,IF(ISBLANK(TimelinesPvt!$V$136),"",TimelinesPvt!$V$136),IF(ISBLANK(TimelinesPvt!$V$194),"",TimelinesPvt!$V$194)) ->  | W49: =IF(OverviewIRR_PreTax,IF(ISBLANK(TimelinesPvt!$W$136),"",TimelinesPvt!$W$136),IF(ISBLANK(TimelinesPvt!$W$194),"",TimelinesPvt!$W$194)) ->  | X49: =IF(OverviewIRR_PreTax,IF(ISBLANK(TimelinesPvt!$X$136),"",TimelinesPvt!$X$136),IF(ISBLANK(TimelinesPvt!$X$194),"",TimelinesPvt!$X$194)) ->  | Y49: =IF(OverviewIRR_PreTax,IF(ISBLANK(TimelinesPvt!$Y$136),"",TimelinesPvt!$Y$136),IF(ISBLANK(TimelinesPvt!$Y$194),"",TimelinesPvt!$Y$194)) ->  | Z49: =IF(OverviewIRR_PreTax,IF(ISBLANK(TimelinesPvt!$Z$136),"",TimelinesPvt!$Z$136),IF(ISBLANK(TimelinesPvt!$Z$194),"",TimelinesPvt!$Z$194)) ->  | AA49: =IF(OverviewIRR_PreTax,IF(ISBLANK(TimelinesPvt!$AA$136),"",TimelinesPvt!$AA$136),IF(ISBLANK(TimelinesPvt!$AA$194),"",TimelinesPvt!$AA$194)) ->  | AB49: =IF(OverviewIRR_PreTax,IF(ISBLANK(TimelinesPvt!$AB$136),"",TimelinesPvt!$AB$136),IF(ISBLANK(TimelinesPvt!$AB$194),"",TimelinesPvt!$AB$194)) ->  | AC49: =IF(OverviewIRR_PreTax,IF(ISBLANK(TimelinesPvt!$AC$136),"",TimelinesPvt!$AC$136),IF(ISBLANK(TimelinesPvt!$AC$194),"",TimelinesPvt!$AC$194)) -> 
A50: DeprLabel | B50: =IF(OverviewIRR_PreTax,IF(ISBLANK(TimelinesPvt!$B$137),"",TimelinesPvt!$B$137),IF(ISBLANK(TimelinesPvt!$B$195),"",TimelinesPvt!$B$195)) ->  | C50: =IF(OverviewIRR_PreTax,IF(ISBLANK(TimelinesPvt!$C$137),"",TimelinesPvt!$C$137),IF(ISBLANK(TimelinesPvt!$C$195),"",TimelinesPvt!$C$195)) -> 25 year sum total: | E50: =IF(OverviewIRR_PreTax,IF(ISBLANK(TimelinesPvt!$E$137),"",TimelinesPvt!$E$137),IF(ISBLANK(TimelinesPvt!$E$195),"",TimelinesPvt!$E$195)) ->  | F50: =IF(OverviewIRR_PreTax,IF(ISBLANK(TimelinesPvt!$F$137),"",TimelinesPvt!$F$137),IF(ISBLANK(TimelinesPvt!$F$195),"",TimelinesPvt!$F$195)) ->  | G50: =IF(OverviewIRR_PreTax,IF(ISBLANK(TimelinesPvt!$G$137),"",TimelinesPvt!$G$137),IF(ISBLANK(TimelinesPvt!$G$195),"",TimelinesPvt!$G$195)) ->  | H50: =IF(OverviewIRR_PreTax,IF(ISBLANK(TimelinesPvt!$H$137),"",TimelinesPvt!$H$137),IF(ISBLANK(TimelinesPvt!$H$195),"",TimelinesPvt!$H$195)) ->  | I50: =IF(OverviewIRR_PreTax,IF(ISBLANK(TimelinesPvt!$I$137),"",TimelinesPvt!$I$137),IF(ISBLANK(TimelinesPvt!$I$195),"",TimelinesPvt!$I$195)) ->  | J50: =IF(OverviewIRR_PreTax,IF(ISBLANK(TimelinesPvt!$J$137),"",TimelinesPvt!$J$137),IF(ISBLANK(TimelinesPvt!$J$195),"",TimelinesPvt!$J$195)) ->  | K50: =IF(OverviewIRR_PreTax,IF(ISBLANK(TimelinesPvt!$K$137),"",TimelinesPvt!$K$137),IF(ISBLANK(TimelinesPvt!$K$195),"",TimelinesPvt!$K$195)) ->  | L50: =IF(OverviewIRR_PreTax,IF(ISBLANK(TimelinesPvt!$L$137),"",TimelinesPvt!$L$137),IF(ISBLANK(TimelinesPvt!$L$195),"",TimelinesPvt!$L$195)) ->  | M50: =IF(OverviewIRR_PreTax,IF(ISBLANK(TimelinesPvt!$M$137),"",TimelinesPvt!$M$137),IF(ISBLANK(TimelinesPvt!$M$195),"",TimelinesPvt!$M$195)) ->  | N50: =IF(OverviewIRR_PreTax,IF(ISBLANK(TimelinesPvt!$N$137),"",TimelinesPvt!$N$137),IF(ISBLANK(TimelinesPvt!$N$195),"",TimelinesPvt!$N$195)) ->  | O50: =IF(OverviewIRR_PreTax,IF(ISBLANK(TimelinesPvt!$O$137),"",TimelinesPvt!$O$137),IF(ISBLANK(TimelinesPvt!$O$195),"",TimelinesPvt!$O$195)) ->  | P50: =IF(OverviewIRR_PreTax,IF(ISBLANK(TimelinesPvt!$P$137),"",TimelinesPvt!$P$137),IF(ISBLANK(TimelinesPvt!$P$195),"",TimelinesPvt!$P$195)) ->  | Q50: =IF(OverviewIRR_PreTax,IF(ISBLANK(TimelinesPvt!$Q$137),"",TimelinesPvt!$Q$137),IF(ISBLANK(TimelinesPvt!$Q$195),"",TimelinesPvt!$Q$195)) ->  | R50: =IF(OverviewIRR_PreTax,IF(ISBLANK(TimelinesPvt!$R$137),"",TimelinesPvt!$R$137),IF(ISBLANK(TimelinesPvt!$R$195),"",TimelinesPvt!$R$195)) ->  | S50: =IF(OverviewIRR_PreTax,IF(ISBLANK(TimelinesPvt!$S$137),"",TimelinesPvt!$S$137),IF(ISBLANK(TimelinesPvt!$S$195),"",TimelinesPvt!$S$195)) ->  | T50: =IF(OverviewIRR_PreTax,IF(ISBLANK(TimelinesPvt!$T$137),"",TimelinesPvt!$T$137),IF(ISBLANK(TimelinesPvt!$T$195),"",TimelinesPvt!$T$195)) ->  | U50: =IF(OverviewIRR_PreTax,IF(ISBLANK(TimelinesPvt!$U$137),"",TimelinesPvt!$U$137),IF(ISBLANK(TimelinesPvt!$U$195),"",TimelinesPvt!$U$195)) ->  | V50: =IF(OverviewIRR_PreTax,IF(ISBLANK(TimelinesPvt!$V$137),"",TimelinesPvt!$V$137),IF(ISBLANK(TimelinesPvt!$V$195),"",TimelinesPvt!$V$195)) ->  | W50: =IF(OverviewIRR_PreTax,IF(ISBLANK(TimelinesPvt!$W$137),"",TimelinesPvt!$W$137),IF(ISBLANK(TimelinesPvt!$W$195),"",TimelinesPvt!$W$195)) ->  | X50: =IF(OverviewIRR_PreTax,IF(ISBLANK(TimelinesPvt!$X$137),"",TimelinesPvt!$X$137),IF(ISBLANK(TimelinesPvt!$X$195),"",TimelinesPvt!$X$195)) ->  | Y50: =IF(OverviewIRR_PreTax,IF(ISBLANK(TimelinesPvt!$Y$137),"",TimelinesPvt!$Y$137),IF(ISBLANK(TimelinesPvt!$Y$195),"",TimelinesPvt!$Y$195)) ->  | Z50: =IF(OverviewIRR_PreTax,IF(ISBLANK(TimelinesPvt!$Z$137),"",TimelinesPvt!$Z$137),IF(ISBLANK(TimelinesPvt!$Z$195),"",TimelinesPvt!$Z$195)) ->  | AA50: =IF(OverviewIRR_PreTax,IF(ISBLANK(TimelinesPvt!$AA$137),"",TimelinesPvt!$AA$137),IF(ISBLANK(TimelinesPvt!$AA$195),"",TimelinesPvt!$AA$195)) ->  | AB50: =IF(OverviewIRR_PreTax,IF(ISBLANK(TimelinesPvt!$AB$137),"",TimelinesPvt!$AB$137),IF(ISBLANK(TimelinesPvt!$AB$195),"",TimelinesPvt!$AB$195)) ->  | AC50: =IF(OverviewIRR_PreTax,IF(ISBLANK(TimelinesPvt!$AC$137),"",TimelinesPvt!$AC$137),IF(ISBLANK(TimelinesPvt!$AC$195),"",TimelinesPvt!$AC$195)) -> 
A51: FedDepr | B51: =IF(OverviewIRR_PreTax,IF(ISBLANK(TimelinesPvt!$B$138),"",TimelinesPvt!$B$138),IF(ISBLANK(TimelinesPvt!$B$196),"",TimelinesPvt!$B$196)) -> MACRS 5 year Accelerated Federal Depreciation | C51: =IF(OverviewIRR_PreTax,IF(ISBLANK(TimelinesPvt!$C$138),"",TimelinesPvt!$C$138),IF(ISBLANK(TimelinesPvt!$C$196),"",TimelinesPvt!$C$196)) -> 39516.33 | D51: =IF(OverviewIRR_PreTax,IF(ISBLANK(TimelinesPvt!$D$138),"",TimelinesPvt!$D$138),IF(ISBLANK(TimelinesPvt!$D$196),"",TimelinesPvt!$D$196)) ->  | E51: =IF(OverviewIRR_PreTax,IF(ISBLANK(TimelinesPvt!$E$138),"",TimelinesPvt!$E$138),IF(ISBLANK(TimelinesPvt!$E$196),"",TimelinesPvt!$E$196)) -> 39516.33 | F51: =IF(OverviewIRR_PreTax,IF(ISBLANK(TimelinesPvt!$F$138),"",TimelinesPvt!$F$138),IF(ISBLANK(TimelinesPvt!$F$196),"",TimelinesPvt!$F$196)) -> 0 | G51: =IF(OverviewIRR_PreTax,IF(ISBLANK(TimelinesPvt!$G$138),"",TimelinesPvt!$G$138),IF(ISBLANK(TimelinesPvt!$G$196),"",TimelinesPvt!$G$196)) -> 0 | H51: =IF(OverviewIRR_PreTax,IF(ISBLANK(TimelinesPvt!$H$138),"",TimelinesPvt!$H$138),IF(ISBLANK(TimelinesPvt!$H$196),"",TimelinesPvt!$H$196)) -> 0 | I51: =IF(OverviewIRR_PreTax,IF(ISBLANK(TimelinesPvt!$I$138),"",TimelinesPvt!$I$138),IF(ISBLANK(TimelinesPvt!$I$196),"",TimelinesPvt!$I$196)) -> 0 | J51: =IF(OverviewIRR_PreTax,IF(ISBLANK(TimelinesPvt!$J$138),"",TimelinesPvt!$J$138),IF(ISBLANK(TimelinesPvt!$J$196),"",TimelinesPvt!$J$196)) -> 0 | K51: =IF(OverviewIRR_PreTax,IF(ISBLANK(TimelinesPvt!$K$138),"",TimelinesPvt!$K$138),IF(ISBLANK(TimelinesPvt!$K$196),"",TimelinesPvt!$K$196)) -> 0 | L51: =IF(OverviewIRR_PreTax,IF(ISBLANK(TimelinesPvt!$L$138),"",TimelinesPvt!$L$138),IF(ISBLANK(TimelinesPvt!$L$196),"",TimelinesPvt!$L$196)) -> 0 | M51: =IF(OverviewIRR_PreTax,IF(ISBLANK(TimelinesPvt!$M$138),"",TimelinesPvt!$M$138),IF(ISBLANK(TimelinesPvt!$M$196),"",TimelinesPvt!$M$196)) -> 0 | N51: =IF(OverviewIRR_PreTax,IF(ISBLANK(TimelinesPvt!$N$138),"",TimelinesPvt!$N$138),IF(ISBLANK(TimelinesPvt!$N$196),"",TimelinesPvt!$N$196)) -> 0 | O51: =IF(OverviewIRR_PreTax,IF(ISBLANK(TimelinesPvt!$O$138),"",TimelinesPvt!$O$138),IF(ISBLANK(TimelinesPvt!$O$196),"",TimelinesPvt!$O$196)) -> 0 | P51: =IF(OverviewIRR_PreTax,IF(ISBLANK(TimelinesPvt!$P$138),"",TimelinesPvt!$P$138),IF(ISBLANK(TimelinesPvt!$P$196),"",TimelinesPvt!$P$196)) -> 0 | Q51: =IF(OverviewIRR_PreTax,IF(ISBLANK(TimelinesPvt!$Q$138),"",TimelinesPvt!$Q$138),IF(ISBLANK(TimelinesPvt!$Q$196),"",TimelinesPvt!$Q$196)) -> 0 | R51: =IF(OverviewIRR_PreTax,IF(ISBLANK(TimelinesPvt!$R$138),"",TimelinesPvt!$R$138),IF(ISBLANK(TimelinesPvt!$R$196),"",TimelinesPvt!$R$196)) -> 0 | S51: =IF(OverviewIRR_PreTax,IF(ISBLANK(TimelinesPvt!$S$138),"",TimelinesPvt!$S$138),IF(ISBLANK(TimelinesPvt!$S$196),"",TimelinesPvt!$S$196)) -> 0 | T51: =IF(OverviewIRR_PreTax,IF(ISBLANK(TimelinesPvt!$T$138),"",TimelinesPvt!$T$138),IF(ISBLANK(TimelinesPvt!$T$196),"",TimelinesPvt!$T$196)) -> 0 | U51: =IF(OverviewIRR_PreTax,IF(ISBLANK(TimelinesPvt!$U$138),"",TimelinesPvt!$U$138),IF(ISBLANK(TimelinesPvt!$U$196),"",TimelinesPvt!$U$196)) -> 0 | V51: =IF(OverviewIRR_PreTax,IF(ISBLANK(TimelinesPvt!$V$138),"",TimelinesPvt!$V$138),IF(ISBLANK(TimelinesPvt!$V$196),"",TimelinesPvt!$V$196)) -> 0 | W51: =IF(OverviewIRR_PreTax,IF(ISBLANK(TimelinesPvt!$W$138),"",TimelinesPvt!$W$138),IF(ISBLANK(TimelinesPvt!$W$196),"",TimelinesPvt!$W$196)) -> 0 | X51: =IF(OverviewIRR_PreTax,IF(ISBLANK(TimelinesPvt!$X$138),"",TimelinesPvt!$X$138),IF(ISBLANK(TimelinesPvt!$X$196),"",TimelinesPvt!$X$196)) -> 0 | Y51: =IF(OverviewIRR_PreTax,IF(ISBLANK(TimelinesPvt!$Y$138),"",TimelinesPvt!$Y$138),IF(ISBLANK(TimelinesPvt!$Y$196),"",TimelinesPvt!$Y$196)) -> 0 | Z51: =IF(OverviewIRR_PreTax,IF(ISBLANK(TimelinesPvt!$Z$138),"",TimelinesPvt!$Z$138),IF(ISBLANK(TimelinesPvt!$Z$196),"",TimelinesPvt!$Z$196)) -> 0 | AA51: =IF(OverviewIRR_PreTax,IF(ISBLANK(TimelinesPvt!$AA$138),"",TimelinesPvt!$AA$138),IF(ISBLANK(TimelinesPvt!$AA$196),"",TimelinesPvt!$AA$196)) -> 0 | AB51: =IF(OverviewIRR_PreTax,IF(ISBLANK(TimelinesPvt!$AB$138),"",TimelinesPvt!$AB$138),IF(ISBLANK(TimelinesPvt!$AB$196),"",TimelinesPvt!$AB$196)) -> 0 | AC51: =IF(OverviewIRR_PreTax,IF(ISBLANK(TimelinesPvt!$AC$138),"",TimelinesPvt!$AC$138),IF(ISBLANK(TimelinesPvt!$AC$196),"",TimelinesPvt!$AC$196)) -> 0
